Workbook

Sheet INTRO
B2: Formulaire de demande commune de médicaments pour CP v.3.1
B4: Dans le cadre des efforts mondiaux entrepris pour accélérer l'expansion de la chimioprévention (CP) pour l'élimination de la filariose lymphatique et la lutte contre la schistosomiase et les géohelminthiases, l'Organisation mondiale de la Santé (OMS) facilite l'approvisionnement en albendazole, comprimés de 400 mg (GSK), pour les programmes nationaux d'élimination de la filariose lymphatique et programmes nationaux de lutte contre les géohelminthiases; en diethylcarbamazine, comprimés de 100 mg (Eisai), pour les programmes nationaux d'élimination de la filariose lymphatique; en mebendazole, comprimés de 500 mg (J&J) pour les programmes nationaux de lutte contre les géohelminthiases et en praziquantel, comprimés de 600 mg (Merck KGaA), destinés aux enfants d'âge scolaire, pour les programmes nationaux de lutte contre la schistosomiase. L'OMS contribue également à l'approvisionnement en ivermectine, comprimés de 3 mg (Merck), pour les programmes de donation pour l'onchocercose et la filariose lymphatique. Cet outil Excel est concu pour aider les pays à quantifier le nombre de comprimés nécessaires, selon le traitement de chimioprévention requis, pour atteindre les objectifs de couverture de traitement de populations et districts pour l'année de la demande de médicaments. Le résultat de cet outil est une demande commune de médicaments pour la chimioprévention des maladies tropicales négligées, qui peut être imprimée, signée et soumise à l'OMS pour la demande de ces médicaments.
B6: Structure de l'application (feuilles de travail) :
B8: INTRO | C8: Cette feuille contient des instructions pour compléter le formulaire de demande de médicaments pour la chimioprévention et des informations sur le statut de la chimioprévention pour les maladies d'endémie du pays.
B9: COUNTRY_INFO | C9: Cette feuille contient des informations sur la structure administrative du pays, la population par groupe d'âge, le statut d'endémicité pour chaque maladie, la population devant être traitée par chimioprévention et les interventions prévues.
B10: DEC, ALB_MBD, PZQ et IVM | C10: Ces feuilles contiennent des informations sur l'endémicité des districts ciblés pour le traitement aux médicaments spécifiques à la chimioprévention, les plans de traitement, et le nombre de comprimés requis et demandés.
B11: SUMMARY | C11: Cette feuille inclut un résumé du nombre de comprimés demandés, des informations concernant le stock et les dates de soumission de la demande de médicaments. Avant de générer le rapport (run macros), veuillez sélectionner le médicament pour lequel le rapport est nécessaire. Veuillez suivre la même règle pour voir le nombre de personnes à traiter pour les maladies spécifiques. Cette feuille doit être imprimée et soumise en tant que "Formulaire de demande commune de médicaments pour chimioprévention" (voir les instructions pour la soumission du formulaire sous la feuille SUMMARY).
B13: Instructions pour la saisie des données
B15: La plupart des cellules des feuilles de travail mentionnées ci-dessus contiennent des formules calculées automatiquement en fonction du protocole de traitement recommandé par l'OMS pour chaque maladie. Voir : http://www.who.int/neglected_diseases/preventive_chemotherapy/pct_manual/en/index.html
B17: Veuillez entrer vos données dans les cellules en fonction de leur code de couleur :
C19: Blanc - la cellule n'est pas protégée. Veuillez entrer la valeur de l'indicateur demandé.
C21: Jaune - la cellule est protégée et inclut le nom de l'indicateur. Aucune entrée de données requise.
C23: Orange - la cellule n'est pas protégée et contient un menu déroulant. Veuillez sélectionner la valeur dans le menu déroulant.
C26: Vert - la cellule n'est pas protégée et contient des formules. Veuillez changer la valeur indiquée uniquement si vos données sont différentes de celles calculées automatiquement.
C29: Bleu - la cellule est protégée et contient des formules. Aucune entrée de données requise.
B31: Données pays
B33: PAYS | E33: Benin
B35: Année de la demande de médicaments | E35: 2022
B37: Le pays est-il endémique à la filariose lymphatique (FL) ? | E37: Endémique
B39: Le pays est-il endémique à l'onchocercose (ONCHO) ? | E39: Endémique
B41: Le pays est-il endémique aux géohelminthiases (STH) ? | E41: Endémique
B43: Le pays est-il endémique à la schistosomiase (SCH) ? | E43: Endémique
B45: Combien d'unités administratives compte le pays ? | E45: 77
B47: Si les données démographiques par groupe d'âge ne sont pas disponibles au second niveau administratif, veuillez entrer la proportion (%) de population, par groupe d'âge, du pays. Si les données sont disponibles, veuillez laisser les cellules vierges.
B48: 1-4 ans | C48: Enfants d'âge pré-scolaire (EAPréS) | E48: 0.1364
B49: 5-14 ans | C49: Enfants d'âge scolaire (EAS) | E49: 0.297
B50: 15 ans et plus | C50: Adultes | E50: 0.5266

Sheet COUNTRY_INFO
A1: INFORMATIONS PAYS
A2: Struture administrative, population par groupe d'âge, statut d'endémicité et interventions planifiées
A4: TOTAL | D4: =SUM(D$9:D$1000) -> 11166589 | E4: =SUM(E$9:E$1000) -> 1523123 | F4: =SUM(F$9:F$1000) -> 3316477 | G4: =SUM(G$9:G$1000) -> 5880320 | L4: =SUM(L$9:L$1000) -> 0 | M4: =SUM(M$9:M$1000) -> 6314415 | N4: =SUM(N$9:N$1000) -> 1167915 | O4: =SUM(O$9:O$1000) -> 1242457
A6: Structure administrative du pays | D6: Population | H6: Endémicité | L6: Population nécessitant la CP | P6: Nombre de tournées de traitement prévues pour l'année | T6: Enquêtes épidémiologiques planifiées pour l’année
A7: Pays | B7: Région/Département | C7: District | D7: Total | E7: EAPréS | F7: EAS | G7: Adultes | H7: FL | I7: Oncho | J7: STH | K7: SCH | L7: FL | M7: Oncho | N7: STH | O7: SCH | P7: FL | Q7: Oncho | R7: STH | S7: SCH | T7: FL | U7: Oncho | V7: STH | W7: SCH | X7: IU_ID | Y7: IU_Name
A9: =IF(INTRO!$E$33<>0,INTRO!$E$33, " ") -> Benin | B9: Alibori | C9: Banikoara | D9: 316963 | E9: =IF(INTRO!$E$48="","",ROUND($D9*INTRO!$E$48,0)) -> 43234 | F9: =IF(INTRO!$E$49="","",ROUND($D9*INTRO!$E$49,0)) -> 94138 | G9: =IF(INTRO!$E$50="","",ROUND($D9*INTRO!$E$50,0)) -> 166913 | H9: 0 | I9: 1 | J9: 1 | K9: 2 | L9: =IF(INTRO!$E$37="Endémique",IF($H9>0,IF($H9=4,"Inconnu",IF($H9=99,"Interrompu",$D9)),0),"Non requis") -> 0 | M9: =IF(INTRO!$E$39="Endémique", IF($I9>0, IF($I9=4,"Inconnu",IF($I9=99,"Interrompu",$D9)), 0),"Non requis") -> 316963 | N9: 0 | P9: 0 | Q9: 1 | R9: 0 | S9: 0 | X9: 3212 | Y9: Banikoara
A10: =IF(INTRO!$E$33<>0,INTRO!$E$33, " ") -> Benin | B10: Alibori | C10: Gogounou | D10: 107402 | E10: =IF(INTRO!$E$48="","",ROUND($D10*INTRO!$E$48,0)) -> 14650 | F10: =IF(INTRO!$E$49="","",ROUND($D10*INTRO!$E$49,0)) -> 31898 | G10: =IF(INTRO!$E$50="","",ROUND($D10*INTRO!$E$50,0)) -> 56558 | H10: 0 | I10: 1 | J10: 2 | K10: 1 | L10: =IF(INTRO!$E$37="Endémique",IF($H10>0,IF($H10=4,"Inconnu",IF($H10=99,"Interrompu",$D10)),0),"Non requis") -> 0 | M10: =IF(INTRO!$E$39="Endémique", IF($I10>0, IF($I10=4,"Inconnu",IF($I10=99,"Interrompu",$D10)), 0),"Non requis") -> 107402 | N10: =F10 -> 31898 | P10: 0 | Q10: 1 | R10: 1 | S10: 0 | X10: 3236 | Y10: Gogounou
A11: =IF(INTRO!$E$33<>0,INTRO!$E$33, " ") -> Benin | B11: Alibori | C11: Kandi | D11: 127404 | E11: =IF(INTRO!$E$48="","",ROUND($D11*INTRO!$E$48,0)) -> 17378 | F11: =IF(INTRO!$E$49="","",ROUND($D11*INTRO!$E$49,0)) -> 37839 | G11: =IF(INTRO!$E$50="","",ROUND($D11*INTRO!$E$50,0)) -> 67091 | H11: 0 | I11: 1 | J11: 2 | K11: 2 | L11: =IF(INTRO!$E$37="Endémique",IF($H11>0,IF($H11=4,"Inconnu",IF($H11=99,"Interrompu",$D11)),0),"Non requis") -> 0 | M11: =IF(INTRO!$E$39="Endémique", IF($I11>0, IF($I11=4,"Inconnu",IF($I11=99,"Interrompu",$D11)), 0),"Non requis") -> 127404 | N11: 37839 | P11: 0 | Q11: 1 | R11: 1 | S11: 0 | X11: 3213 | Y11: Kandi
A12: =IF(INTRO!$E$33<>0,INTRO!$E$33, " ") -> Benin | B12: Alibori | C12: Karimama | D12: 63962 | E12: =IF(INTRO!$E$48="","",ROUND($D12*INTRO!$E$48,0)) -> 8724 | F12: =IF(INTRO!$E$49="","",ROUND($D12*INTRO!$E$49,0)) -> 18997 | G12: =IF(INTRO!$E$50="","",ROUND($D12*INTRO!$E$50,0)) -> 33682 | H12: 99 | I12: 1 | J12: 1 | K12: 1 | L12: =IF(INTRO!$E$37="Endémique",IF($H12>0,IF($H12=4,"Inconnu",IF($H12=99,"Interrompu",$D12)),0),"Non requis") -> Interrompu | M12: =IF(INTRO!$E$39="Endémique", IF($I12>0, IF($I12=4,"Inconnu",IF($I12=99,"Interrompu",$D12)), 0),"Non requis") -> 63962 | N12: 0 | P12: 0 | Q12: 1 | R12: 0 | S12: 0 | X12: 3214 | Y12: Karimama
A13: =IF(INTRO!$E$33<>0,INTRO!$E$33, " ") -> Benin | B13: Alibori | C13: Malanville | D13: 117148 | E13: =IF(INTRO!$E$48="","",ROUND($D13*INTRO!$E$48,0)) -> 15979 | F13: =IF(INTRO!$E$49="","",ROUND($D13*INTRO!$E$49,0)) -> 34793 | G13: =IF(INTRO!$E$50="","",ROUND($D13*INTRO!$E$50,0)) -> 61690 | H13: 99 | I13: 1 | J13: 1 | K13: 2 | L13: =IF(INTRO!$E$37="Endémique",IF($H13>0,IF($H13=4,"Inconnu",IF($H13=99,"Interrompu",$D13)),0),"Non requis") -> Interrompu | M13: =IF(INTRO!$E$39="Endémique", IF($I13>0, IF($I13=4,"Inconnu",IF($I13=99,"Interrompu",$D13)), 0),"Non requis") -> 117148 | N13: 0 | P13: 0 | Q13: 1 | R13: 0 | S13: 0 | X13: 3215 | Y13: Malanville
A14: =IF(INTRO!$E$33<>0,INTRO!$E$33, " ") -> Benin | B14: Alibori | C14: Ségbana | D14: 76090 | E14: =IF(INTRO!$E$48="","",ROUND($D14*INTRO!$E$48,0)) -> 10379 | F14: =IF(INTRO!$E$49="","",ROUND($D14*INTRO!$E$49,0)) -> 22599 | G14: =IF(INTRO!$E$50="","",ROUND($D14*INTRO!$E$50,0)) -> 40069 | H14: 0 | I14: 1 | J14: 2 | K14: 1 | L14: =IF(INTRO!$E$37="Endémique",IF($H14>0,IF($H14=4,"Inconnu",IF($H14=99,"Interrompu",$D14)),0),"Non requis") -> 0 | M14: =IF(INTRO!$E$39="Endémique", IF($I14>0, IF($I14=4,"Inconnu",IF($I14=99,"Interrompu",$D14)), 0),"Non requis") -> 76090 | N14: 22599 | P14: 0 | Q14: 1 | R14: 1 | S14: 0 | X14: 3216 | Y14: Ségbana
A15: =IF(INTRO!$E$33<>0,INTRO!$E$33, " ") -> Benin | B15: Atacora | C15: Boukoumbé | D15: 99034 | E15: =IF(INTRO!$E$48="","",ROUND($D15*INTRO!$E$48,0)) -> 13508 | F15: =IF(INTRO!$E$49="","",ROUND($D15*INTRO!$E$49,0)) -> 29413 | G15: =IF(INTRO!$E$50="","",ROUND($D15*INTRO!$E$50,0)) -> 52151 | H15: 99 | I15: 1 | J15: 1 | K15: 2 | L15: =IF(INTRO!$E$37="Endémique",IF($H15>0,IF($H15=4,"Inconnu",IF($H15=99,"Interrompu",$D15)),0),"Non requis") -> Interrompu | M15: =IF(INTRO!$E$39="Endémique", IF($I15>0, IF($I15=4,"Inconnu",IF($I15=99,"Interrompu",$D15)), 0),"Non requis") -> 99034 | O15: =F15 -> 29413 | P15: 0 | Q15: 1 | R15: 0 | S15: 1 | X15: 3217 | Y15: Boukoumbé
A16: =IF(INTRO!$E$33<>0,INTRO!$E$33, " ") -> Benin | B16: Atacora | C16: Cobly | D16: 82639 | E16: =IF(INTRO!$E$48="","",ROUND($D16*INTRO!$E$48,0)) -> 11272 | F16: =IF(INTRO!$E$49="","",ROUND($D16*INTRO!$E$49,0)) -> 24544 | G16: =IF(INTRO!$E$50="","",ROUND($D16*INTRO!$E$50,0)) -> 43518 | H16: 0 | I16: 1 | J16: 2 | K16: 2 | L16: =IF(INTRO!$E$37="Endémique",IF($H16>0,IF($H16=4,"Inconnu",IF($H16=99,"Interrompu",$D16)),0),"Non requis") -> 0 | M16: =IF(INTRO!$E$39="Endémique", IF($I16>0, IF($I16=4,"Inconnu",IF($I16=99,"Interrompu",$D16)), 0),"Non requis") -> 82639 | N16: 24544 | O16: 24544 | P16: 0 | Q16: 1 | R16: 1 | S16: 1 | X16: 3218 | Y16: Cobly
A17: =IF(INTRO!$E$33<>0,INTRO!$E$33, " ") -> Benin | B17: Atacora | C17: Kérou | D17: 119909 | E17: =IF(INTRO!$E$48="","",ROUND($D17*INTRO!$E$48,0)) -> 16356 | F17: =IF(INTRO!$E$49="","",ROUND($D17*INTRO!$E$49,0)) -> 35613 | G17: =IF(INTRO!$E$50="","",ROUND($D17*INTRO!$E$50,0)) -> 63144 | H17: 99 | I17: 1 | J17: 1 | K17: 1 | L17: =IF(INTRO!$E$37="Endémique",IF($H17>0,IF($H17=4,"Inconnu",IF($H17=99,"Interrompu",$D17)),0),"Non requis") -> Interrompu | M17: =IF(INTRO!$E$39="Endémique", IF($I17>0, IF($I17=4,"Inconnu",IF($I17=99,"Interrompu",$D17)), 0),"Non requis") -> 119909 | N17: 0 | P17: 0 | Q17: 1 | R17: 0 | S17: 0 | X17: 3220 | Y17: Kérou
A18: =IF(INTRO!$E$33<>0,INTRO!$E$33, " ") -> Benin | B18: Atacora | C18: Kouandé | D18: 138526 | E18: =IF(INTRO!$E$48="","",ROUND($D18*INTRO!$E$48,0)) -> 18895 | F18: =IF(INTRO!$E$49="","",ROUND($D18*INTRO!$E$49,0)) -> 41142 | G18: =IF(INTRO!$E$50="","",ROUND($D18*INTRO!$E$50,0)) -> 72948 | H18: 0 | I18: 1 | J18: 2 | K18: 2 | L18: =IF(INTRO!$E$37="Endémique",IF($H18>0,IF($H18=4,"Inconnu",IF($H18=99,"Interrompu",$D18)),0),"Non requis") -> 0 | M18: =IF(INTRO!$E$39="Endémique", IF($I18>0, IF($I18=4,"Inconnu",IF($I18=99,"Interrompu",$D18)), 0),"Non requis") -> 138526 | N18: 41142 | O18: 41142 | P18: 0 | Q18: 1 | R18: 1 | S18: 1 | X18: 3219 | Y18: Kouandé
A19: =IF(INTRO!$E$33<>0,INTRO!$E$33, " ") -> Benin | B19: Atacora | C19: Matéri | D19: 116084 | E19: =IF(INTRO!$E$48="","",ROUND($D19*INTRO!$E$48,0)) -> 15834 | F19: =IF(INTRO!$E$49="","",ROUND($D19*INTRO!$E$49,0)) -> 34477 | G19: =IF(INTRO!$E$50="","",ROUND($D19*INTRO!$E$50,0)) -> 61130 | H19: 99 | I19: 1 | J19: 1 | K19: 1 | L19: =IF(INTRO!$E$37="Endémique",IF($H19>0,IF($H19=4,"Inconnu",IF($H19=99,"Interrompu",$D19)),0),"Non requis") -> Interrompu | M19: =IF(INTRO!$E$39="Endémique", IF($I19>0, IF($I19=4,"Inconnu",IF($I19=99,"Interrompu",$D19)), 0),"Non requis") -> 116084 | N19: 0 | P19: 0 | Q19: 1 | R19: 0 | S19: 0 | X19: 3221 | Y19: Matéri
A20: =IF(INTRO!$E$33<>0,INTRO!$E$33, " ") -> Benin | B20: Atacora | C20: Natitingou | D20: 86754 | E20: =IF(INTRO!$E$48="","",ROUND($D20*INTRO!$E$48,0)) -> 11833 | F20: =IF(INTRO!$E$49="","",ROUND($D20*INTRO!$E$49,0)) -> 25766 | G20: =IF(INTRO!$E$50="","",ROUND($D20*INTRO!$E$50,0)) -> 45685 | H20: 0 | I20: 1 | J20: 1 | K20: 1 | L20: =IF(INTRO!$E$37="Endémique",IF($H20>0,IF($H20=4,"Inconnu",IF($H20=99,"Interrompu",$D20)),0),"Non requis") -> 0 | M20: =IF(INTRO!$E$39="Endémique", IF($I20>0, IF($I20=4,"Inconnu",IF($I20=99,"Interrompu",$D20)), 0),"Non requis") -> 86754 | N20: 0 | P20: 0 | Q20: 1 | R20: 0 | S20: 0 | X20: 3222 | Y20: Natitingou
A21: =IF(INTRO!$E$33<>0,INTRO!$E$33, " ") -> Benin | B21: Atacora | C21: Péhunco | D21: 106600 | E21: =IF(INTRO!$E$48="","",ROUND($D21*INTRO!$E$48,0)) -> 14540 | F21: =IF(INTRO!$E$49="","",ROUND($D21*INTRO!$E$49,0)) -> 31660 | G21: =IF(INTRO!$E$50="","",ROUND($D21*INTRO!$E$50,0)) -> 56136 | H21: 0 | I21: 0 | J21: 1 | K21: 2 | L21: =IF(INTRO!$E$37="Endémique",IF($H21>0,IF($H21=4,"Inconnu",IF($H21=99,"Interrompu",$D21)),0),"Non requis") -> 0 | M21: =IF(INTRO!$E$39="Endémique", IF($I21>0, IF($I21=4,"Inconnu",IF($I21=99,"Interrompu",$D21)), 0),"Non requis") -> 0 | N21: 0 | O21: 31660 | P21: 0 | Q21: 0 | R21: 0 | S21: 1 | X21: 3224 | Y21: Péhunco
A22: =IF(INTRO!$E$33<>0,INTRO!$E$33, " ") -> Benin | B22: Atacora | C22: Tanguiéta | D22: 80109 | E22: =IF(INTRO!$E$48="","",ROUND($D22*INTRO!$E$48,0)) -> 10927 | F22: =IF(INTRO!$E$49="","",ROUND($D22*INTRO!$E$49,0)) -> 23792 | G22: =IF(INTRO!$E$50="","",ROUND($D22*INTRO!$E$50,0)) -> 42185 | H22: 99 | I22: 1 | J22: 1 | K22: 2 | L22: =IF(INTRO!$E$37="Endémique",IF($H22>0,IF($H22=4,"Inconnu",IF($H22=99,"Interrompu",$D22)),0),"Non requis") -> Interrompu | M22: =IF(INTRO!$E$39="Endémique", IF($I22>0, IF($I22=4,"Inconnu",IF($I22=99,"Interrompu",$D22)), 0),"Non requis") -> 80109 | N22: 0 | O22: 23792 | P22: 0 | Q22: 1 | R22: 0 | S22: 1 | X22: 3225 | Y22: Tanguiéta
A23: =IF(INTRO!$E$33<>0,INTRO!$E$33, " ") -> Benin | B23: Atacora | C23: Toukountouna | D23: 45928 | E23: =IF(INTRO!$E$48="","",ROUND($D23*INTRO!$E$48,0)) -> 6265 | F23: =IF(INTRO!$E$49="","",ROUND($D23*INTRO!$E$49,0)) -> 13641 | G23: =IF(INTRO!$E$50="","",ROUND($D23*INTRO!$E$50,0)) -> 24186 | H23: 99 | I23: 1 | J23: 1 | K23: 1 | L23: =IF(INTRO!$E$37="Endémique",IF($H23>0,IF($H23=4,"Inconnu",IF($H23=99,"Interrompu",$D23)),0),"Non requis") -> Interrompu | M23: =IF(INTRO!$E$39="Endémique", IF($I23>0, IF($I23=4,"Inconnu",IF($I23=99,"Interrompu",$D23)), 0),"Non requis") -> 45928 | N23: 0 | P23: 0 | Q23: 1 | R23: 0 | S23: 0 | X23: 3226 | Y23: Toukountouna
A24: =IF(INTRO!$E$33<>0,INTRO!$E$33, " ") -> Benin | B24: Atlantique | C24: Abomey-Calavi | D24: 894547 | E24: =IF(INTRO!$E$48="","",ROUND($D24*INTRO!$E$48,0)) -> 122016 | F24: =IF(INTRO!$E$49="","",ROUND($D24*INTRO!$E$49,0)) -> 265680 | G24: =IF(INTRO!$E$50="","",ROUND($D24*INTRO!$E$50,0)) -> 471068 | H24: 0 | I24: 0 | J24: 1 | K24: 1 | L24: =IF(INTRO!$E$37="Endémique",IF($H24>0,IF($H24=4,"Inconnu",IF($H24=99,"Interrompu",$D24)),0),"Non requis") -> 0 | M24: =IF(INTRO!$E$39="Endémique", IF($I24>0, IF($I24=4,"Inconnu",IF($I24=99,"Interrompu",$D24)), 0),"Non requis") -> 0 | N24: 0 | P24: 0 | Q24: 0 | R24: 0 | S24: 0 | X24: 3227 | Y24: Abomey-Calavi
A25: =IF(INTRO!$E$33<>0,INTRO!$E$33, " ") -> Benin | B25: Atlantique | C25: Allada | D25: 173784 | E25: =IF(INTRO!$E$48="","",ROUND($D25*INTRO!$E$48,0)) -> 23704 | F25: =IF(INTRO!$E$49="","",ROUND($D25*INTRO!$E$49,0)) -> 51614 | G25: =IF(INTRO!$E$50="","",ROUND($D25*INTRO!$E$50,0)) -> 91515 | H25: 99 | I25: 0 | J25: 2 | K25: 1 | L25: =IF(INTRO!$E$37="Endémique",IF($H25>0,IF($H25=4,"Inconnu",IF($H25=99,"Interrompu",$D25)),0),"Non requis") -> Interrompu | M25: =IF(INTRO!$E$39="Endémique", IF($I25>0, IF($I25=4,"Inconnu",IF($I25=99,"Interrompu",$D25)), 0),"Non requis") -> 0 | N25: 51614 | P25: 0 | Q25: 0 | R25: 1 | S25: 0 | X25: 3228 | Y25: Allada
A26: =IF(INTRO!$E$33<>0,INTRO!$E$33, " ") -> Benin | B26: Atlantique | C26: Kpomassè | D26: 92195 | E26: =IF(INTRO!$E$48="","",ROUND($D26*INTRO!$E$48,0)) -> 12575 | F26: =IF(INTRO!$E$49="","",ROUND($D26*INTRO!$E$49,0)) -> 27382 | G26: =IF(INTRO!$E$50="","",ROUND($D26*INTRO!$E$50,0)) -> 48550 | H26: 99 | I26: 0 | J26: 1 | K26: 0 | L26: =IF(INTRO!$E$37="Endémique",IF($H26>0,IF($H26=4,"Inconnu",IF($H26=99,"Interrompu",$D26)),0),"Non requis") -> Interrompu | M26: =IF(INTRO!$E$39="Endémique", IF($I26>0, IF($I26=4,"Inconnu",IF($I26=99,"Interrompu",$D26)), 0),"Non requis") -> 0 | N26: 0 | P26: 0 | Q26: 0 | R26: 0 | S26: 0 | X26: 3229 | Y26: Kpomassè
A27: =IF(INTRO!$E$33<>0,INTRO!$E$33, " ") -> Benin | B27: Atlantique | C27: Ouidah | D27: 220834 | E27: =IF(INTRO!$E$48="","",ROUND($D27*INTRO!$E$48,0)) -> 30122 | F27: =IF(INTRO!$E$49="","",ROUND($D27*INTRO!$E$49,0)) -> 65588 | G27: =IF(INTRO!$E$50="","",ROUND($D27*INTRO!$E$50,0)) -> 116291 | H27: 99 | I27: 0 | J27: 1 | K27: 2 | L27: =IF(INTRO!$E$37="Endémique",IF($H27>0,IF($H27=4,"Inconnu",IF($H27=99,"Interrompu",$D27)),0),"Non requis") -> Interrompu | M27: =IF(INTRO!$E$39="Endémique", IF($I27>0, IF($I27=4,"Inconnu",IF($I27=99,"Interrompu",$D27)), 0),"Non requis") -> 0 | N27: 0 | O27: 65588 | P27: 0 | Q27: 0 | R27: 0 | S27: 1 | X27: 3230 | Y27: Ouidah
A28: =IF(INTRO!$E$33<>0,INTRO!$E$33, " ") -> Benin | B28: Atlantique | C28: So-Ava | D28: 161566 | E28: =IF(INTRO!$E$48="","",ROUND($D28*INTRO!$E$48,0)) -> 22038 | F28: =IF(INTRO!$E$49="","",ROUND($D28*INTRO!$E$49,0)) -> 47985 | G28: =IF(INTRO!$E$50="","",ROUND($D28*INTRO!$E$50,0)) -> 85081 | H28: 0 | I28: 0 | J28: 1 | K28: 3 | L28: =IF(INTRO!$E$37="Endémique",IF($H28>0,IF($H28=4,"Inconnu",IF($H28=99,"Interrompu",$D28)),0),"Non requis") -> 0 | M28: =IF(INTRO!$E$39="Endémique", IF($I28>0, IF($I28=4,"Inconnu",IF($I28=99,"Interrompu",$D28)), 0),"Non requis") -> 0 | N28: 0 | O28: 47985 | P28: 0 | Q28: 0 | R28: 0 | S28: 1 | X28: 3231 | Y28: So-Ava
A29: =IF(INTRO!$E$33<>0,INTRO!$E$33, " ") -> Benin | B29: Atlantique | C29: Toffo | D29: 138449 | E29: =IF(INTRO!$E$48="","",ROUND($D29*INTRO!$E$48,0)) -> 18884 | F29: =IF(INTRO!$E$49="","",ROUND($D29*INTRO!$E$49,0)) -> 41119 | G29: =IF(INTRO!$E$50="","",ROUND($D29*INTRO!$E$50,0)) -> 72907 | H29: 0 | I29: 1 | J29: 3 | K29: 2 | L29: =IF(INTRO!$E$37="Endémique",IF($H29>0,IF($H29=4,"Inconnu",IF($H29=99,"Interrompu",$D29)),0),"Non requis") -> 0 | M29: =IF(INTRO!$E$39="Endémique", IF($I29>0, IF($I29=4,"Inconnu",IF($I29=99,"Interrompu",$D29)), 0),"Non requis") -> 138449 | N29: 41119 | O29: 41119 | P29: 0 | Q29: 1 | R29: 1 | S29: 1 | X29: 3232 | Y29: Toffo
A30: =IF(INTRO!$E$33<>0,INTRO!$E$33, " ") -> Benin | B30: Atlantique | C30: Torri-Bossito | D30: 78545 | E30: =IF(INTRO!$E$48="","",ROUND($D30*INTRO!$E$48,0)) -> 10714 | F30: =IF(INTRO!$E$49="","",ROUND($D30*INTRO!$E$49,0)) -> 23328 | G30: =IF(INTRO!$E$50="","",ROUND($D30*INTRO!$E$50,0)) -> 41362 | H30: 99 | I30: 0 | J30: 2 | K30: 2 | L30: =IF(INTRO!$E$37="Endémique",IF($H30>0,IF($H30=4,"Inconnu",IF($H30=99,"Interrompu",$D30)),0),"Non requis") -> Interrompu | M30: =IF(INTRO!$E$39="Endémique", IF($I30>0, IF($I30=4,"Inconnu",IF($I30=99,"Interrompu",$D30)), 0),"Non requis") -> 0 | N30: 23328 | O30: 23328 | P30: 0 | Q30: 0 | R30: 1 | S30: 1 | X30: 3233 | Y30: Torri-Bossito
A31: =IF(INTRO!$E$33<>0,INTRO!$E$33, " ") -> Benin | B31: Atlantique | C31: Zè | D31: 145709 | E31: =IF(INTRO!$E$48="","",ROUND($D31*INTRO!$E$48,0)) -> 19875 | F31: =IF(INTRO!$E$49="","",ROUND($D31*INTRO!$E$49,0)) -> 43276 | G31: =IF(INTRO!$E$50="","",ROUND($D31*INTRO!$E$50,0)) -> 76730 | H31: 0 | I31: 1 | J31: 2 | K31: 2 | L31: =IF(INTRO!$E$37="Endémique",IF($H31>0,IF($H31=4,"Inconnu",IF($H31=99,"Interrompu",$D31)),0),"Non requis") -> 0 | M31: =IF(INTRO!$E$39="Endémique", IF($I31>0, IF($I31=4,"Inconnu",IF($I31=99,"Interrompu",$D31)), 0),"Non requis") -> 145709 | N31: 43276 | O31: 43276 | P31: 0 | Q31: 1 | R31: 1 | S31: 1 | X31: 3234 | Y31: Zè
A32: =IF(INTRO!$E$33<>0,INTRO!$E$33, " ") -> Benin | B32: Borgou | C32: Bembèrèkè | D32: 129504 | E32: =IF(INTRO!$E$48="","",ROUND($D32*INTRO!$E$48,0)) -> 17664 | F32: =IF(INTRO!$E$49="","",ROUND($D32*INTRO!$E$49,0)) -> 38463 | G32: =IF(INTRO!$E$50="","",ROUND($D32*INTRO!$E$50,0)) -> 68197 | H32: 0 | I32: 1 | J32: 1 | K32: 3 | L32: =IF(INTRO!$E$37="Endémique",IF($H32>0,IF($H32=4,"Inconnu",IF($H32=99,"Interrompu",$D32)),0),"Non requis") -> 0 | M32: =IF(INTRO!$E$39="Endémique", IF($I32>0, IF($I32=4,"Inconnu",IF($I32=99,"Interrompu",$D32)), 0),"Non requis") -> 129504 | N32: 0 | O32: 38463 | P32: 0 | Q32: 1 | R32: 0 | S32: 1 | X32: 3235 | Y32: Bembèrèkè
A33: =IF(INTRO!$E$33<>0,INTRO!$E$33, " ") -> Benin | B33: Borgou | C33: Kalalé | D33: 199906 | E33: =IF(INTRO!$E$48="","",ROUND($D33*INTRO!$E$48,0)) -> 27267 | F33: =IF(INTRO!$E$49="","",ROUND($D33*INTRO!$E$49,0)) -> 59372 | G33: =IF(INTRO!$E$50="","",ROUND($D33*INTRO!$E$50,0)) -> 105270 | H33: 0 | I33: 1 | J33: 2 | K33: 2 | L33: =IF(INTRO!$E$37="Endémique",IF($H33>0,IF($H33=4,"Inconnu",IF($H33=99,"Interrompu",$D33)),0),"Non requis") -> 0 | M33: =IF(INTRO!$E$39="Endémique", IF($I33>0, IF($I33=4,"Inconnu",IF($I33=99,"Interrompu",$D33)), 0),"Non requis") -> 199906 | N33: 59372 | O33: 59372 | P33: 0 | Q33: 1 | R33: 1 | S33: 1 | X33: 3237 | Y33: Kalalé
A34: =IF(INTRO!$E$33<>0,INTRO!$E$33, " ") -> Benin | B34: Borgou | C34: N'Dali | D34: 106058 | E34: =IF(INTRO!$E$48="","",ROUND($D34*INTRO!$E$48,0)) -> 14466 | F34: =IF(INTRO!$E$49="","",ROUND($D34*INTRO!$E$49,0)) -> 31499 | G34: =IF(INTRO!$E$50="","",ROUND($D34*INTRO!$E$50,0)) -> 55850 | H34: 0 | I34: 1 | J34: 2 | K34: 3 | L34: =IF(INTRO!$E$37="Endémique",IF($H34>0,IF($H34=4,"Inconnu",IF($H34=99,"Interrompu",$D34)),0),"Non requis") -> 0 | M34: =IF(INTRO!$E$39="Endémique", IF($I34>0, IF($I34=4,"Inconnu",IF($I34=99,"Interrompu",$D34)), 0),"Non requis") -> 106058 | N34: 31499 | O34: 31499 | P34: 0 | Q34: 1 | R34: 1 | S34: 1 | X34: 3238 | Y34: N'Dali
A35: =IF(INTRO!$E$33<>0,INTRO!$E$33, " ") -> Benin | B35: Borgou | C35: Nikki | D35: 189611 | E35: =IF(INTRO!$E$48="","",ROUND($D35*INTRO!$E$48,0)) -> 25863 | F35: =IF(INTRO!$E$49="","",ROUND($D35*INTRO!$E$49,0)) -> 56314 | G35: =IF(INTRO!$E$50="","",ROUND($D35*INTRO!$E$50,0)) -> 99849 | H35: 0 | I35: 1 | J35: 1 | K35: 2 | L35: =IF(INTRO!$E$37="Endémique",IF($H35>0,IF($H35=4,"Inconnu",IF($H35=99,"Interrompu",$D35)),0),"Non requis") -> 0 | M35: =IF(INTRO!$E$39="Endémique", IF($I35>0, IF($I35=4,"Inconnu",IF($I35=99,"Interrompu",$D35)), 0),"Non requis") -> 189611 | N35: 0 | O35: 56314 | P35: 0 | Q35: 1 | R35: 0 | S35: 1 | X35: 3239 | Y35: Nikki
A36: =IF(INTRO!$E$33<>0,INTRO!$E$33, " ") -> Benin | B36: Borgou | C36: Parakou | D36: 144571 | E36: =IF(INTRO!$E$48="","",ROUND($D36*INTRO!$E$48,0)) -> 19719 | F36: =IF(INTRO!$E$49="","",ROUND($D36*INTRO!$E$49,0)) -> 42938 | G36: =IF(INTRO!$E$50="","",ROUND($D36*INTRO!$E$50,0)) -> 76131 | H36: 99 | I36: 1 | J36: 2 | K36: 2 | L36: =IF(INTRO!$E$37="Endémique",IF($H36>0,IF($H36=4,"Inconnu",IF($H36=99,"Interrompu",$D36)),0),"Non requis") -> Interrompu | M36: =IF(INTRO!$E$39="Endémique", IF($I36>0, IF($I36=4,"Inconnu",IF($I36=99,"Interrompu",$D36)), 0),"Non requis") -> 144571 | N36: 42938 | O36: 42938 | P36: 0 | Q36: 1 | R36: 1 | S36: 1 | X36: 3240 | Y36: Parakou
A37: =IF(INTRO!$E$33<>0,INTRO!$E$33, " ") -> Benin | B37: Borgou | C37: Pèrèrè | D37: 89461 | E37: =IF(INTRO!$E$48="","",ROUND($D37*INTRO!$E$48,0)) -> 12202 | F37: =IF(INTRO!$E$49="","",ROUND($D37*INTRO!$E$49,0)) -> 26570 | G37: =IF(INTRO!$E$50="","",ROUND($D37*INTRO!$E$50,0)) -> 47110 | H37: 0 | I37: 1 | J37: 2 | K37: 2 | L37: =IF(INTRO!$E$37="Endémique",IF($H37>0,IF($H37=4,"Inconnu",IF($H37=99,"Interrompu",$D37)),0),"Non requis") -> 0 | M37: =IF(INTRO!$E$39="Endémique", IF($I37>0, IF($I37=4,"Inconnu",IF($I37=99,"Interrompu",$D37)), 0),"Non requis") -> 89461 | N37: 26570 | O37: 26570 | P37: 0 | Q37: 1 | R37: 1 | S37: 1 | X37: 3241 | Y37: Pèrèrè
A38: =IF(INTRO!$E$33<>0,INTRO!$E$33, " ") -> Benin | B38: Borgou | C38: Sinendé | D38: 74115 | E38: =IF(INTRO!$E$48="","",ROUND($D38*INTRO!$E$48,0)) -> 10109 | F38: =IF(INTRO!$E$49="","",ROUND($D38*INTRO!$E$49,0)) -> 22012 | G38: =IF(INTRO!$E$50="","",ROUND($D38*INTRO!$E$50,0)) -> 39029 | H38: 0 | I38: 1 | J38: 2 | K38: 2 | L38: =IF(INTRO!$E$37="Endémique",IF($H38>0,IF($H38=4,"Inconnu",IF($H38=99,"Interrompu",$D38)),0),"Non requis") -> 0 | M38: =IF(INTRO!$E$39="Endémique", IF($I38>0, IF($I38=4,"Inconnu",IF($I38=99,"Interrompu",$D38)), 0),"Non requis") -> 74115 | N38: 22012 | O38: 22012 | P38: 0 | Q38: 1 | R38: 1 | S38: 1 | X38: 3242 | Y38: Sinendé
A39: =IF(INTRO!$E$33<>0,INTRO!$E$33, " ") -> Benin | B39: Borgou | C39: Tchaourou | D39: 287574 | E39: =IF(INTRO!$E$48="","",ROUND($D39*INTRO!$E$48,0)) -> 39225 | F39: =IF(INTRO!$E$49="","",ROUND($D39*INTRO!$E$49,0)) -> 85409 | G39: =IF(INTRO!$E$50="","",ROUND($D39*INTRO!$E$50,0)) -> 151436 | H39: 99 | I39: 1 | J39: 1 | K39: 3 | L39: =IF(INTRO!$E$37="Endémique",IF($H39>0,IF($H39=4,"Inconnu",IF($H39=99,"Interrompu",$D39)),0),"Non requis") -> Interrompu | M39: =IF(INTRO!$E$39="Endémique", IF($I39>0, IF($I39=4,"Inconnu",IF($I39=99,"Interrompu",$D39)), 0),"Non requis") -> 287574 | N39: 0 | O39: 85409 | P39: 0 | Q39: 1 | R39: 0 | S39: 1 | X39: 3243 | Y39: Tchaourou
A40: =IF(INTRO!$E$33<>0,INTRO!$E$33, " ") -> Benin | B40: Collines | C40: Bantè | D40: 90464 | E40: =IF(INTRO!$E$48="","",ROUND($D40*INTRO!$E$48,0)) -> 12339 | F40: =IF(INTRO!$E$49="","",ROUND($D40*INTRO!$E$49,0)) -> 26868 | G40: =IF(INTRO!$E$50="","",ROUND($D40*INTRO!$E$50,0)) -> 47638 | H40: 99 | I40: 1 | J40: 1 | K40: 2 | L40: =IF(INTRO!$E$37="Endémique",IF($H40>0,IF($H40=4,"Inconnu",IF($H40=99,"Interrompu",$D40)),0),"Non requis") -> Interrompu | M40: =IF(INTRO!$E$39="Endémique", IF($I40>0, IF($I40=4,"Inconnu",IF($I40=99,"Interrompu",$D40)), 0),"Non requis") -> 90464 | N40: 0 | P40: 0 | Q40: 1 | R40: 0 | S40: 0 | X40: 3244 | Y40: Bantè
A41: =IF(INTRO!$E$33<>0,INTRO!$E$33, " ") -> Benin | B41: Collines | C41: Dassa-Zoumè | D41: 102073 | E41: =IF(INTRO!$E$48="","",ROUND($D41*INTRO!$E$48,0)) -> 13923 | F41: =IF(INTRO!$E$49="","",ROUND($D41*INTRO!$E$49,0)) -> 30316 | G41: =IF(INTRO!$E$50="","",ROUND($D41*INTRO!$E$50,0)) -> 53752 | H41: 0 | I41: 1 | J41: 2 | K41: 2 | L41: =IF(INTRO!$E$37="Endémique",IF($H41>0,IF($H41=4,"Inconnu",IF($H41=99,"Interrompu",$D41)),0),"Non requis") -> 0 | M41: =IF(INTRO!$E$39="Endémique", IF($I41>0, IF($I41=4,"Inconnu",IF($I41=99,"Interrompu",$D41)), 0),"Non requis") -> 102073 | N41: 30316 | O41: 30316 | P41: 0 | Q41: 1 | R41: 1 | S41: 1 | X41: 3245 | Y41: Dassa-Zoumè
A42: =IF(INTRO!$E$33<>0,INTRO!$E$33, " ") -> Benin | B42: Collines | C42: Glazoué | D42: 105785 | E42: =IF(INTRO!$E$48="","",ROUND($D42*INTRO!$E$48,0)) -> 14429 | F42: =IF(INTRO!$E$49="","",ROUND($D42*INTRO!$E$49,0)) -> 31418 | G42: =IF(INTRO!$E$50="","",ROUND($D42*INTRO!$E$50,0)) -> 55706 | H42: 99 | I42: 1 | J42: 1 | K42: 1 | L42: =IF(INTRO!$E$37="Endémique",IF($H42>0,IF($H42=4,"Inconnu",IF($H42=99,"Interrompu",$D42)),0),"Non requis") -> Interrompu | M42: =IF(INTRO!$E$39="Endémique", IF($I42>0, IF($I42=4,"Inconnu",IF($I42=99,"Interrompu",$D42)), 0),"Non requis") -> 105785 | N42: 0 | P42: 0 | Q42: 1 | R42: 0 | S42: 0 | X42: 3246 | Y42: Glazoué
A43: =IF(INTRO!$E$33<>0,INTRO!$E$33, " ") -> Benin | B43: Collines | C43: Ouèssè | D43: 123202 | E43: =IF(INTRO!$E$48="","",ROUND($D43*INTRO!$E$48,0)) -> 16805 | F43: =IF(INTRO!$E$49="","",ROUND($D43*INTRO!$E$49,0)) -> 36591 | G43: =IF(INTRO!$E$50="","",ROUND($D43*INTRO!$E$50,0)) -> 64878 | H43: 0 | I43: 1 | J43: 2 | K43: 2 | L43: =IF(INTRO!$E$37="Endémique",IF($H43>0,IF($H43=4,"Inconnu",IF($H43=99,"Interrompu",$D43)),0),"Non requis") -> 0 | M43: =IF(INTRO!$E$39="Endémique", IF($I43>0, IF($I43=4,"Inconnu",IF($I43=99,"Interrompu",$D43)), 0),"Non requis") -> 123202 | N43: 36591 | O43: 36591 | P43: 0 | Q43: 1 | R43: 1 | S43: 1 | X43: 3247 | Y43: Ouèssè
A44: =IF(INTRO!$E$33<>0,INTRO!$E$33, " ") -> Benin | B44: Collines | C44: Savalou | D44: 149581 | E44: =IF(INTRO!$E$48="","",ROUND($D44*INTRO!$E$48,0)) -> 20403 | F44: =IF(INTRO!$E$49="","",ROUND($D44*INTRO!$E$49,0)) -> 44426 | G44: =IF(INTRO!$E$50="","",ROUND($D44*INTRO!$E$50,0)) -> 78769 | H44: 99 | I44: 1 | J44: 1 | K44: 2 | L44: =IF(INTRO!$E$37="Endémique",IF($H44>0,IF($H44=4,"Inconnu",IF($H44=99,"Interrompu",$D44)),0),"Non requis") -> Interrompu | M44: =IF(INTRO!$E$39="Endémique", IF($I44>0, IF($I44=4,"Inconnu",IF($I44=99,"Interrompu",$D44)), 0),"Non requis") -> 149581 | N44: 0 | P44: 0 | Q44: 1 | R44: 0 | S44: 0 | X44: 3248 | Y44: Savalou
A45: =IF(INTRO!$E$33<>0,INTRO!$E$33, " ") -> Benin | B45: Collines | C45: Savè | D45: 89044 | E45: =IF(INTRO!$E$48="","",ROUND($D45*INTRO!$E$48,0)) -> 12146 | F45: =IF(INTRO!$E$49="","",ROUND($D45*INTRO!$E$49,0)) -> 26446 | G45: =IF(INTRO!$E$50="","",ROUND($D45*INTRO!$E$50,0)) -> 46891 | H45: 0 | I45: 1 | J45: 2 | K45: 2 | L45: =IF(INTRO!$E$37="Endémique",IF($H45>0,IF($H45=4,"Inconnu",IF($H45=99,"Interrompu",$D45)),0),"Non requis") -> 0 | M45: =IF(INTRO!$E$39="Endémique", IF($I45>0, IF($I45=4,"Inconnu",IF($I45=99,"Interrompu",$D45)), 0),"Non requis") -> 89044 | N45: 26446 | O45: 26446 | P45: 0 | Q45: 1 | R45: 1 | S45: 1 | X45: 3249 | Y45: Savè
A46: =IF(INTRO!$E$33<>0,INTRO!$E$33, " ") -> Benin | B46: Couffo | C46: Aplahoué | D46: 208250 | E46: =IF(INTRO!$E$48="","",ROUND($D46*INTRO!$E$48,0)) -> 28405 | F46: =IF(INTRO!$E$49="","",ROUND($D46*INTRO!$E$49,0)) -> 61850 | G46: =IF(INTRO!$E$50="","",ROUND($D46*INTRO!$E$50,0)) -> 109664 | H46: 99 | I46: 1 | J46: 1 | K46: 2 | L46: =IF(INTRO!$E$37="Endémique",IF($H46>0,IF($H46=4,"Inconnu",IF($H46=99,"Interrompu",$D46)),0),"Non requis") -> Interrompu | M46: =IF(INTRO!$E$39="Endémique", IF($I46>0, IF($I46=4,"Inconnu",IF($I46=99,"Interrompu",$D46)), 0),"Non requis") -> 208250 | N46: 0 | P46: 0 | Q46: 1 | R46: 0 | S46: 0 | X46: 3254 | Y46: Aplahoué
A47: =IF(INTRO!$E$33<>0,INTRO!$E$33, " ") -> Benin | B47: Couffo | C47: Djakotomè | D47: 173784 | E47: =IF(INTRO!$E$48="","",ROUND($D47*INTRO!$E$48,0)) -> 23704 | F47: =IF(INTRO!$E$49="","",ROUND($D47*INTRO!$E$49,0)) -> 51614 | G47: =IF(INTRO!$E$50="","",ROUND($D47*INTRO!$E$50,0)) -> 91515 | H47: 99 | I47: 1 | J47: 2 | K47: 2 | L47: =IF(INTRO!$E$37="Endémique",IF($H47>0,IF($H47=4,"Inconnu",IF($H47=99,"Interrompu",$D47)),0),"Non requis") -> Interrompu | M47: =IF(INTRO!$E$39="Endémique", IF($I47>0, IF($I47=4,"Inconnu",IF($I47=99,"Interrompu",$D47)), 0),"Non requis") -> 173784 | N47: 51614 | P47: 0 | Q47: 1 | R47: 1 | S47: 0 | X47: 3255 | Y47: Djakotomè
A48: =IF(INTRO!$E$33<>0,INTRO!$E$33, " ") -> Benin | B48: Couffo | C48: Dogbo | D48: 140456 | E48: =IF(INTRO!$E$48="","",ROUND($D48*INTRO!$E$48,0)) -> 19158 | F48: =IF(INTRO!$E$49="","",ROUND($D48*INTRO!$E$49,0)) -> 41715 | G48: =IF(INTRO!$E$50="","",ROUND($D48*INTRO!$E$50,0)) -> 73964 | H48: 99 | I48: 1 | J48: 1 | K48: 1 | L48: =IF(INTRO!$E$37="Endémique",IF($H48>0,IF($H48=4,"Inconnu",IF($H48=99,"Interrompu",$D48)),0),"Non requis") -> Interrompu | M48: =IF(INTRO!$E$39="Endémique", IF($I48>0, IF($I48=4,"Inconnu",IF($I48=99,"Interrompu",$D48)), 0),"Non requis") -> 140456 | N48: 0 | P48: 0 | Q48: 1 | R48: 0 | S48: 0 | X48: 3256 | Y48: Dogbo
A49: =IF(INTRO!$E$33<>0,INTRO!$E$33, " ") -> Benin | B49: Couffo | C49: Klouékamè | D49: 143223 | E49: =IF(INTRO!$E$48="","",ROUND($D49*INTRO!$E$48,0)) -> 19536 | F49: =IF(INTRO!$E$49="","",ROUND($D49*INTRO!$E$49,0)) -> 42537 | G49: =IF(INTRO!$E$50="","",ROUND($D49*INTRO!$E$50,0)) -> 75421 | H49: 99 | I49: 1 | J49: 2 | K49: 2 | L49: =IF(INTRO!$E$37="Endémique",IF($H49>0,IF($H49=4,"Inconnu",IF($H49=99,"Interrompu",$D49)),0),"Non requis") -> Interrompu | M49: =IF(INTRO!$E$39="Endémique", IF($I49>0, IF($I49=4,"Inconnu",IF($I49=99,"Interrompu",$D49)), 0),"Non requis") -> 143223 | N49: 42537 | P49: 0 | Q49: 1 | R49: 1 | S49: 0 | X49: 3257 | Y49: Klouékamè
A50: =IF(INTRO!$E$33<>0,INTRO!$E$33, " ") -> Benin | B50: Couffo | C50: Lalo | D50: 136073 | E50: =IF(INTRO!$E$48="","",ROUND($D50*INTRO!$E$48,0)) -> 18560 | F50: =IF(INTRO!$E$49="","",ROUND($D50*INTRO!$E$49,0)) -> 40414 | G50: =IF(INTRO!$E$50="","",ROUND($D50*INTRO!$E$50,0)) -> 71656 | H50: 99 | I50: 1 | J50: 1 | K50: 2 | L50: =IF(INTRO!$E$37="Endémique",IF($H50>0,IF($H50=4,"Inconnu",IF($H50=99,"Interrompu",$D50)),0),"Non requis") -> Interrompu | M50: =IF(INTRO!$E$39="Endémique", IF($I50>0, IF($I50=4,"Inconnu",IF($I50=99,"Interrompu",$D50)), 0),"Non requis") -> 136073 | N50: 0 | P50: 0 | Q50: 1 | R50: 0 | S50: 0 | X50: 3265 | Y50: Lalo
A51: =IF(INTRO!$E$33<>0,INTRO!$E$33, " ") -> Benin | B51: Couffo | C51: Toviklin | D51: 120766 | E51: =IF(INTRO!$E$48="","",ROUND($D51*INTRO!$E$48,0)) -> 16472 | F51: =IF(INTRO!$E$49="","",ROUND($D51*INTRO!$E$49,0)) -> 35868 | G51: =IF(INTRO!$E$50="","",ROUND($D51*INTRO!$E$50,0)) -> 63595 | H51: 99 | I51: 0 | J51: 2 | K51: 1 | L51: =IF(INTRO!$E$37="Endémique",IF($H51>0,IF($H51=4,"Inconnu",IF($H51=99,"Interrompu",$D51)),0),"Non requis") -> Interrompu | M51: =IF(INTRO!$E$39="Endémique", IF($I51>0, IF($I51=4,"Inconnu",IF($I51=99,"Interrompu",$D51)), 0),"Non requis") -> 0 | N51: 35868 | P51: 0 | Q51: 0 | R51: 1 | S51: 0 | X51: 3258 | Y51: Toviklin
A52: =IF(INTRO!$E$33<>0,INTRO!$E$33, " ") -> Benin | B52: Donga | C52: Bassila | D52: 110647 | E52: =IF(INTRO!$E$48="","",ROUND($D52*INTRO!$E$48,0)) -> 15092 | F52: =IF(INTRO!$E$49="","",ROUND($D52*INTRO!$E$49,0)) -> 32862 | G52: =IF(INTRO!$E$50="","",ROUND($D52*INTRO!$E$50,0)) -> 58267 | H52: 0 | I52: 1 | J52: 2 | K52: 2 | L52: =IF(INTRO!$E$37="Endémique",IF($H52>0,IF($H52=4,"Inconnu",IF($H52=99,"Interrompu",$D52)),0),"Non requis") -> 0 | M52: =IF(INTRO!$E$39="Endémique", IF($I52>0, IF($I52=4,"Inconnu",IF($I52=99,"Interrompu",$D52)), 0),"Non requis") -> 110647 | N52: 32862 | O52: 32862 | P52: 0 | Q52: 1 | R52: 1 | S52: 1 | X52: 3250 | Y52: Bassila
A53: =IF(INTRO!$E$33<>0,INTRO!$E$33, " ") -> Benin | B53: Donga | C53: Copargo | D53: 90597 | E53: =IF(INTRO!$E$48="","",ROUND($D53*INTRO!$E$48,0)) -> 12357 | F53: =IF(INTRO!$E$49="","",ROUND($D53*INTRO!$E$49,0)) -> 26907 | G53: =IF(INTRO!$E$50="","",ROUND($D53*INTRO!$E$50,0)) -> 47708 | H53: 0 | I53: 1 | J53: 2 | K53: 3 | L53: =IF(INTRO!$E$37="Endémique",IF($H53>0,IF($H53=4,"Inconnu",IF($H53=99,"Interrompu",$D53)),0),"Non requis") -> 0 | M53: =IF(INTRO!$E$39="Endémique", IF($I53>0, IF($I53=4,"Inconnu",IF($I53=99,"Interrompu",$D53)), 0),"Non requis") -> 90597 | N53: 26907 | O53: 26907 | P53: 0 | Q53: 1 | R53: 1 | S53: 1 | X53: 3251 | Y53: Copargo
A54: =IF(INTRO!$E$33<>0,INTRO!$E$33, " ") -> Benin | B54: Donga | C54: Djougou | D54: 246018 | E54: =IF(INTRO!$E$48="","",ROUND($D54*INTRO!$E$48,0)) -> 33557 | F54: =IF(INTRO!$E$49="","",ROUND($D54*INTRO!$E$49,0)) -> 73067 | G54: =IF(INTRO!$E$50="","",ROUND($D54*INTRO!$E$50,0)) -> 129553 | H54: 0 | I54: 1 | J54: 1 | K54: 1 | L54: =IF(INTRO!$E$37="Endémique",IF($H54>0,IF($H54=4,"Inconnu",IF($H54=99,"Interrompu",$D54)),0),"Non requis") -> 0 | M54: =IF(INTRO!$E$39="Endémique", IF($I54>0, IF($I54=4,"Inconnu",IF($I54=99,"Interrompu",$D54)), 0),"Non requis") -> 246018 | N54: 0 | P54: 0 | Q54: 1 | R54: 0 | S54: 0 | X54: 3252 | Y54: Djougou
A55: =IF(INTRO!$E$33<>0,INTRO!$E$33, " ") -> Benin | B55: Donga | C55: Ouaké | D55: 86231 | E55: =IF(INTRO!$E$48="","",ROUND($D55*INTRO!$E$48,0)) -> 11762 | F55: =IF(INTRO!$E$49="","",ROUND($D55*INTRO!$E$49,0)) -> 25611 | G55: =IF(INTRO!$E$50="","",ROUND($D55*INTRO!$E$50,0)) -> 45409 | H55: 0 | I55: 1 | J55: 2 | K55: 3 | L55: =IF(INTRO!$E$37="Endémique",IF($H55>0,IF($H55=4,"Inconnu",IF($H55=99,"Interrompu",$D55)),0),"Non requis") -> 0 | M55: =IF(INTRO!$E$39="Endémique", IF($I55>0, IF($I55=4,"Inconnu",IF($I55=99,"Interrompu",$D55)), 0),"Non requis") -> 86231 | N55: 25611 | O55: 25611 | P55: 0 | Q55: 1 | R55: 1 | S55: 1 | X55: 3223 | Y55: Ouaké
A56: =IF(INTRO!$E$33<>0,INTRO!$E$33, " ") -> Benin | B56: Littoral | C56: Cotonou | D56: 925422 | E56: =IF(INTRO!$E$48="","",ROUND($D56*INTRO!$E$48,0)) -> 126228 | F56: =IF(INTRO!$E$49="","",ROUND($D56*INTRO!$E$49,0)) -> 274850 | G56: =IF(INTRO!$E$50="","",ROUND($D56*INTRO!$E$50,0)) -> 487327 | H56: 0 | I56: 0 | J56: 1 | K56: 1 | L56: =IF(INTRO!$E$37="Endémique",IF($H56>0,IF($H56=4,"Inconnu",IF($H56=99,"Interrompu",$D56)),0),"Non requis") -> 0 | M56: =IF(INTRO!$E$39="Endémique", IF($I56>0, IF($I56=4,"Inconnu",IF($I56=99,"Interrompu",$D56)), 0),"Non requis") -> 0 | N56: 0 | P56: 0 | Q56: 0 | R56: 0 | S56: 0 | X56: 3259 | Y56: Cotonou
A57: =IF(INTRO!$E$33<>0,INTRO!$E$33, " ") -> Benin | B57: Mono | C57: Athiémé | D57: 68120 | E57: =IF(INTRO!$E$48="","",ROUND($D57*INTRO!$E$48,0)) -> 9292 | F57: =IF(INTRO!$E$49="","",ROUND($D57*INTRO!$E$49,0)) -> 20232 | G57: =IF(INTRO!$E$50="","",ROUND($D57*INTRO!$E$50,0)) -> 35872 | H57: 99 | I57: 1 | J57: 1 | K57: 1 | L57: =IF(INTRO!$E$37="Endémique",IF($H57>0,IF($H57=4,"Inconnu",IF($H57=99,"Interrompu",$D57)),0),"Non requis") -> Interrompu | M57: =IF(INTRO!$E$39="Endémique", IF($I57>0, IF($I57=4,"Inconnu",IF($I57=99,"Interrompu",$D57)), 0),"Non requis") -> 68120 | N57: 0 | P57: 0 | Q57: 1 | R57: 0 | S57: 0 | X57: 3260 | Y57: Athiémé
A58: =IF(INTRO!$E$33<>0,INTRO!$E$33, " ") -> Benin | B58: Mono | C58: Bopa | D58: 131219 | E58: =IF(INTRO!$E$48="","",ROUND($D58*INTRO!$E$48,0)) -> 17898 | F58: =IF(INTRO!$E$49="","",ROUND($D58*INTRO!$E$49,0)) -> 38972 | G58: =IF(INTRO!$E$50="","",ROUND($D58*INTRO!$E$50,0)) -> 69100 | H58: 99 | I58: 0 | J58: 1 | K58: 1 | L58: =IF(INTRO!$E$37="Endémique",IF($H58>0,IF($H58=4,"Inconnu",IF($H58=99,"Interrompu",$D58)),0),"Non requis") -> Interrompu | M58: =IF(INTRO!$E$39="Endémique", IF($I58>0, IF($I58=4,"Inconnu",IF($I58=99,"Interrompu",$D58)), 0),"Non requis") -> 0 | N58: 0 | P58: 0 | Q58: 0 | R58: 0 | S58: 0 | X58: 3261 | Y58: Bopa
A59: =IF(INTRO!$E$33<>0,INTRO!$E$33, " ") -> Benin | B59: Mono | C59: Comé | D59: 109015 | E59: =IF(INTRO!$E$48="","",ROUND($D59*INTRO!$E$48,0)) -> 14870 | F59: =IF(INTRO!$E$49="","",ROUND($D59*INTRO!$E$49,0)) -> 32377 | G59: =IF(INTRO!$E$50="","",ROUND($D59*INTRO!$E$50,0)) -> 57407 | H59: 99 | I59: 0 | J59: 1 | K59: 1 | L59: =IF(INTRO!$E$37="Endémique",IF($H59>0,IF($H59=4,"Inconnu",IF($H59=99,"Interrompu",$D59)),0),"Non requis") -> Interrompu | M59: =IF(INTRO!$E$39="Endémique", IF($I59>0, IF($I59=4,"Inconnu",IF($I59=99,"Interrompu",$D59)), 0),"Non requis") -> 0 | N59: 0 | P59: 0 | Q59: 0 | R59: 0 | S59: 0 | X59: 3262 | Y59: Comé
A60: =IF(INTRO!$E$33<>0,INTRO!$E$33, " ") -> Benin | B60: Mono | C60: Grand-Popo | D60: 78551 | E60: =IF(INTRO!$E$48="","",ROUND($D60*INTRO!$E$48,0)) -> 10714 | F60: =IF(INTRO!$E$49="","",ROUND($D60*INTRO!$E$49,0)) -> 23330 | G60: =IF(INTRO!$E$50="","",ROUND($D60*INTRO!$E$50,0)) -> 41365 | H60: 99 | I60: 0 | J60: 1 | K60: 1 | L60: =IF(INTRO!$E$37="Endémique",IF($H60>0,IF($H60=4,"Inconnu",IF($H60=99,"Interrompu",$D60)),0),"Non requis") -> Interrompu | M60: =IF(INTRO!$E$39="Endémique", IF($I60>0, IF($I60=4,"Inconnu",IF($I60=99,"Interrompu",$D60)), 0),"Non requis") -> 0 | N60: 0 | P60: 0 | Q60: 0 | R60: 0 | S60: 0 | X60: 3263 | Y60: Grand-Popo
A61: =IF(INTRO!$E$33<>0,INTRO!$E$33, " ") -> Benin | B61: Mono | C61: Houéyogbé | D61: 138868 | E61: =IF(INTRO!$E$48="","",ROUND($D61*INTRO!$E$48,0)) -> 18942 | F61: =IF(INTRO!$E$49="","",ROUND($D61*INTRO!$E$49,0)) -> 41244 | G61: =IF(INTRO!$E$50="","",ROUND($D61*INTRO!$E$50,0)) -> 73128 | H61: 99 | I61: 0 | J61: 1 | K61: 2 | L61: =IF(INTRO!$E$37="Endémique",IF($H61>0,IF($H61=4,"Inconnu",IF($H61=99,"Interrompu",$D61)),0),"Non requis") -> Interrompu | M61: =IF(INTRO!$E$39="Endémique", IF($I61>0, IF($I61=4,"Inconnu",IF($I61=99,"Interrompu",$D61)), 0),"Non requis") -> 0 | N61: 0 | P61: 0 | Q61: 0 | R61: 0 | S61: 0 | X61: 3264 | Y61: Houéyogbé
A62: =IF(INTRO!$E$33<>0,INTRO!$E$33, " ") -> Benin | B62: Mono | C62: Lokossa | D62: 143050 | E62: =IF(INTRO!$E$48="","",ROUND($D62*INTRO!$E$48,0)) -> 19512 | F62: =IF(INTRO!$E$49="","",ROUND($D62*INTRO!$E$49,0)) -> 42486 | G62: =IF(INTRO!$E$50="","",ROUND($D62*INTRO!$E$50,0)) -> 75330 | H62: 99 | I62: 1 | J62: 1 | K62: 2 | L62: =IF(INTRO!$E$37="Endémique",IF($H62>0,IF($H62=4,"Inconnu",IF($H62=99,"Interrompu",$D62)),0),"Non requis") -> Interrompu | M62: =IF(INTRO!$E$39="Endémique", IF($I62>0, IF($I62=4,"Inconnu",IF($I62=99,"Interrompu",$D62)), 0),"Non requis") -> 143050 | N62: 0 | P62: 0 | Q62: 1 | R62: 0 | S62: 0 | X62: 3266 | Y62: Lokossa
A63: =IF(INTRO!$E$33<>0,INTRO!$E$33, " ") -> Benin | B63: Oueme | C63: Adjarra | D63: 109750 | E63: =IF(INTRO!$E$48="","",ROUND($D63*INTRO!$E$48,0)) -> 14970 | F63: =IF(INTRO!$E$49="","",ROUND($D63*INTRO!$E$49,0)) -> 32596 | G63: =IF(INTRO!$E$50="","",ROUND($D63*INTRO!$E$50,0)) -> 57794 | H63: 99 | I63: 0 | J63: 1 | K63: 1 | L63: =IF(INTRO!$E$37="Endémique",IF($H63>0,IF($H63=4,"Inconnu",IF($H63=99,"Interrompu",$D63)),0),"Non requis") -> Interrompu | M63: =IF(INTRO!$E$39="Endémique", IF($I63>0, IF($I63=4,"Inconnu",IF($I63=99,"Interrompu",$D63)), 0),"Non requis") -> 0 | N63: 0 | P63: 0 | Q63: 0 | R63: 0 | S63: 0 | X63: 3267 | Y63: Adjarra
A64: =IF(INTRO!$E$33<>0,INTRO!$E$33, " ") -> Benin | B64: Oueme | C64: Adjohoun | D64: 86184 | E64: =IF(INTRO!$E$48="","",ROUND($D64*INTRO!$E$48,0)) -> 11755 | F64: =IF(INTRO!$E$49="","",ROUND($D64*INTRO!$E$49,0)) -> 25597 | G64: =IF(INTRO!$E$50="","",ROUND($D64*INTRO!$E$50,0)) -> 45384 | H64: 99 | I64: 0 | J64: 1 | K64: 1 | L64: =IF(INTRO!$E$37="Endémique",IF($H64>0,IF($H64=4,"Inconnu",IF($H64=99,"Interrompu",$D64)),0),"Non requis") -> Interrompu | M64: =IF(INTRO!$E$39="Endémique", IF($I64>0, IF($I64=4,"Inconnu",IF($I64=99,"Interrompu",$D64)), 0),"Non requis") -> 0 | N64: 0 | P64: 0 | Q64: 0 | R64: 0 | S64: 0 | X64: 3268 | Y64: Adjohoun
A65: =IF(INTRO!$E$33<>0,INTRO!$E$33, " ") -> Benin | B65: Oueme | C65: Aguégués | D65: 41823 | E65: =IF(INTRO!$E$48="","",ROUND($D65*INTRO!$E$48,0)) -> 5705 | F65: =IF(INTRO!$E$49="","",ROUND($D65*INTRO!$E$49,0)) -> 12421 | G65: =IF(INTRO!$E$50="","",ROUND($D65*INTRO!$E$50,0)) -> 22024 | H65: 99 | I65: 0 | J65: 1 | K65: 3 | L65: =IF(INTRO!$E$37="Endémique",IF($H65>0,IF($H65=4,"Inconnu",IF($H65=99,"Interrompu",$D65)),0),"Non requis") -> Interrompu | M65: =IF(INTRO!$E$39="Endémique", IF($I65>0, IF($I65=4,"Inconnu",IF($I65=99,"Interrompu",$D65)), 0),"Non requis") -> 0 | N65: 0 | O65: 12421 | P65: 0 | Q65: 0 | R65: 0 | S65: 1 | X65: 3269 | Y65: Aguégués
A66: =IF(INTRO!$E$33<>0,INTRO!$E$33, " ") -> Benin | B66: Oueme | C66: Akpro-Missérété | D66: 96026 | E66: =IF(INTRO!$E$48="","",ROUND($D66*INTRO!$E$48,0)) -> 13098 | F66: =IF(INTRO!$E$49="","",ROUND($D66*INTRO!$E$49,0)) -> 28520 | G66: =IF(INTRO!$E$50="","",ROUND($D66*INTRO!$E$50,0)) -> 50567 | H66: 99 | I66: 0 | J66: 2 | K66: 1 | L66: =IF(INTRO!$E$37="Endémique",IF($H66>0,IF($H66=4,"Inconnu",IF($H66=99,"Interrompu",$D66)),0),"Non requis") -> Interrompu | M66: =IF(INTRO!$E$39="Endémique", IF($I66>0, IF($I66=4,"Inconnu",IF($I66=99,"Interrompu",$D66)), 0),"Non requis") -> 0 | N66: 28520 | P66: 0 | Q66: 0 | R66: 1 | S66: 0 | X66: 3270 | Y66: Akpro-Missérété
A67: =IF(INTRO!$E$33<>0,INTRO!$E$33, " ") -> Benin | B67: Oueme | C67: Avrankou | D67: 121285 | E67: =IF(INTRO!$E$48="","",ROUND($D67*INTRO!$E$48,0)) -> 16543 | F67: =IF(INTRO!$E$49="","",ROUND($D67*INTRO!$E$49,0)) -> 36022 | G67: =IF(INTRO!$E$50="","",ROUND($D67*INTRO!$E$50,0)) -> 63869 | H67: 99 | I67: 0 | J67: 1 | K67: 1 | L67: =IF(INTRO!$E$37="Endémique",IF($H67>0,IF($H67=4,"Inconnu",IF($H67=99,"Interrompu",$D67)),0),"Non requis") -> Interrompu | M67: =IF(INTRO!$E$39="Endémique", IF($I67>0, IF($I67=4,"Inconnu",IF($I67=99,"Interrompu",$D67)), 0),"Non requis") -> 0 | N67: 0 | P67: 0 | Q67: 0 | R67: 0 | S67: 0 | X67: 3271 | Y67: Avrankou
A68: =IF(INTRO!$E$33<>0,INTRO!$E$33, " ") -> Benin | B68: Oueme | C68: Bonou | D68: 41692 | E68: =IF(INTRO!$E$48="","",ROUND($D68*INTRO!$E$48,0)) -> 5687 | F68: =IF(INTRO!$E$49="","",ROUND($D68*INTRO!$E$49,0)) -> 12383 | G68: =IF(INTRO!$E$50="","",ROUND($D68*INTRO!$E$50,0)) -> 21955 | H68: 99 | I68: 1 | J68: 1 | K68: 1 | L68: =IF(INTRO!$E$37="Endémique",IF($H68>0,IF($H68=4,"Inconnu",IF($H68=99,"Interrompu",$D68)),0),"Non requis") -> Interrompu | M68: =IF(INTRO!$E$39="Endémique", IF($I68>0, IF($I68=4,"Inconnu",IF($I68=99,"Interrompu",$D68)), 0),"Non requis") -> 41692 | N68: 0 | P68: 0 | Q68: 1 | R68: 0 | S68: 0 | X68: 3272 | Y68: Bonou
A69: =IF(INTRO!$E$33<>0,INTRO!$E$33, " ") -> Benin | B69: Oueme | C69: Dangbo | D69: 112686 | E69: =IF(INTRO!$E$48="","",ROUND($D69*INTRO!$E$48,0)) -> 15370 | F69: =IF(INTRO!$E$49="","",ROUND($D69*INTRO!$E$49,0)) -> 33468 | G69: =IF(INTRO!$E$50="","",ROUND($D69*INTRO!$E$50,0)) -> 59340 | H69: 99 | I69: 0 | J69: 1 | K69: 3 | L69: =IF(INTRO!$E$37="Endémique",IF($H69>0,IF($H69=4,"Inconnu",IF($H69=99,"Interrompu",$D69)),0),"Non requis") -> Interrompu | M69: =IF(INTRO!$E$39="Endémique", IF($I69>0, IF($I69=4,"Inconnu",IF($I69=99,"Interrompu",$D69)), 0),"Non requis") -> 0 | N69: 0 | O69: 33468 | P69: 0 | Q69: 0 | R69: 0 | S69: 1 | X69: 3273 | Y69: Dangbo
A70: =IF(INTRO!$E$33<>0,INTRO!$E$33, " ") -> Benin | B70: Oueme | C70: Porto-Novo | D70: 360240 | E70: =IF(INTRO!$E$48="","",ROUND($D70*INTRO!$E$48,0)) -> 49137 | F70: =IF(INTRO!$E$49="","",ROUND($D70*INTRO!$E$49,0)) -> 106991 | G70: =IF(INTRO!$E$50="","",ROUND($D70*INTRO!$E$50,0)) -> 189702 | H70: 0 | I70: 0 | J70: 1 | K70: 1 | L70: =IF(INTRO!$E$37="Endémique",IF($H70>0,IF($H70=4,"Inconnu",IF($H70=99,"Interrompu",$D70)),0),"Non requis") -> 0 | M70: =IF(INTRO!$E$39="Endémique", IF($I70>0, IF($I70=4,"Inconnu",IF($I70=99,"Interrompu",$D70)), 0),"Non requis") -> 0 | N70: 0 | P70: 0 | Q70: 0 | R70: 0 | S70: 0 | X70: 3275 | Y70: Porto-Novo
A71: =IF(INTRO!$E$33<>0,INTRO!$E$33, " ") -> Benin | B71: Oueme | C71: Sèmè-Kpodji | D71: 128062 | E71: =IF(INTRO!$E$48="","",ROUND($D71*INTRO!$E$48,0)) -> 17468 | F71: =IF(INTRO!$E$49="","",ROUND($D71*INTRO!$E$49,0)) -> 38034 | G71: =IF(INTRO!$E$50="","",ROUND($D71*INTRO!$E$50,0)) -> 67437 | H71: 99 | I71: 0 | J71: 1 | K71: 1 | L71: =IF(INTRO!$E$37="Endémique",IF($H71>0,IF($H71=4,"Inconnu",IF($H71=99,"Interrompu",$D71)),0),"Non requis") -> Interrompu | M71: =IF(INTRO!$E$39="Endémique", IF($I71>0, IF($I71=4,"Inconnu",IF($I71=99,"Interrompu",$D71)), 0),"Non requis") -> 0 | N71: 0 | P71: 0 | Q71: 0 | R71: 0 | S71: 0 | X71: 3277 | Y71: Sèmè-Kpodji
A72: =IF(INTRO!$E$33<>0,INTRO!$E$33, " ") -> Benin | B72: Plateau | C72: Adja-Ouèrè | D72: 127089 | E72: =IF(INTRO!$E$48="","",ROUND($D72*INTRO!$E$48,0)) -> 17335 | F72: =IF(INTRO!$E$49="","",ROUND($D72*INTRO!$E$49,0)) -> 37745 | G72: =IF(INTRO!$E$50="","",ROUND($D72*INTRO!$E$50,0)) -> 66925 | H72: 99 | I72: 1 | J72: 2 | K72: 2 | L72: =IF(INTRO!$E$37="Endémique",IF($H72>0,IF($H72=4,"Inconnu",IF($H72=99,"Interrompu",$D72)),0),"Non requis") -> Interrompu | M72: =IF(INTRO!$E$39="Endémique", IF($I72>0, IF($I72=4,"Inconnu",IF($I72=99,"Interrompu",$D72)), 0),"Non requis") -> 127089 | N72: 37745 | O72: 37745 | P72: 0 | Q72: 1 | R72: 1 | S72: 1 | X72: 3278 | Y72: Adja-Ouèrè
A73: =IF(INTRO!$E$33<>0,INTRO!$E$33, " ") -> Benin | B73: Plateau | C73: Ifangni | D73: 100243 | E73: =IF(INTRO!$E$48="","",ROUND($D73*INTRO!$E$48,0)) -> 13673 | F73: =IF(INTRO!$E$49="","",ROUND($D73*INTRO!$E$49,0)) -> 29772 | G73: =IF(INTRO!$E$50="","",ROUND($D73*INTRO!$E$50,0)) -> 52788 | H73: 99 | I73: 0 | J73: 2 | K73: 1 | L73: =IF(INTRO!$E$37="Endémique",IF($H73>0,IF($H73=4,"Inconnu",IF($H73=99,"Interrompu",$D73)),0),"Non requis") -> Interrompu | M73: =IF(INTRO!$E$39="Endémique", IF($I73>0, IF($I73=4,"Inconnu",IF($I73=99,"Interrompu",$D73)), 0),"Non requis") -> 0 | N73: 29772 | P73: 0 | Q73: 0 | R73: 1 | S73: 0 | X73: 3279 | Y73: Ifangni
A74: =IF(INTRO!$E$33<>0,INTRO!$E$33, " ") -> Benin | B74: Plateau | C74: Kétou | D74: 160782 | E74: =IF(INTRO!$E$48="","",ROUND($D74*INTRO!$E$48,0)) -> 21931 | F74: =IF(INTRO!$E$49="","",ROUND($D74*INTRO!$E$49,0)) -> 47752 | G74: =IF(INTRO!$E$50="","",ROUND($D74*INTRO!$E$50,0)) -> 84668 | H74: 0 | I74: 1 | J74: 2 | K74: 2 | L74: =IF(INTRO!$E$37="Endémique",IF($H74>0,IF($H74=4,"Inconnu",IF($H74=99,"Interrompu",$D74)),0),"Non requis") -> 0 | M74: =IF(INTRO!$E$39="Endémique", IF($I74>0, IF($I74=4,"Inconnu",IF($I74=99,"Interrompu",$D74)), 0),"Non requis") -> 160782 | N74: =F74 -> 47752 | O74: =F74 -> 47752 | P74: 0 | Q74: 1 | R74: 1 | S74: 1 | X74: 3274 | Y74: Kétou
A75: =IF(INTRO!$E$33<>0,INTRO!$E$33, " ") -> Benin | B75: Plateau | C75: Pobè | D75: 122002 | E75: =IF(INTRO!$E$48="","",ROUND($D75*INTRO!$E$48,0)) -> 16641 | F75: =IF(INTRO!$E$49="","",ROUND($D75*INTRO!$E$49,0)) -> 36235 | G75: =IF(INTRO!$E$50="","",ROUND($D75*INTRO!$E$50,0)) -> 64246 | H75: 99 | I75: 0 | J75: 2 | K75: 2 | L75: =IF(INTRO!$E$37="Endémique",IF($H75>0,IF($H75=4,"Inconnu",IF($H75=99,"Interrompu",$D75)),0),"Non requis") -> Interrompu | M75: =IF(INTRO!$E$39="Endémique", IF($I75>0, IF($I75=4,"Inconnu",IF($I75=99,"Interrompu",$D75)), 0),"Non requis") -> 0 | N75: 36235 | O75: 36235 | P75: 0 | Q75: 0 | R75: 1 | S75: 1 | X75: 3280 | Y75: Pobè
A76: =IF(INTRO!$E$33<>0,INTRO!$E$33, " ") -> Benin | B76: Plateau | C76: Sakété | D76: 97269 | E76: =IF(INTRO!$E$48="","",ROUND($D76*INTRO!$E$48,0)) -> 13267 | F76: =IF(INTRO!$E$49="","",ROUND($D76*INTRO!$E$49,0)) -> 28889 | G76: =IF(INTRO!$E$50="","",ROUND($D76*INTRO!$E$50,0)) -> 51222 | H76: 99 | I76: 0 | J76: 2 | K76: 1 | L76: =IF(INTRO!$E$37="Endémique",IF($H76>0,IF($H76=4,"Inconnu",IF($H76=99,"Interrompu",$D76)),0),"Non requis") -> Interrompu | M76: =IF(INTRO!$E$39="Endémique", IF($I76>0, IF($I76=4,"Inconnu",IF($I76=99,"Interrompu",$D76)), 0),"Non requis") -> 0 | N76: 28889 | P76: 0 | Q76: 0 | R76: 1 | S76: 0 | X76: 3276 | Y76: Sakété
A77: =IF(INTRO!$E$33<>0,INTRO!$E$33, " ") -> Benin | B77: Zou | C77: Abomey | D77: 80451 | E77: =IF(INTRO!$E$48="","",ROUND($D77*INTRO!$E$48,0)) -> 10974 | F77: =IF(INTRO!$E$49="","",ROUND($D77*INTRO!$E$49,0)) -> 23894 | G77: =IF(INTRO!$E$50="","",ROUND($D77*INTRO!$E$50,0)) -> 42365 | H77: 99 | I77: 1 | J77: 1 | K77: 1 | L77: =IF(INTRO!$E$37="Endémique",IF($H77>0,IF($H77=4,"Inconnu",IF($H77=99,"Interrompu",$D77)),0),"Non requis") -> Interrompu | M77: =IF(INTRO!$E$39="Endémique", IF($I77>0, IF($I77=4,"Inconnu",IF($I77=99,"Interrompu",$D77)), 0),"Non requis") -> 80451 | N77: 0 | P77: 0 | Q77: 1 | R77: 0 | S77: 0 | X77: 3281 | Y77: Abomey
A78: =IF(INTRO!$E$33<>0,INTRO!$E$33, " ") -> Benin | B78: Zou | C78: Agbangnizoun | D78: 70517 | E78: =IF(INTRO!$E$48="","",ROUND($D78*INTRO!$E$48,0)) -> 9619 | F78: =IF(INTRO!$E$49="","",ROUND($D78*INTRO!$E$49,0)) -> 20944 | G78: =IF(INTRO!$E$50="","",ROUND($D78*INTRO!$E$50,0)) -> 37134 | H78: 99 | I78: 1 | J78: 2 | K78: 1 | L78: =IF(INTRO!$E$37="Endémique",IF($H78>0,IF($H78=4,"Inconnu",IF($H78=99,"Interrompu",$D78)),0),"Non requis") -> Interrompu | M78: =IF(INTRO!$E$39="Endémique", IF($I78>0, IF($I78=4,"Inconnu",IF($I78=99,"Interrompu",$D78)), 0),"Non requis") -> 70517 | N78: 20944 | P78: 0 | Q78: 1 | R78: 1 | S78: 0 | X78: 3282 | Y78: Agbangnizoun
A79: =IF(INTRO!$E$33<>0,INTRO!$E$33, " ") -> Benin | B79: Zou | C79: Bohicon | D79: 174849 | E79: =IF(INTRO!$E$48="","",ROUND($D79*INTRO!$E$48,0)) -> 23849 | F79: =IF(INTRO!$E$49="","",ROUND($D79*INTRO!$E$49,0)) -> 51930 | G79: =IF(INTRO!$E$50="","",ROUND($D79*INTRO!$E$50,0)) -> 92075 | H79: 99 | I79: 0 | J79: 1 | K79: 1 | L79: =IF(INTRO!$E$37="Endémique",IF($H79>0,IF($H79=4,"Inconnu",IF($H79=99,"Interrompu",$D79)),0),"Non requis") -> Interrompu | M79: =IF(INTRO!$E$39="Endémique", IF($I79>0, IF($I79=4,"Inconnu",IF($I79=99,"Interrompu",$D79)), 0),"Non requis") -> 0 | N79: 0 | P79: 0 | Q79: 0 | R79: 0 | S79: 0 | X79: 3283 | Y79: Bohicon
A80: =IF(INTRO!$E$33<>0,INTRO!$E$33, " ") -> Benin | B80: Zou | C80: Covè | D80: 69843 | E80: =IF(INTRO!$E$48="","",ROUND($D80*INTRO!$E$48,0)) -> 9527 | F80: =IF(INTRO!$E$49="","",ROUND($D80*INTRO!$E$49,0)) -> 20743 | G80: =IF(INTRO!$E$50="","",ROUND($D80*INTRO!$E$50,0)) -> 36779 | H80: 99 | I80: 0 | J80: 2 | K80: 1 | L80: =IF(INTRO!$E$37="Endémique",IF($H80>0,IF($H80=4,"Inconnu",IF($H80=99,"Interrompu",$D80)),0),"Non requis") -> Interrompu | M80: =IF(INTRO!$E$39="Endémique", IF($I80>0, IF($I80=4,"Inconnu",IF($I80=99,"Interrompu",$D80)), 0),"Non requis") -> 0 | N80: 20743 | P80: 0 | Q80: 0 | R80: 1 | S80: 0 | X80: 3284 | Y80: Covè
A81: =IF(INTRO!$E$33<>0,INTRO!$E$33, " ") -> Benin | B81: Zou | C81: Djidja | D81: 125456 | E81: =IF(INTRO!$E$48="","",ROUND($D81*INTRO!$E$48,0)) -> 17112 | F81: =IF(INTRO!$E$49="","",ROUND($D81*INTRO!$E$49,0)) -> 37260 | G81: =IF(INTRO!$E$50="","",ROUND($D81*INTRO!$E$50,0)) -> 66065 | H81: 0 | I81: 1 | J81: 1 | K81: 2 | L81: =IF(INTRO!$E$37="Endémique",IF($H81>0,IF($H81=4,"Inconnu",IF($H81=99,"Interrompu",$D81)),0),"Non requis") -> 0 | M81: =IF(INTRO!$E$39="Endémique", IF($I81>0, IF($I81=4,"Inconnu",IF($I81=99,"Interrompu",$D81)), 0),"Non requis") -> 125456 | N81: 0 | O81: 37260 | P81: 0 | Q81: 1 | R81: 0 | S81: 1 | X81: 3285 | Y81: Djidja
A82: =IF(INTRO!$E$33<>0,INTRO!$E$33, " ") -> Benin | B82: Zou | C82: Ouinhi | D82: 62681 | E82: =IF(INTRO!$E$48="","",ROUND($D82*INTRO!$E$48,0)) -> 8550 | F82: =IF(INTRO!$E$49="","",ROUND($D82*INTRO!$E$49,0)) -> 18616 | G82: =IF(INTRO!$E$50="","",ROUND($D82*INTRO!$E$50,0)) -> 33008 | H82: 99 | I82: 1 | J82: 2 | K82: 2 | L82: =IF(INTRO!$E$37="Endémique",IF($H82>0,IF($H82=4,"Inconnu",IF($H82=99,"Interrompu",$D82)),0),"Non requis") -> Interrompu | M82: =IF(INTRO!$E$39="Endémique", IF($I82>0, IF($I82=4,"Inconnu",IF($I82=99,"Interrompu",$D82)), 0),"Non requis") -> 62681 | N82: 18616 | O82: 18616 | P82: 0 | Q82: 1 | R82: 1 | S82: 1 | X82: 3286 | Y82: Ouinhi
A83: =IF(INTRO!$E$33<>0,INTRO!$E$33, " ") -> Benin | B83: Zou | C83: Zagnanado | D83: 52546 | E83: =IF(INTRO!$E$48="","",ROUND($D83*INTRO!$E$48,0)) -> 7167 | F83: =IF(INTRO!$E$49="","",ROUND($D83*INTRO!$E$49,0)) -> 15606 | G83: =IF(INTRO!$E$50="","",ROUND($D83*INTRO!$E$50,0)) -> 27671 | H83: 99 | I83: 1 | J83: 1 | K83: 2 | L83: =IF(INTRO!$E$37="Endémique",IF($H83>0,IF($H83=4,"Inconnu",IF($H83=99,"Interrompu",$D83)),0),"Non requis") -> Interrompu | M83: =IF(INTRO!$E$39="Endémique", IF($I83>0, IF($I83=4,"Inconnu",IF($I83=99,"Interrompu",$D83)), 0),"Non requis") -> 52546 | N83: 0 | O83: 15606 | P83: 0 | Q83: 1 | R83: 0 | S83: 1 | X83: 3288 | Y83: Zagnanado
A84: =IF(INTRO!$E$33<>0,INTRO!$E$33, " ") -> Benin | B84: Zou | C84: Za-Kpota | D84: 170246 | E84: =IF(INTRO!$E$48="","",ROUND($D84*INTRO!$E$48,0)) -> 23222 | F84: =IF(INTRO!$E$49="","",ROUND($D84*INTRO!$E$49,0)) -> 50563 | G84: =IF(INTRO!$E$50="","",ROUND($D84*INTRO!$E$50,0)) -> 89652 | H84: 99 | I84: 1 | J84: 2 | K84: 2 | L84: =IF(INTRO!$E$37="Endémique",IF($H84>0,IF($H84=4,"Inconnu",IF($H84=99,"Interrompu",$D84)),0),"Non requis") -> Interrompu | M84: =IF(INTRO!$E$39="Endémique", IF($I84>0, IF($I84=4,"Inconnu",IF($I84=99,"Interrompu",$D84)), 0),"Non requis") -> 170246 | N84: 50563 | O84: 50563 | P84: 0 | Q84: 1 | R84: 1 | S84: 1 | X84: 3287 | Y84: Za-Kpota
A85: =IF(INTRO!$E$33<>0,INTRO!$E$33, " ") -> Benin | B85: Zou | C85: Zogbodomey | D85: 133447 | E85: =IF(INTRO!$E$48="","",ROUND($D85*INTRO!$E$48,0)) -> 18202 | F85: =IF(INTRO!$E$49="","",ROUND($D85*INTRO!$E$49,0)) -> 39634 | G85: =IF(INTRO!$E$50="","",ROUND($D85*INTRO!$E$50,0)) -> 70273 | H85: 99 | I85: 1 | J85: 2 | K85: 2 | L85: =IF(INTRO!$E$37="Endémique",IF($H85>0,IF($H85=4,"Inconnu",IF($H85=99,"Interrompu",$D85)),0),"Non requis") -> Interrompu | M85: =IF(INTRO!$E$39="Endémique", IF($I85>0, IF($I85=4,"Inconnu",IF($I85=99,"Interrompu",$D85)), 0),"Non requis") -> 133447 | N85: 39634 | O85: 39634 | P85: 0 | Q85: 1 | R85: 1 | S85: 1 | X85: 3289 | Y85: Zogbodomey

Sheet DEC (hidden)
A1: Diethylcarbamazine (DEC)
A2: Structure administrative, population ciblée par groupe d'âge, plan de traitement et information sur les comprimés
A4: TOTAL | D4: =SUM(D$9:D$1000) -> 0 | E4: =SUM(E$9:E$1000) -> 0 | F4: =SUM(F$9:F$1000) -> 0 | G4: =SUM(G$9:G$1000) -> 0 | I4: =SUM(I$9:I$1000) -> 0 | J4: =SUM(J$9:J$1000) -> 0 | K4: =SUM(K$9:K$1000) -> 0 | L4: =SUM(L$9:L$1000) -> 0 | M4: =SUM(M$9:M$1000) -> 0
A6: Structure administrative du pays | D6: Population nécessitant un traitement avec DEC | H6: Plan de traitement | I6: Population cible | J6: Diethylcarbamazine (DEC)
A7: Pays | B7: Région/Département | C7: District | D7: EAPréS | E7: EAS | F7: Adultes | G7: Total | H7: FL | I7: FL | J7: Total requis | K7: Reste en stock | L7: Comprimés devant être fournis | M7: Flacons (100mg) 1000 comprimés
A9: =IF(INTRO!$E$39<>"Non endémique", " ", IF(INTRO!$E$37="Non endémique"," ", IF(COUNTRY_INFO!A9=0," ",COUNTRY_INFO!A9))) ->  | B9: =IF(INTRO!$E$39<>"Non endémique", " ", IF(INTRO!$E$37="Non endémique"," ", IF(COUNTRY_INFO!B9=0," ",COUNTRY_INFO!B9))) ->  | C9: =IF(INTRO!$E$39<>"Non endémique", " ", IF(INTRO!$E$37="Non endémique"," ", IF(COUNTRY_INFO!C9=0," ",COUNTRY_INFO!C9))) ->  | D9: =IF(INTRO!$E$39<>"Non endémique", 0, IF(INTRO!$E$37="Non endémique",0,IF(COUNTRY_INFO!$H9=1,COUNTRY_INFO!E9,0))) -> 0 | E9: =IF(INTRO!$E$39<>"Non endémique", 0, IF(INTRO!$E$37="Non endémique",0,IF(COUNTRY_INFO!$H9=1,COUNTRY_INFO!F9,0))) -> 0 | F9: =IF(INTRO!$E$39<>"Non endémique", 0, IF(INTRO!$E$37="Non endémique",0,IF(COUNTRY_INFO!$H9=1,COUNTRY_INFO!G9,0))) -> 0 | G9: =SUM(D9:F9) -> 0 | H9: =IF(INTRO!$E$39="Non endémique",IF(INTRO!$E$37="Non endémique","Non requis",COUNTRY_INFO!P9),"Traiter avec IVM") -> Traiter avec IVM | I9: =IF(H9=1,G9,0) -> 0 | J9: =IF(I9>0,I9*2.5,0) -> 0 | L9: =IF($J9>$K9,$J9-$K9,0) -> 0 | M9: =ROUNDUP($J9/1000,0) -> 0
A10: =IF(INTRO!$E$39<>"Non endémique", " ", IF(INTRO!$E$37="Non endémique"," ", IF(COUNTRY_INFO!A10=0," ",COUNTRY_INFO!A10))) ->  | B10: =IF(INTRO!$E$39<>"Non endémique", " ", IF(INTRO!$E$37="Non endémique"," ", IF(COUNTRY_INFO!B10=0," ",COUNTRY_INFO!B10))) ->  | C10: =IF(INTRO!$E$39<>"Non endémique", " ", IF(INTRO!$E$37="Non endémique"," ", IF(COUNTRY_INFO!C10=0," ",COUNTRY_INFO!C10))) ->  | D10: =IF(INTRO!$E$39<>"Non endémique", 0, IF(INTRO!$E$37="Non endémique",0,IF(COUNTRY_INFO!$H10=1,COUNTRY_INFO!E10,0))) -> 0 | E10: =IF(INTRO!$E$39<>"Non endémique", 0, IF(INTRO!$E$37="Non endémique",0,IF(COUNTRY_INFO!$H10=1,COUNTRY_INFO!F10,0))) -> 0 | F10: =IF(INTRO!$E$39<>"Non endémique", 0, IF(INTRO!$E$37="Non endémique",0,IF(COUNTRY_INFO!$H10=1,COUNTRY_INFO!G10,0))) -> 0 | G10: 0 | H10: =IF(INTRO!$E$39="Non endémique",IF(INTRO!$E$37="Non endémique","Non requis",COUNTRY_INFO!P10),"Traiter avec IVM") -> Traiter avec IVM | I10: 0 | J10: 0 | L10: 0 | M10: 0
A11: =IF(INTRO!$E$39<>"Non endémique", " ", IF(INTRO!$E$37="Non endémique"," ", IF(COUNTRY_INFO!A11=0," ",COUNTRY_INFO!A11))) ->  | B11: =IF(INTRO!$E$39<>"Non endémique", " ", IF(INTRO!$E$37="Non endémique"," ", IF(COUNTRY_INFO!B11=0," ",COUNTRY_INFO!B11))) ->  | C11: =IF(INTRO!$E$39<>"Non endémique", " ", IF(INTRO!$E$37="Non endémique"," ", IF(COUNTRY_INFO!C11=0," ",COUNTRY_INFO!C11))) ->  | D11: =IF(INTRO!$E$39<>"Non endémique", 0, IF(INTRO!$E$37="Non endémique",0,IF(COUNTRY_INFO!$H11=1,COUNTRY_INFO!E11,0))) -> 0 | E11: =IF(INTRO!$E$39<>"Non endémique", 0, IF(INTRO!$E$37="Non endémique",0,IF(COUNTRY_INFO!$H11=1,COUNTRY_INFO!F11,0))) -> 0 | F11: =IF(INTRO!$E$39<>"Non endémique", 0, IF(INTRO!$E$37="Non endémique",0,IF(COUNTRY_INFO!$H11=1,COUNTRY_INFO!G11,0))) -> 0 | G11: 0 | H11: =IF(INTRO!$E$39="Non endémique",IF(INTRO!$E$37="Non endémique","Non requis",COUNTRY_INFO!P11),"Traiter avec IVM") -> Traiter avec IVM | I11: 0 | J11: 0 | L11: 0 | M11: 0
A12: =IF(INTRO!$E$39<>"Non endémique", " ", IF(INTRO!$E$37="Non endémique"," ", IF(COUNTRY_INFO!A12=0," ",COUNTRY_INFO!A12))) ->  | B12: =IF(INTRO!$E$39<>"Non endémique", " ", IF(INTRO!$E$37="Non endémique"," ", IF(COUNTRY_INFO!B12=0," ",COUNTRY_INFO!B12))) ->  | C12: =IF(INTRO!$E$39<>"Non endémique", " ", IF(INTRO!$E$37="Non endémique"," ", IF(COUNTRY_INFO!C12=0," ",COUNTRY_INFO!C12))) ->  | D12: =IF(INTRO!$E$39<>"Non endémique", 0, IF(INTRO!$E$37="Non endémique",0,IF(COUNTRY_INFO!$H12=1,COUNTRY_INFO!E12,0))) -> 0 | E12: =IF(INTRO!$E$39<>"Non endémique", 0, IF(INTRO!$E$37="Non endémique",0,IF(COUNTRY_INFO!$H12=1,COUNTRY_INFO!F12,0))) -> 0 | F12: =IF(INTRO!$E$39<>"Non endémique", 0, IF(INTRO!$E$37="Non endémique",0,IF(COUNTRY_INFO!$H12=1,COUNTRY_INFO!G12,0))) -> 0 | G12: 0 | H12: =IF(INTRO!$E$39="Non endémique",IF(INTRO!$E$37="Non endémique","Non requis",COUNTRY_INFO!P12),"Traiter avec IVM") -> Traiter avec IVM | I12: 0 | J12: 0 | L12: 0 | M12: 0
A13: =IF(INTRO!$E$39<>"Non endémique", " ", IF(INTRO!$E$37="Non endémique"," ", IF(COUNTRY_INFO!A13=0," ",COUNTRY_INFO!A13))) ->  | B13: =IF(INTRO!$E$39<>"Non endémique", " ", IF(INTRO!$E$37="Non endémique"," ", IF(COUNTRY_INFO!B13=0," ",COUNTRY_INFO!B13))) ->  | C13: =IF(INTRO!$E$39<>"Non endémique", " ", IF(INTRO!$E$37="Non endémique"," ", IF(COUNTRY_INFO!C13=0," ",COUNTRY_INFO!C13))) ->  | D13: =IF(INTRO!$E$39<>"Non endémique", 0, IF(INTRO!$E$37="Non endémique",0,IF(COUNTRY_INFO!$H13=1,COUNTRY_INFO!E13,0))) -> 0 | E13: =IF(INTRO!$E$39<>"Non endémique", 0, IF(INTRO!$E$37="Non endémique",0,IF(COUNTRY_INFO!$H13=1,COUNTRY_INFO!F13,0))) -> 0 | F13: =IF(INTRO!$E$39<>"Non endémique", 0, IF(INTRO!$E$37="Non endémique",0,IF(COUNTRY_INFO!$H13=1,COUNTRY_INFO!G13,0))) -> 0 | G13: 0 | H13: =IF(INTRO!$E$39="Non endémique",IF(INTRO!$E$37="Non endémique","Non requis",COUNTRY_INFO!P13),"Traiter avec IVM") -> Traiter avec IVM | I13: 0 | J13: 0 | L13: 0 | M13: 0
A14: =IF(INTRO!$E$39<>"Non endémique", " ", IF(INTRO!$E$37="Non endémique"," ", IF(COUNTRY_INFO!A14=0," ",COUNTRY_INFO!A14))) ->  | B14: =IF(INTRO!$E$39<>"Non endémique", " ", IF(INTRO!$E$37="Non endémique"," ", IF(COUNTRY_INFO!B14=0," ",COUNTRY_INFO!B14))) ->  | C14: =IF(INTRO!$E$39<>"Non endémique", " ", IF(INTRO!$E$37="Non endémique"," ", IF(COUNTRY_INFO!C14=0," ",COUNTRY_INFO!C14))) ->  | D14: =IF(INTRO!$E$39<>"Non endémique", 0, IF(INTRO!$E$37="Non endémique",0,IF(COUNTRY_INFO!$H14=1,COUNTRY_INFO!E14,0))) -> 0 | E14: =IF(INTRO!$E$39<>"Non endémique", 0, IF(INTRO!$E$37="Non endémique",0,IF(COUNTRY_INFO!$H14=1,COUNTRY_INFO!F14,0))) -> 0 | F14: =IF(INTRO!$E$39<>"Non endémique", 0, IF(INTRO!$E$37="Non endémique",0,IF(COUNTRY_INFO!$H14=1,COUNTRY_INFO!G14,0))) -> 0 | G14: 0 | H14: =IF(INTRO!$E$39="Non endémique",IF(INTRO!$E$37="Non endémique","Non requis",COUNTRY_INFO!P14),"Traiter avec IVM") -> Traiter avec IVM | I14: 0 | J14: 0 | L14: 0 | M14: 0
A15: =IF(INTRO!$E$39<>"Non endémique", " ", IF(INTRO!$E$37="Non endémique"," ", IF(COUNTRY_INFO!A15=0," ",COUNTRY_INFO!A15))) ->  | B15: =IF(INTRO!$E$39<>"Non endémique", " ", IF(INTRO!$E$37="Non endémique"," ", IF(COUNTRY_INFO!B15=0," ",COUNTRY_INFO!B15))) ->  | C15: =IF(INTRO!$E$39<>"Non endémique", " ", IF(INTRO!$E$37="Non endémique"," ", IF(COUNTRY_INFO!C15=0," ",COUNTRY_INFO!C15))) ->  | D15: =IF(INTRO!$E$39<>"Non endémique", 0, IF(INTRO!$E$37="Non endémique",0,IF(COUNTRY_INFO!$H15=1,COUNTRY_INFO!E15,0))) -> 0 | E15: =IF(INTRO!$E$39<>"Non endémique", 0, IF(INTRO!$E$37="Non endémique",0,IF(COUNTRY_INFO!$H15=1,COUNTRY_INFO!F15,0))) -> 0 | F15: =IF(INTRO!$E$39<>"Non endémique", 0, IF(INTRO!$E$37="Non endémique",0,IF(COUNTRY_INFO!$H15=1,COUNTRY_INFO!G15,0))) -> 0 | G15: 0 | H15: =IF(INTRO!$E$39="Non endémique",IF(INTRO!$E$37="Non endémique","Non requis",COUNTRY_INFO!P15),"Traiter avec IVM") -> Traiter avec IVM | I15: 0 | J15: 0 | L15: 0 | M15: 0
A16: =IF(INTRO!$E$39<>"Non endémique", " ", IF(INTRO!$E$37="Non endémique"," ", IF(COUNTRY_INFO!A16=0," ",COUNTRY_INFO!A16))) ->  | B16: =IF(INTRO!$E$39<>"Non endémique", " ", IF(INTRO!$E$37="Non endémique"," ", IF(COUNTRY_INFO!B16=0," ",COUNTRY_INFO!B16))) ->  | C16: =IF(INTRO!$E$39<>"Non endémique", " ", IF(INTRO!$E$37="Non endémique"," ", IF(COUNTRY_INFO!C16=0," ",COUNTRY_INFO!C16))) ->  | D16: =IF(INTRO!$E$39<>"Non endémique", 0, IF(INTRO!$E$37="Non endémique",0,IF(COUNTRY_INFO!$H16=1,COUNTRY_INFO!E16,0))) -> 0 | E16: =IF(INTRO!$E$39<>"Non endémique", 0, IF(INTRO!$E$37="Non endémique",0,IF(COUNTRY_INFO!$H16=1,COUNTRY_INFO!F16,0))) -> 0 | F16: =IF(INTRO!$E$39<>"Non endémique", 0, IF(INTRO!$E$37="Non endémique",0,IF(COUNTRY_INFO!$H16=1,COUNTRY_INFO!G16,0))) -> 0 | G16: 0 | H16: =IF(INTRO!$E$39="Non endémique",IF(INTRO!$E$37="Non endémique","Non requis",COUNTRY_INFO!P16),"Traiter avec IVM") -> Traiter avec IVM | I16: 0 | J16: 0 | L16: 0 | M16: 0
A17: =IF(INTRO!$E$39<>"Non endémique", " ", IF(INTRO!$E$37="Non endémique"," ", IF(COUNTRY_INFO!A17=0," ",COUNTRY_INFO!A17))) ->  | B17: =IF(INTRO!$E$39<>"Non endémique", " ", IF(INTRO!$E$37="Non endémique"," ", IF(COUNTRY_INFO!B17=0," ",COUNTRY_INFO!B17))) ->  | C17: =IF(INTRO!$E$39<>"Non endémique", " ", IF(INTRO!$E$37="Non endémique"," ", IF(COUNTRY_INFO!C17=0," ",COUNTRY_INFO!C17))) ->  | D17: =IF(INTRO!$E$39<>"Non endémique", 0, IF(INTRO!$E$37="Non endémique",0,IF(COUNTRY_INFO!$H17=1,COUNTRY_INFO!E17,0))) -> 0 | E17: =IF(INTRO!$E$39<>"Non endémique", 0, IF(INTRO!$E$37="Non endémique",0,IF(COUNTRY_INFO!$H17=1,COUNTRY_INFO!F17,0))) -> 0 | F17: =IF(INTRO!$E$39<>"Non endémique", 0, IF(INTRO!$E$37="Non endémique",0,IF(COUNTRY_INFO!$H17=1,COUNTRY_INFO!G17,0))) -> 0 | G17: 0 | H17: =IF(INTRO!$E$39="Non endémique",IF(INTRO!$E$37="Non endémique","Non requis",COUNTRY_INFO!P17),"Traiter avec IVM") -> Traiter avec IVM | I17: 0 | J17: 0 | L17: 0 | M17: 0
A18: =IF(INTRO!$E$39<>"Non endémique", " ", IF(INTRO!$E$37="Non endémique"," ", IF(COUNTRY_INFO!A18=0," ",COUNTRY_INFO!A18))) ->  | B18: =IF(INTRO!$E$39<>"Non endémique", " ", IF(INTRO!$E$37="Non endémique"," ", IF(COUNTRY_INFO!B18=0," ",COUNTRY_INFO!B18))) ->  | C18: =IF(INTRO!$E$39<>"Non endémique", " ", IF(INTRO!$E$37="Non endémique"," ", IF(COUNTRY_INFO!C18=0," ",COUNTRY_INFO!C18))) ->  | D18: =IF(INTRO!$E$39<>"Non endémique", 0, IF(INTRO!$E$37="Non endémique",0,IF(COUNTRY_INFO!$H18=1,COUNTRY_INFO!E18,0))) -> 0 | E18: =IF(INTRO!$E$39<>"Non endémique", 0, IF(INTRO!$E$37="Non endémique",0,IF(COUNTRY_INFO!$H18=1,COUNTRY_INFO!F18,0))) -> 0 | F18: =IF(INTRO!$E$39<>"Non endémique", 0, IF(INTRO!$E$37="Non endémique",0,IF(COUNTRY_INFO!$H18=1,COUNTRY_INFO!G18,0))) -> 0 | G18: 0 | H18: =IF(INTRO!$E$39="Non endémique",IF(INTRO!$E$37="Non endémique","Non requis",COUNTRY_INFO!P18),"Traiter avec IVM") -> Traiter avec IVM | I18: 0 | J18: 0 | L18: 0 | M18: 0
A19: =IF(INTRO!$E$39<>"Non endémique", " ", IF(INTRO!$E$37="Non endémique"," ", IF(COUNTRY_INFO!A19=0," ",COUNTRY_INFO!A19))) ->  | B19: =IF(INTRO!$E$39<>"Non endémique", " ", IF(INTRO!$E$37="Non endémique"," ", IF(COUNTRY_INFO!B19=0," ",COUNTRY_INFO!B19))) ->  | C19: =IF(INTRO!$E$39<>"Non endémique", " ", IF(INTRO!$E$37="Non endémique"," ", IF(COUNTRY_INFO!C19=0," ",COUNTRY_INFO!C19))) ->  | D19: =IF(INTRO!$E$39<>"Non endémique", 0, IF(INTRO!$E$37="Non endémique",0,IF(COUNTRY_INFO!$H19=1,COUNTRY_INFO!E19,0))) -> 0 | E19: =IF(INTRO!$E$39<>"Non endémique", 0, IF(INTRO!$E$37="Non endémique",0,IF(COUNTRY_INFO!$H19=1,COUNTRY_INFO!F19,0))) -> 0 | F19: =IF(INTRO!$E$39<>"Non endémique", 0, IF(INTRO!$E$37="Non endémique",0,IF(COUNTRY_INFO!$H19=1,COUNTRY_INFO!G19,0))) -> 0 | G19: 0 | H19: =IF(INTRO!$E$39="Non endémique",IF(INTRO!$E$37="Non endémique","Non requis",COUNTRY_INFO!P19),"Traiter avec IVM") -> Traiter avec IVM | I19: 0 | J19: 0 | L19: 0 | M19: 0
A20: =IF(INTRO!$E$39<>"Non endémique", " ", IF(INTRO!$E$37="Non endémique"," ", IF(COUNTRY_INFO!A20=0," ",COUNTRY_INFO!A20))) ->  | B20: =IF(INTRO!$E$39<>"Non endémique", " ", IF(INTRO!$E$37="Non endémique"," ", IF(COUNTRY_INFO!B20=0," ",COUNTRY_INFO!B20))) ->  | C20: =IF(INTRO!$E$39<>"Non endémique", " ", IF(INTRO!$E$37="Non endémique"," ", IF(COUNTRY_INFO!C20=0," ",COUNTRY_INFO!C20))) ->  | D20: =IF(INTRO!$E$39<>"Non endémique", 0, IF(INTRO!$E$37="Non endémique",0,IF(COUNTRY_INFO!$H20=1,COUNTRY_INFO!E20,0))) -> 0 | E20: =IF(INTRO!$E$39<>"Non endémique", 0, IF(INTRO!$E$37="Non endémique",0,IF(COUNTRY_INFO!$H20=1,COUNTRY_INFO!F20,0))) -> 0 | F20: =IF(INTRO!$E$39<>"Non endémique", 0, IF(INTRO!$E$37="Non endémique",0,IF(COUNTRY_INFO!$H20=1,COUNTRY_INFO!G20,0))) -> 0 | G20: 0 | H20: =IF(INTRO!$E$39="Non endémique",IF(INTRO!$E$37="Non endémique","Non requis",COUNTRY_INFO!P20),"Traiter avec IVM") -> Traiter avec IVM | I20: 0 | J20: 0 | L20: 0 | M20: 0
A21: =IF(INTRO!$E$39<>"Non endémique", " ", IF(INTRO!$E$37="Non endémique"," ", IF(COUNTRY_INFO!A21=0," ",COUNTRY_INFO!A21))) ->  | B21: =IF(INTRO!$E$39<>"Non endémique", " ", IF(INTRO!$E$37="Non endémique"," ", IF(COUNTRY_INFO!B21=0," ",COUNTRY_INFO!B21))) ->  | C21: =IF(INTRO!$E$39<>"Non endémique", " ", IF(INTRO!$E$37="Non endémique"," ", IF(COUNTRY_INFO!C21=0," ",COUNTRY_INFO!C21))) ->  | D21: =IF(INTRO!$E$39<>"Non endémique", 0, IF(INTRO!$E$37="Non endémique",0,IF(COUNTRY_INFO!$H21=1,COUNTRY_INFO!E21,0))) -> 0 | E21: =IF(INTRO!$E$39<>"Non endémique", 0, IF(INTRO!$E$37="Non endémique",0,IF(COUNTRY_INFO!$H21=1,COUNTRY_INFO!F21,0))) -> 0 | F21: =IF(INTRO!$E$39<>"Non endémique", 0, IF(INTRO!$E$37="Non endémique",0,IF(COUNTRY_INFO!$H21=1,COUNTRY_INFO!G21,0))) -> 0 | G21: 0 | H21: =IF(INTRO!$E$39="Non endémique",IF(INTRO!$E$37="Non endémique","Non requis",COUNTRY_INFO!P21),"Traiter avec IVM") -> Traiter avec IVM | I21: 0 | J21: 0 | L21: 0 | M21: 0
A22: =IF(INTRO!$E$39<>"Non endémique", " ", IF(INTRO!$E$37="Non endémique"," ", IF(COUNTRY_INFO!A22=0," ",COUNTRY_INFO!A22))) ->  | B22: =IF(INTRO!$E$39<>"Non endémique", " ", IF(INTRO!$E$37="Non endémique"," ", IF(COUNTRY_INFO!B22=0," ",COUNTRY_INFO!B22))) ->  | C22: =IF(INTRO!$E$39<>"Non endémique", " ", IF(INTRO!$E$37="Non endémique"," ", IF(COUNTRY_INFO!C22=0," ",COUNTRY_INFO!C22))) ->  | D22: =IF(INTRO!$E$39<>"Non endémique", 0, IF(INTRO!$E$37="Non endémique",0,IF(COUNTRY_INFO!$H22=1,COUNTRY_INFO!E22,0))) -> 0 | E22: =IF(INTRO!$E$39<>"Non endémique", 0, IF(INTRO!$E$37="Non endémique",0,IF(COUNTRY_INFO!$H22=1,COUNTRY_INFO!F22,0))) -> 0 | F22: =IF(INTRO!$E$39<>"Non endémique", 0, IF(INTRO!$E$37="Non endémique",0,IF(COUNTRY_INFO!$H22=1,COUNTRY_INFO!G22,0))) -> 0 | G22: 0 | H22: =IF(INTRO!$E$39="Non endémique",IF(INTRO!$E$37="Non endémique","Non requis",COUNTRY_INFO!P22),"Traiter avec IVM") -> Traiter avec IVM | I22: 0 | J22: 0 | L22: 0 | M22: 0
A23: =IF(INTRO!$E$39<>"Non endémique", " ", IF(INTRO!$E$37="Non endémique"," ", IF(COUNTRY_INFO!A23=0," ",COUNTRY_INFO!A23))) ->  | B23: =IF(INTRO!$E$39<>"Non endémique", " ", IF(INTRO!$E$37="Non endémique"," ", IF(COUNTRY_INFO!B23=0," ",COUNTRY_INFO!B23))) ->  | C23: =IF(INTRO!$E$39<>"Non endémique", " ", IF(INTRO!$E$37="Non endémique"," ", IF(COUNTRY_INFO!C23=0," ",COUNTRY_INFO!C23))) ->  | D23: =IF(INTRO!$E$39<>"Non endémique", 0, IF(INTRO!$E$37="Non endémique",0,IF(COUNTRY_INFO!$H23=1,COUNTRY_INFO!E23,0))) -> 0 | E23: =IF(INTRO!$E$39<>"Non endémique", 0, IF(INTRO!$E$37="Non endémique",0,IF(COUNTRY_INFO!$H23=1,COUNTRY_INFO!F23,0))) -> 0 | F23: =IF(INTRO!$E$39<>"Non endémique", 0, IF(INTRO!$E$37="Non endémique",0,IF(COUNTRY_INFO!$H23=1,COUNTRY_INFO!G23,0))) -> 0 | G23: 0 | H23: =IF(INTRO!$E$39="Non endémique",IF(INTRO!$E$37="Non endémique","Non requis",COUNTRY_INFO!P23),"Traiter avec IVM") -> Traiter avec IVM | I23: 0 | J23: 0 | L23: 0 | M23: 0
A24: =IF(INTRO!$E$39<>"Non endémique", " ", IF(INTRO!$E$37="Non endémique"," ", IF(COUNTRY_INFO!A24=0," ",COUNTRY_INFO!A24))) ->  | B24: =IF(INTRO!$E$39<>"Non endémique", " ", IF(INTRO!$E$37="Non endémique"," ", IF(COUNTRY_INFO!B24=0," ",COUNTRY_INFO!B24))) ->  | C24: =IF(INTRO!$E$39<>"Non endémique", " ", IF(INTRO!$E$37="Non endémique"," ", IF(COUNTRY_INFO!C24=0," ",COUNTRY_INFO!C24))) ->  | D24: =IF(INTRO!$E$39<>"Non endémique", 0, IF(INTRO!$E$37="Non endémique",0,IF(COUNTRY_INFO!$H24=1,COUNTRY_INFO!E24,0))) -> 0 | E24: =IF(INTRO!$E$39<>"Non endémique", 0, IF(INTRO!$E$37="Non endémique",0,IF(COUNTRY_INFO!$H24=1,COUNTRY_INFO!F24,0))) -> 0 | F24: =IF(INTRO!$E$39<>"Non endémique", 0, IF(INTRO!$E$37="Non endémique",0,IF(COUNTRY_INFO!$H24=1,COUNTRY_INFO!G24,0))) -> 0 | G24: 0 | H24: =IF(INTRO!$E$39="Non endémique",IF(INTRO!$E$37="Non endémique","Non requis",COUNTRY_INFO!P24),"Traiter avec IVM") -> Traiter avec IVM | I24: 0 | J24: 0 | L24: 0 | M24: 0
A25: =IF(INTRO!$E$39<>"Non endémique", " ", IF(INTRO!$E$37="Non endémique"," ", IF(COUNTRY_INFO!A25=0," ",COUNTRY_INFO!A25))) ->  | B25: =IF(INTRO!$E$39<>"Non endémique", " ", IF(INTRO!$E$37="Non endémique"," ", IF(COUNTRY_INFO!B25=0," ",COUNTRY_INFO!B25))) ->  | C25: =IF(INTRO!$E$39<>"Non endémique", " ", IF(INTRO!$E$37="Non endémique"," ", IF(COUNTRY_INFO!C25=0," ",COUNTRY_INFO!C25))) ->  | D25: =IF(INTRO!$E$39<>"Non endémique", 0, IF(INTRO!$E$37="Non endémique",0,IF(COUNTRY_INFO!$H25=1,COUNTRY_INFO!E25,0))) -> 0 | E25: =IF(INTRO!$E$39<>"Non endémique", 0, IF(INTRO!$E$37="Non endémique",0,IF(COUNTRY_INFO!$H25=1,COUNTRY_INFO!F25,0))) -> 0 | F25: =IF(INTRO!$E$39<>"Non endémique", 0, IF(INTRO!$E$37="Non endémique",0,IF(COUNTRY_INFO!$H25=1,COUNTRY_INFO!G25,0))) -> 0 | G25: 0 | H25: =IF(INTRO!$E$39="Non endémique",IF(INTRO!$E$37="Non endémique","Non requis",COUNTRY_INFO!P25),"Traiter avec IVM") -> Traiter avec IVM | I25: 0 | J25: 0 | L25: 0 | M25: 0
A26: =IF(INTRO!$E$39<>"Non endémique", " ", IF(INTRO!$E$37="Non endémique"," ", IF(COUNTRY_INFO!A26=0," ",COUNTRY_INFO!A26))) ->  | B26: =IF(INTRO!$E$39<>"Non endémique", " ", IF(INTRO!$E$37="Non endémique"," ", IF(COUNTRY_INFO!B26=0," ",COUNTRY_INFO!B26))) ->  | C26: =IF(INTRO!$E$39<>"Non endémique", " ", IF(INTRO!$E$37="Non endémique"," ", IF(COUNTRY_INFO!C26=0," ",COUNTRY_INFO!C26))) ->  | D26: =IF(INTRO!$E$39<>"Non endémique", 0, IF(INTRO!$E$37="Non endémique",0,IF(COUNTRY_INFO!$H26=1,COUNTRY_INFO!E26,0))) -> 0 | E26: =IF(INTRO!$E$39<>"Non endémique", 0, IF(INTRO!$E$37="Non endémique",0,IF(COUNTRY_INFO!$H26=1,COUNTRY_INFO!F26,0))) -> 0 | F26: =IF(INTRO!$E$39<>"Non endémique", 0, IF(INTRO!$E$37="Non endémique",0,IF(COUNTRY_INFO!$H26=1,COUNTRY_INFO!G26,0))) -> 0 | G26: 0 | H26: =IF(INTRO!$E$39="Non endémique",IF(INTRO!$E$37="Non endémique","Non requis",COUNTRY_INFO!P26),"Traiter avec IVM") -> Traiter avec IVM | I26: 0 | J26: 0 | L26: 0 | M26: 0
A27: =IF(INTRO!$E$39<>"Non endémique", " ", IF(INTRO!$E$37="Non endémique"," ", IF(COUNTRY_INFO!A27=0," ",COUNTRY_INFO!A27))) ->  | B27: =IF(INTRO!$E$39<>"Non endémique", " ", IF(INTRO!$E$37="Non endémique"," ", IF(COUNTRY_INFO!B27=0," ",COUNTRY_INFO!B27))) ->  | C27: =IF(INTRO!$E$39<>"Non endémique", " ", IF(INTRO!$E$37="Non endémique"," ", IF(COUNTRY_INFO!C27=0," ",COUNTRY_INFO!C27))) ->  | D27: =IF(INTRO!$E$39<>"Non endémique", 0, IF(INTRO!$E$37="Non endémique",0,IF(COUNTRY_INFO!$H27=1,COUNTRY_INFO!E27,0))) -> 0 | E27: =IF(INTRO!$E$39<>"Non endémique", 0, IF(INTRO!$E$37="Non endémique",0,IF(COUNTRY_INFO!$H27=1,COUNTRY_INFO!F27,0))) -> 0 | F27: =IF(INTRO!$E$39<>"Non endémique", 0, IF(INTRO!$E$37="Non endémique",0,IF(COUNTRY_INFO!$H27=1,COUNTRY_INFO!G27,0))) -> 0 | G27: 0 | H27: =IF(INTRO!$E$39="Non endémique",IF(INTRO!$E$37="Non endémique","Non requis",COUNTRY_INFO!P27),"Traiter avec IVM") -> Traiter avec IVM | I27: 0 | J27: 0 | L27: 0 | M27: 0
A28: =IF(INTRO!$E$39<>"Non endémique", " ", IF(INTRO!$E$37="Non endémique"," ", IF(COUNTRY_INFO!A28=0," ",COUNTRY_INFO!A28))) ->  | B28: =IF(INTRO!$E$39<>"Non endémique", " ", IF(INTRO!$E$37="Non endémique"," ", IF(COUNTRY_INFO!B28=0," ",COUNTRY_INFO!B28))) ->  | C28: =IF(INTRO!$E$39<>"Non endémique", " ", IF(INTRO!$E$37="Non endémique"," ", IF(COUNTRY_INFO!C28=0," ",COUNTRY_INFO!C28))) ->  | D28: =IF(INTRO!$E$39<>"Non endémique", 0, IF(INTRO!$E$37="Non endémique",0,IF(COUNTRY_INFO!$H28=1,COUNTRY_INFO!E28,0))) -> 0 | E28: =IF(INTRO!$E$39<>"Non endémique", 0, IF(INTRO!$E$37="Non endémique",0,IF(COUNTRY_INFO!$H28=1,COUNTRY_INFO!F28,0))) -> 0 | F28: =IF(INTRO!$E$39<>"Non endémique", 0, IF(INTRO!$E$37="Non endémique",0,IF(COUNTRY_INFO!$H28=1,COUNTRY_INFO!G28,0))) -> 0 | G28: 0 | H28: =IF(INTRO!$E$39="Non endémique",IF(INTRO!$E$37="Non endémique","Non requis",COUNTRY_INFO!P28),"Traiter avec IVM") -> Traiter avec IVM | I28: 0 | J28: 0 | L28: 0 | M28: 0
A29: =IF(INTRO!$E$39<>"Non endémique", " ", IF(INTRO!$E$37="Non endémique"," ", IF(COUNTRY_INFO!A29=0," ",COUNTRY_INFO!A29))) ->  | B29: =IF(INTRO!$E$39<>"Non endémique", " ", IF(INTRO!$E$37="Non endémique"," ", IF(COUNTRY_INFO!B29=0," ",COUNTRY_INFO!B29))) ->  | C29: =IF(INTRO!$E$39<>"Non endémique", " ", IF(INTRO!$E$37="Non endémique"," ", IF(COUNTRY_INFO!C29=0," ",COUNTRY_INFO!C29))) ->  | D29: =IF(INTRO!$E$39<>"Non endémique", 0, IF(INTRO!$E$37="Non endémique",0,IF(COUNTRY_INFO!$H29=1,COUNTRY_INFO!E29,0))) -> 0 | E29: =IF(INTRO!$E$39<>"Non endémique", 0, IF(INTRO!$E$37="Non endémique",0,IF(COUNTRY_INFO!$H29=1,COUNTRY_INFO!F29,0))) -> 0 | F29: =IF(INTRO!$E$39<>"Non endémique", 0, IF(INTRO!$E$37="Non endémique",0,IF(COUNTRY_INFO!$H29=1,COUNTRY_INFO!G29,0))) -> 0 | G29: 0 | H29: =IF(INTRO!$E$39="Non endémique",IF(INTRO!$E$37="Non endémique","Non requis",COUNTRY_INFO!P29),"Traiter avec IVM") -> Traiter avec IVM | I29: 0 | J29: 0 | L29: 0 | M29: 0
A30: =IF(INTRO!$E$39<>"Non endémique", " ", IF(INTRO!$E$37="Non endémique"," ", IF(COUNTRY_INFO!A30=0," ",COUNTRY_INFO!A30))) ->  | B30: =IF(INTRO!$E$39<>"Non endémique", " ", IF(INTRO!$E$37="Non endémique"," ", IF(COUNTRY_INFO!B30=0," ",COUNTRY_INFO!B30))) ->  | C30: =IF(INTRO!$E$39<>"Non endémique", " ", IF(INTRO!$E$37="Non endémique"," ", IF(COUNTRY_INFO!C30=0," ",COUNTRY_INFO!C30))) ->  | D30: =IF(INTRO!$E$39<>"Non endémique", 0, IF(INTRO!$E$37="Non endémique",0,IF(COUNTRY_INFO!$H30=1,COUNTRY_INFO!E30,0))) -> 0 | E30: =IF(INTRO!$E$39<>"Non endémique", 0, IF(INTRO!$E$37="Non endémique",0,IF(COUNTRY_INFO!$H30=1,COUNTRY_INFO!F30,0))) -> 0 | F30: =IF(INTRO!$E$39<>"Non endémique", 0, IF(INTRO!$E$37="Non endémique",0,IF(COUNTRY_INFO!$H30=1,COUNTRY_INFO!G30,0))) -> 0 | G30: 0 | H30: =IF(INTRO!$E$39="Non endémique",IF(INTRO!$E$37="Non endémique","Non requis",COUNTRY_INFO!P30),"Traiter avec IVM") -> Traiter avec IVM | I30: 0 | J30: 0 | L30: 0 | M30: 0
A31: =IF(INTRO!$E$39<>"Non endémique", " ", IF(INTRO!$E$37="Non endémique"," ", IF(COUNTRY_INFO!A31=0," ",COUNTRY_INFO!A31))) ->  | B31: =IF(INTRO!$E$39<>"Non endémique", " ", IF(INTRO!$E$37="Non endémique"," ", IF(COUNTRY_INFO!B31=0," ",COUNTRY_INFO!B31))) ->  | C31: =IF(INTRO!$E$39<>"Non endémique", " ", IF(INTRO!$E$37="Non endémique"," ", IF(COUNTRY_INFO!C31=0," ",COUNTRY_INFO!C31))) ->  | D31: =IF(INTRO!$E$39<>"Non endémique", 0, IF(INTRO!$E$37="Non endémique",0,IF(COUNTRY_INFO!$H31=1,COUNTRY_INFO!E31,0))) -> 0 | E31: =IF(INTRO!$E$39<>"Non endémique", 0, IF(INTRO!$E$37="Non endémique",0,IF(COUNTRY_INFO!$H31=1,COUNTRY_INFO!F31,0))) -> 0 | F31: =IF(INTRO!$E$39<>"Non endémique", 0, IF(INTRO!$E$37="Non endémique",0,IF(COUNTRY_INFO!$H31=1,COUNTRY_INFO!G31,0))) -> 0 | G31: 0 | H31: =IF(INTRO!$E$39="Non endémique",IF(INTRO!$E$37="Non endémique","Non requis",COUNTRY_INFO!P31),"Traiter avec IVM") -> Traiter avec IVM | I31: 0 | J31: 0 | L31: 0 | M31: 0
A32: =IF(INTRO!$E$39<>"Non endémique", " ", IF(INTRO!$E$37="Non endémique"," ", IF(COUNTRY_INFO!A32=0," ",COUNTRY_INFO!A32))) ->  | B32: =IF(INTRO!$E$39<>"Non endémique", " ", IF(INTRO!$E$37="Non endémique"," ", IF(COUNTRY_INFO!B32=0," ",COUNTRY_INFO!B32))) ->  | C32: =IF(INTRO!$E$39<>"Non endémique", " ", IF(INTRO!$E$37="Non endémique"," ", IF(COUNTRY_INFO!C32=0," ",COUNTRY_INFO!C32))) ->  | D32: =IF(INTRO!$E$39<>"Non endémique", 0, IF(INTRO!$E$37="Non endémique",0,IF(COUNTRY_INFO!$H32=1,COUNTRY_INFO!E32,0))) -> 0 | E32: =IF(INTRO!$E$39<>"Non endémique", 0, IF(INTRO!$E$37="Non endémique",0,IF(COUNTRY_INFO!$H32=1,COUNTRY_INFO!F32,0))) -> 0 | F32: =IF(INTRO!$E$39<>"Non endémique", 0, IF(INTRO!$E$37="Non endémique",0,IF(COUNTRY_INFO!$H32=1,COUNTRY_INFO!G32,0))) -> 0 | G32: 0 | H32: =IF(INTRO!$E$39="Non endémique",IF(INTRO!$E$37="Non endémique","Non requis",COUNTRY_INFO!P32),"Traiter avec IVM") -> Traiter avec IVM | I32: 0 | J32: 0 | L32: 0 | M32: 0
A33: =IF(INTRO!$E$39<>"Non endémique", " ", IF(INTRO!$E$37="Non endémique"," ", IF(COUNTRY_INFO!A33=0," ",COUNTRY_INFO!A33))) ->  | B33: =IF(INTRO!$E$39<>"Non endémique", " ", IF(INTRO!$E$37="Non endémique"," ", IF(COUNTRY_INFO!B33=0," ",COUNTRY_INFO!B33))) ->  | C33: =IF(INTRO!$E$39<>"Non endémique", " ", IF(INTRO!$E$37="Non endémique"," ", IF(COUNTRY_INFO!C33=0," ",COUNTRY_INFO!C33))) ->  | D33: =IF(INTRO!$E$39<>"Non endémique", 0, IF(INTRO!$E$37="Non endémique",0,IF(COUNTRY_INFO!$H33=1,COUNTRY_INFO!E33,0))) -> 0 | E33: =IF(INTRO!$E$39<>"Non endémique", 0, IF(INTRO!$E$37="Non endémique",0,IF(COUNTRY_INFO!$H33=1,COUNTRY_INFO!F33,0))) -> 0 | F33: =IF(INTRO!$E$39<>"Non endémique", 0, IF(INTRO!$E$37="Non endémique",0,IF(COUNTRY_INFO!$H33=1,COUNTRY_INFO!G33,0))) -> 0 | G33: 0 | H33: =IF(INTRO!$E$39="Non endémique",IF(INTRO!$E$37="Non endémique","Non requis",COUNTRY_INFO!P33),"Traiter avec IVM") -> Traiter avec IVM | I33: 0 | J33: 0 | L33: 0 | M33: 0
A34: =IF(INTRO!$E$39<>"Non endémique", " ", IF(INTRO!$E$37="Non endémique"," ", IF(COUNTRY_INFO!A34=0," ",COUNTRY_INFO!A34))) ->  | B34: =IF(INTRO!$E$39<>"Non endémique", " ", IF(INTRO!$E$37="Non endémique"," ", IF(COUNTRY_INFO!B34=0," ",COUNTRY_INFO!B34))) ->  | C34: =IF(INTRO!$E$39<>"Non endémique", " ", IF(INTRO!$E$37="Non endémique"," ", IF(COUNTRY_INFO!C34=0," ",COUNTRY_INFO!C34))) ->  | D34: =IF(INTRO!$E$39<>"Non endémique", 0, IF(INTRO!$E$37="Non endémique",0,IF(COUNTRY_INFO!$H34=1,COUNTRY_INFO!E34,0))) -> 0 | E34: =IF(INTRO!$E$39<>"Non endémique", 0, IF(INTRO!$E$37="Non endémique",0,IF(COUNTRY_INFO!$H34=1,COUNTRY_INFO!F34,0))) -> 0 | F34: =IF(INTRO!$E$39<>"Non endémique", 0, IF(INTRO!$E$37="Non endémique",0,IF(COUNTRY_INFO!$H34=1,COUNTRY_INFO!G34,0))) -> 0 | G34: 0 | H34: =IF(INTRO!$E$39="Non endémique",IF(INTRO!$E$37="Non endémique","Non requis",COUNTRY_INFO!P34),"Traiter avec IVM") -> Traiter avec IVM | I34: 0 | J34: 0 | L34: 0 | M34: 0
A35: =IF(INTRO!$E$39<>"Non endémique", " ", IF(INTRO!$E$37="Non endémique"," ", IF(COUNTRY_INFO!A35=0," ",COUNTRY_INFO!A35))) ->  | B35: =IF(INTRO!$E$39<>"Non endémique", " ", IF(INTRO!$E$37="Non endémique"," ", IF(COUNTRY_INFO!B35=0," ",COUNTRY_INFO!B35))) ->  | C35: =IF(INTRO!$E$39<>"Non endémique", " ", IF(INTRO!$E$37="Non endémique"," ", IF(COUNTRY_INFO!C35=0," ",COUNTRY_INFO!C35))) ->  | D35: =IF(INTRO!$E$39<>"Non endémique", 0, IF(INTRO!$E$37="Non endémique",0,IF(COUNTRY_INFO!$H35=1,COUNTRY_INFO!E35,0))) -> 0 | E35: =IF(INTRO!$E$39<>"Non endémique", 0, IF(INTRO!$E$37="Non endémique",0,IF(COUNTRY_INFO!$H35=1,COUNTRY_INFO!F35,0))) -> 0 | F35: =IF(INTRO!$E$39<>"Non endémique", 0, IF(INTRO!$E$37="Non endémique",0,IF(COUNTRY_INFO!$H35=1,COUNTRY_INFO!G35,0))) -> 0 | G35: 0 | H35: =IF(INTRO!$E$39="Non endémique",IF(INTRO!$E$37="Non endémique","Non requis",COUNTRY_INFO!P35),"Traiter avec IVM") -> Traiter avec IVM | I35: 0 | J35: 0 | L35: 0 | M35: 0
A36: =IF(INTRO!$E$39<>"Non endémique", " ", IF(INTRO!$E$37="Non endémique"," ", IF(COUNTRY_INFO!A36=0," ",COUNTRY_INFO!A36))) ->  | B36: =IF(INTRO!$E$39<>"Non endémique", " ", IF(INTRO!$E$37="Non endémique"," ", IF(COUNTRY_INFO!B36=0," ",COUNTRY_INFO!B36))) ->  | C36: =IF(INTRO!$E$39<>"Non endémique", " ", IF(INTRO!$E$37="Non endémique"," ", IF(COUNTRY_INFO!C36=0," ",COUNTRY_INFO!C36))) ->  | D36: =IF(INTRO!$E$39<>"Non endémique", 0, IF(INTRO!$E$37="Non endémique",0,IF(COUNTRY_INFO!$H36=1,COUNTRY_INFO!E36,0))) -> 0 | E36: =IF(INTRO!$E$39<>"Non endémique", 0, IF(INTRO!$E$37="Non endémique",0,IF(COUNTRY_INFO!$H36=1,COUNTRY_INFO!F36,0))) -> 0 | F36: =IF(INTRO!$E$39<>"Non endémique", 0, IF(INTRO!$E$37="Non endémique",0,IF(COUNTRY_INFO!$H36=1,COUNTRY_INFO!G36,0))) -> 0 | G36: 0 | H36: =IF(INTRO!$E$39="Non endémique",IF(INTRO!$E$37="Non endémique","Non requis",COUNTRY_INFO!P36),"Traiter avec IVM") -> Traiter avec IVM | I36: 0 | J36: 0 | L36: 0 | M36: 0
A37: =IF(INTRO!$E$39<>"Non endémique", " ", IF(INTRO!$E$37="Non endémique"," ", IF(COUNTRY_INFO!A37=0," ",COUNTRY_INFO!A37))) ->  | B37: =IF(INTRO!$E$39<>"Non endémique", " ", IF(INTRO!$E$37="Non endémique"," ", IF(COUNTRY_INFO!B37=0," ",COUNTRY_INFO!B37))) ->  | C37: =IF(INTRO!$E$39<>"Non endémique", " ", IF(INTRO!$E$37="Non endémique"," ", IF(COUNTRY_INFO!C37=0," ",COUNTRY_INFO!C37))) ->  | D37: =IF(INTRO!$E$39<>"Non endémique", 0, IF(INTRO!$E$37="Non endémique",0,IF(COUNTRY_INFO!$H37=1,COUNTRY_INFO!E37,0))) -> 0 | E37: =IF(INTRO!$E$39<>"Non endémique", 0, IF(INTRO!$E$37="Non endémique",0,IF(COUNTRY_INFO!$H37=1,COUNTRY_INFO!F37,0))) -> 0 | F37: =IF(INTRO!$E$39<>"Non endémique", 0, IF(INTRO!$E$37="Non endémique",0,IF(COUNTRY_INFO!$H37=1,COUNTRY_INFO!G37,0))) -> 0 | G37: 0 | H37: =IF(INTRO!$E$39="Non endémique",IF(INTRO!$E$37="Non endémique","Non requis",COUNTRY_INFO!P37),"Traiter avec IVM") -> Traiter avec IVM | I37: 0 | J37: 0 | L37: 0 | M37: 0
A38: =IF(INTRO!$E$39<>"Non endémique", " ", IF(INTRO!$E$37="Non endémique"," ", IF(COUNTRY_INFO!A38=0," ",COUNTRY_INFO!A38))) ->  | B38: =IF(INTRO!$E$39<>"Non endémique", " ", IF(INTRO!$E$37="Non endémique"," ", IF(COUNTRY_INFO!B38=0," ",COUNTRY_INFO!B38))) ->  | C38: =IF(INTRO!$E$39<>"Non endémique", " ", IF(INTRO!$E$37="Non endémique"," ", IF(COUNTRY_INFO!C38=0," ",COUNTRY_INFO!C38))) ->  | D38: =IF(INTRO!$E$39<>"Non endémique", 0, IF(INTRO!$E$37="Non endémique",0,IF(COUNTRY_INFO!$H38=1,COUNTRY_INFO!E38,0))) -> 0 | E38: =IF(INTRO!$E$39<>"Non endémique", 0, IF(INTRO!$E$37="Non endémique",0,IF(COUNTRY_INFO!$H38=1,COUNTRY_INFO!F38,0))) -> 0 | F38: =IF(INTRO!$E$39<>"Non endémique", 0, IF(INTRO!$E$37="Non endémique",0,IF(COUNTRY_INFO!$H38=1,COUNTRY_INFO!G38,0))) -> 0 | G38: 0 | H38: =IF(INTRO!$E$39="Non endémique",IF(INTRO!$E$37="Non endémique","Non requis",COUNTRY_INFO!P38),"Traiter avec IVM") -> Traiter avec IVM | I38: 0 | J38: 0 | L38: 0 | M38: 0
A39: =IF(INTRO!$E$39<>"Non endémique", " ", IF(INTRO!$E$37="Non endémique"," ", IF(COUNTRY_INFO!A39=0," ",COUNTRY_INFO!A39))) ->  | B39: =IF(INTRO!$E$39<>"Non endémique", " ", IF(INTRO!$E$37="Non endémique"," ", IF(COUNTRY_INFO!B39=0," ",COUNTRY_INFO!B39))) ->  | C39: =IF(INTRO!$E$39<>"Non endémique", " ", IF(INTRO!$E$37="Non endémique"," ", IF(COUNTRY_INFO!C39=0," ",COUNTRY_INFO!C39))) ->  | D39: =IF(INTRO!$E$39<>"Non endémique", 0, IF(INTRO!$E$37="Non endémique",0,IF(COUNTRY_INFO!$H39=1,COUNTRY_INFO!E39,0))) -> 0 | E39: =IF(INTRO!$E$39<>"Non endémique", 0, IF(INTRO!$E$37="Non endémique",0,IF(COUNTRY_INFO!$H39=1,COUNTRY_INFO!F39,0))) -> 0 | F39: =IF(INTRO!$E$39<>"Non endémique", 0, IF(INTRO!$E$37="Non endémique",0,IF(COUNTRY_INFO!$H39=1,COUNTRY_INFO!G39,0))) -> 0 | G39: 0 | H39: =IF(INTRO!$E$39="Non endémique",IF(INTRO!$E$37="Non endémique","Non requis",COUNTRY_INFO!P39),"Traiter avec IVM") -> Traiter avec IVM | I39: 0 | J39: 0 | L39: 0 | M39: 0
A40: =IF(INTRO!$E$39<>"Non endémique", " ", IF(INTRO!$E$37="Non endémique"," ", IF(COUNTRY_INFO!A40=0," ",COUNTRY_INFO!A40))) ->  | B40: =IF(INTRO!$E$39<>"Non endémique", " ", IF(INTRO!$E$37="Non endémique"," ", IF(COUNTRY_INFO!B40=0," ",COUNTRY_INFO!B40))) ->  | C40: =IF(INTRO!$E$39<>"Non endémique", " ", IF(INTRO!$E$37="Non endémique"," ", IF(COUNTRY_INFO!C40=0," ",COUNTRY_INFO!C40))) ->  | D40: =IF(INTRO!$E$39<>"Non endémique", 0, IF(INTRO!$E$37="Non endémique",0,IF(COUNTRY_INFO!$H40=1,COUNTRY_INFO!E40,0))) -> 0 | E40: =IF(INTRO!$E$39<>"Non endémique", 0, IF(INTRO!$E$37="Non endémique",0,IF(COUNTRY_INFO!$H40=1,COUNTRY_INFO!F40,0))) -> 0 | F40: =IF(INTRO!$E$39<>"Non endémique", 0, IF(INTRO!$E$37="Non endémique",0,IF(COUNTRY_INFO!$H40=1,COUNTRY_INFO!G40,0))) -> 0 | G40: 0 | H40: =IF(INTRO!$E$39="Non endémique",IF(INTRO!$E$37="Non endémique","Non requis",COUNTRY_INFO!P40),"Traiter avec IVM") -> Traiter avec IVM | I40: 0 | J40: 0 | L40: 0 | M40: 0
A41: =IF(INTRO!$E$39<>"Non endémique", " ", IF(INTRO!$E$37="Non endémique"," ", IF(COUNTRY_INFO!A41=0," ",COUNTRY_INFO!A41))) ->  | B41: =IF(INTRO!$E$39<>"Non endémique", " ", IF(INTRO!$E$37="Non endémique"," ", IF(COUNTRY_INFO!B41=0," ",COUNTRY_INFO!B41))) ->  | C41: =IF(INTRO!$E$39<>"Non endémique", " ", IF(INTRO!$E$37="Non endémique"," ", IF(COUNTRY_INFO!C41=0," ",COUNTRY_INFO!C41))) ->  | D41: =IF(INTRO!$E$39<>"Non endémique", 0, IF(INTRO!$E$37="Non endémique",0,IF(COUNTRY_INFO!$H41=1,COUNTRY_INFO!E41,0))) -> 0 | E41: =IF(INTRO!$E$39<>"Non endémique", 0, IF(INTRO!$E$37="Non endémique",0,IF(COUNTRY_INFO!$H41=1,COUNTRY_INFO!F41,0))) -> 0 | F41: =IF(INTRO!$E$39<>"Non endémique", 0, IF(INTRO!$E$37="Non endémique",0,IF(COUNTRY_INFO!$H41=1,COUNTRY_INFO!G41,0))) -> 0 | G41: =SUM(D41:F41) -> 0 | H41: =IF(INTRO!$E$39="Non endémique",IF(INTRO!$E$37="Non endémique","Non requis",COUNTRY_INFO!P41),"Traiter avec IVM") -> Traiter avec IVM | I41: =IF(H41=1,G41,0) -> 0 | J41: =IF(I41>0,I41*2.5,0) -> 0 | L41: =IF($J41>$K41,$J41-$K41,0) -> 0 | M41: =ROUNDUP($J41/1000,0) -> 0
A42: =IF(INTRO!$E$39<>"Non endémique", " ", IF(INTRO!$E$37="Non endémique"," ", IF(COUNTRY_INFO!A42=0," ",COUNTRY_INFO!A42))) ->  | B42: =IF(INTRO!$E$39<>"Non endémique", " ", IF(INTRO!$E$37="Non endémique"," ", IF(COUNTRY_INFO!B42=0," ",COUNTRY_INFO!B42))) ->  | C42: =IF(INTRO!$E$39<>"Non endémique", " ", IF(INTRO!$E$37="Non endémique"," ", IF(COUNTRY_INFO!C42=0," ",COUNTRY_INFO!C42))) ->  | D42: =IF(INTRO!$E$39<>"Non endémique", 0, IF(INTRO!$E$37="Non endémique",0,IF(COUNTRY_INFO!$H42=1,COUNTRY_INFO!E42,0))) -> 0 | E42: =IF(INTRO!$E$39<>"Non endémique", 0, IF(INTRO!$E$37="Non endémique",0,IF(COUNTRY_INFO!$H42=1,COUNTRY_INFO!F42,0))) -> 0 | F42: =IF(INTRO!$E$39<>"Non endémique", 0, IF(INTRO!$E$37="Non endémique",0,IF(COUNTRY_INFO!$H42=1,COUNTRY_INFO!G42,0))) -> 0 | G42: 0 | H42: =IF(INTRO!$E$39="Non endémique",IF(INTRO!$E$37="Non endémique","Non requis",COUNTRY_INFO!P42),"Traiter avec IVM") -> Traiter avec IVM | I42: 0 | J42: 0 | L42: 0 | M42: 0
A43: =IF(INTRO!$E$39<>"Non endémique", " ", IF(INTRO!$E$37="Non endémique"," ", IF(COUNTRY_INFO!A43=0," ",COUNTRY_INFO!A43))) ->  | B43: =IF(INTRO!$E$39<>"Non endémique", " ", IF(INTRO!$E$37="Non endémique"," ", IF(COUNTRY_INFO!B43=0," ",COUNTRY_INFO!B43))) ->  | C43: =IF(INTRO!$E$39<>"Non endémique", " ", IF(INTRO!$E$37="Non endémique"," ", IF(COUNTRY_INFO!C43=0," ",COUNTRY_INFO!C43))) ->  | D43: =IF(INTRO!$E$39<>"Non endémique", 0, IF(INTRO!$E$37="Non endémique",0,IF(COUNTRY_INFO!$H43=1,COUNTRY_INFO!E43,0))) -> 0 | E43: =IF(INTRO!$E$39<>"Non endémique", 0, IF(INTRO!$E$37="Non endémique",0,IF(COUNTRY_INFO!$H43=1,COUNTRY_INFO!F43,0))) -> 0 | F43: =IF(INTRO!$E$39<>"Non endémique", 0, IF(INTRO!$E$37="Non endémique",0,IF(COUNTRY_INFO!$H43=1,COUNTRY_INFO!G43,0))) -> 0 | G43: 0 | H43: =IF(INTRO!$E$39="Non endémique",IF(INTRO!$E$37="Non endémique","Non requis",COUNTRY_INFO!P43),"Traiter avec IVM") -> Traiter avec IVM | I43: 0 | J43: 0 | L43: 0 | M43: 0
A44: =IF(INTRO!$E$39<>"Non endémique", " ", IF(INTRO!$E$37="Non endémique"," ", IF(COUNTRY_INFO!A44=0," ",COUNTRY_INFO!A44))) ->  | B44: =IF(INTRO!$E$39<>"Non endémique", " ", IF(INTRO!$E$37="Non endémique"," ", IF(COUNTRY_INFO!B44=0," ",COUNTRY_INFO!B44))) ->  | C44: =IF(INTRO!$E$39<>"Non endémique", " ", IF(INTRO!$E$37="Non endémique"," ", IF(COUNTRY_INFO!C44=0," ",COUNTRY_INFO!C44))) ->  | D44: =IF(INTRO!$E$39<>"Non endémique", 0, IF(INTRO!$E$37="Non endémique",0,IF(COUNTRY_INFO!$H44=1,COUNTRY_INFO!E44,0))) -> 0 | E44: =IF(INTRO!$E$39<>"Non endémique", 0, IF(INTRO!$E$37="Non endémique",0,IF(COUNTRY_INFO!$H44=1,COUNTRY_INFO!F44,0))) -> 0 | F44: =IF(INTRO!$E$39<>"Non endémique", 0, IF(INTRO!$E$37="Non endémique",0,IF(COUNTRY_INFO!$H44=1,COUNTRY_INFO!G44,0))) -> 0 | G44: 0 | H44: =IF(INTRO!$E$39="Non endémique",IF(INTRO!$E$37="Non endémique","Non requis",COUNTRY_INFO!P44),"Traiter avec IVM") -> Traiter avec IVM | I44: 0 | J44: 0 | L44: 0 | M44: 0
A45: =IF(INTRO!$E$39<>"Non endémique", " ", IF(INTRO!$E$37="Non endémique"," ", IF(COUNTRY_INFO!A45=0," ",COUNTRY_INFO!A45))) ->  | B45: =IF(INTRO!$E$39<>"Non endémique", " ", IF(INTRO!$E$37="Non endémique"," ", IF(COUNTRY_INFO!B45=0," ",COUNTRY_INFO!B45))) ->  | C45: =IF(INTRO!$E$39<>"Non endémique", " ", IF(INTRO!$E$37="Non endémique"," ", IF(COUNTRY_INFO!C45=0," ",COUNTRY_INFO!C45))) ->  | D45: =IF(INTRO!$E$39<>"Non endémique", 0, IF(INTRO!$E$37="Non endémique",0,IF(COUNTRY_INFO!$H45=1,COUNTRY_INFO!E45,0))) -> 0 | E45: =IF(INTRO!$E$39<>"Non endémique", 0, IF(INTRO!$E$37="Non endémique",0,IF(COUNTRY_INFO!$H45=1,COUNTRY_INFO!F45,0))) -> 0 | F45: =IF(INTRO!$E$39<>"Non endémique", 0, IF(INTRO!$E$37="Non endémique",0,IF(COUNTRY_INFO!$H45=1,COUNTRY_INFO!G45,0))) -> 0 | G45: 0 | H45: =IF(INTRO!$E$39="Non endémique",IF(INTRO!$E$37="Non endémique","Non requis",COUNTRY_INFO!P45),"Traiter avec IVM") -> Traiter avec IVM | I45: 0 | J45: 0 | L45: 0 | M45: 0
A46: =IF(INTRO!$E$39<>"Non endémique", " ", IF(INTRO!$E$37="Non endémique"," ", IF(COUNTRY_INFO!A46=0," ",COUNTRY_INFO!A46))) ->  | B46: =IF(INTRO!$E$39<>"Non endémique", " ", IF(INTRO!$E$37="Non endémique"," ", IF(COUNTRY_INFO!B46=0," ",COUNTRY_INFO!B46))) ->  | C46: =IF(INTRO!$E$39<>"Non endémique", " ", IF(INTRO!$E$37="Non endémique"," ", IF(COUNTRY_INFO!C46=0," ",COUNTRY_INFO!C46))) ->  | D46: =IF(INTRO!$E$39<>"Non endémique", 0, IF(INTRO!$E$37="Non endémique",0,IF(COUNTRY_INFO!$H46=1,COUNTRY_INFO!E46,0))) -> 0 | E46: =IF(INTRO!$E$39<>"Non endémique", 0, IF(INTRO!$E$37="Non endémique",0,IF(COUNTRY_INFO!$H46=1,COUNTRY_INFO!F46,0))) -> 0 | F46: =IF(INTRO!$E$39<>"Non endémique", 0, IF(INTRO!$E$37="Non endémique",0,IF(COUNTRY_INFO!$H46=1,COUNTRY_INFO!G46,0))) -> 0 | G46: 0 | H46: =IF(INTRO!$E$39="Non endémique",IF(INTRO!$E$37="Non endémique","Non requis",COUNTRY_INFO!P46),"Traiter avec IVM") -> Traiter avec IVM | I46: 0 | J46: 0 | L46: 0 | M46: 0
A47: =IF(INTRO!$E$39<>"Non endémique", " ", IF(INTRO!$E$37="Non endémique"," ", IF(COUNTRY_INFO!A47=0," ",COUNTRY_INFO!A47))) ->  | B47: =IF(INTRO!$E$39<>"Non endémique", " ", IF(INTRO!$E$37="Non endémique"," ", IF(COUNTRY_INFO!B47=0," ",COUNTRY_INFO!B47))) ->  | C47: =IF(INTRO!$E$39<>"Non endémique", " ", IF(INTRO!$E$37="Non endémique"," ", IF(COUNTRY_INFO!C47=0," ",COUNTRY_INFO!C47))) ->  | D47: =IF(INTRO!$E$39<>"Non endémique", 0, IF(INTRO!$E$37="Non endémique",0,IF(COUNTRY_INFO!$H47=1,COUNTRY_INFO!E47,0))) -> 0 | E47: =IF(INTRO!$E$39<>"Non endémique", 0, IF(INTRO!$E$37="Non endémique",0,IF(COUNTRY_INFO!$H47=1,COUNTRY_INFO!F47,0))) -> 0 | F47: =IF(INTRO!$E$39<>"Non endémique", 0, IF(INTRO!$E$37="Non endémique",0,IF(COUNTRY_INFO!$H47=1,COUNTRY_INFO!G47,0))) -> 0 | G47: 0 | H47: =IF(INTRO!$E$39="Non endémique",IF(INTRO!$E$37="Non endémique","Non requis",COUNTRY_INFO!P47),"Traiter avec IVM") -> Traiter avec IVM | I47: 0 | J47: 0 | L47: 0 | M47: 0
A48: =IF(INTRO!$E$39<>"Non endémique", " ", IF(INTRO!$E$37="Non endémique"," ", IF(COUNTRY_INFO!A48=0," ",COUNTRY_INFO!A48))) ->  | B48: =IF(INTRO!$E$39<>"Non endémique", " ", IF(INTRO!$E$37="Non endémique"," ", IF(COUNTRY_INFO!B48=0," ",COUNTRY_INFO!B48))) ->  | C48: =IF(INTRO!$E$39<>"Non endémique", " ", IF(INTRO!$E$37="Non endémique"," ", IF(COUNTRY_INFO!C48=0," ",COUNTRY_INFO!C48))) ->  | D48: =IF(INTRO!$E$39<>"Non endémique", 0, IF(INTRO!$E$37="Non endémique",0,IF(COUNTRY_INFO!$H48=1,COUNTRY_INFO!E48,0))) -> 0 | E48: =IF(INTRO!$E$39<>"Non endémique", 0, IF(INTRO!$E$37="Non endémique",0,IF(COUNTRY_INFO!$H48=1,COUNTRY_INFO!F48,0))) -> 0 | F48: =IF(INTRO!$E$39<>"Non endémique", 0, IF(INTRO!$E$37="Non endémique",0,IF(COUNTRY_INFO!$H48=1,COUNTRY_INFO!G48,0))) -> 0 | G48: 0 | H48: =IF(INTRO!$E$39="Non endémique",IF(INTRO!$E$37="Non endémique","Non requis",COUNTRY_INFO!P48),"Traiter avec IVM") -> Traiter avec IVM | I48: 0 | J48: 0 | L48: 0 | M48: 0
A49: =IF(INTRO!$E$39<>"Non endémique", " ", IF(INTRO!$E$37="Non endémique"," ", IF(COUNTRY_INFO!A49=0," ",COUNTRY_INFO!A49))) ->  | B49: =IF(INTRO!$E$39<>"Non endémique", " ", IF(INTRO!$E$37="Non endémique"," ", IF(COUNTRY_INFO!B49=0," ",COUNTRY_INFO!B49))) ->  | C49: =IF(INTRO!$E$39<>"Non endémique", " ", IF(INTRO!$E$37="Non endémique"," ", IF(COUNTRY_INFO!C49=0," ",COUNTRY_INFO!C49))) ->  | D49: =IF(INTRO!$E$39<>"Non endémique", 0, IF(INTRO!$E$37="Non endémique",0,IF(COUNTRY_INFO!$H49=1,COUNTRY_INFO!E49,0))) -> 0 | E49: =IF(INTRO!$E$39<>"Non endémique", 0, IF(INTRO!$E$37="Non endémique",0,IF(COUNTRY_INFO!$H49=1,COUNTRY_INFO!F49,0))) -> 0 | F49: =IF(INTRO!$E$39<>"Non endémique", 0, IF(INTRO!$E$37="Non endémique",0,IF(COUNTRY_INFO!$H49=1,COUNTRY_INFO!G49,0))) -> 0 | G49: 0 | H49: =IF(INTRO!$E$39="Non endémique",IF(INTRO!$E$37="Non endémique","Non requis",COUNTRY_INFO!P49),"Traiter avec IVM") -> Traiter avec IVM | I49: 0 | J49: 0 | L49: 0 | M49: 0
A50: =IF(INTRO!$E$39<>"Non endémique", " ", IF(INTRO!$E$37="Non endémique"," ", IF(COUNTRY_INFO!A50=0," ",COUNTRY_INFO!A50))) ->  | B50: =IF(INTRO!$E$39<>"Non endémique", " ", IF(INTRO!$E$37="Non endémique"," ", IF(COUNTRY_INFO!B50=0," ",COUNTRY_INFO!B50))) ->  | C50: =IF(INTRO!$E$39<>"Non endémique", " ", IF(INTRO!$E$37="Non endémique"," ", IF(COUNTRY_INFO!C50=0," ",COUNTRY_INFO!C50))) ->  | D50: =IF(INTRO!$E$39<>"Non endémique", 0, IF(INTRO!$E$37="Non endémique",0,IF(COUNTRY_INFO!$H50=1,COUNTRY_INFO!E50,0))) -> 0 | E50: =IF(INTRO!$E$39<>"Non endémique", 0, IF(INTRO!$E$37="Non endémique",0,IF(COUNTRY_INFO!$H50=1,COUNTRY_INFO!F50,0))) -> 0 | F50: =IF(INTRO!$E$39<>"Non endémique", 0, IF(INTRO!$E$37="Non endémique",0,IF(COUNTRY_INFO!$H50=1,COUNTRY_INFO!G50,0))) -> 0 | G50: 0 | H50: =IF(INTRO!$E$39="Non endémique",IF(INTRO!$E$37="Non endémique","Non requis",COUNTRY_INFO!P50),"Traiter avec IVM") -> Traiter avec IVM | I50: 0 | J50: 0 | L50: 0 | M50: 0
A51: =IF(INTRO!$E$39<>"Non endémique", " ", IF(INTRO!$E$37="Non endémique"," ", IF(COUNTRY_INFO!A51=0," ",COUNTRY_INFO!A51))) ->  | B51: =IF(INTRO!$E$39<>"Non endémique", " ", IF(INTRO!$E$37="Non endémique"," ", IF(COUNTRY_INFO!B51=0," ",COUNTRY_INFO!B51))) ->  | C51: =IF(INTRO!$E$39<>"Non endémique", " ", IF(INTRO!$E$37="Non endémique"," ", IF(COUNTRY_INFO!C51=0," ",COUNTRY_INFO!C51))) ->  | D51: =IF(INTRO!$E$39<>"Non endémique", 0, IF(INTRO!$E$37="Non endémique",0,IF(COUNTRY_INFO!$H51=1,COUNTRY_INFO!E51,0))) -> 0 | E51: =IF(INTRO!$E$39<>"Non endémique", 0, IF(INTRO!$E$37="Non endémique",0,IF(COUNTRY_INFO!$H51=1,COUNTRY_INFO!F51,0))) -> 0 | F51: =IF(INTRO!$E$39<>"Non endémique", 0, IF(INTRO!$E$37="Non endémique",0,IF(COUNTRY_INFO!$H51=1,COUNTRY_INFO!G51,0))) -> 0 | G51: 0 | H51: =IF(INTRO!$E$39="Non endémique",IF(INTRO!$E$37="Non endémique","Non requis",COUNTRY_INFO!P51),"Traiter avec IVM") -> Traiter avec IVM | I51: 0 | J51: 0 | L51: 0 | M51: 0
A52: =IF(INTRO!$E$39<>"Non endémique", " ", IF(INTRO!$E$37="Non endémique"," ", IF(COUNTRY_INFO!A52=0," ",COUNTRY_INFO!A52))) ->  | B52: =IF(INTRO!$E$39<>"Non endémique", " ", IF(INTRO!$E$37="Non endémique"," ", IF(COUNTRY_INFO!B52=0," ",COUNTRY_INFO!B52))) ->  | C52: =IF(INTRO!$E$39<>"Non endémique", " ", IF(INTRO!$E$37="Non endémique"," ", IF(COUNTRY_INFO!C52=0," ",COUNTRY_INFO!C52))) ->  | D52: =IF(INTRO!$E$39<>"Non endémique", 0, IF(INTRO!$E$37="Non endémique",0,IF(COUNTRY_INFO!$H52=1,COUNTRY_INFO!E52,0))) -> 0 | E52: =IF(INTRO!$E$39<>"Non endémique", 0, IF(INTRO!$E$37="Non endémique",0,IF(COUNTRY_INFO!$H52=1,COUNTRY_INFO!F52,0))) -> 0 | F52: =IF(INTRO!$E$39<>"Non endémique", 0, IF(INTRO!$E$37="Non endémique",0,IF(COUNTRY_INFO!$H52=1,COUNTRY_INFO!G52,0))) -> 0 | G52: 0 | H52: =IF(INTRO!$E$39="Non endémique",IF(INTRO!$E$37="Non endémique","Non requis",COUNTRY_INFO!P52),"Traiter avec IVM") -> Traiter avec IVM | I52: 0 | J52: 0 | L52: 0 | M52: 0
A53: =IF(INTRO!$E$39<>"Non endémique", " ", IF(INTRO!$E$37="Non endémique"," ", IF(COUNTRY_INFO!A53=0," ",COUNTRY_INFO!A53))) ->  | B53: =IF(INTRO!$E$39<>"Non endémique", " ", IF(INTRO!$E$37="Non endémique"," ", IF(COUNTRY_INFO!B53=0," ",COUNTRY_INFO!B53))) ->  | C53: =IF(INTRO!$E$39<>"Non endémique", " ", IF(INTRO!$E$37="Non endémique"," ", IF(COUNTRY_INFO!C53=0," ",COUNTRY_INFO!C53))) ->  | D53: =IF(INTRO!$E$39<>"Non endémique", 0, IF(INTRO!$E$37="Non endémique",0,IF(COUNTRY_INFO!$H53=1,COUNTRY_INFO!E53,0))) -> 0 | E53: =IF(INTRO!$E$39<>"Non endémique", 0, IF(INTRO!$E$37="Non endémique",0,IF(COUNTRY_INFO!$H53=1,COUNTRY_INFO!F53,0))) -> 0 | F53: =IF(INTRO!$E$39<>"Non endémique", 0, IF(INTRO!$E$37="Non endémique",0,IF(COUNTRY_INFO!$H53=1,COUNTRY_INFO!G53,0))) -> 0 | G53: 0 | H53: =IF(INTRO!$E$39="Non endémique",IF(INTRO!$E$37="Non endémique","Non requis",COUNTRY_INFO!P53),"Traiter avec IVM") -> Traiter avec IVM | I53: 0 | J53: 0 | L53: 0 | M53: 0
A54: =IF(INTRO!$E$39<>"Non endémique", " ", IF(INTRO!$E$37="Non endémique"," ", IF(COUNTRY_INFO!A54=0," ",COUNTRY_INFO!A54))) ->  | B54: =IF(INTRO!$E$39<>"Non endémique", " ", IF(INTRO!$E$37="Non endémique"," ", IF(COUNTRY_INFO!B54=0," ",COUNTRY_INFO!B54))) ->  | C54: =IF(INTRO!$E$39<>"Non endémique", " ", IF(INTRO!$E$37="Non endémique"," ", IF(COUNTRY_INFO!C54=0," ",COUNTRY_INFO!C54))) ->  | D54: =IF(INTRO!$E$39<>"Non endémique", 0, IF(INTRO!$E$37="Non endémique",0,IF(COUNTRY_INFO!$H54=1,COUNTRY_INFO!E54,0))) -> 0 | E54: =IF(INTRO!$E$39<>"Non endémique", 0, IF(INTRO!$E$37="Non endémique",0,IF(COUNTRY_INFO!$H54=1,COUNTRY_INFO!F54,0))) -> 0 | F54: =IF(INTRO!$E$39<>"Non endémique", 0, IF(INTRO!$E$37="Non endémique",0,IF(COUNTRY_INFO!$H54=1,COUNTRY_INFO!G54,0))) -> 0 | G54: 0 | H54: =IF(INTRO!$E$39="Non endémique",IF(INTRO!$E$37="Non endémique","Non requis",COUNTRY_INFO!P54),"Traiter avec IVM") -> Traiter avec IVM | I54: 0 | J54: 0 | L54: 0 | M54: 0
A55: =IF(INTRO!$E$39<>"Non endémique", " ", IF(INTRO!$E$37="Non endémique"," ", IF(COUNTRY_INFO!A55=0," ",COUNTRY_INFO!A55))) ->  | B55: =IF(INTRO!$E$39<>"Non endémique", " ", IF(INTRO!$E$37="Non endémique"," ", IF(COUNTRY_INFO!B55=0," ",COUNTRY_INFO!B55))) ->  | C55: =IF(INTRO!$E$39<>"Non endémique", " ", IF(INTRO!$E$37="Non endémique"," ", IF(COUNTRY_INFO!C55=0," ",COUNTRY_INFO!C55))) ->  | D55: =IF(INTRO!$E$39<>"Non endémique", 0, IF(INTRO!$E$37="Non endémique",0,IF(COUNTRY_INFO!$H55=1,COUNTRY_INFO!E55,0))) -> 0 | E55: =IF(INTRO!$E$39<>"Non endémique", 0, IF(INTRO!$E$37="Non endémique",0,IF(COUNTRY_INFO!$H55=1,COUNTRY_INFO!F55,0))) -> 0 | F55: =IF(INTRO!$E$39<>"Non endémique", 0, IF(INTRO!$E$37="Non endémique",0,IF(COUNTRY_INFO!$H55=1,COUNTRY_INFO!G55,0))) -> 0 | G55: 0 | H55: =IF(INTRO!$E$39="Non endémique",IF(INTRO!$E$37="Non endémique","Non requis",COUNTRY_INFO!P55),"Traiter avec IVM") -> Traiter avec IVM | I55: 0 | J55: 0 | L55: 0 | M55: 0
A56: =IF(INTRO!$E$39<>"Non endémique", " ", IF(INTRO!$E$37="Non endémique"," ", IF(COUNTRY_INFO!A56=0," ",COUNTRY_INFO!A56))) ->  | B56: =IF(INTRO!$E$39<>"Non endémique", " ", IF(INTRO!$E$37="Non endémique"," ", IF(COUNTRY_INFO!B56=0," ",COUNTRY_INFO!B56))) ->  | C56: =IF(INTRO!$E$39<>"Non endémique", " ", IF(INTRO!$E$37="Non endémique"," ", IF(COUNTRY_INFO!C56=0," ",COUNTRY_INFO!C56))) ->  | D56: =IF(INTRO!$E$39<>"Non endémique", 0, IF(INTRO!$E$37="Non endémique",0,IF(COUNTRY_INFO!$H56=1,COUNTRY_INFO!E56,0))) -> 0 | E56: =IF(INTRO!$E$39<>"Non endémique", 0, IF(INTRO!$E$37="Non endémique",0,IF(COUNTRY_INFO!$H56=1,COUNTRY_INFO!F56,0))) -> 0 | F56: =IF(INTRO!$E$39<>"Non endémique", 0, IF(INTRO!$E$37="Non endémique",0,IF(COUNTRY_INFO!$H56=1,COUNTRY_INFO!G56,0))) -> 0 | G56: 0 | H56: =IF(INTRO!$E$39="Non endémique",IF(INTRO!$E$37="Non endémique","Non requis",COUNTRY_INFO!P56),"Traiter avec IVM") -> Traiter avec IVM | I56: 0 | J56: 0 | L56: 0 | M56: 0
A57: =IF(INTRO!$E$39<>"Non endémique", " ", IF(INTRO!$E$37="Non endémique"," ", IF(COUNTRY_INFO!A57=0," ",COUNTRY_INFO!A57))) ->  | B57: =IF(INTRO!$E$39<>"Non endémique", " ", IF(INTRO!$E$37="Non endémique"," ", IF(COUNTRY_INFO!B57=0," ",COUNTRY_INFO!B57))) ->  | C57: =IF(INTRO!$E$39<>"Non endémique", " ", IF(INTRO!$E$37="Non endémique"," ", IF(COUNTRY_INFO!C57=0," ",COUNTRY_INFO!C57))) ->  | D57: =IF(INTRO!$E$39<>"Non endémique", 0, IF(INTRO!$E$37="Non endémique",0,IF(COUNTRY_INFO!$H57=1,COUNTRY_INFO!E57,0))) -> 0 | E57: =IF(INTRO!$E$39<>"Non endémique", 0, IF(INTRO!$E$37="Non endémique",0,IF(COUNTRY_INFO!$H57=1,COUNTRY_INFO!F57,0))) -> 0 | F57: =IF(INTRO!$E$39<>"Non endémique", 0, IF(INTRO!$E$37="Non endémique",0,IF(COUNTRY_INFO!$H57=1,COUNTRY_INFO!G57,0))) -> 0 | G57: 0 | H57: =IF(INTRO!$E$39="Non endémique",IF(INTRO!$E$37="Non endémique","Non requis",COUNTRY_INFO!P57),"Traiter avec IVM") -> Traiter avec IVM | I57: 0 | J57: 0 | L57: 0 | M57: 0
A58: =IF(INTRO!$E$39<>"Non endémique", " ", IF(INTRO!$E$37="Non endémique"," ", IF(COUNTRY_INFO!A58=0," ",COUNTRY_INFO!A58))) ->  | B58: =IF(INTRO!$E$39<>"Non endémique", " ", IF(INTRO!$E$37="Non endémique"," ", IF(COUNTRY_INFO!B58=0," ",COUNTRY_INFO!B58))) ->  | C58: =IF(INTRO!$E$39<>"Non endémique", " ", IF(INTRO!$E$37="Non endémique"," ", IF(COUNTRY_INFO!C58=0," ",COUNTRY_INFO!C58))) ->  | D58: =IF(INTRO!$E$39<>"Non endémique", 0, IF(INTRO!$E$37="Non endémique",0,IF(COUNTRY_INFO!$H58=1,COUNTRY_INFO!E58,0))) -> 0 | E58: =IF(INTRO!$E$39<>"Non endémique", 0, IF(INTRO!$E$37="Non endémique",0,IF(COUNTRY_INFO!$H58=1,COUNTRY_INFO!F58,0))) -> 0 | F58: =IF(INTRO!$E$39<>"Non endémique", 0, IF(INTRO!$E$37="Non endémique",0,IF(COUNTRY_INFO!$H58=1,COUNTRY_INFO!G58,0))) -> 0 | G58: 0 | H58: =IF(INTRO!$E$39="Non endémique",IF(INTRO!$E$37="Non endémique","Non requis",COUNTRY_INFO!P58),"Traiter avec IVM") -> Traiter avec IVM | I58: 0 | J58: 0 | L58: 0 | M58: 0
A59: =IF(INTRO!$E$39<>"Non endémique", " ", IF(INTRO!$E$37="Non endémique"," ", IF(COUNTRY_INFO!A59=0," ",COUNTRY_INFO!A59))) ->  | B59: =IF(INTRO!$E$39<>"Non endémique", " ", IF(INTRO!$E$37="Non endémique"," ", IF(COUNTRY_INFO!B59=0," ",COUNTRY_INFO!B59))) ->  | C59: =IF(INTRO!$E$39<>"Non endémique", " ", IF(INTRO!$E$37="Non endémique"," ", IF(COUNTRY_INFO!C59=0," ",COUNTRY_INFO!C59))) ->  | D59: =IF(INTRO!$E$39<>"Non endémique", 0, IF(INTRO!$E$37="Non endémique",0,IF(COUNTRY_INFO!$H59=1,COUNTRY_INFO!E59,0))) -> 0 | E59: =IF(INTRO!$E$39<>"Non endémique", 0, IF(INTRO!$E$37="Non endémique",0,IF(COUNTRY_INFO!$H59=1,COUNTRY_INFO!F59,0))) -> 0 | F59: =IF(INTRO!$E$39<>"Non endémique", 0, IF(INTRO!$E$37="Non endémique",0,IF(COUNTRY_INFO!$H59=1,COUNTRY_INFO!G59,0))) -> 0 | G59: 0 | H59: =IF(INTRO!$E$39="Non endémique",IF(INTRO!$E$37="Non endémique","Non requis",COUNTRY_INFO!P59),"Traiter avec IVM") -> Traiter avec IVM | I59: 0 | J59: 0 | L59: 0 | M59: 0
A60: =IF(INTRO!$E$39<>"Non endémique", " ", IF(INTRO!$E$37="Non endémique"," ", IF(COUNTRY_INFO!A60=0," ",COUNTRY_INFO!A60))) ->  | B60: =IF(INTRO!$E$39<>"Non endémique", " ", IF(INTRO!$E$37="Non endémique"," ", IF(COUNTRY_INFO!B60=0," ",COUNTRY_INFO!B60))) ->  | C60: =IF(INTRO!$E$39<>"Non endémique", " ", IF(INTRO!$E$37="Non endémique"," ", IF(COUNTRY_INFO!C60=0," ",COUNTRY_INFO!C60))) ->  | D60: =IF(INTRO!$E$39<>"Non endémique", 0, IF(INTRO!$E$37="Non endémique",0,IF(COUNTRY_INFO!$H60=1,COUNTRY_INFO!E60,0))) -> 0 | E60: =IF(INTRO!$E$39<>"Non endémique", 0, IF(INTRO!$E$37="Non endémique",0,IF(COUNTRY_INFO!$H60=1,COUNTRY_INFO!F60,0))) -> 0 | F60: =IF(INTRO!$E$39<>"Non endémique", 0, IF(INTRO!$E$37="Non endémique",0,IF(COUNTRY_INFO!$H60=1,COUNTRY_INFO!G60,0))) -> 0 | G60: 0 | H60: =IF(INTRO!$E$39="Non endémique",IF(INTRO!$E$37="Non endémique","Non requis",COUNTRY_INFO!P60),"Traiter avec IVM") -> Traiter avec IVM | I60: 0 | J60: 0 | L60: 0 | M60: 0
A61: =IF(INTRO!$E$39<>"Non endémique", " ", IF(INTRO!$E$37="Non endémique"," ", IF(COUNTRY_INFO!A61=0," ",COUNTRY_INFO!A61))) ->  | B61: =IF(INTRO!$E$39<>"Non endémique", " ", IF(INTRO!$E$37="Non endémique"," ", IF(COUNTRY_INFO!B61=0," ",COUNTRY_INFO!B61))) ->  | C61: =IF(INTRO!$E$39<>"Non endémique", " ", IF(INTRO!$E$37="Non endémique"," ", IF(COUNTRY_INFO!C61=0," ",COUNTRY_INFO!C61))) ->  | D61: =IF(INTRO!$E$39<>"Non endémique", 0, IF(INTRO!$E$37="Non endémique",0,IF(COUNTRY_INFO!$H61=1,COUNTRY_INFO!E61,0))) -> 0 | E61: =IF(INTRO!$E$39<>"Non endémique", 0, IF(INTRO!$E$37="Non endémique",0,IF(COUNTRY_INFO!$H61=1,COUNTRY_INFO!F61,0))) -> 0 | F61: =IF(INTRO!$E$39<>"Non endémique", 0, IF(INTRO!$E$37="Non endémique",0,IF(COUNTRY_INFO!$H61=1,COUNTRY_INFO!G61,0))) -> 0 | G61: 0 | H61: =IF(INTRO!$E$39="Non endémique",IF(INTRO!$E$37="Non endémique","Non requis",COUNTRY_INFO!P61),"Traiter avec IVM") -> Traiter avec IVM | I61: 0 | J61: 0 | L61: 0 | M61: 0
A62: =IF(INTRO!$E$39<>"Non endémique", " ", IF(INTRO!$E$37="Non endémique"," ", IF(COUNTRY_INFO!A62=0," ",COUNTRY_INFO!A62))) ->  | B62: =IF(INTRO!$E$39<>"Non endémique", " ", IF(INTRO!$E$37="Non endémique"," ", IF(COUNTRY_INFO!B62=0," ",COUNTRY_INFO!B62))) ->  | C62: =IF(INTRO!$E$39<>"Non endémique", " ", IF(INTRO!$E$37="Non endémique"," ", IF(COUNTRY_INFO!C62=0," ",COUNTRY_INFO!C62))) ->  | D62: =IF(INTRO!$E$39<>"Non endémique", 0, IF(INTRO!$E$37="Non endémique",0,IF(COUNTRY_INFO!$H62=1,COUNTRY_INFO!E62,0))) -> 0 | E62: =IF(INTRO!$E$39<>"Non endémique", 0, IF(INTRO!$E$37="Non endémique",0,IF(COUNTRY_INFO!$H62=1,COUNTRY_INFO!F62,0))) -> 0 | F62: =IF(INTRO!$E$39<>"Non endémique", 0, IF(INTRO!$E$37="Non endémique",0,IF(COUNTRY_INFO!$H62=1,COUNTRY_INFO!G62,0))) -> 0 | G62: 0 | H62: =IF(INTRO!$E$39="Non endémique",IF(INTRO!$E$37="Non endémique","Non requis",COUNTRY_INFO!P62),"Traiter avec IVM") -> Traiter avec IVM | I62: 0 | J62: 0 | L62: 0 | M62: 0
A63: =IF(INTRO!$E$39<>"Non endémique", " ", IF(INTRO!$E$37="Non endémique"," ", IF(COUNTRY_INFO!A63=0," ",COUNTRY_INFO!A63))) ->  | B63: =IF(INTRO!$E$39<>"Non endémique", " ", IF(INTRO!$E$37="Non endémique"," ", IF(COUNTRY_INFO!B63=0," ",COUNTRY_INFO!B63))) ->  | C63: =IF(INTRO!$E$39<>"Non endémique", " ", IF(INTRO!$E$37="Non endémique"," ", IF(COUNTRY_INFO!C63=0," ",COUNTRY_INFO!C63))) ->  | D63: =IF(INTRO!$E$39<>"Non endémique", 0, IF(INTRO!$E$37="Non endémique",0,IF(COUNTRY_INFO!$H63=1,COUNTRY_INFO!E63,0))) -> 0 | E63: =IF(INTRO!$E$39<>"Non endémique", 0, IF(INTRO!$E$37="Non endémique",0,IF(COUNTRY_INFO!$H63=1,COUNTRY_INFO!F63,0))) -> 0 | F63: =IF(INTRO!$E$39<>"Non endémique", 0, IF(INTRO!$E$37="Non endémique",0,IF(COUNTRY_INFO!$H63=1,COUNTRY_INFO!G63,0))) -> 0 | G63: 0 | H63: =IF(INTRO!$E$39="Non endémique",IF(INTRO!$E$37="Non endémique","Non requis",COUNTRY_INFO!P63),"Traiter avec IVM") -> Traiter avec IVM | I63: 0 | J63: 0 | L63: 0 | M63: 0
A64: =IF(INTRO!$E$39<>"Non endémique", " ", IF(INTRO!$E$37="Non endémique"," ", IF(COUNTRY_INFO!A64=0," ",COUNTRY_INFO!A64))) ->  | B64: =IF(INTRO!$E$39<>"Non endémique", " ", IF(INTRO!$E$37="Non endémique"," ", IF(COUNTRY_INFO!B64=0," ",COUNTRY_INFO!B64))) ->  | C64: =IF(INTRO!$E$39<>"Non endémique", " ", IF(INTRO!$E$37="Non endémique"," ", IF(COUNTRY_INFO!C64=0," ",COUNTRY_INFO!C64))) ->  | D64: =IF(INTRO!$E$39<>"Non endémique", 0, IF(INTRO!$E$37="Non endémique",0,IF(COUNTRY_INFO!$H64=1,COUNTRY_INFO!E64,0))) -> 0 | E64: =IF(INTRO!$E$39<>"Non endémique", 0, IF(INTRO!$E$37="Non endémique",0,IF(COUNTRY_INFO!$H64=1,COUNTRY_INFO!F64,0))) -> 0 | F64: =IF(INTRO!$E$39<>"Non endémique", 0, IF(INTRO!$E$37="Non endémique",0,IF(COUNTRY_INFO!$H64=1,COUNTRY_INFO!G64,0))) -> 0 | G64: 0 | H64: =IF(INTRO!$E$39="Non endémique",IF(INTRO!$E$37="Non endémique","Non requis",COUNTRY_INFO!P64),"Traiter avec IVM") -> Traiter avec IVM | I64: 0 | J64: 0 | L64: 0 | M64: 0
A65: =IF(INTRO!$E$39<>"Non endémique", " ", IF(INTRO!$E$37="Non endémique"," ", IF(COUNTRY_INFO!A65=0," ",COUNTRY_INFO!A65))) ->  | B65: =IF(INTRO!$E$39<>"Non endémique", " ", IF(INTRO!$E$37="Non endémique"," ", IF(COUNTRY_INFO!B65=0," ",COUNTRY_INFO!B65))) ->  | C65: =IF(INTRO!$E$39<>"Non endémique", " ", IF(INTRO!$E$37="Non endémique"," ", IF(COUNTRY_INFO!C65=0," ",COUNTRY_INFO!C65))) ->  | D65: =IF(INTRO!$E$39<>"Non endémique", 0, IF(INTRO!$E$37="Non endémique",0,IF(COUNTRY_INFO!$H65=1,COUNTRY_INFO!E65,0))) -> 0 | E65: =IF(INTRO!$E$39<>"Non endémique", 0, IF(INTRO!$E$37="Non endémique",0,IF(COUNTRY_INFO!$H65=1,COUNTRY_INFO!F65,0))) -> 0 | F65: =IF(INTRO!$E$39<>"Non endémique", 0, IF(INTRO!$E$37="Non endémique",0,IF(COUNTRY_INFO!$H65=1,COUNTRY_INFO!G65,0))) -> 0 | G65: 0 | H65: =IF(INTRO!$E$39="Non endémique",IF(INTRO!$E$37="Non endémique","Non requis",COUNTRY_INFO!P65),"Traiter avec IVM") -> Traiter avec IVM | I65: 0 | J65: 0 | L65: 0 | M65: 0
A66: =IF(INTRO!$E$39<>"Non endémique", " ", IF(INTRO!$E$37="Non endémique"," ", IF(COUNTRY_INFO!A66=0," ",COUNTRY_INFO!A66))) ->  | B66: =IF(INTRO!$E$39<>"Non endémique", " ", IF(INTRO!$E$37="Non endémique"," ", IF(COUNTRY_INFO!B66=0," ",COUNTRY_INFO!B66))) ->  | C66: =IF(INTRO!$E$39<>"Non endémique", " ", IF(INTRO!$E$37="Non endémique"," ", IF(COUNTRY_INFO!C66=0," ",COUNTRY_INFO!C66))) ->  | D66: =IF(INTRO!$E$39<>"Non endémique", 0, IF(INTRO!$E$37="Non endémique",0,IF(COUNTRY_INFO!$H66=1,COUNTRY_INFO!E66,0))) -> 0 | E66: =IF(INTRO!$E$39<>"Non endémique", 0, IF(INTRO!$E$37="Non endémique",0,IF(COUNTRY_INFO!$H66=1,COUNTRY_INFO!F66,0))) -> 0 | F66: =IF(INTRO!$E$39<>"Non endémique", 0, IF(INTRO!$E$37="Non endémique",0,IF(COUNTRY_INFO!$H66=1,COUNTRY_INFO!G66,0))) -> 0 | G66: 0 | H66: =IF(INTRO!$E$39="Non endémique",IF(INTRO!$E$37="Non endémique","Non requis",COUNTRY_INFO!P66),"Traiter avec IVM") -> Traiter avec IVM | I66: 0 | J66: 0 | L66: 0 | M66: 0
A67: =IF(INTRO!$E$39<>"Non endémique", " ", IF(INTRO!$E$37="Non endémique"," ", IF(COUNTRY_INFO!A67=0," ",COUNTRY_INFO!A67))) ->  | B67: =IF(INTRO!$E$39<>"Non endémique", " ", IF(INTRO!$E$37="Non endémique"," ", IF(COUNTRY_INFO!B67=0," ",COUNTRY_INFO!B67))) ->  | C67: =IF(INTRO!$E$39<>"Non endémique", " ", IF(INTRO!$E$37="Non endémique"," ", IF(COUNTRY_INFO!C67=0," ",COUNTRY_INFO!C67))) ->  | D67: =IF(INTRO!$E$39<>"Non endémique", 0, IF(INTRO!$E$37="Non endémique",0,IF(COUNTRY_INFO!$H67=1,COUNTRY_INFO!E67,0))) -> 0 | E67: =IF(INTRO!$E$39<>"Non endémique", 0, IF(INTRO!$E$37="Non endémique",0,IF(COUNTRY_INFO!$H67=1,COUNTRY_INFO!F67,0))) -> 0 | F67: =IF(INTRO!$E$39<>"Non endémique", 0, IF(INTRO!$E$37="Non endémique",0,IF(COUNTRY_INFO!$H67=1,COUNTRY_INFO!G67,0))) -> 0 | G67: 0 | H67: =IF(INTRO!$E$39="Non endémique",IF(INTRO!$E$37="Non endémique","Non requis",COUNTRY_INFO!P67),"Traiter avec IVM") -> Traiter avec IVM | I67: 0 | J67: 0 | L67: 0 | M67: 0
A68: =IF(INTRO!$E$39<>"Non endémique", " ", IF(INTRO!$E$37="Non endémique"," ", IF(COUNTRY_INFO!A68=0," ",COUNTRY_INFO!A68))) ->  | B68: =IF(INTRO!$E$39<>"Non endémique", " ", IF(INTRO!$E$37="Non endémique"," ", IF(COUNTRY_INFO!B68=0," ",COUNTRY_INFO!B68))) ->  | C68: =IF(INTRO!$E$39<>"Non endémique", " ", IF(INTRO!$E$37="Non endémique"," ", IF(COUNTRY_INFO!C68=0," ",COUNTRY_INFO!C68))) ->  | D68: =IF(INTRO!$E$39<>"Non endémique", 0, IF(INTRO!$E$37="Non endémique",0,IF(COUNTRY_INFO!$H68=1,COUNTRY_INFO!E68,0))) -> 0 | E68: =IF(INTRO!$E$39<>"Non endémique", 0, IF(INTRO!$E$37="Non endémique",0,IF(COUNTRY_INFO!$H68=1,COUNTRY_INFO!F68,0))) -> 0 | F68: =IF(INTRO!$E$39<>"Non endémique", 0, IF(INTRO!$E$37="Non endémique",0,IF(COUNTRY_INFO!$H68=1,COUNTRY_INFO!G68,0))) -> 0 | G68: 0 | H68: =IF(INTRO!$E$39="Non endémique",IF(INTRO!$E$37="Non endémique","Non requis",COUNTRY_INFO!P68),"Traiter avec IVM") -> Traiter avec IVM | I68: 0 | J68: 0 | L68: 0 | M68: 0
A69: =IF(INTRO!$E$39<>"Non endémique", " ", IF(INTRO!$E$37="Non endémique"," ", IF(COUNTRY_INFO!A69=0," ",COUNTRY_INFO!A69))) ->  | B69: =IF(INTRO!$E$39<>"Non endémique", " ", IF(INTRO!$E$37="Non endémique"," ", IF(COUNTRY_INFO!B69=0," ",COUNTRY_INFO!B69))) ->  | C69: =IF(INTRO!$E$39<>"Non endémique", " ", IF(INTRO!$E$37="Non endémique"," ", IF(COUNTRY_INFO!C69=0," ",COUNTRY_INFO!C69))) ->  | D69: =IF(INTRO!$E$39<>"Non endémique", 0, IF(INTRO!$E$37="Non endémique",0,IF(COUNTRY_INFO!$H69=1,COUNTRY_INFO!E69,0))) -> 0 | E69: =IF(INTRO!$E$39<>"Non endémique", 0, IF(INTRO!$E$37="Non endémique",0,IF(COUNTRY_INFO!$H69=1,COUNTRY_INFO!F69,0))) -> 0 | F69: =IF(INTRO!$E$39<>"Non endémique", 0, IF(INTRO!$E$37="Non endémique",0,IF(COUNTRY_INFO!$H69=1,COUNTRY_INFO!G69,0))) -> 0 | G69: 0 | H69: =IF(INTRO!$E$39="Non endémique",IF(INTRO!$E$37="Non endémique","Non requis",COUNTRY_INFO!P69),"Traiter avec IVM") -> Traiter avec IVM | I69: 0 | J69: 0 | L69: 0 | M69: 0
A70: =IF(INTRO!$E$39<>"Non endémique", " ", IF(INTRO!$E$37="Non endémique"," ", IF(COUNTRY_INFO!A70=0," ",COUNTRY_INFO!A70))) ->  | B70: =IF(INTRO!$E$39<>"Non endémique", " ", IF(INTRO!$E$37="Non endémique"," ", IF(COUNTRY_INFO!B70=0," ",COUNTRY_INFO!B70))) ->  | C70: =IF(INTRO!$E$39<>"Non endémique", " ", IF(INTRO!$E$37="Non endémique"," ", IF(COUNTRY_INFO!C70=0," ",COUNTRY_INFO!C70))) ->  | D70: =IF(INTRO!$E$39<>"Non endémique", 0, IF(INTRO!$E$37="Non endémique",0,IF(COUNTRY_INFO!$H70=1,COUNTRY_INFO!E70,0))) -> 0 | E70: =IF(INTRO!$E$39<>"Non endémique", 0, IF(INTRO!$E$37="Non endémique",0,IF(COUNTRY_INFO!$H70=1,COUNTRY_INFO!F70,0))) -> 0 | F70: =IF(INTRO!$E$39<>"Non endémique", 0, IF(INTRO!$E$37="Non endémique",0,IF(COUNTRY_INFO!$H70=1,COUNTRY_INFO!G70,0))) -> 0 | G70: 0 | H70: =IF(INTRO!$E$39="Non endémique",IF(INTRO!$E$37="Non endémique","Non requis",COUNTRY_INFO!P70),"Traiter avec IVM") -> Traiter avec IVM | I70: 0 | J70: 0 | L70: 0 | M70: 0
A71: =IF(INTRO!$E$39<>"Non endémique", " ", IF(INTRO!$E$37="Non endémique"," ", IF(COUNTRY_INFO!A71=0," ",COUNTRY_INFO!A71))) ->  | B71: =IF(INTRO!$E$39<>"Non endémique", " ", IF(INTRO!$E$37="Non endémique"," ", IF(COUNTRY_INFO!B71=0," ",COUNTRY_INFO!B71))) ->  | C71: =IF(INTRO!$E$39<>"Non endémique", " ", IF(INTRO!$E$37="Non endémique"," ", IF(COUNTRY_INFO!C71=0," ",COUNTRY_INFO!C71))) ->  | D71: =IF(INTRO!$E$39<>"Non endémique", 0, IF(INTRO!$E$37="Non endémique",0,IF(COUNTRY_INFO!$H71=1,COUNTRY_INFO!E71,0))) -> 0 | E71: =IF(INTRO!$E$39<>"Non endémique", 0, IF(INTRO!$E$37="Non endémique",0,IF(COUNTRY_INFO!$H71=1,COUNTRY_INFO!F71,0))) -> 0 | F71: =IF(INTRO!$E$39<>"Non endémique", 0, IF(INTRO!$E$37="Non endémique",0,IF(COUNTRY_INFO!$H71=1,COUNTRY_INFO!G71,0))) -> 0 | G71: 0 | H71: =IF(INTRO!$E$39="Non endémique",IF(INTRO!$E$37="Non endémique","Non requis",COUNTRY_INFO!P71),"Traiter avec IVM") -> Traiter avec IVM | I71: 0 | J71: 0 | L71: 0 | M71: 0
A72: =IF(INTRO!$E$39<>"Non endémique", " ", IF(INTRO!$E$37="Non endémique"," ", IF(COUNTRY_INFO!A72=0," ",COUNTRY_INFO!A72))) ->  | B72: =IF(INTRO!$E$39<>"Non endémique", " ", IF(INTRO!$E$37="Non endémique"," ", IF(COUNTRY_INFO!B72=0," ",COUNTRY_INFO!B72))) ->  | C72: =IF(INTRO!$E$39<>"Non endémique", " ", IF(INTRO!$E$37="Non endémique"," ", IF(COUNTRY_INFO!C72=0," ",COUNTRY_INFO!C72))) ->  | D72: =IF(INTRO!$E$39<>"Non endémique", 0, IF(INTRO!$E$37="Non endémique",0,IF(COUNTRY_INFO!$H72=1,COUNTRY_INFO!E72,0))) -> 0 | E72: =IF(INTRO!$E$39<>"Non endémique", 0, IF(INTRO!$E$37="Non endémique",0,IF(COUNTRY_INFO!$H72=1,COUNTRY_INFO!F72,0))) -> 0 | F72: =IF(INTRO!$E$39<>"Non endémique", 0, IF(INTRO!$E$37="Non endémique",0,IF(COUNTRY_INFO!$H72=1,COUNTRY_INFO!G72,0))) -> 0 | G72: 0 | H72: =IF(INTRO!$E$39="Non endémique",IF(INTRO!$E$37="Non endémique","Non requis",COUNTRY_INFO!P72),"Traiter avec IVM") -> Traiter avec IVM | I72: 0 | J72: 0 | L72: 0 | M72: 0
A73: =IF(INTRO!$E$39<>"Non endémique", " ", IF(INTRO!$E$37="Non endémique"," ", IF(COUNTRY_INFO!A73=0," ",COUNTRY_INFO!A73))) ->  | B73: =IF(INTRO!$E$39<>"Non endémique", " ", IF(INTRO!$E$37="Non endémique"," ", IF(COUNTRY_INFO!B73=0," ",COUNTRY_INFO!B73))) ->  | C73: =IF(INTRO!$E$39<>"Non endémique", " ", IF(INTRO!$E$37="Non endémique"," ", IF(COUNTRY_INFO!C73=0," ",COUNTRY_INFO!C73))) ->  | D73: =IF(INTRO!$E$39<>"Non endémique", 0, IF(INTRO!$E$37="Non endémique",0,IF(COUNTRY_INFO!$H73=1,COUNTRY_INFO!E73,0))) -> 0 | E73: =IF(INTRO!$E$39<>"Non endémique", 0, IF(INTRO!$E$37="Non endémique",0,IF(COUNTRY_INFO!$H73=1,COUNTRY_INFO!F73,0))) -> 0 | F73: =IF(INTRO!$E$39<>"Non endémique", 0, IF(INTRO!$E$37="Non endémique",0,IF(COUNTRY_INFO!$H73=1,COUNTRY_INFO!G73,0))) -> 0 | G73: =SUM(D73:F73) -> 0 | H73: =IF(INTRO!$E$39="Non endémique",IF(INTRO!$E$37="Non endémique","Non requis",COUNTRY_INFO!P73),"Traiter avec IVM") -> Traiter avec IVM | I73: =IF(H73=1,G73,0) -> 0 | J73: =IF(I73>0,I73*2.5,0) -> 0 | L73: =IF($J73>$K73,$J73-$K73,0) -> 0 | M73: =ROUNDUP($J73/1000,0) -> 0
A74: =IF(INTRO!$E$39<>"Non endémique", " ", IF(INTRO!$E$37="Non endémique"," ", IF(COUNTRY_INFO!A74=0," ",COUNTRY_INFO!A74))) ->  | B74: =IF(INTRO!$E$39<>"Non endémique", " ", IF(INTRO!$E$37="Non endémique"," ", IF(COUNTRY_INFO!B74=0," ",COUNTRY_INFO!B74))) ->  | C74: =IF(INTRO!$E$39<>"Non endémique", " ", IF(INTRO!$E$37="Non endémique"," ", IF(COUNTRY_INFO!C74=0," ",COUNTRY_INFO!C74))) ->  | D74: =IF(INTRO!$E$39<>"Non endémique", 0, IF(INTRO!$E$37="Non endémique",0,IF(COUNTRY_INFO!$H74=1,COUNTRY_INFO!E74,0))) -> 0 | E74: =IF(INTRO!$E$39<>"Non endémique", 0, IF(INTRO!$E$37="Non endémique",0,IF(COUNTRY_INFO!$H74=1,COUNTRY_INFO!F74,0))) -> 0 | F74: =IF(INTRO!$E$39<>"Non endémique", 0, IF(INTRO!$E$37="Non endémique",0,IF(COUNTRY_INFO!$H74=1,COUNTRY_INFO!G74,0))) -> 0 | G74: 0 | H74: =IF(INTRO!$E$39="Non endémique",IF(INTRO!$E$37="Non endémique","Non requis",COUNTRY_INFO!P74),"Traiter avec IVM") -> Traiter avec IVM | I74: 0 | J74: 0 | L74: 0 | M74: 0
A75: =IF(INTRO!$E$39<>"Non endémique", " ", IF(INTRO!$E$37="Non endémique"," ", IF(COUNTRY_INFO!A75=0," ",COUNTRY_INFO!A75))) ->  | B75: =IF(INTRO!$E$39<>"Non endémique", " ", IF(INTRO!$E$37="Non endémique"," ", IF(COUNTRY_INFO!B75=0," ",COUNTRY_INFO!B75))) ->  | C75: =IF(INTRO!$E$39<>"Non endémique", " ", IF(INTRO!$E$37="Non endémique"," ", IF(COUNTRY_INFO!C75=0," ",COUNTRY_INFO!C75))) ->  | D75: =IF(INTRO!$E$39<>"Non endémique", 0, IF(INTRO!$E$37="Non endémique",0,IF(COUNTRY_INFO!$H75=1,COUNTRY_INFO!E75,0))) -> 0 | E75: =IF(INTRO!$E$39<>"Non endémique", 0, IF(INTRO!$E$37="Non endémique",0,IF(COUNTRY_INFO!$H75=1,COUNTRY_INFO!F75,0))) -> 0 | F75: =IF(INTRO!$E$39<>"Non endémique", 0, IF(INTRO!$E$37="Non endémique",0,IF(COUNTRY_INFO!$H75=1,COUNTRY_INFO!G75,0))) -> 0 | G75: 0 | H75: =IF(INTRO!$E$39="Non endémique",IF(INTRO!$E$37="Non endémique","Non requis",COUNTRY_INFO!P75),"Traiter avec IVM") -> Traiter avec IVM | I75: 0 | J75: 0 | L75: 0 | M75: 0
A76: =IF(INTRO!$E$39<>"Non endémique", " ", IF(INTRO!$E$37="Non endémique"," ", IF(COUNTRY_INFO!A76=0," ",COUNTRY_INFO!A76))) ->  | B76: =IF(INTRO!$E$39<>"Non endémique", " ", IF(INTRO!$E$37="Non endémique"," ", IF(COUNTRY_INFO!B76=0," ",COUNTRY_INFO!B76))) ->  | C76: =IF(INTRO!$E$39<>"Non endémique", " ", IF(INTRO!$E$37="Non endémique"," ", IF(COUNTRY_INFO!C76=0," ",COUNTRY_INFO!C76))) ->  | D76: =IF(INTRO!$E$39<>"Non endémique", 0, IF(INTRO!$E$37="Non endémique",0,IF(COUNTRY_INFO!$H76=1,COUNTRY_INFO!E76,0))) -> 0 | E76: =IF(INTRO!$E$39<>"Non endémique", 0, IF(INTRO!$E$37="Non endémique",0,IF(COUNTRY_INFO!$H76=1,COUNTRY_INFO!F76,0))) -> 0 | F76: =IF(INTRO!$E$39<>"Non endémique", 0, IF(INTRO!$E$37="Non endémique",0,IF(COUNTRY_INFO!$H76=1,COUNTRY_INFO!G76,0))) -> 0 | G76: 0 | H76: =IF(INTRO!$E$39="Non endémique",IF(INTRO!$E$37="Non endémique","Non requis",COUNTRY_INFO!P76),"Traiter avec IVM") -> Traiter avec IVM | I76: 0 | J76: 0 | L76: 0 | M76: 0
A77: =IF(INTRO!$E$39<>"Non endémique", " ", IF(INTRO!$E$37="Non endémique"," ", IF(COUNTRY_INFO!A77=0," ",COUNTRY_INFO!A77))) ->  | B77: =IF(INTRO!$E$39<>"Non endémique", " ", IF(INTRO!$E$37="Non endémique"," ", IF(COUNTRY_INFO!B77=0," ",COUNTRY_INFO!B77))) ->  | C77: =IF(INTRO!$E$39<>"Non endémique", " ", IF(INTRO!$E$37="Non endémique"," ", IF(COUNTRY_INFO!C77=0," ",COUNTRY_INFO!C77))) ->  | D77: =IF(INTRO!$E$39<>"Non endémique", 0, IF(INTRO!$E$37="Non endémique",0,IF(COUNTRY_INFO!$H77=1,COUNTRY_INFO!E77,0))) -> 0 | E77: =IF(INTRO!$E$39<>"Non endémique", 0, IF(INTRO!$E$37="Non endémique",0,IF(COUNTRY_INFO!$H77=1,COUNTRY_INFO!F77,0))) -> 0 | F77: =IF(INTRO!$E$39<>"Non endémique", 0, IF(INTRO!$E$37="Non endémique",0,IF(COUNTRY_INFO!$H77=1,COUNTRY_INFO!G77,0))) -> 0 | G77: 0 | H77: =IF(INTRO!$E$39="Non endémique",IF(INTRO!$E$37="Non endémique","Non requis",COUNTRY_INFO!P77),"Traiter avec IVM") -> Traiter avec IVM | I77: 0 | J77: 0 | L77: 0 | M77: 0
A78: =IF(INTRO!$E$39<>"Non endémique", " ", IF(INTRO!$E$37="Non endémique"," ", IF(COUNTRY_INFO!A78=0," ",COUNTRY_INFO!A78))) ->  | B78: =IF(INTRO!$E$39<>"Non endémique", " ", IF(INTRO!$E$37="Non endémique"," ", IF(COUNTRY_INFO!B78=0," ",COUNTRY_INFO!B78))) ->  | C78: =IF(INTRO!$E$39<>"Non endémique", " ", IF(INTRO!$E$37="Non endémique"," ", IF(COUNTRY_INFO!C78=0," ",COUNTRY_INFO!C78))) ->  | D78: =IF(INTRO!$E$39<>"Non endémique", 0, IF(INTRO!$E$37="Non endémique",0,IF(COUNTRY_INFO!$H78=1,COUNTRY_INFO!E78,0))) -> 0 | E78: =IF(INTRO!$E$39<>"Non endémique", 0, IF(INTRO!$E$37="Non endémique",0,IF(COUNTRY_INFO!$H78=1,COUNTRY_INFO!F78,0))) -> 0 | F78: =IF(INTRO!$E$39<>"Non endémique", 0, IF(INTRO!$E$37="Non endémique",0,IF(COUNTRY_INFO!$H78=1,COUNTRY_INFO!G78,0))) -> 0 | G78: 0 | H78: =IF(INTRO!$E$39="Non endémique",IF(INTRO!$E$37="Non endémique","Non requis",COUNTRY_INFO!P78),"Traiter avec IVM") -> Traiter avec IVM | I78: 0 | J78: 0 | L78: 0 | M78: 0
A79: =IF(INTRO!$E$39<>"Non endémique", " ", IF(INTRO!$E$37="Non endémique"," ", IF(COUNTRY_INFO!A79=0," ",COUNTRY_INFO!A79))) ->  | B79: =IF(INTRO!$E$39<>"Non endémique", " ", IF(INTRO!$E$37="Non endémique"," ", IF(COUNTRY_INFO!B79=0," ",COUNTRY_INFO!B79))) ->  | C79: =IF(INTRO!$E$39<>"Non endémique", " ", IF(INTRO!$E$37="Non endémique"," ", IF(COUNTRY_INFO!C79=0," ",COUNTRY_INFO!C79))) ->  | D79: =IF(INTRO!$E$39<>"Non endémique", 0, IF(INTRO!$E$37="Non endémique",0,IF(COUNTRY_INFO!$H79=1,COUNTRY_INFO!E79,0))) -> 0 | E79: =IF(INTRO!$E$39<>"Non endémique", 0, IF(INTRO!$E$37="Non endémique",0,IF(COUNTRY_INFO!$H79=1,COUNTRY_INFO!F79,0))) -> 0 | F79: =IF(INTRO!$E$39<>"Non endémique", 0, IF(INTRO!$E$37="Non endémique",0,IF(COUNTRY_INFO!$H79=1,COUNTRY_INFO!G79,0))) -> 0 | G79: 0 | H79: =IF(INTRO!$E$39="Non endémique",IF(INTRO!$E$37="Non endémique","Non requis",COUNTRY_INFO!P79),"Traiter avec IVM") -> Traiter avec IVM | I79: 0 | J79: 0 | L79: 0 | M79: 0
A80: =IF(INTRO!$E$39<>"Non endémique", " ", IF(INTRO!$E$37="Non endémique"," ", IF(COUNTRY_INFO!A80=0," ",COUNTRY_INFO!A80))) ->  | B80: =IF(INTRO!$E$39<>"Non endémique", " ", IF(INTRO!$E$37="Non endémique"," ", IF(COUNTRY_INFO!B80=0," ",COUNTRY_INFO!B80))) ->  | C80: =IF(INTRO!$E$39<>"Non endémique", " ", IF(INTRO!$E$37="Non endémique"," ", IF(COUNTRY_INFO!C80=0," ",COUNTRY_INFO!C80))) ->  | D80: =IF(INTRO!$E$39<>"Non endémique", 0, IF(INTRO!$E$37="Non endémique",0,IF(COUNTRY_INFO!$H80=1,COUNTRY_INFO!E80,0))) -> 0 | E80: =IF(INTRO!$E$39<>"Non endémique", 0, IF(INTRO!$E$37="Non endémique",0,IF(COUNTRY_INFO!$H80=1,COUNTRY_INFO!F80,0))) -> 0 | F80: =IF(INTRO!$E$39<>"Non endémique", 0, IF(INTRO!$E$37="Non endémique",0,IF(COUNTRY_INFO!$H80=1,COUNTRY_INFO!G80,0))) -> 0 | G80: 0 | H80: =IF(INTRO!$E$39="Non endémique",IF(INTRO!$E$37="Non endémique","Non requis",COUNTRY_INFO!P80),"Traiter avec IVM") -> Traiter avec IVM | I80: 0 | J80: 0 | L80: 0 | M80: 0
A81: =IF(INTRO!$E$39<>"Non endémique", " ", IF(INTRO!$E$37="Non endémique"," ", IF(COUNTRY_INFO!A81=0," ",COUNTRY_INFO!A81))) ->  | B81: =IF(INTRO!$E$39<>"Non endémique", " ", IF(INTRO!$E$37="Non endémique"," ", IF(COUNTRY_INFO!B81=0," ",COUNTRY_INFO!B81))) ->  | C81: =IF(INTRO!$E$39<>"Non endémique", " ", IF(INTRO!$E$37="Non endémique"," ", IF(COUNTRY_INFO!C81=0," ",COUNTRY_INFO!C81))) ->  | D81: =IF(INTRO!$E$39<>"Non endémique", 0, IF(INTRO!$E$37="Non endémique",0,IF(COUNTRY_INFO!$H81=1,COUNTRY_INFO!E81,0))) -> 0 | E81: =IF(INTRO!$E$39<>"Non endémique", 0, IF(INTRO!$E$37="Non endémique",0,IF(COUNTRY_INFO!$H81=1,COUNTRY_INFO!F81,0))) -> 0 | F81: =IF(INTRO!$E$39<>"Non endémique", 0, IF(INTRO!$E$37="Non endémique",0,IF(COUNTRY_INFO!$H81=1,COUNTRY_INFO!G81,0))) -> 0 | G81: 0 | H81: =IF(INTRO!$E$39="Non endémique",IF(INTRO!$E$37="Non endémique","Non requis",COUNTRY_INFO!P81),"Traiter avec IVM") -> Traiter avec IVM | I81: 0 | J81: 0 | L81: 0 | M81: 0
A82: =IF(INTRO!$E$39<>"Non endémique", " ", IF(INTRO!$E$37="Non endémique"," ", IF(COUNTRY_INFO!A82=0," ",COUNTRY_INFO!A82))) ->  | B82: =IF(INTRO!$E$39<>"Non endémique", " ", IF(INTRO!$E$37="Non endémique"," ", IF(COUNTRY_INFO!B82=0," ",COUNTRY_INFO!B82))) ->  | C82: =IF(INTRO!$E$39<>"Non endémique", " ", IF(INTRO!$E$37="Non endémique"," ", IF(COUNTRY_INFO!C82=0," ",COUNTRY_INFO!C82))) ->  | D82: =IF(INTRO!$E$39<>"Non endémique", 0, IF(INTRO!$E$37="Non endémique",0,IF(COUNTRY_INFO!$H82=1,COUNTRY_INFO!E82,0))) -> 0 | E82: =IF(INTRO!$E$39<>"Non endémique", 0, IF(INTRO!$E$37="Non endémique",0,IF(COUNTRY_INFO!$H82=1,COUNTRY_INFO!F82,0))) -> 0 | F82: =IF(INTRO!$E$39<>"Non endémique", 0, IF(INTRO!$E$37="Non endémique",0,IF(COUNTRY_INFO!$H82=1,COUNTRY_INFO!G82,0))) -> 0 | G82: 0 | H82: =IF(INTRO!$E$39="Non endémique",IF(INTRO!$E$37="Non endémique","Non requis",COUNTRY_INFO!P82),"Traiter avec IVM") -> Traiter avec IVM | I82: 0 | J82: 0 | L82: 0 | M82: 0
A83: =IF(INTRO!$E$39<>"Non endémique", " ", IF(INTRO!$E$37="Non endémique"," ", IF(COUNTRY_INFO!A83=0," ",COUNTRY_INFO!A83))) ->  | B83: =IF(INTRO!$E$39<>"Non endémique", " ", IF(INTRO!$E$37="Non endémique"," ", IF(COUNTRY_INFO!B83=0," ",COUNTRY_INFO!B83))) ->  | C83: =IF(INTRO!$E$39<>"Non endémique", " ", IF(INTRO!$E$37="Non endémique"," ", IF(COUNTRY_INFO!C83=0," ",COUNTRY_INFO!C83))) ->  | D83: =IF(INTRO!$E$39<>"Non endémique", 0, IF(INTRO!$E$37="Non endémique",0,IF(COUNTRY_INFO!$H83=1,COUNTRY_INFO!E83,0))) -> 0 | E83: =IF(INTRO!$E$39<>"Non endémique", 0, IF(INTRO!$E$37="Non endémique",0,IF(COUNTRY_INFO!$H83=1,COUNTRY_INFO!F83,0))) -> 0 | F83: =IF(INTRO!$E$39<>"Non endémique", 0, IF(INTRO!$E$37="Non endémique",0,IF(COUNTRY_INFO!$H83=1,COUNTRY_INFO!G83,0))) -> 0 | G83: 0 | H83: =IF(INTRO!$E$39="Non endémique",IF(INTRO!$E$37="Non endémique","Non requis",COUNTRY_INFO!P83),"Traiter avec IVM") -> Traiter avec IVM | I83: 0 | J83: 0 | L83: 0 | M83: 0
A84: =IF(INTRO!$E$39<>"Non endémique", " ", IF(INTRO!$E$37="Non endémique"," ", IF(COUNTRY_INFO!A84=0," ",COUNTRY_INFO!A84))) ->  | B84: =IF(INTRO!$E$39<>"Non endémique", " ", IF(INTRO!$E$37="Non endémique"," ", IF(COUNTRY_INFO!B84=0," ",COUNTRY_INFO!B84))) ->  | C84: =IF(INTRO!$E$39<>"Non endémique", " ", IF(INTRO!$E$37="Non endémique"," ", IF(COUNTRY_INFO!C84=0," ",COUNTRY_INFO!C84))) ->  | D84: =IF(INTRO!$E$39<>"Non endémique", 0, IF(INTRO!$E$37="Non endémique",0,IF(COUNTRY_INFO!$H84=1,COUNTRY_INFO!E84,0))) -> 0 | E84: =IF(INTRO!$E$39<>"Non endémique", 0, IF(INTRO!$E$37="Non endémique",0,IF(COUNTRY_INFO!$H84=1,COUNTRY_INFO!F84,0))) -> 0 | F84: =IF(INTRO!$E$39<>"Non endémique", 0, IF(INTRO!$E$37="Non endémique",0,IF(COUNTRY_INFO!$H84=1,COUNTRY_INFO!G84,0))) -> 0 | G84: 0 | H84: =IF(INTRO!$E$39="Non endémique",IF(INTRO!$E$37="Non endémique","Non requis",COUNTRY_INFO!P84),"Traiter avec IVM") -> Traiter avec IVM | I84: 0 | J84: 0 | L84: 0 | M84: 0
A85: =IF(INTRO!$E$39<>"Non endémique", " ", IF(INTRO!$E$37="Non endémique"," ", IF(COUNTRY_INFO!A85=0," ",COUNTRY_INFO!A85))) ->  | B85: =IF(INTRO!$E$39<>"Non endémique", " ", IF(INTRO!$E$37="Non endémique"," ", IF(COUNTRY_INFO!B85=0," ",COUNTRY_INFO!B85))) ->  | C85: =IF(INTRO!$E$39<>"Non endémique", " ", IF(INTRO!$E$37="Non endémique"," ", IF(COUNTRY_INFO!C85=0," ",COUNTRY_INFO!C85))) ->  | D85: =IF(INTRO!$E$39<>"Non endémique", 0, IF(INTRO!$E$37="Non endémique",0,IF(COUNTRY_INFO!$H85=1,COUNTRY_INFO!E85,0))) -> 0 | E85: =IF(INTRO!$E$39<>"Non endémique", 0, IF(INTRO!$E$37="Non endémique",0,IF(COUNTRY_INFO!$H85=1,COUNTRY_INFO!F85,0))) -> 0 | F85: =IF(INTRO!$E$39<>"Non endémique", 0, IF(INTRO!$E$37="Non endémique",0,IF(COUNTRY_INFO!$H85=1,COUNTRY_INFO!G85,0))) -> 0 | G85: 0 | H85: =IF(INTRO!$E$39="Non endémique",IF(INTRO!$E$37="Non endémique","Non requis",COUNTRY_INFO!P85),"Traiter avec IVM") -> Traiter avec IVM | I85: 0 | J85: 0 | L85: 0 | M85: 0

Sheet ALB_MBD
A1: Albendazole (ALB) et Mebendazole (MBD)
A2: Structure administrative, population ciblée par groupe d'âge, plan de traitement et information sur les comprimés
A4: TOTAL | D4: =SUM(D$9:D$1000) -> 1523123 | E4: =SUM(E$9:E$1000) -> 3316477 | F4: =SUM(F$9:F$1000) -> 4839600 | I4: =SUM(I$9:I$1000) -> 0 | K4: =SUM(K$9:K$1000) -> 0 | L4: =SUM(L$9:L$1000) -> 1167915 | M4: =SUM(M$9:M$1000) -> 0 | N4: =SUM(N$9:N$1000) -> 1167915 | O4: =SUM(O$9:O$1000) -> 0 | P4: =SUM(P$9:P$1000) -> 0 | Q4: 0 | R4: 0 | S4: 0 | T4: 0 | U4: 0 | V4: 0 | W4: 1167915 | X4: 5856 | Y4: 0 | Z4: 0 | AA4: 0
A6: Structure administrative du pays | D6: Population nécessitant un traitement avec ALB/MBD | G6: Plan de traitement | I6: Population couverte par le PEFL avec ALB | J6: Médicament choisi pour le traitement des STH | K6: Population cible | S6: Albendazole (ALB) | Y6: Mebendazole (MBD)
A7: Pays | B7: Région/Département | C7: District | D7: EAPréS | E7: EAS | F7: Total | G7: FL | H7: STH | K7: STH (ALB) | O7: STH (MBD) | S7: Reste en stock (FL) | T7: Comprimés devant être fournis (FL) | U7: Flacons (400mg) 200 comprimés (FL) | V7: Reste en stock (STH) | W7: Comprimés devant être fournis pour EAS (STH) | X7: Flacons (400mg) 200 comprimés (STH) | Y7: Reste en stock | Z7: Comprimés devant être fournis pour EAS | AA7: Flacons (500mg) 150 comprimés
K8: EAPréS | L8: EAS | M8: Autres | N8: Total | O8: EAPréS | P8: EAS | Q8: Autres | R8: Total
A9: =IF(AND(INTRO!$E$37="Non endémique",INTRO!$E$41="Non endémique")," ",IF(COUNTRY_INFO!A9=0," ",COUNTRY_INFO!A9)) -> Benin | B9: =IF(AND(INTRO!$E$37="Non endémique",INTRO!$E$41="Non endémique")," ",IF(COUNTRY_INFO!B9=0," ",COUNTRY_INFO!B9)) -> Alibori | C9: =IF(AND(INTRO!$E$37="Non endémique",INTRO!$E$41="Non endémique")," ",IF(COUNTRY_INFO!C9=0," ",COUNTRY_INFO!C9)) -> Banikoara | D9: =IF(AND(INTRO!$E$37="Non endémique",INTRO!$E$41="Non endémique"),0,IF(AND(OR(COUNTRY_INFO!$H9=0,COUNTRY_INFO!$H9=4,COUNTRY_INFO!$H9=99),OR(COUNTRY_INFO!$J9=0,COUNTRY_INFO!$J9=4)),0,COUNTRY_INFO!$E9)) -> 43234 | E9: =IF(AND(INTRO!$E$37="Non endémique",INTRO!$E$41="Non endémique"),0,IF(AND(OR(COUNTRY_INFO!$H9=0,COUNTRY_INFO!$H9=4,COUNTRY_INFO!$H9=99),OR(COUNTRY_INFO!$J9=0,COUNTRY_INFO!$J9=4)),0,COUNTRY_INFO!$F9)) -> 94138 | F9: =SUM(D9:E9) -> 137372 | G9: =IF(AND(INTRO!$E$37="Non endémique",INTRO!$E$41="Non endémique"),0,COUNTRY_INFO!P9) -> 0 | H9: =IF(AND(INTRO!$E$37="Non endémique",INTRO!$E$41="Non endémique"),0,COUNTRY_INFO!R9) -> 0 | I9: =IF(INTRO!$E$39="Non endémique",IF($G9=1,DEC!I9,0),IF($G9=1,IVM!G9,0)) -> 0 | L9: =IF($J9="ALB", IF($H9<>0, IF($I9=0, $E9*$H9, $E9*($H9-$G9)),0), 0) -> 0 | N9: =SUM(K9:M9) -> 0 | O9: =IF($J9="MBD", IF(INTRO!$E$39="Non endémique",IF($H9<>0,$D9*($H9-$G9),0),$D9*$H9),0) -> 0 | P9: =IF($J9="MBD", IF($H9<>0,IF($I9=0, $E9*$H9, $E9*($H9-$G9)),0), 0 ) -> 0 | R9: =SUM(O9:Q9) -> 0 | T9: =IF($I9>$S9, $I9-$S9,0) -> 0 | U9: =ROUNDUP($I9/200,0) -> 0 | W9: =IF($L9>$V9,$L9-$V9,0) -> 0 | X9: =ROUNDUP($L9/200,0) -> 0 | Z9: =IF($P9>$Y9,$P9-$Y9,0) -> 0 | AA9: =ROUNDUP($P9/150,0) -> 0
A10: =IF(AND(INTRO!$E$37="Non endémique",INTRO!$E$41="Non endémique")," ",IF(COUNTRY_INFO!A10=0," ",COUNTRY_INFO!A10)) -> Benin | B10: =IF(AND(INTRO!$E$37="Non endémique",INTRO!$E$41="Non endémique")," ",IF(COUNTRY_INFO!B10=0," ",COUNTRY_INFO!B10)) -> Alibori | C10: =IF(AND(INTRO!$E$37="Non endémique",INTRO!$E$41="Non endémique")," ",IF(COUNTRY_INFO!C10=0," ",COUNTRY_INFO!C10)) -> Gogounou | D10: =IF(AND(INTRO!$E$37="Non endémique",INTRO!$E$41="Non endémique"),0,IF(AND(OR(COUNTRY_INFO!$H10=0,COUNTRY_INFO!$H10=4,COUNTRY_INFO!$H10=99),OR(COUNTRY_INFO!$J10=0,COUNTRY_INFO!$J10=4)),0,COUNTRY_INFO!$E10)) -> 14650 | E10: =IF(AND(INTRO!$E$37="Non endémique",INTRO!$E$41="Non endémique"),0,IF(AND(OR(COUNTRY_INFO!$H10=0,COUNTRY_INFO!$H10=4,COUNTRY_INFO!$H10=99),OR(COUNTRY_INFO!$J10=0,COUNTRY_INFO!$J10=4)),0,COUNTRY_INFO!$F10)) -> 31898 | F10: 46548 | G10: =IF(AND(INTRO!$E$37="Non endémique",INTRO!$E$41="Non endémique"),0,COUNTRY_INFO!P10) -> 0 | H10: =IF(AND(INTRO!$E$37="Non endémique",INTRO!$E$41="Non endémique"),0,COUNTRY_INFO!R10) -> 1 | I10: =IF(INTRO!$E$39="Non endémique",IF($G10=1,DEC!I10,0),IF($G10=1,IVM!G10,0)) -> 0 | J10: ALB | L10: 31898 | N10: 31898 | O10: =IF($J10="MBD", IF(INTRO!$E$39="Non endémique",IF($H10<>0,$D10*($H10-$G10),0),$D10*$H10),0) -> 0 | P10: 0 | R10: 0 | T10: 0 | U10: 0 | W10: 31898 | X10: 160 | Z10: 0 | AA10: 0
A11: =IF(AND(INTRO!$E$37="Non endémique",INTRO!$E$41="Non endémique")," ",IF(COUNTRY_INFO!A11=0," ",COUNTRY_INFO!A11)) -> Benin | B11: =IF(AND(INTRO!$E$37="Non endémique",INTRO!$E$41="Non endémique")," ",IF(COUNTRY_INFO!B11=0," ",COUNTRY_INFO!B11)) -> Alibori | C11: =IF(AND(INTRO!$E$37="Non endémique",INTRO!$E$41="Non endémique")," ",IF(COUNTRY_INFO!C11=0," ",COUNTRY_INFO!C11)) -> Kandi | D11: =IF(AND(INTRO!$E$37="Non endémique",INTRO!$E$41="Non endémique"),0,IF(AND(OR(COUNTRY_INFO!$H11=0,COUNTRY_INFO!$H11=4,COUNTRY_INFO!$H11=99),OR(COUNTRY_INFO!$J11=0,COUNTRY_INFO!$J11=4)),0,COUNTRY_INFO!$E11)) -> 17378 | E11: =IF(AND(INTRO!$E$37="Non endémique",INTRO!$E$41="Non endémique"),0,IF(AND(OR(COUNTRY_INFO!$H11=0,COUNTRY_INFO!$H11=4,COUNTRY_INFO!$H11=99),OR(COUNTRY_INFO!$J11=0,COUNTRY_INFO!$J11=4)),0,COUNTRY_INFO!$F11)) -> 37839 | F11: 55217 | G11: =IF(AND(INTRO!$E$37="Non endémique",INTRO!$E$41="Non endémique"),0,COUNTRY_INFO!P11) -> 0 | H11: =IF(AND(INTRO!$E$37="Non endémique",INTRO!$E$41="Non endémique"),0,COUNTRY_INFO!R11) -> 1 | I11: =IF(INTRO!$E$39="Non endémique",IF($G11=1,DEC!I11,0),IF($G11=1,IVM!G11,0)) -> 0 | J11: ALB | L11: 37839 | N11: 37839 | O11: =IF($J11="MBD", IF(INTRO!$E$39="Non endémique",IF($H11<>0,$D11*($H11-$G11),0),$D11*$H11),0) -> 0 | P11: 0 | R11: 0 | T11: 0 | U11: 0 | W11: 37839 | X11: 190 | Z11: 0 | AA11: 0
A12: =IF(AND(INTRO!$E$37="Non endémique",INTRO!$E$41="Non endémique")," ",IF(COUNTRY_INFO!A12=0," ",COUNTRY_INFO!A12)) -> Benin | B12: =IF(AND(INTRO!$E$37="Non endémique",INTRO!$E$41="Non endémique")," ",IF(COUNTRY_INFO!B12=0," ",COUNTRY_INFO!B12)) -> Alibori | C12: =IF(AND(INTRO!$E$37="Non endémique",INTRO!$E$41="Non endémique")," ",IF(COUNTRY_INFO!C12=0," ",COUNTRY_INFO!C12)) -> Karimama | D12: =IF(AND(INTRO!$E$37="Non endémique",INTRO!$E$41="Non endémique"),0,IF(AND(OR(COUNTRY_INFO!$H12=0,COUNTRY_INFO!$H12=4,COUNTRY_INFO!$H12=99),OR(COUNTRY_INFO!$J12=0,COUNTRY_INFO!$J12=4)),0,COUNTRY_INFO!$E12)) -> 8724 | E12: =IF(AND(INTRO!$E$37="Non endémique",INTRO!$E$41="Non endémique"),0,IF(AND(OR(COUNTRY_INFO!$H12=0,COUNTRY_INFO!$H12=4,COUNTRY_INFO!$H12=99),OR(COUNTRY_INFO!$J12=0,COUNTRY_INFO!$J12=4)),0,COUNTRY_INFO!$F12)) -> 18997 | F12: 27721 | G12: =IF(AND(INTRO!$E$37="Non endémique",INTRO!$E$41="Non endémique"),0,COUNTRY_INFO!P12) -> 0 | H12: =IF(AND(INTRO!$E$37="Non endémique",INTRO!$E$41="Non endémique"),0,COUNTRY_INFO!R12) -> 0 | I12: =IF(INTRO!$E$39="Non endémique",IF($G12=1,DEC!I12,0),IF($G12=1,IVM!G12,0)) -> 0 | L12: 0 | N12: 0 | O12: =IF($J12="MBD", IF(INTRO!$E$39="Non endémique",IF($H12<>0,$D12*($H12-$G12),0),$D12*$H12),0) -> 0 | P12: 0 | R12: 0 | T12: 0 | U12: 0 | W12: 0 | X12: 0 | Z12: 0 | AA12: 0
A13: =IF(AND(INTRO!$E$37="Non endémique",INTRO!$E$41="Non endémique")," ",IF(COUNTRY_INFO!A13=0," ",COUNTRY_INFO!A13)) -> Benin | B13: =IF(AND(INTRO!$E$37="Non endémique",INTRO!$E$41="Non endémique")," ",IF(COUNTRY_INFO!B13=0," ",COUNTRY_INFO!B13)) -> Alibori | C13: =IF(AND(INTRO!$E$37="Non endémique",INTRO!$E$41="Non endémique")," ",IF(COUNTRY_INFO!C13=0," ",COUNTRY_INFO!C13)) -> Malanville | D13: =IF(AND(INTRO!$E$37="Non endémique",INTRO!$E$41="Non endémique"),0,IF(AND(OR(COUNTRY_INFO!$H13=0,COUNTRY_INFO!$H13=4,COUNTRY_INFO!$H13=99),OR(COUNTRY_INFO!$J13=0,COUNTRY_INFO!$J13=4)),0,COUNTRY_INFO!$E13)) -> 15979 | E13: =IF(AND(INTRO!$E$37="Non endémique",INTRO!$E$41="Non endémique"),0,IF(AND(OR(COUNTRY_INFO!$H13=0,COUNTRY_INFO!$H13=4,COUNTRY_INFO!$H13=99),OR(COUNTRY_INFO!$J13=0,COUNTRY_INFO!$J13=4)),0,COUNTRY_INFO!$F13)) -> 34793 | F13: 50772 | G13: =IF(AND(INTRO!$E$37="Non endémique",INTRO!$E$41="Non endémique"),0,COUNTRY_INFO!P13) -> 0 | H13: =IF(AND(INTRO!$E$37="Non endémique",INTRO!$E$41="Non endémique"),0,COUNTRY_INFO!R13) -> 0 | I13: =IF(INTRO!$E$39="Non endémique",IF($G13=1,DEC!I13,0),IF($G13=1,IVM!G13,0)) -> 0 | L13: 0 | N13: 0 | O13: =IF($J13="MBD", IF(INTRO!$E$39="Non endémique",IF($H13<>0,$D13*($H13-$G13),0),$D13*$H13),0) -> 0 | P13: 0 | R13: 0 | T13: 0 | U13: 0 | W13: 0 | X13: 0 | Z13: 0 | AA13: 0
A14: =IF(AND(INTRO!$E$37="Non endémique",INTRO!$E$41="Non endémique")," ",IF(COUNTRY_INFO!A14=0," ",COUNTRY_INFO!A14)) -> Benin | B14: =IF(AND(INTRO!$E$37="Non endémique",INTRO!$E$41="Non endémique")," ",IF(COUNTRY_INFO!B14=0," ",COUNTRY_INFO!B14)) -> Alibori | C14: =IF(AND(INTRO!$E$37="Non endémique",INTRO!$E$41="Non endémique")," ",IF(COUNTRY_INFO!C14=0," ",COUNTRY_INFO!C14)) -> Ségbana | D14: =IF(AND(INTRO!$E$37="Non endémique",INTRO!$E$41="Non endémique"),0,IF(AND(OR(COUNTRY_INFO!$H14=0,COUNTRY_INFO!$H14=4,COUNTRY_INFO!$H14=99),OR(COUNTRY_INFO!$J14=0,COUNTRY_INFO!$J14=4)),0,COUNTRY_INFO!$E14)) -> 10379 | E14: =IF(AND(INTRO!$E$37="Non endémique",INTRO!$E$41="Non endémique"),0,IF(AND(OR(COUNTRY_INFO!$H14=0,COUNTRY_INFO!$H14=4,COUNTRY_INFO!$H14=99),OR(COUNTRY_INFO!$J14=0,COUNTRY_INFO!$J14=4)),0,COUNTRY_INFO!$F14)) -> 22599 | F14: 32978 | G14: =IF(AND(INTRO!$E$37="Non endémique",INTRO!$E$41="Non endémique"),0,COUNTRY_INFO!P14) -> 0 | H14: =IF(AND(INTRO!$E$37="Non endémique",INTRO!$E$41="Non endémique"),0,COUNTRY_INFO!R14) -> 1 | I14: =IF(INTRO!$E$39="Non endémique",IF($G14=1,DEC!I14,0),IF($G14=1,IVM!G14,0)) -> 0 | J14: ALB | L14: 22599 | N14: 22599 | O14: =IF($J14="MBD", IF(INTRO!$E$39="Non endémique",IF($H14<>0,$D14*($H14-$G14),0),$D14*$H14),0) -> 0 | P14: 0 | R14: 0 | T14: 0 | U14: 0 | W14: 22599 | X14: 113 | Z14: 0 | AA14: 0
A15: =IF(AND(INTRO!$E$37="Non endémique",INTRO!$E$41="Non endémique")," ",IF(COUNTRY_INFO!A15=0," ",COUNTRY_INFO!A15)) -> Benin | B15: =IF(AND(INTRO!$E$37="Non endémique",INTRO!$E$41="Non endémique")," ",IF(COUNTRY_INFO!B15=0," ",COUNTRY_INFO!B15)) -> Atacora | C15: =IF(AND(INTRO!$E$37="Non endémique",INTRO!$E$41="Non endémique")," ",IF(COUNTRY_INFO!C15=0," ",COUNTRY_INFO!C15)) -> Boukoumbé | D15: =IF(AND(INTRO!$E$37="Non endémique",INTRO!$E$41="Non endémique"),0,IF(AND(OR(COUNTRY_INFO!$H15=0,COUNTRY_INFO!$H15=4,COUNTRY_INFO!$H15=99),OR(COUNTRY_INFO!$J15=0,COUNTRY_INFO!$J15=4)),0,COUNTRY_INFO!$E15)) -> 13508 | E15: =IF(AND(INTRO!$E$37="Non endémique",INTRO!$E$41="Non endémique"),0,IF(AND(OR(COUNTRY_INFO!$H15=0,COUNTRY_INFO!$H15=4,COUNTRY_INFO!$H15=99),OR(COUNTRY_INFO!$J15=0,COUNTRY_INFO!$J15=4)),0,COUNTRY_INFO!$F15)) -> 29413 | F15: 42921 | G15: =IF(AND(INTRO!$E$37="Non endémique",INTRO!$E$41="Non endémique"),0,COUNTRY_INFO!P15) -> 0 | H15: =IF(AND(INTRO!$E$37="Non endémique",INTRO!$E$41="Non endémique"),0,COUNTRY_INFO!R15) -> 0 | I15: =IF(INTRO!$E$39="Non endémique",IF($G15=1,DEC!I15,0),IF($G15=1,IVM!G15,0)) -> 0 | L15: 0 | N15: 0 | O15: =IF($J15="MBD", IF(INTRO!$E$39="Non endémique",IF($H15<>0,$D15*($H15-$G15),0),$D15*$H15),0) -> 0 | P15: 0 | R15: 0 | T15: 0 | U15: 0 | W15: 0 | X15: 0 | Z15: 0 | AA15: 0
A16: =IF(AND(INTRO!$E$37="Non endémique",INTRO!$E$41="Non endémique")," ",IF(COUNTRY_INFO!A16=0," ",COUNTRY_INFO!A16)) -> Benin | B16: =IF(AND(INTRO!$E$37="Non endémique",INTRO!$E$41="Non endémique")," ",IF(COUNTRY_INFO!B16=0," ",COUNTRY_INFO!B16)) -> Atacora | C16: =IF(AND(INTRO!$E$37="Non endémique",INTRO!$E$41="Non endémique")," ",IF(COUNTRY_INFO!C16=0," ",COUNTRY_INFO!C16)) -> Cobly | D16: =IF(AND(INTRO!$E$37="Non endémique",INTRO!$E$41="Non endémique"),0,IF(AND(OR(COUNTRY_INFO!$H16=0,COUNTRY_INFO!$H16=4,COUNTRY_INFO!$H16=99),OR(COUNTRY_INFO!$J16=0,COUNTRY_INFO!$J16=4)),0,COUNTRY_INFO!$E16)) -> 11272 | E16: =IF(AND(INTRO!$E$37="Non endémique",INTRO!$E$41="Non endémique"),0,IF(AND(OR(COUNTRY_INFO!$H16=0,COUNTRY_INFO!$H16=4,COUNTRY_INFO!$H16=99),OR(COUNTRY_INFO!$J16=0,COUNTRY_INFO!$J16=4)),0,COUNTRY_INFO!$F16)) -> 24544 | F16: 35816 | G16: =IF(AND(INTRO!$E$37="Non endémique",INTRO!$E$41="Non endémique"),0,COUNTRY_INFO!P16) -> 0 | H16: =IF(AND(INTRO!$E$37="Non endémique",INTRO!$E$41="Non endémique"),0,COUNTRY_INFO!R16) -> 1 | I16: =IF(INTRO!$E$39="Non endémique",IF($G16=1,DEC!I16,0),IF($G16=1,IVM!G16,0)) -> 0 | J16: ALB | L16: 24544 | N16: 24544 | O16: =IF($J16="MBD", IF(INTRO!$E$39="Non endémique",IF($H16<>0,$D16*($H16-$G16),0),$D16*$H16),0) -> 0 | P16: 0 | R16: 0 | T16: 0 | U16: 0 | W16: 24544 | X16: 123 | Z16: 0 | AA16: 0
A17: =IF(AND(INTRO!$E$37="Non endémique",INTRO!$E$41="Non endémique")," ",IF(COUNTRY_INFO!A17=0," ",COUNTRY_INFO!A17)) -> Benin | B17: =IF(AND(INTRO!$E$37="Non endémique",INTRO!$E$41="Non endémique")," ",IF(COUNTRY_INFO!B17=0," ",COUNTRY_INFO!B17)) -> Atacora | C17: =IF(AND(INTRO!$E$37="Non endémique",INTRO!$E$41="Non endémique")," ",IF(COUNTRY_INFO!C17=0," ",COUNTRY_INFO!C17)) -> Kérou | D17: =IF(AND(INTRO!$E$37="Non endémique",INTRO!$E$41="Non endémique"),0,IF(AND(OR(COUNTRY_INFO!$H17=0,COUNTRY_INFO!$H17=4,COUNTRY_INFO!$H17=99),OR(COUNTRY_INFO!$J17=0,COUNTRY_INFO!$J17=4)),0,COUNTRY_INFO!$E17)) -> 16356 | E17: =IF(AND(INTRO!$E$37="Non endémique",INTRO!$E$41="Non endémique"),0,IF(AND(OR(COUNTRY_INFO!$H17=0,COUNTRY_INFO!$H17=4,COUNTRY_INFO!$H17=99),OR(COUNTRY_INFO!$J17=0,COUNTRY_INFO!$J17=4)),0,COUNTRY_INFO!$F17)) -> 35613 | F17: 51969 | G17: =IF(AND(INTRO!$E$37="Non endémique",INTRO!$E$41="Non endémique"),0,COUNTRY_INFO!P17) -> 0 | H17: =IF(AND(INTRO!$E$37="Non endémique",INTRO!$E$41="Non endémique"),0,COUNTRY_INFO!R17) -> 0 | I17: =IF(INTRO!$E$39="Non endémique",IF($G17=1,DEC!I17,0),IF($G17=1,IVM!G17,0)) -> 0 | L17: 0 | N17: 0 | O17: =IF($J17="MBD", IF(INTRO!$E$39="Non endémique",IF($H17<>0,$D17*($H17-$G17),0),$D17*$H17),0) -> 0 | P17: 0 | R17: 0 | T17: 0 | U17: 0 | W17: 0 | X17: 0 | Z17: 0 | AA17: 0
A18: =IF(AND(INTRO!$E$37="Non endémique",INTRO!$E$41="Non endémique")," ",IF(COUNTRY_INFO!A18=0," ",COUNTRY_INFO!A18)) -> Benin | B18: =IF(AND(INTRO!$E$37="Non endémique",INTRO!$E$41="Non endémique")," ",IF(COUNTRY_INFO!B18=0," ",COUNTRY_INFO!B18)) -> Atacora | C18: =IF(AND(INTRO!$E$37="Non endémique",INTRO!$E$41="Non endémique")," ",IF(COUNTRY_INFO!C18=0," ",COUNTRY_INFO!C18)) -> Kouandé | D18: =IF(AND(INTRO!$E$37="Non endémique",INTRO!$E$41="Non endémique"),0,IF(AND(OR(COUNTRY_INFO!$H18=0,COUNTRY_INFO!$H18=4,COUNTRY_INFO!$H18=99),OR(COUNTRY_INFO!$J18=0,COUNTRY_INFO!$J18=4)),0,COUNTRY_INFO!$E18)) -> 18895 | E18: =IF(AND(INTRO!$E$37="Non endémique",INTRO!$E$41="Non endémique"),0,IF(AND(OR(COUNTRY_INFO!$H18=0,COUNTRY_INFO!$H18=4,COUNTRY_INFO!$H18=99),OR(COUNTRY_INFO!$J18=0,COUNTRY_INFO!$J18=4)),0,COUNTRY_INFO!$F18)) -> 41142 | F18: 60037 | G18: =IF(AND(INTRO!$E$37="Non endémique",INTRO!$E$41="Non endémique"),0,COUNTRY_INFO!P18) -> 0 | H18: =IF(AND(INTRO!$E$37="Non endémique",INTRO!$E$41="Non endémique"),0,COUNTRY_INFO!R18) -> 1 | I18: =IF(INTRO!$E$39="Non endémique",IF($G18=1,DEC!I18,0),IF($G18=1,IVM!G18,0)) -> 0 | J18: ALB | L18: 41142 | N18: 41142 | O18: =IF($J18="MBD", IF(INTRO!$E$39="Non endémique",IF($H18<>0,$D18*($H18-$G18),0),$D18*$H18),0) -> 0 | P18: 0 | R18: 0 | T18: 0 | U18: 0 | W18: 41142 | X18: 206 | Z18: 0 | AA18: 0
A19: =IF(AND(INTRO!$E$37="Non endémique",INTRO!$E$41="Non endémique")," ",IF(COUNTRY_INFO!A19=0," ",COUNTRY_INFO!A19)) -> Benin | B19: =IF(AND(INTRO!$E$37="Non endémique",INTRO!$E$41="Non endémique")," ",IF(COUNTRY_INFO!B19=0," ",COUNTRY_INFO!B19)) -> Atacora | C19: =IF(AND(INTRO!$E$37="Non endémique",INTRO!$E$41="Non endémique")," ",IF(COUNTRY_INFO!C19=0," ",COUNTRY_INFO!C19)) -> Matéri | D19: =IF(AND(INTRO!$E$37="Non endémique",INTRO!$E$41="Non endémique"),0,IF(AND(OR(COUNTRY_INFO!$H19=0,COUNTRY_INFO!$H19=4,COUNTRY_INFO!$H19=99),OR(COUNTRY_INFO!$J19=0,COUNTRY_INFO!$J19=4)),0,COUNTRY_INFO!$E19)) -> 15834 | E19: =IF(AND(INTRO!$E$37="Non endémique",INTRO!$E$41="Non endémique"),0,IF(AND(OR(COUNTRY_INFO!$H19=0,COUNTRY_INFO!$H19=4,COUNTRY_INFO!$H19=99),OR(COUNTRY_INFO!$J19=0,COUNTRY_INFO!$J19=4)),0,COUNTRY_INFO!$F19)) -> 34477 | F19: 50311 | G19: =IF(AND(INTRO!$E$37="Non endémique",INTRO!$E$41="Non endémique"),0,COUNTRY_INFO!P19) -> 0 | H19: =IF(AND(INTRO!$E$37="Non endémique",INTRO!$E$41="Non endémique"),0,COUNTRY_INFO!R19) -> 0 | I19: =IF(INTRO!$E$39="Non endémique",IF($G19=1,DEC!I19,0),IF($G19=1,IVM!G19,0)) -> 0 | L19: 0 | N19: 0 | O19: =IF($J19="MBD", IF(INTRO!$E$39="Non endémique",IF($H19<>0,$D19*($H19-$G19),0),$D19*$H19),0) -> 0 | P19: 0 | R19: 0 | T19: 0 | U19: 0 | W19: 0 | X19: 0 | Z19: 0 | AA19: 0
A20: =IF(AND(INTRO!$E$37="Non endémique",INTRO!$E$41="Non endémique")," ",IF(COUNTRY_INFO!A20=0," ",COUNTRY_INFO!A20)) -> Benin | B20: =IF(AND(INTRO!$E$37="Non endémique",INTRO!$E$41="Non endémique")," ",IF(COUNTRY_INFO!B20=0," ",COUNTRY_INFO!B20)) -> Atacora | C20: =IF(AND(INTRO!$E$37="Non endémique",INTRO!$E$41="Non endémique")," ",IF(COUNTRY_INFO!C20=0," ",COUNTRY_INFO!C20)) -> Natitingou | D20: =IF(AND(INTRO!$E$37="Non endémique",INTRO!$E$41="Non endémique"),0,IF(AND(OR(COUNTRY_INFO!$H20=0,COUNTRY_INFO!$H20=4,COUNTRY_INFO!$H20=99),OR(COUNTRY_INFO!$J20=0,COUNTRY_INFO!$J20=4)),0,COUNTRY_INFO!$E20)) -> 11833 | E20: =IF(AND(INTRO!$E$37="Non endémique",INTRO!$E$41="Non endémique"),0,IF(AND(OR(COUNTRY_INFO!$H20=0,COUNTRY_INFO!$H20=4,COUNTRY_INFO!$H20=99),OR(COUNTRY_INFO!$J20=0,COUNTRY_INFO!$J20=4)),0,COUNTRY_INFO!$F20)) -> 25766 | F20: 37599 | G20: =IF(AND(INTRO!$E$37="Non endémique",INTRO!$E$41="Non endémique"),0,COUNTRY_INFO!P20) -> 0 | H20: =IF(AND(INTRO!$E$37="Non endémique",INTRO!$E$41="Non endémique"),0,COUNTRY_INFO!R20) -> 0 | I20: =IF(INTRO!$E$39="Non endémique",IF($G20=1,DEC!I20,0),IF($G20=1,IVM!G20,0)) -> 0 | L20: 0 | N20: 0 | O20: =IF($J20="MBD", IF(INTRO!$E$39="Non endémique",IF($H20<>0,$D20*($H20-$G20),0),$D20*$H20),0) -> 0 | P20: 0 | R20: 0 | T20: 0 | U20: 0 | W20: 0 | X20: 0 | Z20: 0 | AA20: 0
A21: =IF(AND(INTRO!$E$37="Non endémique",INTRO!$E$41="Non endémique")," ",IF(COUNTRY_INFO!A21=0," ",COUNTRY_INFO!A21)) -> Benin | B21: =IF(AND(INTRO!$E$37="Non endémique",INTRO!$E$41="Non endémique")," ",IF(COUNTRY_INFO!B21=0," ",COUNTRY_INFO!B21)) -> Atacora | C21: =IF(AND(INTRO!$E$37="Non endémique",INTRO!$E$41="Non endémique")," ",IF(COUNTRY_INFO!C21=0," ",COUNTRY_INFO!C21)) -> Péhunco | D21: =IF(AND(INTRO!$E$37="Non endémique",INTRO!$E$41="Non endémique"),0,IF(AND(OR(COUNTRY_INFO!$H21=0,COUNTRY_INFO!$H21=4,COUNTRY_INFO!$H21=99),OR(COUNTRY_INFO!$J21=0,COUNTRY_INFO!$J21=4)),0,COUNTRY_INFO!$E21)) -> 14540 | E21: =IF(AND(INTRO!$E$37="Non endémique",INTRO!$E$41="Non endémique"),0,IF(AND(OR(COUNTRY_INFO!$H21=0,COUNTRY_INFO!$H21=4,COUNTRY_INFO!$H21=99),OR(COUNTRY_INFO!$J21=0,COUNTRY_INFO!$J21=4)),0,COUNTRY_INFO!$F21)) -> 31660 | F21: 46200 | G21: =IF(AND(INTRO!$E$37="Non endémique",INTRO!$E$41="Non endémique"),0,COUNTRY_INFO!P21) -> 0 | H21: =IF(AND(INTRO!$E$37="Non endémique",INTRO!$E$41="Non endémique"),0,COUNTRY_INFO!R21) -> 0 | I21: =IF(INTRO!$E$39="Non endémique",IF($G21=1,DEC!I21,0),IF($G21=1,IVM!G21,0)) -> 0 | L21: 0 | N21: 0 | O21: =IF($J21="MBD", IF(INTRO!$E$39="Non endémique",IF($H21<>0,$D21*($H21-$G21),0),$D21*$H21),0) -> 0 | P21: 0 | R21: 0 | T21: 0 | U21: 0 | W21: 0 | X21: 0 | Z21: 0 | AA21: 0
A22: =IF(AND(INTRO!$E$37="Non endémique",INTRO!$E$41="Non endémique")," ",IF(COUNTRY_INFO!A22=0," ",COUNTRY_INFO!A22)) -> Benin | B22: =IF(AND(INTRO!$E$37="Non endémique",INTRO!$E$41="Non endémique")," ",IF(COUNTRY_INFO!B22=0," ",COUNTRY_INFO!B22)) -> Atacora | C22: =IF(AND(INTRO!$E$37="Non endémique",INTRO!$E$41="Non endémique")," ",IF(COUNTRY_INFO!C22=0," ",COUNTRY_INFO!C22)) -> Tanguiéta | D22: =IF(AND(INTRO!$E$37="Non endémique",INTRO!$E$41="Non endémique"),0,IF(AND(OR(COUNTRY_INFO!$H22=0,COUNTRY_INFO!$H22=4,COUNTRY_INFO!$H22=99),OR(COUNTRY_INFO!$J22=0,COUNTRY_INFO!$J22=4)),0,COUNTRY_INFO!$E22)) -> 10927 | E22: =IF(AND(INTRO!$E$37="Non endémique",INTRO!$E$41="Non endémique"),0,IF(AND(OR(COUNTRY_INFO!$H22=0,COUNTRY_INFO!$H22=4,COUNTRY_INFO!$H22=99),OR(COUNTRY_INFO!$J22=0,COUNTRY_INFO!$J22=4)),0,COUNTRY_INFO!$F22)) -> 23792 | F22: 34719 | G22: =IF(AND(INTRO!$E$37="Non endémique",INTRO!$E$41="Non endémique"),0,COUNTRY_INFO!P22) -> 0 | H22: =IF(AND(INTRO!$E$37="Non endémique",INTRO!$E$41="Non endémique"),0,COUNTRY_INFO!R22) -> 0 | I22: =IF(INTRO!$E$39="Non endémique",IF($G22=1,DEC!I22,0),IF($G22=1,IVM!G22,0)) -> 0 | L22: 0 | N22: 0 | O22: =IF($J22="MBD", IF(INTRO!$E$39="Non endémique",IF($H22<>0,$D22*($H22-$G22),0),$D22*$H22),0) -> 0 | P22: 0 | R22: 0 | T22: 0 | U22: 0 | W22: 0 | X22: 0 | Z22: 0 | AA22: 0
A23: =IF(AND(INTRO!$E$37="Non endémique",INTRO!$E$41="Non endémique")," ",IF(COUNTRY_INFO!A23=0," ",COUNTRY_INFO!A23)) -> Benin | B23: =IF(AND(INTRO!$E$37="Non endémique",INTRO!$E$41="Non endémique")," ",IF(COUNTRY_INFO!B23=0," ",COUNTRY_INFO!B23)) -> Atacora | C23: =IF(AND(INTRO!$E$37="Non endémique",INTRO!$E$41="Non endémique")," ",IF(COUNTRY_INFO!C23=0," ",COUNTRY_INFO!C23)) -> Toukountouna | D23: =IF(AND(INTRO!$E$37="Non endémique",INTRO!$E$41="Non endémique"),0,IF(AND(OR(COUNTRY_INFO!$H23=0,COUNTRY_INFO!$H23=4,COUNTRY_INFO!$H23=99),OR(COUNTRY_INFO!$J23=0,COUNTRY_INFO!$J23=4)),0,COUNTRY_INFO!$E23)) -> 6265 | E23: =IF(AND(INTRO!$E$37="Non endémique",INTRO!$E$41="Non endémique"),0,IF(AND(OR(COUNTRY_INFO!$H23=0,COUNTRY_INFO!$H23=4,COUNTRY_INFO!$H23=99),OR(COUNTRY_INFO!$J23=0,COUNTRY_INFO!$J23=4)),0,COUNTRY_INFO!$F23)) -> 13641 | F23: 19906 | G23: =IF(AND(INTRO!$E$37="Non endémique",INTRO!$E$41="Non endémique"),0,COUNTRY_INFO!P23) -> 0 | H23: =IF(AND(INTRO!$E$37="Non endémique",INTRO!$E$41="Non endémique"),0,COUNTRY_INFO!R23) -> 0 | I23: =IF(INTRO!$E$39="Non endémique",IF($G23=1,DEC!I23,0),IF($G23=1,IVM!G23,0)) -> 0 | L23: 0 | N23: 0 | O23: =IF($J23="MBD", IF(INTRO!$E$39="Non endémique",IF($H23<>0,$D23*($H23-$G23),0),$D23*$H23),0) -> 0 | P23: 0 | R23: 0 | T23: 0 | U23: 0 | W23: 0 | X23: 0 | Z23: 0 | AA23: 0
A24: =IF(AND(INTRO!$E$37="Non endémique",INTRO!$E$41="Non endémique")," ",IF(COUNTRY_INFO!A24=0," ",COUNTRY_INFO!A24)) -> Benin | B24: =IF(AND(INTRO!$E$37="Non endémique",INTRO!$E$41="Non endémique")," ",IF(COUNTRY_INFO!B24=0," ",COUNTRY_INFO!B24)) -> Atlantique | C24: =IF(AND(INTRO!$E$37="Non endémique",INTRO!$E$41="Non endémique")," ",IF(COUNTRY_INFO!C24=0," ",COUNTRY_INFO!C24)) -> Abomey-Calavi | D24: =IF(AND(INTRO!$E$37="Non endémique",INTRO!$E$41="Non endémique"),0,IF(AND(OR(COUNTRY_INFO!$H24=0,COUNTRY_INFO!$H24=4,COUNTRY_INFO!$H24=99),OR(COUNTRY_INFO!$J24=0,COUNTRY_INFO!$J24=4)),0,COUNTRY_INFO!$E24)) -> 122016 | E24: =IF(AND(INTRO!$E$37="Non endémique",INTRO!$E$41="Non endémique"),0,IF(AND(OR(COUNTRY_INFO!$H24=0,COUNTRY_INFO!$H24=4,COUNTRY_INFO!$H24=99),OR(COUNTRY_INFO!$J24=0,COUNTRY_INFO!$J24=4)),0,COUNTRY_INFO!$F24)) -> 265680 | F24: 387696 | G24: =IF(AND(INTRO!$E$37="Non endémique",INTRO!$E$41="Non endémique"),0,COUNTRY_INFO!P24) -> 0 | H24: =IF(AND(INTRO!$E$37="Non endémique",INTRO!$E$41="Non endémique"),0,COUNTRY_INFO!R24) -> 0 | I24: =IF(INTRO!$E$39="Non endémique",IF($G24=1,DEC!I24,0),IF($G24=1,IVM!G24,0)) -> 0 | L24: 0 | N24: 0 | O24: =IF($J24="MBD", IF(INTRO!$E$39="Non endémique",IF($H24<>0,$D24*($H24-$G24),0),$D24*$H24),0) -> 0 | P24: 0 | R24: 0 | T24: 0 | U24: 0 | W24: 0 | X24: 0 | Z24: 0 | AA24: 0
A25: =IF(AND(INTRO!$E$37="Non endémique",INTRO!$E$41="Non endémique")," ",IF(COUNTRY_INFO!A25=0," ",COUNTRY_INFO!A25)) -> Benin | B25: =IF(AND(INTRO!$E$37="Non endémique",INTRO!$E$41="Non endémique")," ",IF(COUNTRY_INFO!B25=0," ",COUNTRY_INFO!B25)) -> Atlantique | C25: =IF(AND(INTRO!$E$37="Non endémique",INTRO!$E$41="Non endémique")," ",IF(COUNTRY_INFO!C25=0," ",COUNTRY_INFO!C25)) -> Allada | D25: =IF(AND(INTRO!$E$37="Non endémique",INTRO!$E$41="Non endémique"),0,IF(AND(OR(COUNTRY_INFO!$H25=0,COUNTRY_INFO!$H25=4,COUNTRY_INFO!$H25=99),OR(COUNTRY_INFO!$J25=0,COUNTRY_INFO!$J25=4)),0,COUNTRY_INFO!$E25)) -> 23704 | E25: =IF(AND(INTRO!$E$37="Non endémique",INTRO!$E$41="Non endémique"),0,IF(AND(OR(COUNTRY_INFO!$H25=0,COUNTRY_INFO!$H25=4,COUNTRY_INFO!$H25=99),OR(COUNTRY_INFO!$J25=0,COUNTRY_INFO!$J25=4)),0,COUNTRY_INFO!$F25)) -> 51614 | F25: 75318 | G25: =IF(AND(INTRO!$E$37="Non endémique",INTRO!$E$41="Non endémique"),0,COUNTRY_INFO!P25) -> 0 | H25: =IF(AND(INTRO!$E$37="Non endémique",INTRO!$E$41="Non endémique"),0,COUNTRY_INFO!R25) -> 1 | I25: =IF(INTRO!$E$39="Non endémique",IF($G25=1,DEC!I25,0),IF($G25=1,IVM!G25,0)) -> 0 | J25: ALB | L25: 51614 | N25: 51614 | O25: =IF($J25="MBD", IF(INTRO!$E$39="Non endémique",IF($H25<>0,$D25*($H25-$G25),0),$D25*$H25),0) -> 0 | P25: 0 | R25: 0 | T25: 0 | U25: 0 | W25: 51614 | X25: 259 | Z25: 0 | AA25: 0
A26: =IF(AND(INTRO!$E$37="Non endémique",INTRO!$E$41="Non endémique")," ",IF(COUNTRY_INFO!A26=0," ",COUNTRY_INFO!A26)) -> Benin | B26: =IF(AND(INTRO!$E$37="Non endémique",INTRO!$E$41="Non endémique")," ",IF(COUNTRY_INFO!B26=0," ",COUNTRY_INFO!B26)) -> Atlantique | C26: =IF(AND(INTRO!$E$37="Non endémique",INTRO!$E$41="Non endémique")," ",IF(COUNTRY_INFO!C26=0," ",COUNTRY_INFO!C26)) -> Kpomassè | D26: =IF(AND(INTRO!$E$37="Non endémique",INTRO!$E$41="Non endémique"),0,IF(AND(OR(COUNTRY_INFO!$H26=0,COUNTRY_INFO!$H26=4,COUNTRY_INFO!$H26=99),OR(COUNTRY_INFO!$J26=0,COUNTRY_INFO!$J26=4)),0,COUNTRY_INFO!$E26)) -> 12575 | E26: =IF(AND(INTRO!$E$37="Non endémique",INTRO!$E$41="Non endémique"),0,IF(AND(OR(COUNTRY_INFO!$H26=0,COUNTRY_INFO!$H26=4,COUNTRY_INFO!$H26=99),OR(COUNTRY_INFO!$J26=0,COUNTRY_INFO!$J26=4)),0,COUNTRY_INFO!$F26)) -> 27382 | F26: 39957 | G26: =IF(AND(INTRO!$E$37="Non endémique",INTRO!$E$41="Non endémique"),0,COUNTRY_INFO!P26) -> 0 | H26: =IF(AND(INTRO!$E$37="Non endémique",INTRO!$E$41="Non endémique"),0,COUNTRY_INFO!R26) -> 0 | I26: =IF(INTRO!$E$39="Non endémique",IF($G26=1,DEC!I26,0),IF($G26=1,IVM!G26,0)) -> 0 | L26: 0 | N26: 0 | O26: =IF($J26="MBD", IF(INTRO!$E$39="Non endémique",IF($H26<>0,$D26*($H26-$G26),0),$D26*$H26),0) -> 0 | P26: 0 | R26: 0 | T26: 0 | U26: 0 | W26: 0 | X26: 0 | Z26: 0 | AA26: 0
A27: =IF(AND(INTRO!$E$37="Non endémique",INTRO!$E$41="Non endémique")," ",IF(COUNTRY_INFO!A27=0," ",COUNTRY_INFO!A27)) -> Benin | B27: =IF(AND(INTRO!$E$37="Non endémique",INTRO!$E$41="Non endémique")," ",IF(COUNTRY_INFO!B27=0," ",COUNTRY_INFO!B27)) -> Atlantique | C27: =IF(AND(INTRO!$E$37="Non endémique",INTRO!$E$41="Non endémique")," ",IF(COUNTRY_INFO!C27=0," ",COUNTRY_INFO!C27)) -> Ouidah | D27: =IF(AND(INTRO!$E$37="Non endémique",INTRO!$E$41="Non endémique"),0,IF(AND(OR(COUNTRY_INFO!$H27=0,COUNTRY_INFO!$H27=4,COUNTRY_INFO!$H27=99),OR(COUNTRY_INFO!$J27=0,COUNTRY_INFO!$J27=4)),0,COUNTRY_INFO!$E27)) -> 30122 | E27: =IF(AND(INTRO!$E$37="Non endémique",INTRO!$E$41="Non endémique"),0,IF(AND(OR(COUNTRY_INFO!$H27=0,COUNTRY_INFO!$H27=4,COUNTRY_INFO!$H27=99),OR(COUNTRY_INFO!$J27=0,COUNTRY_INFO!$J27=4)),0,COUNTRY_INFO!$F27)) -> 65588 | F27: 95710 | G27: =IF(AND(INTRO!$E$37="Non endémique",INTRO!$E$41="Non endémique"),0,COUNTRY_INFO!P27) -> 0 | H27: =IF(AND(INTRO!$E$37="Non endémique",INTRO!$E$41="Non endémique"),0,COUNTRY_INFO!R27) -> 0 | I27: =IF(INTRO!$E$39="Non endémique",IF($G27=1,DEC!I27,0),IF($G27=1,IVM!G27,0)) -> 0 | L27: 0 | N27: 0 | O27: =IF($J27="MBD", IF(INTRO!$E$39="Non endémique",IF($H27<>0,$D27*($H27-$G27),0),$D27*$H27),0) -> 0 | P27: 0 | R27: 0 | T27: 0 | U27: 0 | W27: 0 | X27: 0 | Z27: 0 | AA27: 0
A28: =IF(AND(INTRO!$E$37="Non endémique",INTRO!$E$41="Non endémique")," ",IF(COUNTRY_INFO!A28=0," ",COUNTRY_INFO!A28)) -> Benin | B28: =IF(AND(INTRO!$E$37="Non endémique",INTRO!$E$41="Non endémique")," ",IF(COUNTRY_INFO!B28=0," ",COUNTRY_INFO!B28)) -> Atlantique | C28: =IF(AND(INTRO!$E$37="Non endémique",INTRO!$E$41="Non endémique")," ",IF(COUNTRY_INFO!C28=0," ",COUNTRY_INFO!C28)) -> So-Ava | D28: =IF(AND(INTRO!$E$37="Non endémique",INTRO!$E$41="Non endémique"),0,IF(AND(OR(COUNTRY_INFO!$H28=0,COUNTRY_INFO!$H28=4,COUNTRY_INFO!$H28=99),OR(COUNTRY_INFO!$J28=0,COUNTRY_INFO!$J28=4)),0,COUNTRY_INFO!$E28)) -> 22038 | E28: =IF(AND(INTRO!$E$37="Non endémique",INTRO!$E$41="Non endémique"),0,IF(AND(OR(COUNTRY_INFO!$H28=0,COUNTRY_INFO!$H28=4,COUNTRY_INFO!$H28=99),OR(COUNTRY_INFO!$J28=0,COUNTRY_INFO!$J28=4)),0,COUNTRY_INFO!$F28)) -> 47985 | F28: 70023 | G28: =IF(AND(INTRO!$E$37="Non endémique",INTRO!$E$41="Non endémique"),0,COUNTRY_INFO!P28) -> 0 | H28: =IF(AND(INTRO!$E$37="Non endémique",INTRO!$E$41="Non endémique"),0,COUNTRY_INFO!R28) -> 0 | I28: =IF(INTRO!$E$39="Non endémique",IF($G28=1,DEC!I28,0),IF($G28=1,IVM!G28,0)) -> 0 | L28: 0 | N28: 0 | O28: =IF($J28="MBD", IF(INTRO!$E$39="Non endémique",IF($H28<>0,$D28*($H28-$G28),0),$D28*$H28),0) -> 0 | P28: 0 | R28: 0 | T28: 0 | U28: 0 | W28: 0 | X28: 0 | Z28: 0 | AA28: 0
A29: =IF(AND(INTRO!$E$37="Non endémique",INTRO!$E$41="Non endémique")," ",IF(COUNTRY_INFO!A29=0," ",COUNTRY_INFO!A29)) -> Benin | B29: =IF(AND(INTRO!$E$37="Non endémique",INTRO!$E$41="Non endémique")," ",IF(COUNTRY_INFO!B29=0," ",COUNTRY_INFO!B29)) -> Atlantique | C29: =IF(AND(INTRO!$E$37="Non endémique",INTRO!$E$41="Non endémique")," ",IF(COUNTRY_INFO!C29=0," ",COUNTRY_INFO!C29)) -> Toffo | D29: =IF(AND(INTRO!$E$37="Non endémique",INTRO!$E$41="Non endémique"),0,IF(AND(OR(COUNTRY_INFO!$H29=0,COUNTRY_INFO!$H29=4,COUNTRY_INFO!$H29=99),OR(COUNTRY_INFO!$J29=0,COUNTRY_INFO!$J29=4)),0,COUNTRY_INFO!$E29)) -> 18884 | E29: =IF(AND(INTRO!$E$37="Non endémique",INTRO!$E$41="Non endémique"),0,IF(AND(OR(COUNTRY_INFO!$H29=0,COUNTRY_INFO!$H29=4,COUNTRY_INFO!$H29=99),OR(COUNTRY_INFO!$J29=0,COUNTRY_INFO!$J29=4)),0,COUNTRY_INFO!$F29)) -> 41119 | F29: 60003 | G29: =IF(AND(INTRO!$E$37="Non endémique",INTRO!$E$41="Non endémique"),0,COUNTRY_INFO!P29) -> 0 | H29: =IF(AND(INTRO!$E$37="Non endémique",INTRO!$E$41="Non endémique"),0,COUNTRY_INFO!R29) -> 1 | I29: =IF(INTRO!$E$39="Non endémique",IF($G29=1,DEC!I29,0),IF($G29=1,IVM!G29,0)) -> 0 | J29: ALB | L29: 41119 | N29: 41119 | O29: =IF($J29="MBD", IF(INTRO!$E$39="Non endémique",IF($H29<>0,$D29*($H29-$G29),0),$D29*$H29),0) -> 0 | P29: 0 | R29: 0 | T29: 0 | U29: 0 | W29: 41119 | X29: 206 | Z29: 0 | AA29: 0
A30: =IF(AND(INTRO!$E$37="Non endémique",INTRO!$E$41="Non endémique")," ",IF(COUNTRY_INFO!A30=0," ",COUNTRY_INFO!A30)) -> Benin | B30: =IF(AND(INTRO!$E$37="Non endémique",INTRO!$E$41="Non endémique")," ",IF(COUNTRY_INFO!B30=0," ",COUNTRY_INFO!B30)) -> Atlantique | C30: =IF(AND(INTRO!$E$37="Non endémique",INTRO!$E$41="Non endémique")," ",IF(COUNTRY_INFO!C30=0," ",COUNTRY_INFO!C30)) -> Torri-Bossito | D30: =IF(AND(INTRO!$E$37="Non endémique",INTRO!$E$41="Non endémique"),0,IF(AND(OR(COUNTRY_INFO!$H30=0,COUNTRY_INFO!$H30=4,COUNTRY_INFO!$H30=99),OR(COUNTRY_INFO!$J30=0,COUNTRY_INFO!$J30=4)),0,COUNTRY_INFO!$E30)) -> 10714 | E30: =IF(AND(INTRO!$E$37="Non endémique",INTRO!$E$41="Non endémique"),0,IF(AND(OR(COUNTRY_INFO!$H30=0,COUNTRY_INFO!$H30=4,COUNTRY_INFO!$H30=99),OR(COUNTRY_INFO!$J30=0,COUNTRY_INFO!$J30=4)),0,COUNTRY_INFO!$F30)) -> 23328 | F30: 34042 | G30: =IF(AND(INTRO!$E$37="Non endémique",INTRO!$E$41="Non endémique"),0,COUNTRY_INFO!P30) -> 0 | H30: =IF(AND(INTRO!$E$37="Non endémique",INTRO!$E$41="Non endémique"),0,COUNTRY_INFO!R30) -> 1 | I30: =IF(INTRO!$E$39="Non endémique",IF($G30=1,DEC!I30,0),IF($G30=1,IVM!G30,0)) -> 0 | J30: ALB | L30: 23328 | N30: 23328 | O30: =IF($J30="MBD", IF(INTRO!$E$39="Non endémique",IF($H30<>0,$D30*($H30-$G30),0),$D30*$H30),0) -> 0 | P30: 0 | R30: 0 | T30: 0 | U30: 0 | W30: 23328 | X30: 117 | Z30: 0 | AA30: 0
A31: =IF(AND(INTRO!$E$37="Non endémique",INTRO!$E$41="Non endémique")," ",IF(COUNTRY_INFO!A31=0," ",COUNTRY_INFO!A31)) -> Benin | B31: =IF(AND(INTRO!$E$37="Non endémique",INTRO!$E$41="Non endémique")," ",IF(COUNTRY_INFO!B31=0," ",COUNTRY_INFO!B31)) -> Atlantique | C31: =IF(AND(INTRO!$E$37="Non endémique",INTRO!$E$41="Non endémique")," ",IF(COUNTRY_INFO!C31=0," ",COUNTRY_INFO!C31)) -> Zè | D31: =IF(AND(INTRO!$E$37="Non endémique",INTRO!$E$41="Non endémique"),0,IF(AND(OR(COUNTRY_INFO!$H31=0,COUNTRY_INFO!$H31=4,COUNTRY_INFO!$H31=99),OR(COUNTRY_INFO!$J31=0,COUNTRY_INFO!$J31=4)),0,COUNTRY_INFO!$E31)) -> 19875 | E31: =IF(AND(INTRO!$E$37="Non endémique",INTRO!$E$41="Non endémique"),0,IF(AND(OR(COUNTRY_INFO!$H31=0,COUNTRY_INFO!$H31=4,COUNTRY_INFO!$H31=99),OR(COUNTRY_INFO!$J31=0,COUNTRY_INFO!$J31=4)),0,COUNTRY_INFO!$F31)) -> 43276 | F31: 63151 | G31: =IF(AND(INTRO!$E$37="Non endémique",INTRO!$E$41="Non endémique"),0,COUNTRY_INFO!P31) -> 0 | H31: =IF(AND(INTRO!$E$37="Non endémique",INTRO!$E$41="Non endémique"),0,COUNTRY_INFO!R31) -> 1 | I31: =IF(INTRO!$E$39="Non endémique",IF($G31=1,DEC!I31,0),IF($G31=1,IVM!G31,0)) -> 0 | J31: ALB | L31: 43276 | N31: 43276 | O31: =IF($J31="MBD", IF(INTRO!$E$39="Non endémique",IF($H31<>0,$D31*($H31-$G31),0),$D31*$H31),0) -> 0 | P31: 0 | R31: 0 | T31: 0 | U31: 0 | W31: 43276 | X31: 217 | Z31: 0 | AA31: 0
A32: =IF(AND(INTRO!$E$37="Non endémique",INTRO!$E$41="Non endémique")," ",IF(COUNTRY_INFO!A32=0," ",COUNTRY_INFO!A32)) -> Benin | B32: =IF(AND(INTRO!$E$37="Non endémique",INTRO!$E$41="Non endémique")," ",IF(COUNTRY_INFO!B32=0," ",COUNTRY_INFO!B32)) -> Borgou | C32: =IF(AND(INTRO!$E$37="Non endémique",INTRO!$E$41="Non endémique")," ",IF(COUNTRY_INFO!C32=0," ",COUNTRY_INFO!C32)) -> Bembèrèkè | D32: =IF(AND(INTRO!$E$37="Non endémique",INTRO!$E$41="Non endémique"),0,IF(AND(OR(COUNTRY_INFO!$H32=0,COUNTRY_INFO!$H32=4,COUNTRY_INFO!$H32=99),OR(COUNTRY_INFO!$J32=0,COUNTRY_INFO!$J32=4)),0,COUNTRY_INFO!$E32)) -> 17664 | E32: =IF(AND(INTRO!$E$37="Non endémique",INTRO!$E$41="Non endémique"),0,IF(AND(OR(COUNTRY_INFO!$H32=0,COUNTRY_INFO!$H32=4,COUNTRY_INFO!$H32=99),OR(COUNTRY_INFO!$J32=0,COUNTRY_INFO!$J32=4)),0,COUNTRY_INFO!$F32)) -> 38463 | F32: 56127 | G32: =IF(AND(INTRO!$E$37="Non endémique",INTRO!$E$41="Non endémique"),0,COUNTRY_INFO!P32) -> 0 | H32: =IF(AND(INTRO!$E$37="Non endémique",INTRO!$E$41="Non endémique"),0,COUNTRY_INFO!R32) -> 0 | I32: =IF(INTRO!$E$39="Non endémique",IF($G32=1,DEC!I32,0),IF($G32=1,IVM!G32,0)) -> 0 | L32: 0 | N32: 0 | O32: =IF($J32="MBD", IF(INTRO!$E$39="Non endémique",IF($H32<>0,$D32*($H32-$G32),0),$D32*$H32),0) -> 0 | P32: 0 | R32: 0 | T32: 0 | U32: 0 | W32: 0 | X32: 0 | Z32: 0 | AA32: 0
A33: =IF(AND(INTRO!$E$37="Non endémique",INTRO!$E$41="Non endémique")," ",IF(COUNTRY_INFO!A33=0," ",COUNTRY_INFO!A33)) -> Benin | B33: =IF(AND(INTRO!$E$37="Non endémique",INTRO!$E$41="Non endémique")," ",IF(COUNTRY_INFO!B33=0," ",COUNTRY_INFO!B33)) -> Borgou | C33: =IF(AND(INTRO!$E$37="Non endémique",INTRO!$E$41="Non endémique")," ",IF(COUNTRY_INFO!C33=0," ",COUNTRY_INFO!C33)) -> Kalalé | D33: =IF(AND(INTRO!$E$37="Non endémique",INTRO!$E$41="Non endémique"),0,IF(AND(OR(COUNTRY_INFO!$H33=0,COUNTRY_INFO!$H33=4,COUNTRY_INFO!$H33=99),OR(COUNTRY_INFO!$J33=0,COUNTRY_INFO!$J33=4)),0,COUNTRY_INFO!$E33)) -> 27267 | E33: =IF(AND(INTRO!$E$37="Non endémique",INTRO!$E$41="Non endémique"),0,IF(AND(OR(COUNTRY_INFO!$H33=0,COUNTRY_INFO!$H33=4,COUNTRY_INFO!$H33=99),OR(COUNTRY_INFO!$J33=0,COUNTRY_INFO!$J33=4)),0,COUNTRY_INFO!$F33)) -> 59372 | F33: 86639 | G33: =IF(AND(INTRO!$E$37="Non endémique",INTRO!$E$41="Non endémique"),0,COUNTRY_INFO!P33) -> 0 | H33: =IF(AND(INTRO!$E$37="Non endémique",INTRO!$E$41="Non endémique"),0,COUNTRY_INFO!R33) -> 1 | I33: =IF(INTRO!$E$39="Non endémique",IF($G33=1,DEC!I33,0),IF($G33=1,IVM!G33,0)) -> 0 | J33: ALB | L33: 59372 | N33: 59372 | O33: =IF($J33="MBD", IF(INTRO!$E$39="Non endémique",IF($H33<>0,$D33*($H33-$G33),0),$D33*$H33),0) -> 0 | P33: 0 | R33: 0 | T33: 0 | U33: 0 | W33: 59372 | X33: 297 | Z33: 0 | AA33: 0
A34: =IF(AND(INTRO!$E$37="Non endémique",INTRO!$E$41="Non endémique")," ",IF(COUNTRY_INFO!A34=0," ",COUNTRY_INFO!A34)) -> Benin | B34: =IF(AND(INTRO!$E$37="Non endémique",INTRO!$E$41="Non endémique")," ",IF(COUNTRY_INFO!B34=0," ",COUNTRY_INFO!B34)) -> Borgou | C34: =IF(AND(INTRO!$E$37="Non endémique",INTRO!$E$41="Non endémique")," ",IF(COUNTRY_INFO!C34=0," ",COUNTRY_INFO!C34)) -> N'Dali | D34: =IF(AND(INTRO!$E$37="Non endémique",INTRO!$E$41="Non endémique"),0,IF(AND(OR(COUNTRY_INFO!$H34=0,COUNTRY_INFO!$H34=4,COUNTRY_INFO!$H34=99),OR(COUNTRY_INFO!$J34=0,COUNTRY_INFO!$J34=4)),0,COUNTRY_INFO!$E34)) -> 14466 | E34: =IF(AND(INTRO!$E$37="Non endémique",INTRO!$E$41="Non endémique"),0,IF(AND(OR(COUNTRY_INFO!$H34=0,COUNTRY_INFO!$H34=4,COUNTRY_INFO!$H34=99),OR(COUNTRY_INFO!$J34=0,COUNTRY_INFO!$J34=4)),0,COUNTRY_INFO!$F34)) -> 31499 | F34: 45965 | G34: =IF(AND(INTRO!$E$37="Non endémique",INTRO!$E$41="Non endémique"),0,COUNTRY_INFO!P34) -> 0 | H34: =IF(AND(INTRO!$E$37="Non endémique",INTRO!$E$41="Non endémique"),0,COUNTRY_INFO!R34) -> 1 | I34: =IF(INTRO!$E$39="Non endémique",IF($G34=1,DEC!I34,0),IF($G34=1,IVM!G34,0)) -> 0 | J34: ALB | L34: 31499 | N34: 31499 | O34: =IF($J34="MBD", IF(INTRO!$E$39="Non endémique",IF($H34<>0,$D34*($H34-$G34),0),$D34*$H34),0) -> 0 | P34: 0 | R34: 0 | T34: 0 | U34: 0 | W34: 31499 | X34: 158 | Z34: 0 | AA34: 0
A35: =IF(AND(INTRO!$E$37="Non endémique",INTRO!$E$41="Non endémique")," ",IF(COUNTRY_INFO!A35=0," ",COUNTRY_INFO!A35)) -> Benin | B35: =IF(AND(INTRO!$E$37="Non endémique",INTRO!$E$41="Non endémique")," ",IF(COUNTRY_INFO!B35=0," ",COUNTRY_INFO!B35)) -> Borgou | C35: =IF(AND(INTRO!$E$37="Non endémique",INTRO!$E$41="Non endémique")," ",IF(COUNTRY_INFO!C35=0," ",COUNTRY_INFO!C35)) -> Nikki | D35: =IF(AND(INTRO!$E$37="Non endémique",INTRO!$E$41="Non endémique"),0,IF(AND(OR(COUNTRY_INFO!$H35=0,COUNTRY_INFO!$H35=4,COUNTRY_INFO!$H35=99),OR(COUNTRY_INFO!$J35=0,COUNTRY_INFO!$J35=4)),0,COUNTRY_INFO!$E35)) -> 25863 | E35: =IF(AND(INTRO!$E$37="Non endémique",INTRO!$E$41="Non endémique"),0,IF(AND(OR(COUNTRY_INFO!$H35=0,COUNTRY_INFO!$H35=4,COUNTRY_INFO!$H35=99),OR(COUNTRY_INFO!$J35=0,COUNTRY_INFO!$J35=4)),0,COUNTRY_INFO!$F35)) -> 56314 | F35: 82177 | G35: =IF(AND(INTRO!$E$37="Non endémique",INTRO!$E$41="Non endémique"),0,COUNTRY_INFO!P35) -> 0 | H35: =IF(AND(INTRO!$E$37="Non endémique",INTRO!$E$41="Non endémique"),0,COUNTRY_INFO!R35) -> 0 | I35: =IF(INTRO!$E$39="Non endémique",IF($G35=1,DEC!I35,0),IF($G35=1,IVM!G35,0)) -> 0 | L35: 0 | N35: 0 | O35: =IF($J35="MBD", IF(INTRO!$E$39="Non endémique",IF($H35<>0,$D35*($H35-$G35),0),$D35*$H35),0) -> 0 | P35: 0 | R35: 0 | T35: 0 | U35: 0 | W35: 0 | X35: 0 | Z35: 0 | AA35: 0
A36: =IF(AND(INTRO!$E$37="Non endémique",INTRO!$E$41="Non endémique")," ",IF(COUNTRY_INFO!A36=0," ",COUNTRY_INFO!A36)) -> Benin | B36: =IF(AND(INTRO!$E$37="Non endémique",INTRO!$E$41="Non endémique")," ",IF(COUNTRY_INFO!B36=0," ",COUNTRY_INFO!B36)) -> Borgou | C36: =IF(AND(INTRO!$E$37="Non endémique",INTRO!$E$41="Non endémique")," ",IF(COUNTRY_INFO!C36=0," ",COUNTRY_INFO!C36)) -> Parakou | D36: =IF(AND(INTRO!$E$37="Non endémique",INTRO!$E$41="Non endémique"),0,IF(AND(OR(COUNTRY_INFO!$H36=0,COUNTRY_INFO!$H36=4,COUNTRY_INFO!$H36=99),OR(COUNTRY_INFO!$J36=0,COUNTRY_INFO!$J36=4)),0,COUNTRY_INFO!$E36)) -> 19719 | E36: =IF(AND(INTRO!$E$37="Non endémique",INTRO!$E$41="Non endémique"),0,IF(AND(OR(COUNTRY_INFO!$H36=0,COUNTRY_INFO!$H36=4,COUNTRY_INFO!$H36=99),OR(COUNTRY_INFO!$J36=0,COUNTRY_INFO!$J36=4)),0,COUNTRY_INFO!$F36)) -> 42938 | F36: 62657 | G36: =IF(AND(INTRO!$E$37="Non endémique",INTRO!$E$41="Non endémique"),0,COUNTRY_INFO!P36) -> 0 | H36: =IF(AND(INTRO!$E$37="Non endémique",INTRO!$E$41="Non endémique"),0,COUNTRY_INFO!R36) -> 1 | I36: =IF(INTRO!$E$39="Non endémique",IF($G36=1,DEC!I36,0),IF($G36=1,IVM!G36,0)) -> 0 | J36: ALB | L36: 42938 | N36: 42938 | O36: =IF($J36="MBD", IF(INTRO!$E$39="Non endémique",IF($H36<>0,$D36*($H36-$G36),0),$D36*$H36),0) -> 0 | P36: 0 | R36: 0 | T36: 0 | U36: 0 | W36: 42938 | X36: 215 | Z36: 0 | AA36: 0
A37: =IF(AND(INTRO!$E$37="Non endémique",INTRO!$E$41="Non endémique")," ",IF(COUNTRY_INFO!A37=0," ",COUNTRY_INFO!A37)) -> Benin | B37: =IF(AND(INTRO!$E$37="Non endémique",INTRO!$E$41="Non endémique")," ",IF(COUNTRY_INFO!B37=0," ",COUNTRY_INFO!B37)) -> Borgou | C37: =IF(AND(INTRO!$E$37="Non endémique",INTRO!$E$41="Non endémique")," ",IF(COUNTRY_INFO!C37=0," ",COUNTRY_INFO!C37)) -> Pèrèrè | D37: =IF(AND(INTRO!$E$37="Non endémique",INTRO!$E$41="Non endémique"),0,IF(AND(OR(COUNTRY_INFO!$H37=0,COUNTRY_INFO!$H37=4,COUNTRY_INFO!$H37=99),OR(COUNTRY_INFO!$J37=0,COUNTRY_INFO!$J37=4)),0,COUNTRY_INFO!$E37)) -> 12202 | E37: =IF(AND(INTRO!$E$37="Non endémique",INTRO!$E$41="Non endémique"),0,IF(AND(OR(COUNTRY_INFO!$H37=0,COUNTRY_INFO!$H37=4,COUNTRY_INFO!$H37=99),OR(COUNTRY_INFO!$J37=0,COUNTRY_INFO!$J37=4)),0,COUNTRY_INFO!$F37)) -> 26570 | F37: 38772 | G37: =IF(AND(INTRO!$E$37="Non endémique",INTRO!$E$41="Non endémique"),0,COUNTRY_INFO!P37) -> 0 | H37: =IF(AND(INTRO!$E$37="Non endémique",INTRO!$E$41="Non endémique"),0,COUNTRY_INFO!R37) -> 1 | I37: =IF(INTRO!$E$39="Non endémique",IF($G37=1,DEC!I37,0),IF($G37=1,IVM!G37,0)) -> 0 | J37: ALB | L37: 26570 | N37: 26570 | O37: =IF($J37="MBD", IF(INTRO!$E$39="Non endémique",IF($H37<>0,$D37*($H37-$G37),0),$D37*$H37),0) -> 0 | P37: 0 | R37: 0 | T37: 0 | U37: 0 | W37: 26570 | X37: 133 | Z37: 0 | AA37: 0
A38: =IF(AND(INTRO!$E$37="Non endémique",INTRO!$E$41="Non endémique")," ",IF(COUNTRY_INFO!A38=0," ",COUNTRY_INFO!A38)) -> Benin | B38: =IF(AND(INTRO!$E$37="Non endémique",INTRO!$E$41="Non endémique")," ",IF(COUNTRY_INFO!B38=0," ",COUNTRY_INFO!B38)) -> Borgou | C38: =IF(AND(INTRO!$E$37="Non endémique",INTRO!$E$41="Non endémique")," ",IF(COUNTRY_INFO!C38=0," ",COUNTRY_INFO!C38)) -> Sinendé | D38: =IF(AND(INTRO!$E$37="Non endémique",INTRO!$E$41="Non endémique"),0,IF(AND(OR(COUNTRY_INFO!$H38=0,COUNTRY_INFO!$H38=4,COUNTRY_INFO!$H38=99),OR(COUNTRY_INFO!$J38=0,COUNTRY_INFO!$J38=4)),0,COUNTRY_INFO!$E38)) -> 10109 | E38: =IF(AND(INTRO!$E$37="Non endémique",INTRO!$E$41="Non endémique"),0,IF(AND(OR(COUNTRY_INFO!$H38=0,COUNTRY_INFO!$H38=4,COUNTRY_INFO!$H38=99),OR(COUNTRY_INFO!$J38=0,COUNTRY_INFO!$J38=4)),0,COUNTRY_INFO!$F38)) -> 22012 | F38: 32121 | G38: =IF(AND(INTRO!$E$37="Non endémique",INTRO!$E$41="Non endémique"),0,COUNTRY_INFO!P38) -> 0 | H38: =IF(AND(INTRO!$E$37="Non endémique",INTRO!$E$41="Non endémique"),0,COUNTRY_INFO!R38) -> 1 | I38: =IF(INTRO!$E$39="Non endémique",IF($G38=1,DEC!I38,0),IF($G38=1,IVM!G38,0)) -> 0 | J38: ALB | L38: 22012 | N38: 22012 | O38: =IF($J38="MBD", IF(INTRO!$E$39="Non endémique",IF($H38<>0,$D38*($H38-$G38),0),$D38*$H38),0) -> 0 | P38: 0 | R38: 0 | T38: 0 | U38: 0 | W38: 22012 | X38: 111 | Z38: 0 | AA38: 0
A39: =IF(AND(INTRO!$E$37="Non endémique",INTRO!$E$41="Non endémique")," ",IF(COUNTRY_INFO!A39=0," ",COUNTRY_INFO!A39)) -> Benin | B39: =IF(AND(INTRO!$E$37="Non endémique",INTRO!$E$41="Non endémique")," ",IF(COUNTRY_INFO!B39=0," ",COUNTRY_INFO!B39)) -> Borgou | C39: =IF(AND(INTRO!$E$37="Non endémique",INTRO!$E$41="Non endémique")," ",IF(COUNTRY_INFO!C39=0," ",COUNTRY_INFO!C39)) -> Tchaourou | D39: =IF(AND(INTRO!$E$37="Non endémique",INTRO!$E$41="Non endémique"),0,IF(AND(OR(COUNTRY_INFO!$H39=0,COUNTRY_INFO!$H39=4,COUNTRY_INFO!$H39=99),OR(COUNTRY_INFO!$J39=0,COUNTRY_INFO!$J39=4)),0,COUNTRY_INFO!$E39)) -> 39225 | E39: =IF(AND(INTRO!$E$37="Non endémique",INTRO!$E$41="Non endémique"),0,IF(AND(OR(COUNTRY_INFO!$H39=0,COUNTRY_INFO!$H39=4,COUNTRY_INFO!$H39=99),OR(COUNTRY_INFO!$J39=0,COUNTRY_INFO!$J39=4)),0,COUNTRY_INFO!$F39)) -> 85409 | F39: 124634 | G39: =IF(AND(INTRO!$E$37="Non endémique",INTRO!$E$41="Non endémique"),0,COUNTRY_INFO!P39) -> 0 | H39: =IF(AND(INTRO!$E$37="Non endémique",INTRO!$E$41="Non endémique"),0,COUNTRY_INFO!R39) -> 0 | I39: =IF(INTRO!$E$39="Non endémique",IF($G39=1,DEC!I39,0),IF($G39=1,IVM!G39,0)) -> 0 | L39: 0 | N39: 0 | O39: =IF($J39="MBD", IF(INTRO!$E$39="Non endémique",IF($H39<>0,$D39*($H39-$G39),0),$D39*$H39),0) -> 0 | P39: 0 | R39: 0 | T39: 0 | U39: 0 | W39: 0 | X39: 0 | Z39: 0 | AA39: 0
A40: =IF(AND(INTRO!$E$37="Non endémique",INTRO!$E$41="Non endémique")," ",IF(COUNTRY_INFO!A40=0," ",COUNTRY_INFO!A40)) -> Benin | B40: =IF(AND(INTRO!$E$37="Non endémique",INTRO!$E$41="Non endémique")," ",IF(COUNTRY_INFO!B40=0," ",COUNTRY_INFO!B40)) -> Collines | C40: =IF(AND(INTRO!$E$37="Non endémique",INTRO!$E$41="Non endémique")," ",IF(COUNTRY_INFO!C40=0," ",COUNTRY_INFO!C40)) -> Bantè | D40: =IF(AND(INTRO!$E$37="Non endémique",INTRO!$E$41="Non endémique"),0,IF(AND(OR(COUNTRY_INFO!$H40=0,COUNTRY_INFO!$H40=4,COUNTRY_INFO!$H40=99),OR(COUNTRY_INFO!$J40=0,COUNTRY_INFO!$J40=4)),0,COUNTRY_INFO!$E40)) -> 12339 | E40: =IF(AND(INTRO!$E$37="Non endémique",INTRO!$E$41="Non endémique"),0,IF(AND(OR(COUNTRY_INFO!$H40=0,COUNTRY_INFO!$H40=4,COUNTRY_INFO!$H40=99),OR(COUNTRY_INFO!$J40=0,COUNTRY_INFO!$J40=4)),0,COUNTRY_INFO!$F40)) -> 26868 | F40: 39207 | G40: =IF(AND(INTRO!$E$37="Non endémique",INTRO!$E$41="Non endémique"),0,COUNTRY_INFO!P40) -> 0 | H40: =IF(AND(INTRO!$E$37="Non endémique",INTRO!$E$41="Non endémique"),0,COUNTRY_INFO!R40) -> 0 | I40: =IF(INTRO!$E$39="Non endémique",IF($G40=1,DEC!I40,0),IF($G40=1,IVM!G40,0)) -> 0 | L40: 0 | N40: 0 | O40: =IF($J40="MBD", IF(INTRO!$E$39="Non endémique",IF($H40<>0,$D40*($H40-$G40),0),$D40*$H40),0) -> 0 | P40: 0 | R40: 0 | T40: 0 | U40: 0 | W40: 0 | X40: 0 | Z40: 0 | AA40: 0
A41: =IF(AND(INTRO!$E$37="Non endémique",INTRO!$E$41="Non endémique")," ",IF(COUNTRY_INFO!A41=0," ",COUNTRY_INFO!A41)) -> Benin | B41: =IF(AND(INTRO!$E$37="Non endémique",INTRO!$E$41="Non endémique")," ",IF(COUNTRY_INFO!B41=0," ",COUNTRY_INFO!B41)) -> Collines | C41: =IF(AND(INTRO!$E$37="Non endémique",INTRO!$E$41="Non endémique")," ",IF(COUNTRY_INFO!C41=0," ",COUNTRY_INFO!C41)) -> Dassa-Zoumè | D41: =IF(AND(INTRO!$E$37="Non endémique",INTRO!$E$41="Non endémique"),0,IF(AND(OR(COUNTRY_INFO!$H41=0,COUNTRY_INFO!$H41=4,COUNTRY_INFO!$H41=99),OR(COUNTRY_INFO!$J41=0,COUNTRY_INFO!$J41=4)),0,COUNTRY_INFO!$E41)) -> 13923 | E41: =IF(AND(INTRO!$E$37="Non endémique",INTRO!$E$41="Non endémique"),0,IF(AND(OR(COUNTRY_INFO!$H41=0,COUNTRY_INFO!$H41=4,COUNTRY_INFO!$H41=99),OR(COUNTRY_INFO!$J41=0,COUNTRY_INFO!$J41=4)),0,COUNTRY_INFO!$F41)) -> 30316 | F41: =SUM(D41:E41) -> 44239 | G41: =IF(AND(INTRO!$E$37="Non endémique",INTRO!$E$41="Non endémique"),0,COUNTRY_INFO!P41) -> 0 | H41: =IF(AND(INTRO!$E$37="Non endémique",INTRO!$E$41="Non endémique"),0,COUNTRY_INFO!R41) -> 1 | I41: =IF(INTRO!$E$39="Non endémique",IF($G41=1,DEC!I41,0),IF($G41=1,IVM!G41,0)) -> 0 | J41: ALB | L41: =IF($J41="ALB", IF($H41<>0, IF($I41=0, $E41*$H41, $E41*($H41-$G41)),0), 0) -> 30316 | N41: =SUM(K41:M41) -> 30316 | O41: =IF($J41="MBD", IF(INTRO!$E$39="Non endémique",IF($H41<>0,$D41*($H41-$G41),0),$D41*$H41),0) -> 0 | P41: =IF($J41="MBD", IF($H41<>0,IF($I41=0, $E41*$H41, $E41*($H41-$G41)),0), 0 ) -> 0 | R41: =SUM(O41:Q41) -> 0 | T41: =IF($I41>$S41, $I41-$S41,0) -> 0 | U41: =ROUNDUP($I41/200,0) -> 0 | W41: =IF($L41>$V41,$L41-$V41,0) -> 30316 | X41: =ROUNDUP($L41/200,0) -> 152 | Z41: =IF($P41>$Y41,$P41-$Y41,0) -> 0 | AA41: =ROUNDUP($P41/150,0) -> 0
A42: =IF(AND(INTRO!$E$37="Non endémique",INTRO!$E$41="Non endémique")," ",IF(COUNTRY_INFO!A42=0," ",COUNTRY_INFO!A42)) -> Benin | B42: =IF(AND(INTRO!$E$37="Non endémique",INTRO!$E$41="Non endémique")," ",IF(COUNTRY_INFO!B42=0," ",COUNTRY_INFO!B42)) -> Collines | C42: =IF(AND(INTRO!$E$37="Non endémique",INTRO!$E$41="Non endémique")," ",IF(COUNTRY_INFO!C42=0," ",COUNTRY_INFO!C42)) -> Glazoué | D42: =IF(AND(INTRO!$E$37="Non endémique",INTRO!$E$41="Non endémique"),0,IF(AND(OR(COUNTRY_INFO!$H42=0,COUNTRY_INFO!$H42=4,COUNTRY_INFO!$H42=99),OR(COUNTRY_INFO!$J42=0,COUNTRY_INFO!$J42=4)),0,COUNTRY_INFO!$E42)) -> 14429 | E42: =IF(AND(INTRO!$E$37="Non endémique",INTRO!$E$41="Non endémique"),0,IF(AND(OR(COUNTRY_INFO!$H42=0,COUNTRY_INFO!$H42=4,COUNTRY_INFO!$H42=99),OR(COUNTRY_INFO!$J42=0,COUNTRY_INFO!$J42=4)),0,COUNTRY_INFO!$F42)) -> 31418 | F42: 45847 | G42: =IF(AND(INTRO!$E$37="Non endémique",INTRO!$E$41="Non endémique"),0,COUNTRY_INFO!P42) -> 0 | H42: =IF(AND(INTRO!$E$37="Non endémique",INTRO!$E$41="Non endémique"),0,COUNTRY_INFO!R42) -> 0 | I42: =IF(INTRO!$E$39="Non endémique",IF($G42=1,DEC!I42,0),IF($G42=1,IVM!G42,0)) -> 0 | L42: 0 | N42: 0 | O42: =IF($J42="MBD", IF(INTRO!$E$39="Non endémique",IF($H42<>0,$D42*($H42-$G42),0),$D42*$H42),0) -> 0 | P42: 0 | R42: 0 | T42: 0 | U42: 0 | W42: 0 | X42: 0 | Z42: 0 | AA42: 0
A43: =IF(AND(INTRO!$E$37="Non endémique",INTRO!$E$41="Non endémique")," ",IF(COUNTRY_INFO!A43=0," ",COUNTRY_INFO!A43)) -> Benin | B43: =IF(AND(INTRO!$E$37="Non endémique",INTRO!$E$41="Non endémique")," ",IF(COUNTRY_INFO!B43=0," ",COUNTRY_INFO!B43)) -> Collines | C43: =IF(AND(INTRO!$E$37="Non endémique",INTRO!$E$41="Non endémique")," ",IF(COUNTRY_INFO!C43=0," ",COUNTRY_INFO!C43)) -> Ouèssè | D43: =IF(AND(INTRO!$E$37="Non endémique",INTRO!$E$41="Non endémique"),0,IF(AND(OR(COUNTRY_INFO!$H43=0,COUNTRY_INFO!$H43=4,COUNTRY_INFO!$H43=99),OR(COUNTRY_INFO!$J43=0,COUNTRY_INFO!$J43=4)),0,COUNTRY_INFO!$E43)) -> 16805 | E43: =IF(AND(INTRO!$E$37="Non endémique",INTRO!$E$41="Non endémique"),0,IF(AND(OR(COUNTRY_INFO!$H43=0,COUNTRY_INFO!$H43=4,COUNTRY_INFO!$H43=99),OR(COUNTRY_INFO!$J43=0,COUNTRY_INFO!$J43=4)),0,COUNTRY_INFO!$F43)) -> 36591 | F43: 53396 | G43: =IF(AND(INTRO!$E$37="Non endémique",INTRO!$E$41="Non endémique"),0,COUNTRY_INFO!P43) -> 0 | H43: =IF(AND(INTRO!$E$37="Non endémique",INTRO!$E$41="Non endémique"),0,COUNTRY_INFO!R43) -> 1 | I43: =IF(INTRO!$E$39="Non endémique",IF($G43=1,DEC!I43,0),IF($G43=1,IVM!G43,0)) -> 0 | J43: ALB | L43: 36591 | N43: 36591 | O43: =IF($J43="MBD", IF(INTRO!$E$39="Non endémique",IF($H43<>0,$D43*($H43-$G43),0),$D43*$H43),0) -> 0 | P43: 0 | R43: 0 | T43: 0 | U43: 0 | W43: 36591 | X43: 183 | Z43: 0 | AA43: 0
A44: =IF(AND(INTRO!$E$37="Non endémique",INTRO!$E$41="Non endémique")," ",IF(COUNTRY_INFO!A44=0," ",COUNTRY_INFO!A44)) -> Benin | B44: =IF(AND(INTRO!$E$37="Non endémique",INTRO!$E$41="Non endémique")," ",IF(COUNTRY_INFO!B44=0," ",COUNTRY_INFO!B44)) -> Collines | C44: =IF(AND(INTRO!$E$37="Non endémique",INTRO!$E$41="Non endémique")," ",IF(COUNTRY_INFO!C44=0," ",COUNTRY_INFO!C44)) -> Savalou | D44: =IF(AND(INTRO!$E$37="Non endémique",INTRO!$E$41="Non endémique"),0,IF(AND(OR(COUNTRY_INFO!$H44=0,COUNTRY_INFO!$H44=4,COUNTRY_INFO!$H44=99),OR(COUNTRY_INFO!$J44=0,COUNTRY_INFO!$J44=4)),0,COUNTRY_INFO!$E44)) -> 20403 | E44: =IF(AND(INTRO!$E$37="Non endémique",INTRO!$E$41="Non endémique"),0,IF(AND(OR(COUNTRY_INFO!$H44=0,COUNTRY_INFO!$H44=4,COUNTRY_INFO!$H44=99),OR(COUNTRY_INFO!$J44=0,COUNTRY_INFO!$J44=4)),0,COUNTRY_INFO!$F44)) -> 44426 | F44: 64829 | G44: =IF(AND(INTRO!$E$37="Non endémique",INTRO!$E$41="Non endémique"),0,COUNTRY_INFO!P44) -> 0 | H44: =IF(AND(INTRO!$E$37="Non endémique",INTRO!$E$41="Non endémique"),0,COUNTRY_INFO!R44) -> 0 | I44: =IF(INTRO!$E$39="Non endémique",IF($G44=1,DEC!I44,0),IF($G44=1,IVM!G44,0)) -> 0 | L44: 0 | N44: 0 | O44: =IF($J44="MBD", IF(INTRO!$E$39="Non endémique",IF($H44<>0,$D44*($H44-$G44),0),$D44*$H44),0) -> 0 | P44: 0 | R44: 0 | T44: 0 | U44: 0 | W44: 0 | X44: 0 | Z44: 0 | AA44: 0
A45: =IF(AND(INTRO!$E$37="Non endémique",INTRO!$E$41="Non endémique")," ",IF(COUNTRY_INFO!A45=0," ",COUNTRY_INFO!A45)) -> Benin | B45: =IF(AND(INTRO!$E$37="Non endémique",INTRO!$E$41="Non endémique")," ",IF(COUNTRY_INFO!B45=0," ",COUNTRY_INFO!B45)) -> Collines | C45: =IF(AND(INTRO!$E$37="Non endémique",INTRO!$E$41="Non endémique")," ",IF(COUNTRY_INFO!C45=0," ",COUNTRY_INFO!C45)) -> Savè | D45: =IF(AND(INTRO!$E$37="Non endémique",INTRO!$E$41="Non endémique"),0,IF(AND(OR(COUNTRY_INFO!$H45=0,COUNTRY_INFO!$H45=4,COUNTRY_INFO!$H45=99),OR(COUNTRY_INFO!$J45=0,COUNTRY_INFO!$J45=4)),0,COUNTRY_INFO!$E45)) -> 12146 | E45: =IF(AND(INTRO!$E$37="Non endémique",INTRO!$E$41="Non endémique"),0,IF(AND(OR(COUNTRY_INFO!$H45=0,COUNTRY_INFO!$H45=4,COUNTRY_INFO!$H45=99),OR(COUNTRY_INFO!$J45=0,COUNTRY_INFO!$J45=4)),0,COUNTRY_INFO!$F45)) -> 26446 | F45: 38592 | G45: =IF(AND(INTRO!$E$37="Non endémique",INTRO!$E$41="Non endémique"),0,COUNTRY_INFO!P45) -> 0 | H45: =IF(AND(INTRO!$E$37="Non endémique",INTRO!$E$41="Non endémique"),0,COUNTRY_INFO!R45) -> 1 | I45: =IF(INTRO!$E$39="Non endémique",IF($G45=1,DEC!I45,0),IF($G45=1,IVM!G45,0)) -> 0 | J45: ALB | L45: 26446 | N45: 26446 | O45: =IF($J45="MBD", IF(INTRO!$E$39="Non endémique",IF($H45<>0,$D45*($H45-$G45),0),$D45*$H45),0) -> 0 | P45: 0 | R45: 0 | T45: 0 | U45: 0 | W45: 26446 | X45: 133 | Z45: 0 | AA45: 0
A46: =IF(AND(INTRO!$E$37="Non endémique",INTRO!$E$41="Non endémique")," ",IF(COUNTRY_INFO!A46=0," ",COUNTRY_INFO!A46)) -> Benin | B46: =IF(AND(INTRO!$E$37="Non endémique",INTRO!$E$41="Non endémique")," ",IF(COUNTRY_INFO!B46=0," ",COUNTRY_INFO!B46)) -> Couffo | C46: =IF(AND(INTRO!$E$37="Non endémique",INTRO!$E$41="Non endémique")," ",IF(COUNTRY_INFO!C46=0," ",COUNTRY_INFO!C46)) -> Aplahoué | D46: =IF(AND(INTRO!$E$37="Non endémique",INTRO!$E$41="Non endémique"),0,IF(AND(OR(COUNTRY_INFO!$H46=0,COUNTRY_INFO!$H46=4,COUNTRY_INFO!$H46=99),OR(COUNTRY_INFO!$J46=0,COUNTRY_INFO!$J46=4)),0,COUNTRY_INFO!$E46)) -> 28405 | E46: =IF(AND(INTRO!$E$37="Non endémique",INTRO!$E$41="Non endémique"),0,IF(AND(OR(COUNTRY_INFO!$H46=0,COUNTRY_INFO!$H46=4,COUNTRY_INFO!$H46=99),OR(COUNTRY_INFO!$J46=0,COUNTRY_INFO!$J46=4)),0,COUNTRY_INFO!$F46)) -> 61850 | F46: 90255 | G46: =IF(AND(INTRO!$E$37="Non endémique",INTRO!$E$41="Non endémique"),0,COUNTRY_INFO!P46) -> 0 | H46: =IF(AND(INTRO!$E$37="Non endémique",INTRO!$E$41="Non endémique"),0,COUNTRY_INFO!R46) -> 0 | I46: =IF(INTRO!$E$39="Non endémique",IF($G46=1,DEC!I46,0),IF($G46=1,IVM!G46,0)) -> 0 | L46: 0 | N46: 0 | O46: =IF($J46="MBD", IF(INTRO!$E$39="Non endémique",IF($H46<>0,$D46*($H46-$G46),0),$D46*$H46),0) -> 0 | P46: 0 | R46: 0 | T46: 0 | U46: 0 | W46: 0 | X46: 0 | Z46: 0 | AA46: 0
A47: =IF(AND(INTRO!$E$37="Non endémique",INTRO!$E$41="Non endémique")," ",IF(COUNTRY_INFO!A47=0," ",COUNTRY_INFO!A47)) -> Benin | B47: =IF(AND(INTRO!$E$37="Non endémique",INTRO!$E$41="Non endémique")," ",IF(COUNTRY_INFO!B47=0," ",COUNTRY_INFO!B47)) -> Couffo | C47: =IF(AND(INTRO!$E$37="Non endémique",INTRO!$E$41="Non endémique")," ",IF(COUNTRY_INFO!C47=0," ",COUNTRY_INFO!C47)) -> Djakotomè | D47: =IF(AND(INTRO!$E$37="Non endémique",INTRO!$E$41="Non endémique"),0,IF(AND(OR(COUNTRY_INFO!$H47=0,COUNTRY_INFO!$H47=4,COUNTRY_INFO!$H47=99),OR(COUNTRY_INFO!$J47=0,COUNTRY_INFO!$J47=4)),0,COUNTRY_INFO!$E47)) -> 23704 | E47: =IF(AND(INTRO!$E$37="Non endémique",INTRO!$E$41="Non endémique"),0,IF(AND(OR(COUNTRY_INFO!$H47=0,COUNTRY_INFO!$H47=4,COUNTRY_INFO!$H47=99),OR(COUNTRY_INFO!$J47=0,COUNTRY_INFO!$J47=4)),0,COUNTRY_INFO!$F47)) -> 51614 | F47: 75318 | G47: =IF(AND(INTRO!$E$37="Non endémique",INTRO!$E$41="Non endémique"),0,COUNTRY_INFO!P47) -> 0 | H47: =IF(AND(INTRO!$E$37="Non endémique",INTRO!$E$41="Non endémique"),0,COUNTRY_INFO!R47) -> 1 | I47: =IF(INTRO!$E$39="Non endémique",IF($G47=1,DEC!I47,0),IF($G47=1,IVM!G47,0)) -> 0 | J47: ALB | L47: 51614 | N47: 51614 | O47: =IF($J47="MBD", IF(INTRO!$E$39="Non endémique",IF($H47<>0,$D47*($H47-$G47),0),$D47*$H47),0) -> 0 | P47: 0 | R47: 0 | T47: 0 | U47: 0 | W47: 51614 | X47: 259 | Z47: 0 | AA47: 0
A48: =IF(AND(INTRO!$E$37="Non endémique",INTRO!$E$41="Non endémique")," ",IF(COUNTRY_INFO!A48=0," ",COUNTRY_INFO!A48)) -> Benin | B48: =IF(AND(INTRO!$E$37="Non endémique",INTRO!$E$41="Non endémique")," ",IF(COUNTRY_INFO!B48=0," ",COUNTRY_INFO!B48)) -> Couffo | C48: =IF(AND(INTRO!$E$37="Non endémique",INTRO!$E$41="Non endémique")," ",IF(COUNTRY_INFO!C48=0," ",COUNTRY_INFO!C48)) -> Dogbo | D48: =IF(AND(INTRO!$E$37="Non endémique",INTRO!$E$41="Non endémique"),0,IF(AND(OR(COUNTRY_INFO!$H48=0,COUNTRY_INFO!$H48=4,COUNTRY_INFO!$H48=99),OR(COUNTRY_INFO!$J48=0,COUNTRY_INFO!$J48=4)),0,COUNTRY_INFO!$E48)) -> 19158 | E48: =IF(AND(INTRO!$E$37="Non endémique",INTRO!$E$41="Non endémique"),0,IF(AND(OR(COUNTRY_INFO!$H48=0,COUNTRY_INFO!$H48=4,COUNTRY_INFO!$H48=99),OR(COUNTRY_INFO!$J48=0,COUNTRY_INFO!$J48=4)),0,COUNTRY_INFO!$F48)) -> 41715 | F48: 60873 | G48: =IF(AND(INTRO!$E$37="Non endémique",INTRO!$E$41="Non endémique"),0,COUNTRY_INFO!P48) -> 0 | H48: =IF(AND(INTRO!$E$37="Non endémique",INTRO!$E$41="Non endémique"),0,COUNTRY_INFO!R48) -> 0 | I48: =IF(INTRO!$E$39="Non endémique",IF($G48=1,DEC!I48,0),IF($G48=1,IVM!G48,0)) -> 0 | L48: 0 | N48: 0 | O48: =IF($J48="MBD", IF(INTRO!$E$39="Non endémique",IF($H48<>0,$D48*($H48-$G48),0),$D48*$H48),0) -> 0 | P48: 0 | R48: 0 | T48: 0 | U48: 0 | W48: 0 | X48: 0 | Z48: 0 | AA48: 0
A49: =IF(AND(INTRO!$E$37="Non endémique",INTRO!$E$41="Non endémique")," ",IF(COUNTRY_INFO!A49=0," ",COUNTRY_INFO!A49)) -> Benin | B49: =IF(AND(INTRO!$E$37="Non endémique",INTRO!$E$41="Non endémique")," ",IF(COUNTRY_INFO!B49=0," ",COUNTRY_INFO!B49)) -> Couffo | C49: =IF(AND(INTRO!$E$37="Non endémique",INTRO!$E$41="Non endémique")," ",IF(COUNTRY_INFO!C49=0," ",COUNTRY_INFO!C49)) -> Klouékamè | D49: =IF(AND(INTRO!$E$37="Non endémique",INTRO!$E$41="Non endémique"),0,IF(AND(OR(COUNTRY_INFO!$H49=0,COUNTRY_INFO!$H49=4,COUNTRY_INFO!$H49=99),OR(COUNTRY_INFO!$J49=0,COUNTRY_INFO!$J49=4)),0,COUNTRY_INFO!$E49)) -> 19536 | E49: =IF(AND(INTRO!$E$37="Non endémique",INTRO!$E$41="Non endémique"),0,IF(AND(OR(COUNTRY_INFO!$H49=0,COUNTRY_INFO!$H49=4,COUNTRY_INFO!$H49=99),OR(COUNTRY_INFO!$J49=0,COUNTRY_INFO!$J49=4)),0,COUNTRY_INFO!$F49)) -> 42537 | F49: 62073 | G49: =IF(AND(INTRO!$E$37="Non endémique",INTRO!$E$41="Non endémique"),0,COUNTRY_INFO!P49) -> 0 | H49: =IF(AND(INTRO!$E$37="Non endémique",INTRO!$E$41="Non endémique"),0,COUNTRY_INFO!R49) -> 1 | I49: =IF(INTRO!$E$39="Non endémique",IF($G49=1,DEC!I49,0),IF($G49=1,IVM!G49,0)) -> 0 | J49: ALB | L49: 42537 | N49: 42537 | O49: =IF($J49="MBD", IF(INTRO!$E$39="Non endémique",IF($H49<>0,$D49*($H49-$G49),0),$D49*$H49),0) -> 0 | P49: 0 | R49: 0 | T49: 0 | U49: 0 | W49: 42537 | X49: 213 | Z49: 0 | AA49: 0
A50: =IF(AND(INTRO!$E$37="Non endémique",INTRO!$E$41="Non endémique")," ",IF(COUNTRY_INFO!A50=0," ",COUNTRY_INFO!A50)) -> Benin | B50: =IF(AND(INTRO!$E$37="Non endémique",INTRO!$E$41="Non endémique")," ",IF(COUNTRY_INFO!B50=0," ",COUNTRY_INFO!B50)) -> Couffo | C50: =IF(AND(INTRO!$E$37="Non endémique",INTRO!$E$41="Non endémique")," ",IF(COUNTRY_INFO!C50=0," ",COUNTRY_INFO!C50)) -> Lalo | D50: =IF(AND(INTRO!$E$37="Non endémique",INTRO!$E$41="Non endémique"),0,IF(AND(OR(COUNTRY_INFO!$H50=0,COUNTRY_INFO!$H50=4,COUNTRY_INFO!$H50=99),OR(COUNTRY_INFO!$J50=0,COUNTRY_INFO!$J50=4)),0,COUNTRY_INFO!$E50)) -> 18560 | E50: =IF(AND(INTRO!$E$37="Non endémique",INTRO!$E$41="Non endémique"),0,IF(AND(OR(COUNTRY_INFO!$H50=0,COUNTRY_INFO!$H50=4,COUNTRY_INFO!$H50=99),OR(COUNTRY_INFO!$J50=0,COUNTRY_INFO!$J50=4)),0,COUNTRY_INFO!$F50)) -> 40414 | F50: 58974 | G50: =IF(AND(INTRO!$E$37="Non endémique",INTRO!$E$41="Non endémique"),0,COUNTRY_INFO!P50) -> 0 | H50: =IF(AND(INTRO!$E$37="Non endémique",INTRO!$E$41="Non endémique"),0,COUNTRY_INFO!R50) -> 0 | I50: =IF(INTRO!$E$39="Non endémique",IF($G50=1,DEC!I50,0),IF($G50=1,IVM!G50,0)) -> 0 | L50: 0 | N50: 0 | O50: =IF($J50="MBD", IF(INTRO!$E$39="Non endémique",IF($H50<>0,$D50*($H50-$G50),0),$D50*$H50),0) -> 0 | P50: 0 | R50: 0 | T50: 0 | U50: 0 | W50: 0 | X50: 0 | Z50: 0 | AA50: 0
A51: =IF(AND(INTRO!$E$37="Non endémique",INTRO!$E$41="Non endémique")," ",IF(COUNTRY_INFO!A51=0," ",COUNTRY_INFO!A51)) -> Benin | B51: =IF(AND(INTRO!$E$37="Non endémique",INTRO!$E$41="Non endémique")," ",IF(COUNTRY_INFO!B51=0," ",COUNTRY_INFO!B51)) -> Couffo | C51: =IF(AND(INTRO!$E$37="Non endémique",INTRO!$E$41="Non endémique")," ",IF(COUNTRY_INFO!C51=0," ",COUNTRY_INFO!C51)) -> Toviklin | D51: =IF(AND(INTRO!$E$37="Non endémique",INTRO!$E$41="Non endémique"),0,IF(AND(OR(COUNTRY_INFO!$H51=0,COUNTRY_INFO!$H51=4,COUNTRY_INFO!$H51=99),OR(COUNTRY_INFO!$J51=0,COUNTRY_INFO!$J51=4)),0,COUNTRY_INFO!$E51)) -> 16472 | E51: =IF(AND(INTRO!$E$37="Non endémique",INTRO!$E$41="Non endémique"),0,IF(AND(OR(COUNTRY_INFO!$H51=0,COUNTRY_INFO!$H51=4,COUNTRY_INFO!$H51=99),OR(COUNTRY_INFO!$J51=0,COUNTRY_INFO!$J51=4)),0,COUNTRY_INFO!$F51)) -> 35868 | F51: 52340 | G51: =IF(AND(INTRO!$E$37="Non endémique",INTRO!$E$41="Non endémique"),0,COUNTRY_INFO!P51) -> 0 | H51: =IF(AND(INTRO!$E$37="Non endémique",INTRO!$E$41="Non endémique"),0,COUNTRY_INFO!R51) -> 1 | I51: =IF(INTRO!$E$39="Non endémique",IF($G51=1,DEC!I51,0),IF($G51=1,IVM!G51,0)) -> 0 | J51: ALB | L51: 35868 | N51: 35868 | O51: =IF($J51="MBD", IF(INTRO!$E$39="Non endémique",IF($H51<>0,$D51*($H51-$G51),0),$D51*$H51),0) -> 0 | P51: 0 | R51: 0 | T51: 0 | U51: 0 | W51: 35868 | X51: 180 | Z51: 0 | AA51: 0
A52: =IF(AND(INTRO!$E$37="Non endémique",INTRO!$E$41="Non endémique")," ",IF(COUNTRY_INFO!A52=0," ",COUNTRY_INFO!A52)) -> Benin | B52: =IF(AND(INTRO!$E$37="Non endémique",INTRO!$E$41="Non endémique")," ",IF(COUNTRY_INFO!B52=0," ",COUNTRY_INFO!B52)) -> Donga | C52: =IF(AND(INTRO!$E$37="Non endémique",INTRO!$E$41="Non endémique")," ",IF(COUNTRY_INFO!C52=0," ",COUNTRY_INFO!C52)) -> Bassila | D52: =IF(AND(INTRO!$E$37="Non endémique",INTRO!$E$41="Non endémique"),0,IF(AND(OR(COUNTRY_INFO!$H52=0,COUNTRY_INFO!$H52=4,COUNTRY_INFO!$H52=99),OR(COUNTRY_INFO!$J52=0,COUNTRY_INFO!$J52=4)),0,COUNTRY_INFO!$E52)) -> 15092 | E52: =IF(AND(INTRO!$E$37="Non endémique",INTRO!$E$41="Non endémique"),0,IF(AND(OR(COUNTRY_INFO!$H52=0,COUNTRY_INFO!$H52=4,COUNTRY_INFO!$H52=99),OR(COUNTRY_INFO!$J52=0,COUNTRY_INFO!$J52=4)),0,COUNTRY_INFO!$F52)) -> 32862 | F52: 47954 | G52: =IF(AND(INTRO!$E$37="Non endémique",INTRO!$E$41="Non endémique"),0,COUNTRY_INFO!P52) -> 0 | H52: =IF(AND(INTRO!$E$37="Non endémique",INTRO!$E$41="Non endémique"),0,COUNTRY_INFO!R52) -> 1 | I52: =IF(INTRO!$E$39="Non endémique",IF($G52=1,DEC!I52,0),IF($G52=1,IVM!G52,0)) -> 0 | J52: ALB | L52: 32862 | N52: 32862 | O52: =IF($J52="MBD", IF(INTRO!$E$39="Non endémique",IF($H52<>0,$D52*($H52-$G52),0),$D52*$H52),0) -> 0 | P52: 0 | R52: 0 | T52: 0 | U52: 0 | W52: 32862 | X52: 165 | Z52: 0 | AA52: 0
A53: =IF(AND(INTRO!$E$37="Non endémique",INTRO!$E$41="Non endémique")," ",IF(COUNTRY_INFO!A53=0," ",COUNTRY_INFO!A53)) -> Benin | B53: =IF(AND(INTRO!$E$37="Non endémique",INTRO!$E$41="Non endémique")," ",IF(COUNTRY_INFO!B53=0," ",COUNTRY_INFO!B53)) -> Donga | C53: =IF(AND(INTRO!$E$37="Non endémique",INTRO!$E$41="Non endémique")," ",IF(COUNTRY_INFO!C53=0," ",COUNTRY_INFO!C53)) -> Copargo | D53: =IF(AND(INTRO!$E$37="Non endémique",INTRO!$E$41="Non endémique"),0,IF(AND(OR(COUNTRY_INFO!$H53=0,COUNTRY_INFO!$H53=4,COUNTRY_INFO!$H53=99),OR(COUNTRY_INFO!$J53=0,COUNTRY_INFO!$J53=4)),0,COUNTRY_INFO!$E53)) -> 12357 | E53: =IF(AND(INTRO!$E$37="Non endémique",INTRO!$E$41="Non endémique"),0,IF(AND(OR(COUNTRY_INFO!$H53=0,COUNTRY_INFO!$H53=4,COUNTRY_INFO!$H53=99),OR(COUNTRY_INFO!$J53=0,COUNTRY_INFO!$J53=4)),0,COUNTRY_INFO!$F53)) -> 26907 | F53: 39264 | G53: =IF(AND(INTRO!$E$37="Non endémique",INTRO!$E$41="Non endémique"),0,COUNTRY_INFO!P53) -> 0 | H53: =IF(AND(INTRO!$E$37="Non endémique",INTRO!$E$41="Non endémique"),0,COUNTRY_INFO!R53) -> 1 | I53: =IF(INTRO!$E$39="Non endémique",IF($G53=1,DEC!I53,0),IF($G53=1,IVM!G53,0)) -> 0 | J53: ALB | L53: 26907 | N53: 26907 | O53: =IF($J53="MBD", IF(INTRO!$E$39="Non endémique",IF($H53<>0,$D53*($H53-$G53),0),$D53*$H53),0) -> 0 | P53: 0 | R53: 0 | T53: 0 | U53: 0 | W53: 26907 | X53: 135 | Z53: 0 | AA53: 0
A54: =IF(AND(INTRO!$E$37="Non endémique",INTRO!$E$41="Non endémique")," ",IF(COUNTRY_INFO!A54=0," ",COUNTRY_INFO!A54)) -> Benin | B54: =IF(AND(INTRO!$E$37="Non endémique",INTRO!$E$41="Non endémique")," ",IF(COUNTRY_INFO!B54=0," ",COUNTRY_INFO!B54)) -> Donga | C54: =IF(AND(INTRO!$E$37="Non endémique",INTRO!$E$41="Non endémique")," ",IF(COUNTRY_INFO!C54=0," ",COUNTRY_INFO!C54)) -> Djougou | D54: =IF(AND(INTRO!$E$37="Non endémique",INTRO!$E$41="Non endémique"),0,IF(AND(OR(COUNTRY_INFO!$H54=0,COUNTRY_INFO!$H54=4,COUNTRY_INFO!$H54=99),OR(COUNTRY_INFO!$J54=0,COUNTRY_INFO!$J54=4)),0,COUNTRY_INFO!$E54)) -> 33557 | E54: =IF(AND(INTRO!$E$37="Non endémique",INTRO!$E$41="Non endémique"),0,IF(AND(OR(COUNTRY_INFO!$H54=0,COUNTRY_INFO!$H54=4,COUNTRY_INFO!$H54=99),OR(COUNTRY_INFO!$J54=0,COUNTRY_INFO!$J54=4)),0,COUNTRY_INFO!$F54)) -> 73067 | F54: 106624 | G54: =IF(AND(INTRO!$E$37="Non endémique",INTRO!$E$41="Non endémique"),0,COUNTRY_INFO!P54) -> 0 | H54: =IF(AND(INTRO!$E$37="Non endémique",INTRO!$E$41="Non endémique"),0,COUNTRY_INFO!R54) -> 0 | I54: =IF(INTRO!$E$39="Non endémique",IF($G54=1,DEC!I54,0),IF($G54=1,IVM!G54,0)) -> 0 | L54: 0 | N54: 0 | O54: =IF($J54="MBD", IF(INTRO!$E$39="Non endémique",IF($H54<>0,$D54*($H54-$G54),0),$D54*$H54),0) -> 0 | P54: 0 | R54: 0 | T54: 0 | U54: 0 | W54: 0 | X54: 0 | Z54: 0 | AA54: 0
A55: =IF(AND(INTRO!$E$37="Non endémique",INTRO!$E$41="Non endémique")," ",IF(COUNTRY_INFO!A55=0," ",COUNTRY_INFO!A55)) -> Benin | B55: =IF(AND(INTRO!$E$37="Non endémique",INTRO!$E$41="Non endémique")," ",IF(COUNTRY_INFO!B55=0," ",COUNTRY_INFO!B55)) -> Donga | C55: =IF(AND(INTRO!$E$37="Non endémique",INTRO!$E$41="Non endémique")," ",IF(COUNTRY_INFO!C55=0," ",COUNTRY_INFO!C55)) -> Ouaké | D55: =IF(AND(INTRO!$E$37="Non endémique",INTRO!$E$41="Non endémique"),0,IF(AND(OR(COUNTRY_INFO!$H55=0,COUNTRY_INFO!$H55=4,COUNTRY_INFO!$H55=99),OR(COUNTRY_INFO!$J55=0,COUNTRY_INFO!$J55=4)),0,COUNTRY_INFO!$E55)) -> 11762 | E55: =IF(AND(INTRO!$E$37="Non endémique",INTRO!$E$41="Non endémique"),0,IF(AND(OR(COUNTRY_INFO!$H55=0,COUNTRY_INFO!$H55=4,COUNTRY_INFO!$H55=99),OR(COUNTRY_INFO!$J55=0,COUNTRY_INFO!$J55=4)),0,COUNTRY_INFO!$F55)) -> 25611 | F55: 37373 | G55: =IF(AND(INTRO!$E$37="Non endémique",INTRO!$E$41="Non endémique"),0,COUNTRY_INFO!P55) -> 0 | H55: =IF(AND(INTRO!$E$37="Non endémique",INTRO!$E$41="Non endémique"),0,COUNTRY_INFO!R55) -> 1 | I55: =IF(INTRO!$E$39="Non endémique",IF($G55=1,DEC!I55,0),IF($G55=1,IVM!G55,0)) -> 0 | J55: ALB | L55: 25611 | N55: 25611 | O55: =IF($J55="MBD", IF(INTRO!$E$39="Non endémique",IF($H55<>0,$D55*($H55-$G55),0),$D55*$H55),0) -> 0 | P55: 0 | R55: 0 | T55: 0 | U55: 0 | W55: 25611 | X55: 129 | Z55: 0 | AA55: 0
A56: =IF(AND(INTRO!$E$37="Non endémique",INTRO!$E$41="Non endémique")," ",IF(COUNTRY_INFO!A56=0," ",COUNTRY_INFO!A56)) -> Benin | B56: =IF(AND(INTRO!$E$37="Non endémique",INTRO!$E$41="Non endémique")," ",IF(COUNTRY_INFO!B56=0," ",COUNTRY_INFO!B56)) -> Littoral | C56: =IF(AND(INTRO!$E$37="Non endémique",INTRO!$E$41="Non endémique")," ",IF(COUNTRY_INFO!C56=0," ",COUNTRY_INFO!C56)) -> Cotonou | D56: =IF(AND(INTRO!$E$37="Non endémique",INTRO!$E$41="Non endémique"),0,IF(AND(OR(COUNTRY_INFO!$H56=0,COUNTRY_INFO!$H56=4,COUNTRY_INFO!$H56=99),OR(COUNTRY_INFO!$J56=0,COUNTRY_INFO!$J56=4)),0,COUNTRY_INFO!$E56)) -> 126228 | E56: =IF(AND(INTRO!$E$37="Non endémique",INTRO!$E$41="Non endémique"),0,IF(AND(OR(COUNTRY_INFO!$H56=0,COUNTRY_INFO!$H56=4,COUNTRY_INFO!$H56=99),OR(COUNTRY_INFO!$J56=0,COUNTRY_INFO!$J56=4)),0,COUNTRY_INFO!$F56)) -> 274850 | F56: 401078 | G56: =IF(AND(INTRO!$E$37="Non endémique",INTRO!$E$41="Non endémique"),0,COUNTRY_INFO!P56) -> 0 | H56: =IF(AND(INTRO!$E$37="Non endémique",INTRO!$E$41="Non endémique"),0,COUNTRY_INFO!R56) -> 0 | I56: =IF(INTRO!$E$39="Non endémique",IF($G56=1,DEC!I56,0),IF($G56=1,IVM!G56,0)) -> 0 | L56: 0 | N56: 0 | O56: =IF($J56="MBD", IF(INTRO!$E$39="Non endémique",IF($H56<>0,$D56*($H56-$G56),0),$D56*$H56),0) -> 0 | P56: 0 | R56: 0 | T56: 0 | U56: 0 | W56: 0 | X56: 0 | Z56: 0 | AA56: 0
A57: =IF(AND(INTRO!$E$37="Non endémique",INTRO!$E$41="Non endémique")," ",IF(COUNTRY_INFO!A57=0," ",COUNTRY_INFO!A57)) -> Benin | B57: =IF(AND(INTRO!$E$37="Non endémique",INTRO!$E$41="Non endémique")," ",IF(COUNTRY_INFO!B57=0," ",COUNTRY_INFO!B57)) -> Mono | C57: =IF(AND(INTRO!$E$37="Non endémique",INTRO!$E$41="Non endémique")," ",IF(COUNTRY_INFO!C57=0," ",COUNTRY_INFO!C57)) -> Athiémé | D57: =IF(AND(INTRO!$E$37="Non endémique",INTRO!$E$41="Non endémique"),0,IF(AND(OR(COUNTRY_INFO!$H57=0,COUNTRY_INFO!$H57=4,COUNTRY_INFO!$H57=99),OR(COUNTRY_INFO!$J57=0,COUNTRY_INFO!$J57=4)),0,COUNTRY_INFO!$E57)) -> 9292 | E57: =IF(AND(INTRO!$E$37="Non endémique",INTRO!$E$41="Non endémique"),0,IF(AND(OR(COUNTRY_INFO!$H57=0,COUNTRY_INFO!$H57=4,COUNTRY_INFO!$H57=99),OR(COUNTRY_INFO!$J57=0,COUNTRY_INFO!$J57=4)),0,COUNTRY_INFO!$F57)) -> 20232 | F57: 29524 | G57: =IF(AND(INTRO!$E$37="Non endémique",INTRO!$E$41="Non endémique"),0,COUNTRY_INFO!P57) -> 0 | H57: =IF(AND(INTRO!$E$37="Non endémique",INTRO!$E$41="Non endémique"),0,COUNTRY_INFO!R57) -> 0 | I57: =IF(INTRO!$E$39="Non endémique",IF($G57=1,DEC!I57,0),IF($G57=1,IVM!G57,0)) -> 0 | L57: 0 | N57: 0 | O57: =IF($J57="MBD", IF(INTRO!$E$39="Non endémique",IF($H57<>0,$D57*($H57-$G57),0),$D57*$H57),0) -> 0 | P57: 0 | R57: 0 | T57: 0 | U57: 0 | W57: 0 | X57: 0 | Z57: 0 | AA57: 0
A58: =IF(AND(INTRO!$E$37="Non endémique",INTRO!$E$41="Non endémique")," ",IF(COUNTRY_INFO!A58=0," ",COUNTRY_INFO!A58)) -> Benin | B58: =IF(AND(INTRO!$E$37="Non endémique",INTRO!$E$41="Non endémique")," ",IF(COUNTRY_INFO!B58=0," ",COUNTRY_INFO!B58)) -> Mono | C58: =IF(AND(INTRO!$E$37="Non endémique",INTRO!$E$41="Non endémique")," ",IF(COUNTRY_INFO!C58=0," ",COUNTRY_INFO!C58)) -> Bopa | D58: =IF(AND(INTRO!$E$37="Non endémique",INTRO!$E$41="Non endémique"),0,IF(AND(OR(COUNTRY_INFO!$H58=0,COUNTRY_INFO!$H58=4,COUNTRY_INFO!$H58=99),OR(COUNTRY_INFO!$J58=0,COUNTRY_INFO!$J58=4)),0,COUNTRY_INFO!$E58)) -> 17898 | E58: =IF(AND(INTRO!$E$37="Non endémique",INTRO!$E$41="Non endémique"),0,IF(AND(OR(COUNTRY_INFO!$H58=0,COUNTRY_INFO!$H58=4,COUNTRY_INFO!$H58=99),OR(COUNTRY_INFO!$J58=0,COUNTRY_INFO!$J58=4)),0,COUNTRY_INFO!$F58)) -> 38972 | F58: 56870 | G58: =IF(AND(INTRO!$E$37="Non endémique",INTRO!$E$41="Non endémique"),0,COUNTRY_INFO!P58) -> 0 | H58: =IF(AND(INTRO!$E$37="Non endémique",INTRO!$E$41="Non endémique"),0,COUNTRY_INFO!R58) -> 0 | I58: =IF(INTRO!$E$39="Non endémique",IF($G58=1,DEC!I58,0),IF($G58=1,IVM!G58,0)) -> 0 | L58: 0 | N58: 0 | O58: =IF($J58="MBD", IF(INTRO!$E$39="Non endémique",IF($H58<>0,$D58*($H58-$G58),0),$D58*$H58),0) -> 0 | P58: 0 | R58: 0 | T58: 0 | U58: 0 | W58: 0 | X58: 0 | Z58: 0 | AA58: 0
A59: =IF(AND(INTRO!$E$37="Non endémique",INTRO!$E$41="Non endémique")," ",IF(COUNTRY_INFO!A59=0," ",COUNTRY_INFO!A59)) -> Benin | B59: =IF(AND(INTRO!$E$37="Non endémique",INTRO!$E$41="Non endémique")," ",IF(COUNTRY_INFO!B59=0," ",COUNTRY_INFO!B59)) -> Mono | C59: =IF(AND(INTRO!$E$37="Non endémique",INTRO!$E$41="Non endémique")," ",IF(COUNTRY_INFO!C59=0," ",COUNTRY_INFO!C59)) -> Comé | D59: =IF(AND(INTRO!$E$37="Non endémique",INTRO!$E$41="Non endémique"),0,IF(AND(OR(COUNTRY_INFO!$H59=0,COUNTRY_INFO!$H59=4,COUNTRY_INFO!$H59=99),OR(COUNTRY_INFO!$J59=0,COUNTRY_INFO!$J59=4)),0,COUNTRY_INFO!$E59)) -> 14870 | E59: =IF(AND(INTRO!$E$37="Non endémique",INTRO!$E$41="Non endémique"),0,IF(AND(OR(COUNTRY_INFO!$H59=0,COUNTRY_INFO!$H59=4,COUNTRY_INFO!$H59=99),OR(COUNTRY_INFO!$J59=0,COUNTRY_INFO!$J59=4)),0,COUNTRY_INFO!$F59)) -> 32377 | F59: 47247 | G59: =IF(AND(INTRO!$E$37="Non endémique",INTRO!$E$41="Non endémique"),0,COUNTRY_INFO!P59) -> 0 | H59: =IF(AND(INTRO!$E$37="Non endémique",INTRO!$E$41="Non endémique"),0,COUNTRY_INFO!R59) -> 0 | I59: =IF(INTRO!$E$39="Non endémique",IF($G59=1,DEC!I59,0),IF($G59=1,IVM!G59,0)) -> 0 | L59: 0 | N59: 0 | O59: =IF($J59="MBD", IF(INTRO!$E$39="Non endémique",IF($H59<>0,$D59*($H59-$G59),0),$D59*$H59),0) -> 0 | P59: 0 | R59: 0 | T59: 0 | U59: 0 | W59: 0 | X59: 0 | Z59: 0 | AA59: 0
A60: =IF(AND(INTRO!$E$37="Non endémique",INTRO!$E$41="Non endémique")," ",IF(COUNTRY_INFO!A60=0," ",COUNTRY_INFO!A60)) -> Benin | B60: =IF(AND(INTRO!$E$37="Non endémique",INTRO!$E$41="Non endémique")," ",IF(COUNTRY_INFO!B60=0," ",COUNTRY_INFO!B60)) -> Mono | C60: =IF(AND(INTRO!$E$37="Non endémique",INTRO!$E$41="Non endémique")," ",IF(COUNTRY_INFO!C60=0," ",COUNTRY_INFO!C60)) -> Grand-Popo | D60: =IF(AND(INTRO!$E$37="Non endémique",INTRO!$E$41="Non endémique"),0,IF(AND(OR(COUNTRY_INFO!$H60=0,COUNTRY_INFO!$H60=4,COUNTRY_INFO!$H60=99),OR(COUNTRY_INFO!$J60=0,COUNTRY_INFO!$J60=4)),0,COUNTRY_INFO!$E60)) -> 10714 | E60: =IF(AND(INTRO!$E$37="Non endémique",INTRO!$E$41="Non endémique"),0,IF(AND(OR(COUNTRY_INFO!$H60=0,COUNTRY_INFO!$H60=4,COUNTRY_INFO!$H60=99),OR(COUNTRY_INFO!$J60=0,COUNTRY_INFO!$J60=4)),0,COUNTRY_INFO!$F60)) -> 23330 | F60: 34044 | G60: =IF(AND(INTRO!$E$37="Non endémique",INTRO!$E$41="Non endémique"),0,COUNTRY_INFO!P60) -> 0 | H60: =IF(AND(INTRO!$E$37="Non endémique",INTRO!$E$41="Non endémique"),0,COUNTRY_INFO!R60) -> 0 | I60: =IF(INTRO!$E$39="Non endémique",IF($G60=1,DEC!I60,0),IF($G60=1,IVM!G60,0)) -> 0 | L60: 0 | N60: 0 | O60: =IF($J60="MBD", IF(INTRO!$E$39="Non endémique",IF($H60<>0,$D60*($H60-$G60),0),$D60*$H60),0) -> 0 | P60: 0 | R60: 0 | T60: 0 | U60: 0 | W60: 0 | X60: 0 | Z60: 0 | AA60: 0
A61: =IF(AND(INTRO!$E$37="Non endémique",INTRO!$E$41="Non endémique")," ",IF(COUNTRY_INFO!A61=0," ",COUNTRY_INFO!A61)) -> Benin | B61: =IF(AND(INTRO!$E$37="Non endémique",INTRO!$E$41="Non endémique")," ",IF(COUNTRY_INFO!B61=0," ",COUNTRY_INFO!B61)) -> Mono | C61: =IF(AND(INTRO!$E$37="Non endémique",INTRO!$E$41="Non endémique")," ",IF(COUNTRY_INFO!C61=0," ",COUNTRY_INFO!C61)) -> Houéyogbé | D61: =IF(AND(INTRO!$E$37="Non endémique",INTRO!$E$41="Non endémique"),0,IF(AND(OR(COUNTRY_INFO!$H61=0,COUNTRY_INFO!$H61=4,COUNTRY_INFO!$H61=99),OR(COUNTRY_INFO!$J61=0,COUNTRY_INFO!$J61=4)),0,COUNTRY_INFO!$E61)) -> 18942 | E61: =IF(AND(INTRO!$E$37="Non endémique",INTRO!$E$41="Non endémique"),0,IF(AND(OR(COUNTRY_INFO!$H61=0,COUNTRY_INFO!$H61=4,COUNTRY_INFO!$H61=99),OR(COUNTRY_INFO!$J61=0,COUNTRY_INFO!$J61=4)),0,COUNTRY_INFO!$F61)) -> 41244 | F61: 60186 | G61: =IF(AND(INTRO!$E$37="Non endémique",INTRO!$E$41="Non endémique"),0,COUNTRY_INFO!P61) -> 0 | H61: =IF(AND(INTRO!$E$37="Non endémique",INTRO!$E$41="Non endémique"),0,COUNTRY_INFO!R61) -> 0 | I61: =IF(INTRO!$E$39="Non endémique",IF($G61=1,DEC!I61,0),IF($G61=1,IVM!G61,0)) -> 0 | L61: 0 | N61: 0 | O61: =IF($J61="MBD", IF(INTRO!$E$39="Non endémique",IF($H61<>0,$D61*($H61-$G61),0),$D61*$H61),0) -> 0 | P61: 0 | R61: 0 | T61: 0 | U61: 0 | W61: 0 | X61: 0 | Z61: 0 | AA61: 0
A62: =IF(AND(INTRO!$E$37="Non endémique",INTRO!$E$41="Non endémique")," ",IF(COUNTRY_INFO!A62=0," ",COUNTRY_INFO!A62)) -> Benin | B62: =IF(AND(INTRO!$E$37="Non endémique",INTRO!$E$41="Non endémique")," ",IF(COUNTRY_INFO!B62=0," ",COUNTRY_INFO!B62)) -> Mono | C62: =IF(AND(INTRO!$E$37="Non endémique",INTRO!$E$41="Non endémique")," ",IF(COUNTRY_INFO!C62=0," ",COUNTRY_INFO!C62)) -> Lokossa | D62: =IF(AND(INTRO!$E$37="Non endémique",INTRO!$E$41="Non endémique"),0,IF(AND(OR(COUNTRY_INFO!$H62=0,COUNTRY_INFO!$H62=4,COUNTRY_INFO!$H62=99),OR(COUNTRY_INFO!$J62=0,COUNTRY_INFO!$J62=4)),0,COUNTRY_INFO!$E62)) -> 19512 | E62: =IF(AND(INTRO!$E$37="Non endémique",INTRO!$E$41="Non endémique"),0,IF(AND(OR(COUNTRY_INFO!$H62=0,COUNTRY_INFO!$H62=4,COUNTRY_INFO!$H62=99),OR(COUNTRY_INFO!$J62=0,COUNTRY_INFO!$J62=4)),0,COUNTRY_INFO!$F62)) -> 42486 | F62: 61998 | G62: =IF(AND(INTRO!$E$37="Non endémique",INTRO!$E$41="Non endémique"),0,COUNTRY_INFO!P62) -> 0 | H62: =IF(AND(INTRO!$E$37="Non endémique",INTRO!$E$41="Non endémique"),0,COUNTRY_INFO!R62) -> 0 | I62: =IF(INTRO!$E$39="Non endémique",IF($G62=1,DEC!I62,0),IF($G62=1,IVM!G62,0)) -> 0 | L62: 0 | N62: 0 | O62: =IF($J62="MBD", IF(INTRO!$E$39="Non endémique",IF($H62<>0,$D62*($H62-$G62),0),$D62*$H62),0) -> 0 | P62: 0 | R62: 0 | T62: 0 | U62: 0 | W62: 0 | X62: 0 | Z62: 0 | AA62: 0
A63: =IF(AND(INTRO!$E$37="Non endémique",INTRO!$E$41="Non endémique")," ",IF(COUNTRY_INFO!A63=0," ",COUNTRY_INFO!A63)) -> Benin | B63: =IF(AND(INTRO!$E$37="Non endémique",INTRO!$E$41="Non endémique")," ",IF(COUNTRY_INFO!B63=0," ",COUNTRY_INFO!B63)) -> Oueme | C63: =IF(AND(INTRO!$E$37="Non endémique",INTRO!$E$41="Non endémique")," ",IF(COUNTRY_INFO!C63=0," ",COUNTRY_INFO!C63)) -> Adjarra | D63: =IF(AND(INTRO!$E$37="Non endémique",INTRO!$E$41="Non endémique"),0,IF(AND(OR(COUNTRY_INFO!$H63=0,COUNTRY_INFO!$H63=4,COUNTRY_INFO!$H63=99),OR(COUNTRY_INFO!$J63=0,COUNTRY_INFO!$J63=4)),0,COUNTRY_INFO!$E63)) -> 14970 | E63: =IF(AND(INTRO!$E$37="Non endémique",INTRO!$E$41="Non endémique"),0,IF(AND(OR(COUNTRY_INFO!$H63=0,COUNTRY_INFO!$H63=4,COUNTRY_INFO!$H63=99),OR(COUNTRY_INFO!$J63=0,COUNTRY_INFO!$J63=4)),0,COUNTRY_INFO!$F63)) -> 32596 | F63: 47566 | G63: =IF(AND(INTRO!$E$37="Non endémique",INTRO!$E$41="Non endémique"),0,COUNTRY_INFO!P63) -> 0 | H63: =IF(AND(INTRO!$E$37="Non endémique",INTRO!$E$41="Non endémique"),0,COUNTRY_INFO!R63) -> 0 | I63: =IF(INTRO!$E$39="Non endémique",IF($G63=1,DEC!I63,0),IF($G63=1,IVM!G63,0)) -> 0 | L63: 0 | N63: 0 | O63: =IF($J63="MBD", IF(INTRO!$E$39="Non endémique",IF($H63<>0,$D63*($H63-$G63),0),$D63*$H63),0) -> 0 | P63: 0 | R63: 0 | T63: 0 | U63: 0 | W63: 0 | X63: 0 | Z63: 0 | AA63: 0
A64: =IF(AND(INTRO!$E$37="Non endémique",INTRO!$E$41="Non endémique")," ",IF(COUNTRY_INFO!A64=0," ",COUNTRY_INFO!A64)) -> Benin | B64: =IF(AND(INTRO!$E$37="Non endémique",INTRO!$E$41="Non endémique")," ",IF(COUNTRY_INFO!B64=0," ",COUNTRY_INFO!B64)) -> Oueme | C64: =IF(AND(INTRO!$E$37="Non endémique",INTRO!$E$41="Non endémique")," ",IF(COUNTRY_INFO!C64=0," ",COUNTRY_INFO!C64)) -> Adjohoun | D64: =IF(AND(INTRO!$E$37="Non endémique",INTRO!$E$41="Non endémique"),0,IF(AND(OR(COUNTRY_INFO!$H64=0,COUNTRY_INFO!$H64=4,COUNTRY_INFO!$H64=99),OR(COUNTRY_INFO!$J64=0,COUNTRY_INFO!$J64=4)),0,COUNTRY_INFO!$E64)) -> 11755 | E64: =IF(AND(INTRO!$E$37="Non endémique",INTRO!$E$41="Non endémique"),0,IF(AND(OR(COUNTRY_INFO!$H64=0,COUNTRY_INFO!$H64=4,COUNTRY_INFO!$H64=99),OR(COUNTRY_INFO!$J64=0,COUNTRY_INFO!$J64=4)),0,COUNTRY_INFO!$F64)) -> 25597 | F64: 37352 | G64: =IF(AND(INTRO!$E$37="Non endémique",INTRO!$E$41="Non endémique"),0,COUNTRY_INFO!P64) -> 0 | H64: =IF(AND(INTRO!$E$37="Non endémique",INTRO!$E$41="Non endémique"),0,COUNTRY_INFO!R64) -> 0 | I64: =IF(INTRO!$E$39="Non endémique",IF($G64=1,DEC!I64,0),IF($G64=1,IVM!G64,0)) -> 0 | L64: 0 | N64: 0 | O64: =IF($J64="MBD", IF(INTRO!$E$39="Non endémique",IF($H64<>0,$D64*($H64-$G64),0),$D64*$H64),0) -> 0 | P64: 0 | R64: 0 | T64: 0 | U64: 0 | W64: 0 | X64: 0 | Z64: 0 | AA64: 0
A65: =IF(AND(INTRO!$E$37="Non endémique",INTRO!$E$41="Non endémique")," ",IF(COUNTRY_INFO!A65=0," ",COUNTRY_INFO!A65)) -> Benin | B65: =IF(AND(INTRO!$E$37="Non endémique",INTRO!$E$41="Non endémique")," ",IF(COUNTRY_INFO!B65=0," ",COUNTRY_INFO!B65)) -> Oueme | C65: =IF(AND(INTRO!$E$37="Non endémique",INTRO!$E$41="Non endémique")," ",IF(COUNTRY_INFO!C65=0," ",COUNTRY_INFO!C65)) -> Aguégués | D65: =IF(AND(INTRO!$E$37="Non endémique",INTRO!$E$41="Non endémique"),0,IF(AND(OR(COUNTRY_INFO!$H65=0,COUNTRY_INFO!$H65=4,COUNTRY_INFO!$H65=99),OR(COUNTRY_INFO!$J65=0,COUNTRY_INFO!$J65=4)),0,COUNTRY_INFO!$E65)) -> 5705 | E65: =IF(AND(INTRO!$E$37="Non endémique",INTRO!$E$41="Non endémique"),0,IF(AND(OR(COUNTRY_INFO!$H65=0,COUNTRY_INFO!$H65=4,COUNTRY_INFO!$H65=99),OR(COUNTRY_INFO!$J65=0,COUNTRY_INFO!$J65=4)),0,COUNTRY_INFO!$F65)) -> 12421 | F65: 18126 | G65: =IF(AND(INTRO!$E$37="Non endémique",INTRO!$E$41="Non endémique"),0,COUNTRY_INFO!P65) -> 0 | H65: =IF(AND(INTRO!$E$37="Non endémique",INTRO!$E$41="Non endémique"),0,COUNTRY_INFO!R65) -> 0 | I65: =IF(INTRO!$E$39="Non endémique",IF($G65=1,DEC!I65,0),IF($G65=1,IVM!G65,0)) -> 0 | L65: 0 | N65: 0 | O65: =IF($J65="MBD", IF(INTRO!$E$39="Non endémique",IF($H65<>0,$D65*($H65-$G65),0),$D65*$H65),0) -> 0 | P65: 0 | R65: 0 | T65: 0 | U65: 0 | W65: 0 | X65: 0 | Z65: 0 | AA65: 0
A66: =IF(AND(INTRO!$E$37="Non endémique",INTRO!$E$41="Non endémique")," ",IF(COUNTRY_INFO!A66=0," ",COUNTRY_INFO!A66)) -> Benin | B66: =IF(AND(INTRO!$E$37="Non endémique",INTRO!$E$41="Non endémique")," ",IF(COUNTRY_INFO!B66=0," ",COUNTRY_INFO!B66)) -> Oueme | C66: =IF(AND(INTRO!$E$37="Non endémique",INTRO!$E$41="Non endémique")," ",IF(COUNTRY_INFO!C66=0," ",COUNTRY_INFO!C66)) -> Akpro-Missérété | D66: =IF(AND(INTRO!$E$37="Non endémique",INTRO!$E$41="Non endémique"),0,IF(AND(OR(COUNTRY_INFO!$H66=0,COUNTRY_INFO!$H66=4,COUNTRY_INFO!$H66=99),OR(COUNTRY_INFO!$J66=0,COUNTRY_INFO!$J66=4)),0,COUNTRY_INFO!$E66)) -> 13098 | E66: =IF(AND(INTRO!$E$37="Non endémique",INTRO!$E$41="Non endémique"),0,IF(AND(OR(COUNTRY_INFO!$H66=0,COUNTRY_INFO!$H66=4,COUNTRY_INFO!$H66=99),OR(COUNTRY_INFO!$J66=0,COUNTRY_INFO!$J66=4)),0,COUNTRY_INFO!$F66)) -> 28520 | F66: 41618 | G66: =IF(AND(INTRO!$E$37="Non endémique",INTRO!$E$41="Non endémique"),0,COUNTRY_INFO!P66) -> 0 | H66: =IF(AND(INTRO!$E$37="Non endémique",INTRO!$E$41="Non endémique"),0,COUNTRY_INFO!R66) -> 1 | I66: =IF(INTRO!$E$39="Non endémique",IF($G66=1,DEC!I66,0),IF($G66=1,IVM!G66,0)) -> 0 | J66: ALB | L66: 28520 | N66: 28520 | O66: =IF($J66="MBD", IF(INTRO!$E$39="Non endémique",IF($H66<>0,$D66*($H66-$G66),0),$D66*$H66),0) -> 0 | P66: 0 | R66: 0 | T66: 0 | U66: 0 | W66: 28520 | X66: 143 | Z66: 0 | AA66: 0
A67: =IF(AND(INTRO!$E$37="Non endémique",INTRO!$E$41="Non endémique")," ",IF(COUNTRY_INFO!A67=0," ",COUNTRY_INFO!A67)) -> Benin | B67: =IF(AND(INTRO!$E$37="Non endémique",INTRO!$E$41="Non endémique")," ",IF(COUNTRY_INFO!B67=0," ",COUNTRY_INFO!B67)) -> Oueme | C67: =IF(AND(INTRO!$E$37="Non endémique",INTRO!$E$41="Non endémique")," ",IF(COUNTRY_INFO!C67=0," ",COUNTRY_INFO!C67)) -> Avrankou | D67: =IF(AND(INTRO!$E$37="Non endémique",INTRO!$E$41="Non endémique"),0,IF(AND(OR(COUNTRY_INFO!$H67=0,COUNTRY_INFO!$H67=4,COUNTRY_INFO!$H67=99),OR(COUNTRY_INFO!$J67=0,COUNTRY_INFO!$J67=4)),0,COUNTRY_INFO!$E67)) -> 16543 | E67: =IF(AND(INTRO!$E$37="Non endémique",INTRO!$E$41="Non endémique"),0,IF(AND(OR(COUNTRY_INFO!$H67=0,COUNTRY_INFO!$H67=4,COUNTRY_INFO!$H67=99),OR(COUNTRY_INFO!$J67=0,COUNTRY_INFO!$J67=4)),0,COUNTRY_INFO!$F67)) -> 36022 | F67: 52565 | G67: =IF(AND(INTRO!$E$37="Non endémique",INTRO!$E$41="Non endémique"),0,COUNTRY_INFO!P67) -> 0 | H67: =IF(AND(INTRO!$E$37="Non endémique",INTRO!$E$41="Non endémique"),0,COUNTRY_INFO!R67) -> 0 | I67: =IF(INTRO!$E$39="Non endémique",IF($G67=1,DEC!I67,0),IF($G67=1,IVM!G67,0)) -> 0 | L67: 0 | N67: 0 | O67: =IF($J67="MBD", IF(INTRO!$E$39="Non endémique",IF($H67<>0,$D67*($H67-$G67),0),$D67*$H67),0) -> 0 | P67: 0 | R67: 0 | T67: 0 | U67: 0 | W67: 0 | X67: 0 | Z67: 0 | AA67: 0
A68: =IF(AND(INTRO!$E$37="Non endémique",INTRO!$E$41="Non endémique")," ",IF(COUNTRY_INFO!A68=0," ",COUNTRY_INFO!A68)) -> Benin | B68: =IF(AND(INTRO!$E$37="Non endémique",INTRO!$E$41="Non endémique")," ",IF(COUNTRY_INFO!B68=0," ",COUNTRY_INFO!B68)) -> Oueme | C68: =IF(AND(INTRO!$E$37="Non endémique",INTRO!$E$41="Non endémique")," ",IF(COUNTRY_INFO!C68=0," ",COUNTRY_INFO!C68)) -> Bonou | D68: =IF(AND(INTRO!$E$37="Non endémique",INTRO!$E$41="Non endémique"),0,IF(AND(OR(COUNTRY_INFO!$H68=0,COUNTRY_INFO!$H68=4,COUNTRY_INFO!$H68=99),OR(COUNTRY_INFO!$J68=0,COUNTRY_INFO!$J68=4)),0,COUNTRY_INFO!$E68)) -> 5687 | E68: =IF(AND(INTRO!$E$37="Non endémique",INTRO!$E$41="Non endémique"),0,IF(AND(OR(COUNTRY_INFO!$H68=0,COUNTRY_INFO!$H68=4,COUNTRY_INFO!$H68=99),OR(COUNTRY_INFO!$J68=0,COUNTRY_INFO!$J68=4)),0,COUNTRY_INFO!$F68)) -> 12383 | F68: 18070 | G68: =IF(AND(INTRO!$E$37="Non endémique",INTRO!$E$41="Non endémique"),0,COUNTRY_INFO!P68) -> 0 | H68: =IF(AND(INTRO!$E$37="Non endémique",INTRO!$E$41="Non endémique"),0,COUNTRY_INFO!R68) -> 0 | I68: =IF(INTRO!$E$39="Non endémique",IF($G68=1,DEC!I68,0),IF($G68=1,IVM!G68,0)) -> 0 | L68: 0 | N68: 0 | O68: =IF($J68="MBD", IF(INTRO!$E$39="Non endémique",IF($H68<>0,$D68*($H68-$G68),0),$D68*$H68),0) -> 0 | P68: 0 | R68: 0 | T68: 0 | U68: 0 | W68: 0 | X68: 0 | Z68: 0 | AA68: 0
A69: =IF(AND(INTRO!$E$37="Non endémique",INTRO!$E$41="Non endémique")," ",IF(COUNTRY_INFO!A69=0," ",COUNTRY_INFO!A69)) -> Benin | B69: =IF(AND(INTRO!$E$37="Non endémique",INTRO!$E$41="Non endémique")," ",IF(COUNTRY_INFO!B69=0," ",COUNTRY_INFO!B69)) -> Oueme | C69: =IF(AND(INTRO!$E$37="Non endémique",INTRO!$E$41="Non endémique")," ",IF(COUNTRY_INFO!C69=0," ",COUNTRY_INFO!C69)) -> Dangbo | D69: =IF(AND(INTRO!$E$37="Non endémique",INTRO!$E$41="Non endémique"),0,IF(AND(OR(COUNTRY_INFO!$H69=0,COUNTRY_INFO!$H69=4,COUNTRY_INFO!$H69=99),OR(COUNTRY_INFO!$J69=0,COUNTRY_INFO!$J69=4)),0,COUNTRY_INFO!$E69)) -> 15370 | E69: =IF(AND(INTRO!$E$37="Non endémique",INTRO!$E$41="Non endémique"),0,IF(AND(OR(COUNTRY_INFO!$H69=0,COUNTRY_INFO!$H69=4,COUNTRY_INFO!$H69=99),OR(COUNTRY_INFO!$J69=0,COUNTRY_INFO!$J69=4)),0,COUNTRY_INFO!$F69)) -> 33468 | F69: 48838 | G69: =IF(AND(INTRO!$E$37="Non endémique",INTRO!$E$41="Non endémique"),0,COUNTRY_INFO!P69) -> 0 | H69: =IF(AND(INTRO!$E$37="Non endémique",INTRO!$E$41="Non endémique"),0,COUNTRY_INFO!R69) -> 0 | I69: =IF(INTRO!$E$39="Non endémique",IF($G69=1,DEC!I69,0),IF($G69=1,IVM!G69,0)) -> 0 | L69: 0 | N69: 0 | O69: =IF($J69="MBD", IF(INTRO!$E$39="Non endémique",IF($H69<>0,$D69*($H69-$G69),0),$D69*$H69),0) -> 0 | P69: 0 | R69: 0 | T69: 0 | U69: 0 | W69: 0 | X69: 0 | Z69: 0 | AA69: 0
A70: =IF(AND(INTRO!$E$37="Non endémique",INTRO!$E$41="Non endémique")," ",IF(COUNTRY_INFO!A70=0," ",COUNTRY_INFO!A70)) -> Benin | B70: =IF(AND(INTRO!$E$37="Non endémique",INTRO!$E$41="Non endémique")," ",IF(COUNTRY_INFO!B70=0," ",COUNTRY_INFO!B70)) -> Oueme | C70: =IF(AND(INTRO!$E$37="Non endémique",INTRO!$E$41="Non endémique")," ",IF(COUNTRY_INFO!C70=0," ",COUNTRY_INFO!C70)) -> Porto-Novo | D70: =IF(AND(INTRO!$E$37="Non endémique",INTRO!$E$41="Non endémique"),0,IF(AND(OR(COUNTRY_INFO!$H70=0,COUNTRY_INFO!$H70=4,COUNTRY_INFO!$H70=99),OR(COUNTRY_INFO!$J70=0,COUNTRY_INFO!$J70=4)),0,COUNTRY_INFO!$E70)) -> 49137 | E70: =IF(AND(INTRO!$E$37="Non endémique",INTRO!$E$41="Non endémique"),0,IF(AND(OR(COUNTRY_INFO!$H70=0,COUNTRY_INFO!$H70=4,COUNTRY_INFO!$H70=99),OR(COUNTRY_INFO!$J70=0,COUNTRY_INFO!$J70=4)),0,COUNTRY_INFO!$F70)) -> 106991 | F70: 156128 | G70: =IF(AND(INTRO!$E$37="Non endémique",INTRO!$E$41="Non endémique"),0,COUNTRY_INFO!P70) -> 0 | H70: =IF(AND(INTRO!$E$37="Non endémique",INTRO!$E$41="Non endémique"),0,COUNTRY_INFO!R70) -> 0 | I70: =IF(INTRO!$E$39="Non endémique",IF($G70=1,DEC!I70,0),IF($G70=1,IVM!G70,0)) -> 0 | L70: 0 | N70: 0 | O70: =IF($J70="MBD", IF(INTRO!$E$39="Non endémique",IF($H70<>0,$D70*($H70-$G70),0),$D70*$H70),0) -> 0 | P70: 0 | R70: 0 | T70: 0 | U70: 0 | W70: 0 | X70: 0 | Z70: 0 | AA70: 0
A71: =IF(AND(INTRO!$E$37="Non endémique",INTRO!$E$41="Non endémique")," ",IF(COUNTRY_INFO!A71=0," ",COUNTRY_INFO!A71)) -> Benin | B71: =IF(AND(INTRO!$E$37="Non endémique",INTRO!$E$41="Non endémique")," ",IF(COUNTRY_INFO!B71=0," ",COUNTRY_INFO!B71)) -> Oueme | C71: =IF(AND(INTRO!$E$37="Non endémique",INTRO!$E$41="Non endémique")," ",IF(COUNTRY_INFO!C71=0," ",COUNTRY_INFO!C71)) -> Sèmè-Kpodji | D71: =IF(AND(INTRO!$E$37="Non endémique",INTRO!$E$41="Non endémique"),0,IF(AND(OR(COUNTRY_INFO!$H71=0,COUNTRY_INFO!$H71=4,COUNTRY_INFO!$H71=99),OR(COUNTRY_INFO!$J71=0,COUNTRY_INFO!$J71=4)),0,COUNTRY_INFO!$E71)) -> 17468 | E71: =IF(AND(INTRO!$E$37="Non endémique",INTRO!$E$41="Non endémique"),0,IF(AND(OR(COUNTRY_INFO!$H71=0,COUNTRY_INFO!$H71=4,COUNTRY_INFO!$H71=99),OR(COUNTRY_INFO!$J71=0,COUNTRY_INFO!$J71=4)),0,COUNTRY_INFO!$F71)) -> 38034 | F71: 55502 | G71: =IF(AND(INTRO!$E$37="Non endémique",INTRO!$E$41="Non endémique"),0,COUNTRY_INFO!P71) -> 0 | H71: =IF(AND(INTRO!$E$37="Non endémique",INTRO!$E$41="Non endémique"),0,COUNTRY_INFO!R71) -> 0 | I71: =IF(INTRO!$E$39="Non endémique",IF($G71=1,DEC!I71,0),IF($G71=1,IVM!G71,0)) -> 0 | L71: 0 | N71: 0 | O71: =IF($J71="MBD", IF(INTRO!$E$39="Non endémique",IF($H71<>0,$D71*($H71-$G71),0),$D71*$H71),0) -> 0 | P71: 0 | R71: 0 | T71: 0 | U71: 0 | W71: 0 | X71: 0 | Z71: 0 | AA71: 0
A72: =IF(AND(INTRO!$E$37="Non endémique",INTRO!$E$41="Non endémique")," ",IF(COUNTRY_INFO!A72=0," ",COUNTRY_INFO!A72)) -> Benin | B72: =IF(AND(INTRO!$E$37="Non endémique",INTRO!$E$41="Non endémique")," ",IF(COUNTRY_INFO!B72=0," ",COUNTRY_INFO!B72)) -> Plateau | C72: =IF(AND(INTRO!$E$37="Non endémique",INTRO!$E$41="Non endémique")," ",IF(COUNTRY_INFO!C72=0," ",COUNTRY_INFO!C72)) -> Adja-Ouèrè | D72: =IF(AND(INTRO!$E$37="Non endémique",INTRO!$E$41="Non endémique"),0,IF(AND(OR(COUNTRY_INFO!$H72=0,COUNTRY_INFO!$H72=4,COUNTRY_INFO!$H72=99),OR(COUNTRY_INFO!$J72=0,COUNTRY_INFO!$J72=4)),0,COUNTRY_INFO!$E72)) -> 17335 | E72: =IF(AND(INTRO!$E$37="Non endémique",INTRO!$E$41="Non endémique"),0,IF(AND(OR(COUNTRY_INFO!$H72=0,COUNTRY_INFO!$H72=4,COUNTRY_INFO!$H72=99),OR(COUNTRY_INFO!$J72=0,COUNTRY_INFO!$J72=4)),0,COUNTRY_INFO!$F72)) -> 37745 | F72: 55080 | G72: =IF(AND(INTRO!$E$37="Non endémique",INTRO!$E$41="Non endémique"),0,COUNTRY_INFO!P72) -> 0 | H72: =IF(AND(INTRO!$E$37="Non endémique",INTRO!$E$41="Non endémique"),0,COUNTRY_INFO!R72) -> 1 | I72: =IF(INTRO!$E$39="Non endémique",IF($G72=1,DEC!I72,0),IF($G72=1,IVM!G72,0)) -> 0 | J72: ALB | L72: 37745 | N72: 37745 | O72: =IF($J72="MBD", IF(INTRO!$E$39="Non endémique",IF($H72<>0,$D72*($H72-$G72),0),$D72*$H72),0) -> 0 | P72: 0 | R72: 0 | T72: 0 | U72: 0 | W72: 37745 | X72: 189 | Z72: 0 | AA72: 0
A73: =IF(AND(INTRO!$E$37="Non endémique",INTRO!$E$41="Non endémique")," ",IF(COUNTRY_INFO!A73=0," ",COUNTRY_INFO!A73)) -> Benin | B73: =IF(AND(INTRO!$E$37="Non endémique",INTRO!$E$41="Non endémique")," ",IF(COUNTRY_INFO!B73=0," ",COUNTRY_INFO!B73)) -> Plateau | C73: =IF(AND(INTRO!$E$37="Non endémique",INTRO!$E$41="Non endémique")," ",IF(COUNTRY_INFO!C73=0," ",COUNTRY_INFO!C73)) -> Ifangni | D73: =IF(AND(INTRO!$E$37="Non endémique",INTRO!$E$41="Non endémique"),0,IF(AND(OR(COUNTRY_INFO!$H73=0,COUNTRY_INFO!$H73=4,COUNTRY_INFO!$H73=99),OR(COUNTRY_INFO!$J73=0,COUNTRY_INFO!$J73=4)),0,COUNTRY_INFO!$E73)) -> 13673 | E73: =IF(AND(INTRO!$E$37="Non endémique",INTRO!$E$41="Non endémique"),0,IF(AND(OR(COUNTRY_INFO!$H73=0,COUNTRY_INFO!$H73=4,COUNTRY_INFO!$H73=99),OR(COUNTRY_INFO!$J73=0,COUNTRY_INFO!$J73=4)),0,COUNTRY_INFO!$F73)) -> 29772 | F73: =SUM(D73:E73) -> 43445 | G73: =IF(AND(INTRO!$E$37="Non endémique",INTRO!$E$41="Non endémique"),0,COUNTRY_INFO!P73) -> 0 | H73: =IF(AND(INTRO!$E$37="Non endémique",INTRO!$E$41="Non endémique"),0,COUNTRY_INFO!R73) -> 1 | I73: =IF(INTRO!$E$39="Non endémique",IF($G73=1,DEC!I73,0),IF($G73=1,IVM!G73,0)) -> 0 | J73: ALB | L73: =IF($J73="ALB", IF($H73<>0, IF($I73=0, $E73*$H73, $E73*($H73-$G73)),0), 0) -> 29772 | N73: =SUM(K73:M73) -> 29772 | O73: =IF($J73="MBD", IF(INTRO!$E$39="Non endémique",IF($H73<>0,$D73*($H73-$G73),0),$D73*$H73),0) -> 0 | P73: =IF($J73="MBD", IF($H73<>0,IF($I73=0, $E73*$H73, $E73*($H73-$G73)),0), 0 ) -> 0 | R73: =SUM(O73:Q73) -> 0 | T73: =IF($I73>$S73, $I73-$S73,0) -> 0 | U73: =ROUNDUP($I73/200,0) -> 0 | W73: =IF($L73>$V73,$L73-$V73,0) -> 29772 | X73: =ROUNDUP($L73/200,0) -> 149 | Z73: =IF($P73>$Y73,$P73-$Y73,0) -> 0 | AA73: =ROUNDUP($P73/150,0) -> 0
A74: =IF(AND(INTRO!$E$37="Non endémique",INTRO!$E$41="Non endémique")," ",IF(COUNTRY_INFO!A74=0," ",COUNTRY_INFO!A74)) -> Benin | B74: =IF(AND(INTRO!$E$37="Non endémique",INTRO!$E$41="Non endémique")," ",IF(COUNTRY_INFO!B74=0," ",COUNTRY_INFO!B74)) -> Plateau | C74: =IF(AND(INTRO!$E$37="Non endémique",INTRO!$E$41="Non endémique")," ",IF(COUNTRY_INFO!C74=0," ",COUNTRY_INFO!C74)) -> Kétou | D74: =IF(AND(INTRO!$E$37="Non endémique",INTRO!$E$41="Non endémique"),0,IF(AND(OR(COUNTRY_INFO!$H74=0,COUNTRY_INFO!$H74=4,COUNTRY_INFO!$H74=99),OR(COUNTRY_INFO!$J74=0,COUNTRY_INFO!$J74=4)),0,COUNTRY_INFO!$E74)) -> 21931 | E74: =IF(AND(INTRO!$E$37="Non endémique",INTRO!$E$41="Non endémique"),0,IF(AND(OR(COUNTRY_INFO!$H74=0,COUNTRY_INFO!$H74=4,COUNTRY_INFO!$H74=99),OR(COUNTRY_INFO!$J74=0,COUNTRY_INFO!$J74=4)),0,COUNTRY_INFO!$F74)) -> 47752 | F74: 69683 | G74: =IF(AND(INTRO!$E$37="Non endémique",INTRO!$E$41="Non endémique"),0,COUNTRY_INFO!P74) -> 0 | H74: =IF(AND(INTRO!$E$37="Non endémique",INTRO!$E$41="Non endémique"),0,COUNTRY_INFO!R74) -> 1 | I74: =IF(INTRO!$E$39="Non endémique",IF($G74=1,DEC!I74,0),IF($G74=1,IVM!G74,0)) -> 0 | J74: ALB | L74: 47752 | N74: 47752 | O74: =IF($J74="MBD", IF(INTRO!$E$39="Non endémique",IF($H74<>0,$D74*($H74-$G74),0),$D74*$H74),0) -> 0 | P74: 0 | R74: 0 | T74: 0 | U74: 0 | W74: 47752 | X74: 239 | Z74: 0 | AA74: 0
A75: =IF(AND(INTRO!$E$37="Non endémique",INTRO!$E$41="Non endémique")," ",IF(COUNTRY_INFO!A75=0," ",COUNTRY_INFO!A75)) -> Benin | B75: =IF(AND(INTRO!$E$37="Non endémique",INTRO!$E$41="Non endémique")," ",IF(COUNTRY_INFO!B75=0," ",COUNTRY_INFO!B75)) -> Plateau | C75: =IF(AND(INTRO!$E$37="Non endémique",INTRO!$E$41="Non endémique")," ",IF(COUNTRY_INFO!C75=0," ",COUNTRY_INFO!C75)) -> Pobè | D75: =IF(AND(INTRO!$E$37="Non endémique",INTRO!$E$41="Non endémique"),0,IF(AND(OR(COUNTRY_INFO!$H75=0,COUNTRY_INFO!$H75=4,COUNTRY_INFO!$H75=99),OR(COUNTRY_INFO!$J75=0,COUNTRY_INFO!$J75=4)),0,COUNTRY_INFO!$E75)) -> 16641 | E75: =IF(AND(INTRO!$E$37="Non endémique",INTRO!$E$41="Non endémique"),0,IF(AND(OR(COUNTRY_INFO!$H75=0,COUNTRY_INFO!$H75=4,COUNTRY_INFO!$H75=99),OR(COUNTRY_INFO!$J75=0,COUNTRY_INFO!$J75=4)),0,COUNTRY_INFO!$F75)) -> 36235 | F75: 52876 | G75: =IF(AND(INTRO!$E$37="Non endémique",INTRO!$E$41="Non endémique"),0,COUNTRY_INFO!P75) -> 0 | H75: =IF(AND(INTRO!$E$37="Non endémique",INTRO!$E$41="Non endémique"),0,COUNTRY_INFO!R75) -> 1 | I75: =IF(INTRO!$E$39="Non endémique",IF($G75=1,DEC!I75,0),IF($G75=1,IVM!G75,0)) -> 0 | J75: ALB | L75: 36235 | N75: 36235 | O75: =IF($J75="MBD", IF(INTRO!$E$39="Non endémique",IF($H75<>0,$D75*($H75-$G75),0),$D75*$H75),0) -> 0 | P75: 0 | R75: 0 | T75: 0 | U75: 0 | W75: 36235 | X75: 182 | Z75: 0 | AA75: 0
A76: =IF(AND(INTRO!$E$37="Non endémique",INTRO!$E$41="Non endémique")," ",IF(COUNTRY_INFO!A76=0," ",COUNTRY_INFO!A76)) -> Benin | B76: =IF(AND(INTRO!$E$37="Non endémique",INTRO!$E$41="Non endémique")," ",IF(COUNTRY_INFO!B76=0," ",COUNTRY_INFO!B76)) -> Plateau | C76: =IF(AND(INTRO!$E$37="Non endémique",INTRO!$E$41="Non endémique")," ",IF(COUNTRY_INFO!C76=0," ",COUNTRY_INFO!C76)) -> Sakété | D76: =IF(AND(INTRO!$E$37="Non endémique",INTRO!$E$41="Non endémique"),0,IF(AND(OR(COUNTRY_INFO!$H76=0,COUNTRY_INFO!$H76=4,COUNTRY_INFO!$H76=99),OR(COUNTRY_INFO!$J76=0,COUNTRY_INFO!$J76=4)),0,COUNTRY_INFO!$E76)) -> 13267 | E76: =IF(AND(INTRO!$E$37="Non endémique",INTRO!$E$41="Non endémique"),0,IF(AND(OR(COUNTRY_INFO!$H76=0,COUNTRY_INFO!$H76=4,COUNTRY_INFO!$H76=99),OR(COUNTRY_INFO!$J76=0,COUNTRY_INFO!$J76=4)),0,COUNTRY_INFO!$F76)) -> 28889 | F76: 42156 | G76: =IF(AND(INTRO!$E$37="Non endémique",INTRO!$E$41="Non endémique"),0,COUNTRY_INFO!P76) -> 0 | H76: =IF(AND(INTRO!$E$37="Non endémique",INTRO!$E$41="Non endémique"),0,COUNTRY_INFO!R76) -> 1 | I76: =IF(INTRO!$E$39="Non endémique",IF($G76=1,DEC!I76,0),IF($G76=1,IVM!G76,0)) -> 0 | J76: ALB | L76: 28889 | N76: 28889 | O76: =IF($J76="MBD", IF(INTRO!$E$39="Non endémique",IF($H76<>0,$D76*($H76-$G76),0),$D76*$H76),0) -> 0 | P76: 0 | R76: 0 | T76: 0 | U76: 0 | W76: 28889 | X76: 145 | Z76: 0 | AA76: 0
A77: =IF(AND(INTRO!$E$37="Non endémique",INTRO!$E$41="Non endémique")," ",IF(COUNTRY_INFO!A77=0," ",COUNTRY_INFO!A77)) -> Benin | B77: =IF(AND(INTRO!$E$37="Non endémique",INTRO!$E$41="Non endémique")," ",IF(COUNTRY_INFO!B77=0," ",COUNTRY_INFO!B77)) -> Zou | C77: =IF(AND(INTRO!$E$37="Non endémique",INTRO!$E$41="Non endémique")," ",IF(COUNTRY_INFO!C77=0," ",COUNTRY_INFO!C77)) -> Abomey | D77: =IF(AND(INTRO!$E$37="Non endémique",INTRO!$E$41="Non endémique"),0,IF(AND(OR(COUNTRY_INFO!$H77=0,COUNTRY_INFO!$H77=4,COUNTRY_INFO!$H77=99),OR(COUNTRY_INFO!$J77=0,COUNTRY_INFO!$J77=4)),0,COUNTRY_INFO!$E77)) -> 10974 | E77: =IF(AND(INTRO!$E$37="Non endémique",INTRO!$E$41="Non endémique"),0,IF(AND(OR(COUNTRY_INFO!$H77=0,COUNTRY_INFO!$H77=4,COUNTRY_INFO!$H77=99),OR(COUNTRY_INFO!$J77=0,COUNTRY_INFO!$J77=4)),0,COUNTRY_INFO!$F77)) -> 23894 | F77: 34868 | G77: =IF(AND(INTRO!$E$37="Non endémique",INTRO!$E$41="Non endémique"),0,COUNTRY_INFO!P77) -> 0 | H77: =IF(AND(INTRO!$E$37="Non endémique",INTRO!$E$41="Non endémique"),0,COUNTRY_INFO!R77) -> 0 | I77: =IF(INTRO!$E$39="Non endémique",IF($G77=1,DEC!I77,0),IF($G77=1,IVM!G77,0)) -> 0 | L77: 0 | N77: 0 | O77: =IF($J77="MBD", IF(INTRO!$E$39="Non endémique",IF($H77<>0,$D77*($H77-$G77),0),$D77*$H77),0) -> 0 | P77: 0 | R77: 0 | T77: 0 | U77: 0 | W77: 0 | X77: 0 | Z77: 0 | AA77: 0
A78: =IF(AND(INTRO!$E$37="Non endémique",INTRO!$E$41="Non endémique")," ",IF(COUNTRY_INFO!A78=0," ",COUNTRY_INFO!A78)) -> Benin | B78: =IF(AND(INTRO!$E$37="Non endémique",INTRO!$E$41="Non endémique")," ",IF(COUNTRY_INFO!B78=0," ",COUNTRY_INFO!B78)) -> Zou | C78: =IF(AND(INTRO!$E$37="Non endémique",INTRO!$E$41="Non endémique")," ",IF(COUNTRY_INFO!C78=0," ",COUNTRY_INFO!C78)) -> Agbangnizoun | D78: =IF(AND(INTRO!$E$37="Non endémique",INTRO!$E$41="Non endémique"),0,IF(AND(OR(COUNTRY_INFO!$H78=0,COUNTRY_INFO!$H78=4,COUNTRY_INFO!$H78=99),OR(COUNTRY_INFO!$J78=0,COUNTRY_INFO!$J78=4)),0,COUNTRY_INFO!$E78)) -> 9619 | E78: =IF(AND(INTRO!$E$37="Non endémique",INTRO!$E$41="Non endémique"),0,IF(AND(OR(COUNTRY_INFO!$H78=0,COUNTRY_INFO!$H78=4,COUNTRY_INFO!$H78=99),OR(COUNTRY_INFO!$J78=0,COUNTRY_INFO!$J78=4)),0,COUNTRY_INFO!$F78)) -> 20944 | F78: 30563 | G78: =IF(AND(INTRO!$E$37="Non endémique",INTRO!$E$41="Non endémique"),0,COUNTRY_INFO!P78) -> 0 | H78: =IF(AND(INTRO!$E$37="Non endémique",INTRO!$E$41="Non endémique"),0,COUNTRY_INFO!R78) -> 1 | I78: =IF(INTRO!$E$39="Non endémique",IF($G78=1,DEC!I78,0),IF($G78=1,IVM!G78,0)) -> 0 | J78: ALB | L78: 20944 | N78: 20944 | O78: =IF($J78="MBD", IF(INTRO!$E$39="Non endémique",IF($H78<>0,$D78*($H78-$G78),0),$D78*$H78),0) -> 0 | P78: 0 | R78: 0 | T78: 0 | U78: 0 | W78: 20944 | X78: 105 | Z78: 0 | AA78: 0
A79: =IF(AND(INTRO!$E$37="Non endémique",INTRO!$E$41="Non endémique")," ",IF(COUNTRY_INFO!A79=0," ",COUNTRY_INFO!A79)) -> Benin | B79: =IF(AND(INTRO!$E$37="Non endémique",INTRO!$E$41="Non endémique")," ",IF(COUNTRY_INFO!B79=0," ",COUNTRY_INFO!B79)) -> Zou | C79: =IF(AND(INTRO!$E$37="Non endémique",INTRO!$E$41="Non endémique")," ",IF(COUNTRY_INFO!C79=0," ",COUNTRY_INFO!C79)) -> Bohicon | D79: =IF(AND(INTRO!$E$37="Non endémique",INTRO!$E$41="Non endémique"),0,IF(AND(OR(COUNTRY_INFO!$H79=0,COUNTRY_INFO!$H79=4,COUNTRY_INFO!$H79=99),OR(COUNTRY_INFO!$J79=0,COUNTRY_INFO!$J79=4)),0,COUNTRY_INFO!$E79)) -> 23849 | E79: =IF(AND(INTRO!$E$37="Non endémique",INTRO!$E$41="Non endémique"),0,IF(AND(OR(COUNTRY_INFO!$H79=0,COUNTRY_INFO!$H79=4,COUNTRY_INFO!$H79=99),OR(COUNTRY_INFO!$J79=0,COUNTRY_INFO!$J79=4)),0,COUNTRY_INFO!$F79)) -> 51930 | F79: 75779 | G79: =IF(AND(INTRO!$E$37="Non endémique",INTRO!$E$41="Non endémique"),0,COUNTRY_INFO!P79) -> 0 | H79: =IF(AND(INTRO!$E$37="Non endémique",INTRO!$E$41="Non endémique"),0,COUNTRY_INFO!R79) -> 0 | I79: =IF(INTRO!$E$39="Non endémique",IF($G79=1,DEC!I79,0),IF($G79=1,IVM!G79,0)) -> 0 | L79: 0 | N79: 0 | O79: =IF($J79="MBD", IF(INTRO!$E$39="Non endémique",IF($H79<>0,$D79*($H79-$G79),0),$D79*$H79),0) -> 0 | P79: 0 | R79: 0 | T79: 0 | U79: 0 | W79: 0 | X79: 0 | Z79: 0 | AA79: 0
A80: =IF(AND(INTRO!$E$37="Non endémique",INTRO!$E$41="Non endémique")," ",IF(COUNTRY_INFO!A80=0," ",COUNTRY_INFO!A80)) -> Benin | B80: =IF(AND(INTRO!$E$37="Non endémique",INTRO!$E$41="Non endémique")," ",IF(COUNTRY_INFO!B80=0," ",COUNTRY_INFO!B80)) -> Zou | C80: =IF(AND(INTRO!$E$37="Non endémique",INTRO!$E$41="Non endémique")," ",IF(COUNTRY_INFO!C80=0," ",COUNTRY_INFO!C80)) -> Covè | D80: =IF(AND(INTRO!$E$37="Non endémique",INTRO!$E$41="Non endémique"),0,IF(AND(OR(COUNTRY_INFO!$H80=0,COUNTRY_INFO!$H80=4,COUNTRY_INFO!$H80=99),OR(COUNTRY_INFO!$J80=0,COUNTRY_INFO!$J80=4)),0,COUNTRY_INFO!$E80)) -> 9527 | E80: =IF(AND(INTRO!$E$37="Non endémique",INTRO!$E$41="Non endémique"),0,IF(AND(OR(COUNTRY_INFO!$H80=0,COUNTRY_INFO!$H80=4,COUNTRY_INFO!$H80=99),OR(COUNTRY_INFO!$J80=0,COUNTRY_INFO!$J80=4)),0,COUNTRY_INFO!$F80)) -> 20743 | F80: 30270 | G80: =IF(AND(INTRO!$E$37="Non endémique",INTRO!$E$41="Non endémique"),0,COUNTRY_INFO!P80) -> 0 | H80: =IF(AND(INTRO!$E$37="Non endémique",INTRO!$E$41="Non endémique"),0,COUNTRY_INFO!R80) -> 1 | I80: =IF(INTRO!$E$39="Non endémique",IF($G80=1,DEC!I80,0),IF($G80=1,IVM!G80,0)) -> 0 | J80: ALB | L80: 20743 | N80: 20743 | O80: =IF($J80="MBD", IF(INTRO!$E$39="Non endémique",IF($H80<>0,$D80*($H80-$G80),0),$D80*$H80),0) -> 0 | P80: 0 | R80: 0 | T80: 0 | U80: 0 | W80: 20743 | X80: 104 | Z80: 0 | AA80: 0
A81: =IF(AND(INTRO!$E$37="Non endémique",INTRO!$E$41="Non endémique")," ",IF(COUNTRY_INFO!A81=0," ",COUNTRY_INFO!A81)) -> Benin | B81: =IF(AND(INTRO!$E$37="Non endémique",INTRO!$E$41="Non endémique")," ",IF(COUNTRY_INFO!B81=0," ",COUNTRY_INFO!B81)) -> Zou | C81: =IF(AND(INTRO!$E$37="Non endémique",INTRO!$E$41="Non endémique")," ",IF(COUNTRY_INFO!C81=0," ",COUNTRY_INFO!C81)) -> Djidja | D81: =IF(AND(INTRO!$E$37="Non endémique",INTRO!$E$41="Non endémique"),0,IF(AND(OR(COUNTRY_INFO!$H81=0,COUNTRY_INFO!$H81=4,COUNTRY_INFO!$H81=99),OR(COUNTRY_INFO!$J81=0,COUNTRY_INFO!$J81=4)),0,COUNTRY_INFO!$E81)) -> 17112 | E81: =IF(AND(INTRO!$E$37="Non endémique",INTRO!$E$41="Non endémique"),0,IF(AND(OR(COUNTRY_INFO!$H81=0,COUNTRY_INFO!$H81=4,COUNTRY_INFO!$H81=99),OR(COUNTRY_INFO!$J81=0,COUNTRY_INFO!$J81=4)),0,COUNTRY_INFO!$F81)) -> 37260 | F81: 54372 | G81: =IF(AND(INTRO!$E$37="Non endémique",INTRO!$E$41="Non endémique"),0,COUNTRY_INFO!P81) -> 0 | H81: =IF(AND(INTRO!$E$37="Non endémique",INTRO!$E$41="Non endémique"),0,COUNTRY_INFO!R81) -> 0 | I81: =IF(INTRO!$E$39="Non endémique",IF($G81=1,DEC!I81,0),IF($G81=1,IVM!G81,0)) -> 0 | L81: 0 | N81: 0 | O81: =IF($J81="MBD", IF(INTRO!$E$39="Non endémique",IF($H81<>0,$D81*($H81-$G81),0),$D81*$H81),0) -> 0 | P81: 0 | R81: 0 | T81: 0 | U81: 0 | W81: 0 | X81: 0 | Z81: 0 | AA81: 0
A82: =IF(AND(INTRO!$E$37="Non endémique",INTRO!$E$41="Non endémique")," ",IF(COUNTRY_INFO!A82=0," ",COUNTRY_INFO!A82)) -> Benin | B82: =IF(AND(INTRO!$E$37="Non endémique",INTRO!$E$41="Non endémique")," ",IF(COUNTRY_INFO!B82=0," ",COUNTRY_INFO!B82)) -> Zou | C82: =IF(AND(INTRO!$E$37="Non endémique",INTRO!$E$41="Non endémique")," ",IF(COUNTRY_INFO!C82=0," ",COUNTRY_INFO!C82)) -> Ouinhi | D82: =IF(AND(INTRO!$E$37="Non endémique",INTRO!$E$41="Non endémique"),0,IF(AND(OR(COUNTRY_INFO!$H82=0,COUNTRY_INFO!$H82=4,COUNTRY_INFO!$H82=99),OR(COUNTRY_INFO!$J82=0,COUNTRY_INFO!$J82=4)),0,COUNTRY_INFO!$E82)) -> 8550 | E82: =IF(AND(INTRO!$E$37="Non endémique",INTRO!$E$41="Non endémique"),0,IF(AND(OR(COUNTRY_INFO!$H82=0,COUNTRY_INFO!$H82=4,COUNTRY_INFO!$H82=99),OR(COUNTRY_INFO!$J82=0,COUNTRY_INFO!$J82=4)),0,COUNTRY_INFO!$F82)) -> 18616 | F82: 27166 | G82: =IF(AND(INTRO!$E$37="Non endémique",INTRO!$E$41="Non endémique"),0,COUNTRY_INFO!P82) -> 0 | H82: =IF(AND(INTRO!$E$37="Non endémique",INTRO!$E$41="Non endémique"),0,COUNTRY_INFO!R82) -> 1 | I82: =IF(INTRO!$E$39="Non endémique",IF($G82=1,DEC!I82,0),IF($G82=1,IVM!G82,0)) -> 0 | J82: ALB | L82: 18616 | N82: 18616 | O82: =IF($J82="MBD", IF(INTRO!$E$39="Non endémique",IF($H82<>0,$D82*($H82-$G82),0),$D82*$H82),0) -> 0 | P82: 0 | R82: 0 | T82: 0 | U82: 0 | W82: 18616 | X82: 94 | Z82: 0 | AA82: 0
A83: =IF(AND(INTRO!$E$37="Non endémique",INTRO!$E$41="Non endémique")," ",IF(COUNTRY_INFO!A83=0," ",COUNTRY_INFO!A83)) -> Benin | B83: =IF(AND(INTRO!$E$37="Non endémique",INTRO!$E$41="Non endémique")," ",IF(COUNTRY_INFO!B83=0," ",COUNTRY_INFO!B83)) -> Zou | C83: =IF(AND(INTRO!$E$37="Non endémique",INTRO!$E$41="Non endémique")," ",IF(COUNTRY_INFO!C83=0," ",COUNTRY_INFO!C83)) -> Zagnanado | D83: =IF(AND(INTRO!$E$37="Non endémique",INTRO!$E$41="Non endémique"),0,IF(AND(OR(COUNTRY_INFO!$H83=0,COUNTRY_INFO!$H83=4,COUNTRY_INFO!$H83=99),OR(COUNTRY_INFO!$J83=0,COUNTRY_INFO!$J83=4)),0,COUNTRY_INFO!$E83)) -> 7167 | E83: =IF(AND(INTRO!$E$37="Non endémique",INTRO!$E$41="Non endémique"),0,IF(AND(OR(COUNTRY_INFO!$H83=0,COUNTRY_INFO!$H83=4,COUNTRY_INFO!$H83=99),OR(COUNTRY_INFO!$J83=0,COUNTRY_INFO!$J83=4)),0,COUNTRY_INFO!$F83)) -> 15606 | F83: 22773 | G83: =IF(AND(INTRO!$E$37="Non endémique",INTRO!$E$41="Non endémique"),0,COUNTRY_INFO!P83) -> 0 | H83: =IF(AND(INTRO!$E$37="Non endémique",INTRO!$E$41="Non endémique"),0,COUNTRY_INFO!R83) -> 0 | I83: =IF(INTRO!$E$39="Non endémique",IF($G83=1,DEC!I83,0),IF($G83=1,IVM!G83,0)) -> 0 | L83: 0 | N83: 0 | O83: =IF($J83="MBD", IF(INTRO!$E$39="Non endémique",IF($H83<>0,$D83*($H83-$G83),0),$D83*$H83),0) -> 0 | P83: 0 | R83: 0 | T83: 0 | U83: 0 | W83: 0 | X83: 0 | Z83: 0 | AA83: 0
A84: =IF(AND(INTRO!$E$37="Non endémique",INTRO!$E$41="Non endémique")," ",IF(COUNTRY_INFO!A84=0," ",COUNTRY_INFO!A84)) -> Benin | B84: =IF(AND(INTRO!$E$37="Non endémique",INTRO!$E$41="Non endémique")," ",IF(COUNTRY_INFO!B84=0," ",COUNTRY_INFO!B84)) -> Zou | C84: =IF(AND(INTRO!$E$37="Non endémique",INTRO!$E$41="Non endémique")," ",IF(COUNTRY_INFO!C84=0," ",COUNTRY_INFO!C84)) -> Za-Kpota | D84: =IF(AND(INTRO!$E$37="Non endémique",INTRO!$E$41="Non endémique"),0,IF(AND(OR(COUNTRY_INFO!$H84=0,COUNTRY_INFO!$H84=4,COUNTRY_INFO!$H84=99),OR(COUNTRY_INFO!$J84=0,COUNTRY_INFO!$J84=4)),0,COUNTRY_INFO!$E84)) -> 23222 | E84: =IF(AND(INTRO!$E$37="Non endémique",INTRO!$E$41="Non endémique"),0,IF(AND(OR(COUNTRY_INFO!$H84=0,COUNTRY_INFO!$H84=4,COUNTRY_INFO!$H84=99),OR(COUNTRY_INFO!$J84=0,COUNTRY_INFO!$J84=4)),0,COUNTRY_INFO!$F84)) -> 50563 | F84: 73785 | G84: =IF(AND(INTRO!$E$37="Non endémique",INTRO!$E$41="Non endémique"),0,COUNTRY_INFO!P84) -> 0 | H84: =IF(AND(INTRO!$E$37="Non endémique",INTRO!$E$41="Non endémique"),0,COUNTRY_INFO!R84) -> 1 | I84: =IF(INTRO!$E$39="Non endémique",IF($G84=1,DEC!I84,0),IF($G84=1,IVM!G84,0)) -> 0 | J84: ALB | L84: 50563 | N84: 50563 | O84: =IF($J84="MBD", IF(INTRO!$E$39="Non endémique",IF($H84<>0,$D84*($H84-$G84),0),$D84*$H84),0) -> 0 | P84: 0 | R84: 0 | T84: 0 | U84: 0 | W84: 50563 | X84: 253 | Z84: 0 | AA84: 0
A85: =IF(AND(INTRO!$E$37="Non endémique",INTRO!$E$41="Non endémique")," ",IF(COUNTRY_INFO!A85=0," ",COUNTRY_INFO!A85)) -> Benin | B85: =IF(AND(INTRO!$E$37="Non endémique",INTRO!$E$41="Non endémique")," ",IF(COUNTRY_INFO!B85=0," ",COUNTRY_INFO!B85)) -> Zou | C85: =IF(AND(INTRO!$E$37="Non endémique",INTRO!$E$41="Non endémique")," ",IF(COUNTRY_INFO!C85=0," ",COUNTRY_INFO!C85)) -> Zogbodomey | D85: =IF(AND(INTRO!$E$37="Non endémique",INTRO!$E$41="Non endémique"),0,IF(AND(OR(COUNTRY_INFO!$H85=0,COUNTRY_INFO!$H85=4,COUNTRY_INFO!$H85=99),OR(COUNTRY_INFO!$J85=0,COUNTRY_INFO!$J85=4)),0,COUNTRY_INFO!$E85)) -> 18202 | E85: =IF(AND(INTRO!$E$37="Non endémique",INTRO!$E$41="Non endémique"),0,IF(AND(OR(COUNTRY_INFO!$H85=0,COUNTRY_INFO!$H85=4,COUNTRY_INFO!$H85=99),OR(COUNTRY_INFO!$J85=0,COUNTRY_INFO!$J85=4)),0,COUNTRY_INFO!$F85)) -> 39634 | F85: 57836 | G85: =IF(AND(INTRO!$E$37="Non endémique",INTRO!$E$41="Non endémique"),0,COUNTRY_INFO!P85) -> 0 | H85: =IF(AND(INTRO!$E$37="Non endémique",INTRO!$E$41="Non endémique"),0,COUNTRY_INFO!R85) -> 1 | I85: =IF(INTRO!$E$39="Non endémique",IF($G85=1,DEC!I85,0),IF($G85=1,IVM!G85,0)) -> 0 | J85: ALB | L85: 39634 | N85: 39634 | O85: =IF($J85="MBD", IF(INTRO!$E$39="Non endémique",IF($H85<>0,$D85*($H85-$G85),0),$D85*$H85),0) -> 0 | P85: 0 | R85: 0 | T85: 0 | U85: 0 | W85: 39634 | X85: 199 | Z85: 0 | AA85: 0

Sheet PZQ
A1: Praziquantel (PZQ)
A2: Structure administrative, population ciblée par groupe d'âge, plan de traitement et information sur les comprimés
A4: TOTAL | D4: =SUM(D$9:D$1000) -> 3316477 | E4: =SUM(E$9:E$1000) -> 5880320 | F4: =SUM(F$9:F$1000) -> 9196797 | I4: =SUM(I$9:I$1000) -> 1242457 | J4: 0 | K4: 696745 | L4: 1939202 | M4: 3106142.5 | N4: 2090235 | O4: 3106142.5 | P4: 0 | Q4: 3106142.5 | R4: 3126
A6: Structure administrative du pays | D6: Population nécessitant un traitement avec PZQ | G6: Plan de traitement | I6: Population cible | M6: Praziquantel (PZQ)
A7: Pays | B7: Région/Département | C7: District | D7: EAS | E7: Adultes | F7: Total | G7: SCH | H7: Tous EAS ciblés ? | I7: EAS | J7: EAS à un niveau inférieur | K7: Adultes | L7: Total | M7: EAS | N7: Adultes | O7: Total requis pour EAS | P7: Reste en stock | Q7: Comprimés devant être fournis | R7: Flacons (600mg) 1000 comprimés
A9: =IF(INTRO!$E$43="Non endémique"," ", IF(COUNTRY_INFO!A9=0," ",COUNTRY_INFO!A9)) -> Benin | B9: =IF(INTRO!$E$43="Non endémique"," ", IF(COUNTRY_INFO!B9=0," ",COUNTRY_INFO!B9)) -> Alibori | C9: =IF(INTRO!$E$43="Non endémique"," ", IF(COUNTRY_INFO!C9=0," ",COUNTRY_INFO!C9)) -> Banikoara | D9: 94138 | E9: 166913 | F9: =SUM(D9:E9) -> 261051 | G9: =IF(INTRO!$E$43="Non endémique", "Non requis", COUNTRY_INFO!S9) -> 0 | I9: =IF($D9=0,0,IF(AND($G9>0,$H9<>"Oui"),D9,IF(AND($G9>0,$H9="Oui"),COUNTRY_INFO!$F9,0))) -> 0 | K9: 34169 | L9: =IF($J9=0,SUM(I9,K9),SUM(J9,K9)) -> 34169 | M9: =IF($J9=0,$I9*2.5,$J9*2.5) -> 0 | N9: =$K9*3 -> 102507 | O9: =M9 -> 0 | Q9: =IF($O9>$P9,O9-P9,0) -> 0 | R9: =ROUNDUP($O9/1000,0) -> 0
A10: =IF(INTRO!$E$43="Non endémique"," ", IF(COUNTRY_INFO!A10=0," ",COUNTRY_INFO!A10)) -> Benin | B10: =IF(INTRO!$E$43="Non endémique"," ", IF(COUNTRY_INFO!B10=0," ",COUNTRY_INFO!B10)) -> Alibori | C10: =IF(INTRO!$E$43="Non endémique"," ", IF(COUNTRY_INFO!C10=0," ",COUNTRY_INFO!C10)) -> Gogounou | D10: 31898 | E10: 56558 | F10: 88456 | G10: =IF(INTRO!$E$43="Non endémique", "Non requis", COUNTRY_INFO!S10) -> 0 | I10: =IF($D10=0,0,IF(AND($G10>0,$H10<>"Oui"),D10,IF(AND($G10>0,$H10="Oui"),COUNTRY_INFO!$F10,0))) -> 0 | K10: 5200 | L10: 5200 | M10: 0 | N10: 15600 | O10: 0 | Q10: 0 | R10: 0
A11: =IF(INTRO!$E$43="Non endémique"," ", IF(COUNTRY_INFO!A11=0," ",COUNTRY_INFO!A11)) -> Benin | B11: =IF(INTRO!$E$43="Non endémique"," ", IF(COUNTRY_INFO!B11=0," ",COUNTRY_INFO!B11)) -> Alibori | C11: =IF(INTRO!$E$43="Non endémique"," ", IF(COUNTRY_INFO!C11=0," ",COUNTRY_INFO!C11)) -> Kandi | D11: 37839 | E11: 67091 | F11: 104930 | G11: =IF(INTRO!$E$43="Non endémique", "Non requis", COUNTRY_INFO!S11) -> 0 | I11: =IF($D11=0,0,IF(AND($G11>0,$H11<>"Oui"),D11,IF(AND($G11>0,$H11="Oui"),COUNTRY_INFO!$F11,0))) -> 0 | K11: 13788 | L11: 13788 | M11: 0 | N11: 41364 | O11: 0 | Q11: 0 | R11: 0
A12: =IF(INTRO!$E$43="Non endémique"," ", IF(COUNTRY_INFO!A12=0," ",COUNTRY_INFO!A12)) -> Benin | B12: =IF(INTRO!$E$43="Non endémique"," ", IF(COUNTRY_INFO!B12=0," ",COUNTRY_INFO!B12)) -> Alibori | C12: =IF(INTRO!$E$43="Non endémique"," ", IF(COUNTRY_INFO!C12=0," ",COUNTRY_INFO!C12)) -> Karimama | D12: 18997 | E12: 33682 | F12: 52679 | G12: =IF(INTRO!$E$43="Non endémique", "Non requis", COUNTRY_INFO!S12) -> 0 | I12: =IF($D12=0,0,IF(AND($G12>0,$H12<>"Oui"),D12,IF(AND($G12>0,$H12="Oui"),COUNTRY_INFO!$F12,0))) -> 0 | K12: 3539 | L12: 3539 | M12: 0 | N12: 10617 | O12: 0 | Q12: 0 | R12: 0
A13: =IF(INTRO!$E$43="Non endémique"," ", IF(COUNTRY_INFO!A13=0," ",COUNTRY_INFO!A13)) -> Benin | B13: =IF(INTRO!$E$43="Non endémique"," ", IF(COUNTRY_INFO!B13=0," ",COUNTRY_INFO!B13)) -> Alibori | C13: =IF(INTRO!$E$43="Non endémique"," ", IF(COUNTRY_INFO!C13=0," ",COUNTRY_INFO!C13)) -> Malanville | D13: 34793 | E13: 61690 | F13: 96483 | G13: =IF(INTRO!$E$43="Non endémique", "Non requis", COUNTRY_INFO!S13) -> 0 | I13: =IF($D13=0,0,IF(AND($G13>0,$H13<>"Oui"),D13,IF(AND($G13>0,$H13="Oui"),COUNTRY_INFO!$F13,0))) -> 0 | K13: 14360 | L13: 14360 | M13: 0 | N13: 43080 | O13: 0 | Q13: 0 | R13: 0
A14: =IF(INTRO!$E$43="Non endémique"," ", IF(COUNTRY_INFO!A14=0," ",COUNTRY_INFO!A14)) -> Benin | B14: =IF(INTRO!$E$43="Non endémique"," ", IF(COUNTRY_INFO!B14=0," ",COUNTRY_INFO!B14)) -> Alibori | C14: =IF(INTRO!$E$43="Non endémique"," ", IF(COUNTRY_INFO!C14=0," ",COUNTRY_INFO!C14)) -> Ségbana | D14: 22599 | E14: 40069 | F14: 62668 | G14: =IF(INTRO!$E$43="Non endémique", "Non requis", COUNTRY_INFO!S14) -> 0 | I14: =IF($D14=0,0,IF(AND($G14>0,$H14<>"Oui"),D14,IF(AND($G14>0,$H14="Oui"),COUNTRY_INFO!$F14,0))) -> 0 | K14: 0 | L14: 0 | M14: 0 | N14: 0 | O14: 0 | Q14: 0 | R14: 0
A15: =IF(INTRO!$E$43="Non endémique"," ", IF(COUNTRY_INFO!A15=0," ",COUNTRY_INFO!A15)) -> Benin | B15: =IF(INTRO!$E$43="Non endémique"," ", IF(COUNTRY_INFO!B15=0," ",COUNTRY_INFO!B15)) -> Atacora | C15: =IF(INTRO!$E$43="Non endémique"," ", IF(COUNTRY_INFO!C15=0," ",COUNTRY_INFO!C15)) -> Boukoumbé | D15: 29413 | E15: 52151 | F15: 81564 | G15: =IF(INTRO!$E$43="Non endémique", "Non requis", COUNTRY_INFO!S15) -> 1 | I15: =IF($D15=0,0,IF(AND($G15>0,$H15<>"Oui"),D15,IF(AND($G15>0,$H15="Oui"),COUNTRY_INFO!$F15,0))) -> 29413 | K15: 8994 | L15: 38407 | M15: 73532.5 | N15: 26982 | O15: 73532.5 | Q15: 73532.5 | R15: 74
A16: =IF(INTRO!$E$43="Non endémique"," ", IF(COUNTRY_INFO!A16=0," ",COUNTRY_INFO!A16)) -> Benin | B16: =IF(INTRO!$E$43="Non endémique"," ", IF(COUNTRY_INFO!B16=0," ",COUNTRY_INFO!B16)) -> Atacora | C16: =IF(INTRO!$E$43="Non endémique"," ", IF(COUNTRY_INFO!C16=0," ",COUNTRY_INFO!C16)) -> Cobly | D16: 24544 | E16: 43518 | F16: 68062 | G16: =IF(INTRO!$E$43="Non endémique", "Non requis", COUNTRY_INFO!S16) -> 1 | I16: =IF($D16=0,0,IF(AND($G16>0,$H16<>"Oui"),D16,IF(AND($G16>0,$H16="Oui"),COUNTRY_INFO!$F16,0))) -> 24544 | K16: 0 | L16: 24544 | M16: 61360 | N16: 0 | O16: 61360 | Q16: 61360 | R16: 62
A17: =IF(INTRO!$E$43="Non endémique"," ", IF(COUNTRY_INFO!A17=0," ",COUNTRY_INFO!A17)) -> Benin | B17: =IF(INTRO!$E$43="Non endémique"," ", IF(COUNTRY_INFO!B17=0," ",COUNTRY_INFO!B17)) -> Atacora | C17: =IF(INTRO!$E$43="Non endémique"," ", IF(COUNTRY_INFO!C17=0," ",COUNTRY_INFO!C17)) -> Kérou | D17: 35613 | E17: 63144 | F17: 98757 | G17: =IF(INTRO!$E$43="Non endémique", "Non requis", COUNTRY_INFO!S17) -> 0 | I17: =IF($D17=0,0,IF(AND($G17>0,$H17<>"Oui"),D17,IF(AND($G17>0,$H17="Oui"),COUNTRY_INFO!$F17,0))) -> 0 | K17: 0 | L17: 0 | M17: 0 | N17: 0 | O17: 0 | Q17: 0 | R17: 0
A18: =IF(INTRO!$E$43="Non endémique"," ", IF(COUNTRY_INFO!A18=0," ",COUNTRY_INFO!A18)) -> Benin | B18: =IF(INTRO!$E$43="Non endémique"," ", IF(COUNTRY_INFO!B18=0," ",COUNTRY_INFO!B18)) -> Atacora | C18: =IF(INTRO!$E$43="Non endémique"," ", IF(COUNTRY_INFO!C18=0," ",COUNTRY_INFO!C18)) -> Kouandé | D18: 41142 | E18: 72948 | F18: 114090 | G18: =IF(INTRO!$E$43="Non endémique", "Non requis", COUNTRY_INFO!S18) -> 1 | I18: =IF($D18=0,0,IF(AND($G18>0,$H18<>"Oui"),D18,IF(AND($G18>0,$H18="Oui"),COUNTRY_INFO!$F18,0))) -> 41142 | K18: 0 | L18: 41142 | M18: 102855 | N18: 0 | O18: 102855 | Q18: 102855 | R18: 103
A19: =IF(INTRO!$E$43="Non endémique"," ", IF(COUNTRY_INFO!A19=0," ",COUNTRY_INFO!A19)) -> Benin | B19: =IF(INTRO!$E$43="Non endémique"," ", IF(COUNTRY_INFO!B19=0," ",COUNTRY_INFO!B19)) -> Atacora | C19: =IF(INTRO!$E$43="Non endémique"," ", IF(COUNTRY_INFO!C19=0," ",COUNTRY_INFO!C19)) -> Matéri | D19: 34477 | E19: 61130 | F19: 95607 | G19: =IF(INTRO!$E$43="Non endémique", "Non requis", COUNTRY_INFO!S19) -> 0 | I19: =IF($D19=0,0,IF(AND($G19>0,$H19<>"Oui"),D19,IF(AND($G19>0,$H19="Oui"),COUNTRY_INFO!$F19,0))) -> 0 | K19: 1537 | L19: 1537 | M19: 0 | N19: 4611 | O19: 0 | Q19: 0 | R19: 0
A20: =IF(INTRO!$E$43="Non endémique"," ", IF(COUNTRY_INFO!A20=0," ",COUNTRY_INFO!A20)) -> Benin | B20: =IF(INTRO!$E$43="Non endémique"," ", IF(COUNTRY_INFO!B20=0," ",COUNTRY_INFO!B20)) -> Atacora | C20: =IF(INTRO!$E$43="Non endémique"," ", IF(COUNTRY_INFO!C20=0," ",COUNTRY_INFO!C20)) -> Natitingou | D20: 25766 | E20: 45685 | F20: 71451 | G20: =IF(INTRO!$E$43="Non endémique", "Non requis", COUNTRY_INFO!S20) -> 0 | I20: =IF($D20=0,0,IF(AND($G20>0,$H20<>"Oui"),D20,IF(AND($G20>0,$H20="Oui"),COUNTRY_INFO!$F20,0))) -> 0 | K20: 0 | L20: 0 | M20: 0 | N20: 0 | O20: 0 | Q20: 0 | R20: 0
A21: =IF(INTRO!$E$43="Non endémique"," ", IF(COUNTRY_INFO!A21=0," ",COUNTRY_INFO!A21)) -> Benin | B21: =IF(INTRO!$E$43="Non endémique"," ", IF(COUNTRY_INFO!B21=0," ",COUNTRY_INFO!B21)) -> Atacora | C21: =IF(INTRO!$E$43="Non endémique"," ", IF(COUNTRY_INFO!C21=0," ",COUNTRY_INFO!C21)) -> Péhunco | D21: 31660 | E21: 56136 | F21: 87796 | G21: =IF(INTRO!$E$43="Non endémique", "Non requis", COUNTRY_INFO!S21) -> 1 | I21: =IF($D21=0,0,IF(AND($G21>0,$H21<>"Oui"),D21,IF(AND($G21>0,$H21="Oui"),COUNTRY_INFO!$F21,0))) -> 31660 | K21: 21060 | L21: 52720 | M21: 79150 | N21: 63180 | O21: =M21 -> 79150 | Q21: 79150 | R21: 80
A22: =IF(INTRO!$E$43="Non endémique"," ", IF(COUNTRY_INFO!A22=0," ",COUNTRY_INFO!A22)) -> Benin | B22: =IF(INTRO!$E$43="Non endémique"," ", IF(COUNTRY_INFO!B22=0," ",COUNTRY_INFO!B22)) -> Atacora | C22: =IF(INTRO!$E$43="Non endémique"," ", IF(COUNTRY_INFO!C22=0," ",COUNTRY_INFO!C22)) -> Tanguiéta | D22: 23792 | E22: 42185 | F22: 65977 | G22: =IF(INTRO!$E$43="Non endémique", "Non requis", COUNTRY_INFO!S22) -> 1 | I22: =IF($D22=0,0,IF(AND($G22>0,$H22<>"Oui"),D22,IF(AND($G22>0,$H22="Oui"),COUNTRY_INFO!$F22,0))) -> 23792 | K22: 12059 | L22: 35851 | M22: 59480 | N22: 36177 | O22: 59480 | Q22: 59480 | R22: 60
A23: =IF(INTRO!$E$43="Non endémique"," ", IF(COUNTRY_INFO!A23=0," ",COUNTRY_INFO!A23)) -> Benin | B23: =IF(INTRO!$E$43="Non endémique"," ", IF(COUNTRY_INFO!B23=0," ",COUNTRY_INFO!B23)) -> Atacora | C23: =IF(INTRO!$E$43="Non endémique"," ", IF(COUNTRY_INFO!C23=0," ",COUNTRY_INFO!C23)) -> Toukountouna | D23: 13641 | E23: 24186 | F23: 37827 | G23: =IF(INTRO!$E$43="Non endémique", "Non requis", COUNTRY_INFO!S23) -> 0 | I23: =IF($D23=0,0,IF(AND($G23>0,$H23<>"Oui"),D23,IF(AND($G23>0,$H23="Oui"),COUNTRY_INFO!$F23,0))) -> 0 | K23: 0 | L23: 0 | M23: 0 | N23: 0 | O23: 0 | Q23: 0 | R23: 0
A24: =IF(INTRO!$E$43="Non endémique"," ", IF(COUNTRY_INFO!A24=0," ",COUNTRY_INFO!A24)) -> Benin | B24: =IF(INTRO!$E$43="Non endémique"," ", IF(COUNTRY_INFO!B24=0," ",COUNTRY_INFO!B24)) -> Atlantique | C24: =IF(INTRO!$E$43="Non endémique"," ", IF(COUNTRY_INFO!C24=0," ",COUNTRY_INFO!C24)) -> Abomey-Calavi | D24: 265680 | E24: 471068 | F24: 736748 | G24: =IF(INTRO!$E$43="Non endémique", "Non requis", COUNTRY_INFO!S24) -> 0 | I24: =IF($D24=0,0,IF(AND($G24>0,$H24<>"Oui"),D24,IF(AND($G24>0,$H24="Oui"),COUNTRY_INFO!$F24,0))) -> 0 | K24: 0 | L24: 0 | M24: 0 | N24: 0 | O24: 0 | Q24: 0 | R24: 0
A25: =IF(INTRO!$E$43="Non endémique"," ", IF(COUNTRY_INFO!A25=0," ",COUNTRY_INFO!A25)) -> Benin | B25: =IF(INTRO!$E$43="Non endémique"," ", IF(COUNTRY_INFO!B25=0," ",COUNTRY_INFO!B25)) -> Atlantique | C25: =IF(INTRO!$E$43="Non endémique"," ", IF(COUNTRY_INFO!C25=0," ",COUNTRY_INFO!C25)) -> Allada | D25: 51614 | E25: 91515 | F25: 143129 | G25: =IF(INTRO!$E$43="Non endémique", "Non requis", COUNTRY_INFO!S25) -> 0 | I25: =IF($D25=0,0,IF(AND($G25>0,$H25<>"Oui"),D25,IF(AND($G25>0,$H25="Oui"),COUNTRY_INFO!$F25,0))) -> 0 | K25: 0 | L25: 0 | M25: 0 | N25: 0 | O25: 0 | Q25: 0 | R25: 0
A26: =IF(INTRO!$E$43="Non endémique"," ", IF(COUNTRY_INFO!A26=0," ",COUNTRY_INFO!A26)) -> Benin | B26: =IF(INTRO!$E$43="Non endémique"," ", IF(COUNTRY_INFO!B26=0," ",COUNTRY_INFO!B26)) -> Atlantique | C26: =IF(INTRO!$E$43="Non endémique"," ", IF(COUNTRY_INFO!C26=0," ",COUNTRY_INFO!C26)) -> Kpomassè | D26: 27382 | E26: 48550 | F26: 75932 | G26: =IF(INTRO!$E$43="Non endémique", "Non requis", COUNTRY_INFO!S26) -> 0 | I26: =IF($D26=0,0,IF(AND($G26>0,$H26<>"Oui"),D26,IF(AND($G26>0,$H26="Oui"),COUNTRY_INFO!$F26,0))) -> 0 | K26: 0 | L26: 0 | M26: 0 | N26: 0 | O26: 0 | Q26: 0 | R26: 0
A27: =IF(INTRO!$E$43="Non endémique"," ", IF(COUNTRY_INFO!A27=0," ",COUNTRY_INFO!A27)) -> Benin | B27: =IF(INTRO!$E$43="Non endémique"," ", IF(COUNTRY_INFO!B27=0," ",COUNTRY_INFO!B27)) -> Atlantique | C27: =IF(INTRO!$E$43="Non endémique"," ", IF(COUNTRY_INFO!C27=0," ",COUNTRY_INFO!C27)) -> Ouidah | D27: 65588 | E27: 116291 | F27: 181879 | G27: =IF(INTRO!$E$43="Non endémique", "Non requis", COUNTRY_INFO!S27) -> 1 | I27: =IF($D27=0,0,IF(AND($G27>0,$H27<>"Oui"),D27,IF(AND($G27>0,$H27="Oui"),COUNTRY_INFO!$F27,0))) -> 65588 | K27: 0 | L27: 65588 | M27: 163970 | N27: 0 | O27: 163970 | Q27: 163970 | R27: 164
A28: =IF(INTRO!$E$43="Non endémique"," ", IF(COUNTRY_INFO!A28=0," ",COUNTRY_INFO!A28)) -> Benin | B28: =IF(INTRO!$E$43="Non endémique"," ", IF(COUNTRY_INFO!B28=0," ",COUNTRY_INFO!B28)) -> Atlantique | C28: =IF(INTRO!$E$43="Non endémique"," ", IF(COUNTRY_INFO!C28=0," ",COUNTRY_INFO!C28)) -> So-Ava | D28: 47985 | E28: 85081 | F28: 133066 | G28: =IF(INTRO!$E$43="Non endémique", "Non requis", COUNTRY_INFO!S28) -> 1 | I28: =IF($D28=0,0,IF(AND($G28>0,$H28<>"Oui"),D28,IF(AND($G28>0,$H28="Oui"),COUNTRY_INFO!$F28,0))) -> 47985 | K28: 0 | L28: 47985 | M28: 119962.5 | N28: 0 | O28: 119962.5 | Q28: 119962.5 | R28: 120
A29: =IF(INTRO!$E$43="Non endémique"," ", IF(COUNTRY_INFO!A29=0," ",COUNTRY_INFO!A29)) -> Benin | B29: =IF(INTRO!$E$43="Non endémique"," ", IF(COUNTRY_INFO!B29=0," ",COUNTRY_INFO!B29)) -> Atlantique | C29: =IF(INTRO!$E$43="Non endémique"," ", IF(COUNTRY_INFO!C29=0," ",COUNTRY_INFO!C29)) -> Toffo | D29: 41119 | E29: 72907 | F29: 114026 | G29: =IF(INTRO!$E$43="Non endémique", "Non requis", COUNTRY_INFO!S29) -> 1 | I29: =IF($D29=0,0,IF(AND($G29>0,$H29<>"Oui"),D29,IF(AND($G29>0,$H29="Oui"),COUNTRY_INFO!$F29,0))) -> 41119 | K29: 1086 | L29: 42205 | M29: 102797.5 | N29: 3258 | O29: 102797.5 | Q29: 102797.5 | R29: 103
A30: =IF(INTRO!$E$43="Non endémique"," ", IF(COUNTRY_INFO!A30=0," ",COUNTRY_INFO!A30)) -> Benin | B30: =IF(INTRO!$E$43="Non endémique"," ", IF(COUNTRY_INFO!B30=0," ",COUNTRY_INFO!B30)) -> Atlantique | C30: =IF(INTRO!$E$43="Non endémique"," ", IF(COUNTRY_INFO!C30=0," ",COUNTRY_INFO!C30)) -> Torri-Bossito | D30: 23328 | E30: 41362 | F30: 64690 | G30: =IF(INTRO!$E$43="Non endémique", "Non requis", COUNTRY_INFO!S30) -> 1 | I30: =IF($D30=0,0,IF(AND($G30>0,$H30<>"Oui"),D30,IF(AND($G30>0,$H30="Oui"),COUNTRY_INFO!$F30,0))) -> 23328 | K30: 0 | L30: 23328 | M30: 58320 | N30: 0 | O30: 58320 | Q30: 58320 | R30: 59
A31: =IF(INTRO!$E$43="Non endémique"," ", IF(COUNTRY_INFO!A31=0," ",COUNTRY_INFO!A31)) -> Benin | B31: =IF(INTRO!$E$43="Non endémique"," ", IF(COUNTRY_INFO!B31=0," ",COUNTRY_INFO!B31)) -> Atlantique | C31: =IF(INTRO!$E$43="Non endémique"," ", IF(COUNTRY_INFO!C31=0," ",COUNTRY_INFO!C31)) -> Zè | D31: 43276 | E31: 76730 | F31: 120006 | G31: =IF(INTRO!$E$43="Non endémique", "Non requis", COUNTRY_INFO!S31) -> 1 | I31: =IF($D31=0,0,IF(AND($G31>0,$H31<>"Oui"),D31,IF(AND($G31>0,$H31="Oui"),COUNTRY_INFO!$F31,0))) -> 43276 | K31: 0 | L31: 43276 | M31: 108190 | N31: 0 | O31: 108190 | Q31: 108190 | R31: 109
A32: =IF(INTRO!$E$43="Non endémique"," ", IF(COUNTRY_INFO!A32=0," ",COUNTRY_INFO!A32)) -> Benin | B32: =IF(INTRO!$E$43="Non endémique"," ", IF(COUNTRY_INFO!B32=0," ",COUNTRY_INFO!B32)) -> Borgou | C32: =IF(INTRO!$E$43="Non endémique"," ", IF(COUNTRY_INFO!C32=0," ",COUNTRY_INFO!C32)) -> Bembèrèkè | D32: 38463 | E32: 68197 | F32: 106660 | G32: =IF(INTRO!$E$43="Non endémique", "Non requis", COUNTRY_INFO!S32) -> 1 | I32: =IF($D32=0,0,IF(AND($G32>0,$H32<>"Oui"),D32,IF(AND($G32>0,$H32="Oui"),COUNTRY_INFO!$F32,0))) -> 38463 | K32: 55657 | L32: 94120 | M32: 96157.5 | N32: 166971 | O32: 96157.5 | Q32: 96157.5 | R32: 97
A33: =IF(INTRO!$E$43="Non endémique"," ", IF(COUNTRY_INFO!A33=0," ",COUNTRY_INFO!A33)) -> Benin | B33: =IF(INTRO!$E$43="Non endémique"," ", IF(COUNTRY_INFO!B33=0," ",COUNTRY_INFO!B33)) -> Borgou | C33: =IF(INTRO!$E$43="Non endémique"," ", IF(COUNTRY_INFO!C33=0," ",COUNTRY_INFO!C33)) -> Kalalé | D33: 59372 | E33: 105270 | F33: 164642 | G33: =IF(INTRO!$E$43="Non endémique", "Non requis", COUNTRY_INFO!S33) -> 1 | I33: =IF($D33=0,0,IF(AND($G33>0,$H33<>"Oui"),D33,IF(AND($G33>0,$H33="Oui"),COUNTRY_INFO!$F33,0))) -> 59372 | K33: 0 | L33: 59372 | M33: 148430 | N33: 0 | O33: 148430 | Q33: 148430 | R33: 149
A34: =IF(INTRO!$E$43="Non endémique"," ", IF(COUNTRY_INFO!A34=0," ",COUNTRY_INFO!A34)) -> Benin | B34: =IF(INTRO!$E$43="Non endémique"," ", IF(COUNTRY_INFO!B34=0," ",COUNTRY_INFO!B34)) -> Borgou | C34: =IF(INTRO!$E$43="Non endémique"," ", IF(COUNTRY_INFO!C34=0," ",COUNTRY_INFO!C34)) -> N'Dali | D34: 31499 | E34: 55850 | F34: 87349 | G34: =IF(INTRO!$E$43="Non endémique", "Non requis", COUNTRY_INFO!S34) -> 1 | I34: =IF($D34=0,0,IF(AND($G34>0,$H34<>"Oui"),D34,IF(AND($G34>0,$H34="Oui"),COUNTRY_INFO!$F34,0))) -> 31499 | K34: 54693 | L34: 86192 | M34: 78747.5 | N34: 164079 | O34: 78747.5 | Q34: 78747.5 | R34: 79
A35: =IF(INTRO!$E$43="Non endémique"," ", IF(COUNTRY_INFO!A35=0," ",COUNTRY_INFO!A35)) -> Benin | B35: =IF(INTRO!$E$43="Non endémique"," ", IF(COUNTRY_INFO!B35=0," ",COUNTRY_INFO!B35)) -> Borgou | C35: =IF(INTRO!$E$43="Non endémique"," ", IF(COUNTRY_INFO!C35=0," ",COUNTRY_INFO!C35)) -> Nikki | D35: 56314 | E35: 99849 | F35: 156163 | G35: =IF(INTRO!$E$43="Non endémique", "Non requis", COUNTRY_INFO!S35) -> 1 | I35: =IF($D35=0,0,IF(AND($G35>0,$H35<>"Oui"),D35,IF(AND($G35>0,$H35="Oui"),COUNTRY_INFO!$F35,0))) -> 56314 | K35: 11633 | L35: 67947 | M35: 140785 | N35: 34899 | O35: 140785 | Q35: 140785 | R35: 141
A36: =IF(INTRO!$E$43="Non endémique"," ", IF(COUNTRY_INFO!A36=0," ",COUNTRY_INFO!A36)) -> Benin | B36: =IF(INTRO!$E$43="Non endémique"," ", IF(COUNTRY_INFO!B36=0," ",COUNTRY_INFO!B36)) -> Borgou | C36: =IF(INTRO!$E$43="Non endémique"," ", IF(COUNTRY_INFO!C36=0," ",COUNTRY_INFO!C36)) -> Parakou | D36: 42938 | E36: 76131 | F36: 119069 | G36: =IF(INTRO!$E$43="Non endémique", "Non requis", COUNTRY_INFO!S36) -> 1 | I36: =IF($D36=0,0,IF(AND($G36>0,$H36<>"Oui"),D36,IF(AND($G36>0,$H36="Oui"),COUNTRY_INFO!$F36,0))) -> 42938 | K36: 0 | L36: 42938 | M36: 107345 | N36: 0 | O36: 107345 | Q36: 107345 | R36: 108
A37: =IF(INTRO!$E$43="Non endémique"," ", IF(COUNTRY_INFO!A37=0," ",COUNTRY_INFO!A37)) -> Benin | B37: =IF(INTRO!$E$43="Non endémique"," ", IF(COUNTRY_INFO!B37=0," ",COUNTRY_INFO!B37)) -> Borgou | C37: =IF(INTRO!$E$43="Non endémique"," ", IF(COUNTRY_INFO!C37=0," ",COUNTRY_INFO!C37)) -> Pèrèrè | D37: 26570 | E37: 47110 | F37: 73680 | G37: =IF(INTRO!$E$43="Non endémique", "Non requis", COUNTRY_INFO!S37) -> 1 | I37: =IF($D37=0,0,IF(AND($G37>0,$H37<>"Oui"),D37,IF(AND($G37>0,$H37="Oui"),COUNTRY_INFO!$F37,0))) -> 26570 | K37: 0 | L37: 26570 | M37: 66425 | N37: 0 | O37: 66425 | Q37: 66425 | R37: 67
A38: =IF(INTRO!$E$43="Non endémique"," ", IF(COUNTRY_INFO!A38=0," ",COUNTRY_INFO!A38)) -> Benin | B38: =IF(INTRO!$E$43="Non endémique"," ", IF(COUNTRY_INFO!B38=0," ",COUNTRY_INFO!B38)) -> Borgou | C38: =IF(INTRO!$E$43="Non endémique"," ", IF(COUNTRY_INFO!C38=0," ",COUNTRY_INFO!C38)) -> Sinendé | D38: 22012 | E38: 39029 | F38: 61041 | G38: =IF(INTRO!$E$43="Non endémique", "Non requis", COUNTRY_INFO!S38) -> 1 | I38: =IF($D38=0,0,IF(AND($G38>0,$H38<>"Oui"),D38,IF(AND($G38>0,$H38="Oui"),COUNTRY_INFO!$F38,0))) -> 22012 | K38: 13687 | L38: 35699 | M38: 55030 | N38: 41061 | O38: 55030 | Q38: 55030 | R38: 56
A39: =IF(INTRO!$E$43="Non endémique"," ", IF(COUNTRY_INFO!A39=0," ",COUNTRY_INFO!A39)) -> Benin | B39: =IF(INTRO!$E$43="Non endémique"," ", IF(COUNTRY_INFO!B39=0," ",COUNTRY_INFO!B39)) -> Borgou | C39: =IF(INTRO!$E$43="Non endémique"," ", IF(COUNTRY_INFO!C39=0," ",COUNTRY_INFO!C39)) -> Tchaourou | D39: 85409 | E39: 151436 | F39: 236845 | G39: =IF(INTRO!$E$43="Non endémique", "Non requis", COUNTRY_INFO!S39) -> 1 | I39: =IF($D39=0,0,IF(AND($G39>0,$H39<>"Oui"),D39,IF(AND($G39>0,$H39="Oui"),COUNTRY_INFO!$F39,0))) -> 85409 | K39: 98650 | L39: 184059 | M39: 213522.5 | N39: 295950 | O39: 213522.5 | Q39: 213522.5 | R39: 214
A40: =IF(INTRO!$E$43="Non endémique"," ", IF(COUNTRY_INFO!A40=0," ",COUNTRY_INFO!A40)) -> Benin | B40: =IF(INTRO!$E$43="Non endémique"," ", IF(COUNTRY_INFO!B40=0," ",COUNTRY_INFO!B40)) -> Collines | C40: =IF(INTRO!$E$43="Non endémique"," ", IF(COUNTRY_INFO!C40=0," ",COUNTRY_INFO!C40)) -> Bantè | D40: 26868 | E40: 47638 | F40: 74506 | G40: =IF(INTRO!$E$43="Non endémique", "Non requis", COUNTRY_INFO!S40) -> 0 | I40: =IF($D40=0,0,IF(AND($G40>0,$H40<>"Oui"),D40,IF(AND($G40>0,$H40="Oui"),COUNTRY_INFO!$F40,0))) -> 0 | K40: 19055 | L40: 19055 | M40: 0 | N40: 57165 | O40: 0 | Q40: 0 | R40: 0
A41: =IF(INTRO!$E$43="Non endémique"," ", IF(COUNTRY_INFO!A41=0," ",COUNTRY_INFO!A41)) -> Benin | B41: =IF(INTRO!$E$43="Non endémique"," ", IF(COUNTRY_INFO!B41=0," ",COUNTRY_INFO!B41)) -> Collines | C41: =IF(INTRO!$E$43="Non endémique"," ", IF(COUNTRY_INFO!C41=0," ",COUNTRY_INFO!C41)) -> Dassa-Zoumè | D41: 30316 | E41: 53752 | F41: =SUM(D41:E41) -> 84068 | G41: =IF(INTRO!$E$43="Non endémique", "Non requis", COUNTRY_INFO!S41) -> 1 | I41: =IF($D41=0,0,IF(AND($G41>0,$H41<>"Oui"),D41,IF(AND($G41>0,$H41="Oui"),COUNTRY_INFO!$F41,0))) -> 30316 | K41: 0 | L41: =IF($J41=0,SUM(I41,K41),SUM(J41,K41)) -> 30316 | M41: =IF($J41=0,$I41*2.5,$J41*2.5) -> 75790 | N41: =$K41*3 -> 0 | O41: =M41 -> 75790 | Q41: =IF($O41>$P41,O41-P41,0) -> 75790 | R41: =ROUNDUP($O41/1000,0) -> 76
A42: =IF(INTRO!$E$43="Non endémique"," ", IF(COUNTRY_INFO!A42=0," ",COUNTRY_INFO!A42)) -> Benin | B42: =IF(INTRO!$E$43="Non endémique"," ", IF(COUNTRY_INFO!B42=0," ",COUNTRY_INFO!B42)) -> Collines | C42: =IF(INTRO!$E$43="Non endémique"," ", IF(COUNTRY_INFO!C42=0," ",COUNTRY_INFO!C42)) -> Glazoué | D42: 31418 | E42: 55706 | F42: 87124 | G42: =IF(INTRO!$E$43="Non endémique", "Non requis", COUNTRY_INFO!S42) -> 0 | I42: =IF($D42=0,0,IF(AND($G42>0,$H42<>"Oui"),D42,IF(AND($G42>0,$H42="Oui"),COUNTRY_INFO!$F42,0))) -> 0 | K42: 1720 | L42: 1720 | M42: 0 | N42: 5160 | O42: 0 | Q42: 0 | R42: 0
A43: =IF(INTRO!$E$43="Non endémique"," ", IF(COUNTRY_INFO!A43=0," ",COUNTRY_INFO!A43)) -> Benin | B43: =IF(INTRO!$E$43="Non endémique"," ", IF(COUNTRY_INFO!B43=0," ",COUNTRY_INFO!B43)) -> Collines | C43: =IF(INTRO!$E$43="Non endémique"," ", IF(COUNTRY_INFO!C43=0," ",COUNTRY_INFO!C43)) -> Ouèssè | D43: 36591 | E43: 64878 | F43: 101469 | G43: =IF(INTRO!$E$43="Non endémique", "Non requis", COUNTRY_INFO!S43) -> 1 | I43: =IF($D43=0,0,IF(AND($G43>0,$H43<>"Oui"),D43,IF(AND($G43>0,$H43="Oui"),COUNTRY_INFO!$F43,0))) -> 36591 | K43: 13174 | L43: 49765 | M43: 91477.5 | N43: 39522 | O43: 91477.5 | Q43: 91477.5 | R43: 92
A44: =IF(INTRO!$E$43="Non endémique"," ", IF(COUNTRY_INFO!A44=0," ",COUNTRY_INFO!A44)) -> Benin | B44: =IF(INTRO!$E$43="Non endémique"," ", IF(COUNTRY_INFO!B44=0," ",COUNTRY_INFO!B44)) -> Collines | C44: =IF(INTRO!$E$43="Non endémique"," ", IF(COUNTRY_INFO!C44=0," ",COUNTRY_INFO!C44)) -> Savalou | D44: 44426 | E44: 78769 | F44: 123195 | G44: =IF(INTRO!$E$43="Non endémique", "Non requis", COUNTRY_INFO!S44) -> 0 | I44: =IF($D44=0,0,IF(AND($G44>0,$H44<>"Oui"),D44,IF(AND($G44>0,$H44="Oui"),COUNTRY_INFO!$F44,0))) -> 0 | K44: 20516 | L44: 20516 | M44: 0 | N44: 61548 | O44: 0 | Q44: 0 | R44: 0
A45: =IF(INTRO!$E$43="Non endémique"," ", IF(COUNTRY_INFO!A45=0," ",COUNTRY_INFO!A45)) -> Benin | B45: =IF(INTRO!$E$43="Non endémique"," ", IF(COUNTRY_INFO!B45=0," ",COUNTRY_INFO!B45)) -> Collines | C45: =IF(INTRO!$E$43="Non endémique"," ", IF(COUNTRY_INFO!C45=0," ",COUNTRY_INFO!C45)) -> Savè | D45: 26446 | E45: 46891 | F45: 73337 | G45: =IF(INTRO!$E$43="Non endémique", "Non requis", COUNTRY_INFO!S45) -> 1 | I45: =IF($D45=0,0,IF(AND($G45>0,$H45<>"Oui"),D45,IF(AND($G45>0,$H45="Oui"),COUNTRY_INFO!$F45,0))) -> 26446 | K45: 0 | L45: 26446 | M45: 66115 | N45: 0 | O45: 66115 | Q45: 66115 | R45: 67
A46: =IF(INTRO!$E$43="Non endémique"," ", IF(COUNTRY_INFO!A46=0," ",COUNTRY_INFO!A46)) -> Benin | B46: =IF(INTRO!$E$43="Non endémique"," ", IF(COUNTRY_INFO!B46=0," ",COUNTRY_INFO!B46)) -> Couffo | C46: =IF(INTRO!$E$43="Non endémique"," ", IF(COUNTRY_INFO!C46=0," ",COUNTRY_INFO!C46)) -> Aplahoué | D46: 61850 | E46: 109664 | F46: 171514 | G46: =IF(INTRO!$E$43="Non endémique", "Non requis", COUNTRY_INFO!S46) -> 0 | I46: =IF($D46=0,0,IF(AND($G46>0,$H46<>"Oui"),D46,IF(AND($G46>0,$H46="Oui"),COUNTRY_INFO!$F46,0))) -> 0 | K46: 23897 | L46: 23897 | M46: 0 | N46: 71691 | O46: 0 | Q46: 0 | R46: 0
A47: =IF(INTRO!$E$43="Non endémique"," ", IF(COUNTRY_INFO!A47=0," ",COUNTRY_INFO!A47)) -> Benin | B47: =IF(INTRO!$E$43="Non endémique"," ", IF(COUNTRY_INFO!B47=0," ",COUNTRY_INFO!B47)) -> Couffo | C47: =IF(INTRO!$E$43="Non endémique"," ", IF(COUNTRY_INFO!C47=0," ",COUNTRY_INFO!C47)) -> Djakotomè | D47: 51614 | E47: 91515 | F47: 143129 | G47: =IF(INTRO!$E$43="Non endémique", "Non requis", COUNTRY_INFO!S47) -> 0 | I47: =IF($D47=0,0,IF(AND($G47>0,$H47<>"Oui"),D47,IF(AND($G47>0,$H47="Oui"),COUNTRY_INFO!$F47,0))) -> 0 | K47: 2859 | L47: 2859 | M47: 0 | N47: 8577 | O47: 0 | Q47: 0 | R47: 0
A48: =IF(INTRO!$E$43="Non endémique"," ", IF(COUNTRY_INFO!A48=0," ",COUNTRY_INFO!A48)) -> Benin | B48: =IF(INTRO!$E$43="Non endémique"," ", IF(COUNTRY_INFO!B48=0," ",COUNTRY_INFO!B48)) -> Couffo | C48: =IF(INTRO!$E$43="Non endémique"," ", IF(COUNTRY_INFO!C48=0," ",COUNTRY_INFO!C48)) -> Dogbo | D48: 41715 | E48: 73964 | F48: 115679 | G48: =IF(INTRO!$E$43="Non endémique", "Non requis", COUNTRY_INFO!S48) -> 0 | I48: =IF($D48=0,0,IF(AND($G48>0,$H48<>"Oui"),D48,IF(AND($G48>0,$H48="Oui"),COUNTRY_INFO!$F48,0))) -> 0 | K48: 0 | L48: 0 | M48: 0 | N48: 0 | O48: 0 | Q48: 0 | R48: 0
A49: =IF(INTRO!$E$43="Non endémique"," ", IF(COUNTRY_INFO!A49=0," ",COUNTRY_INFO!A49)) -> Benin | B49: =IF(INTRO!$E$43="Non endémique"," ", IF(COUNTRY_INFO!B49=0," ",COUNTRY_INFO!B49)) -> Couffo | C49: =IF(INTRO!$E$43="Non endémique"," ", IF(COUNTRY_INFO!C49=0," ",COUNTRY_INFO!C49)) -> Klouékamè | D49: 42537 | E49: 75421 | F49: 117958 | G49: =IF(INTRO!$E$43="Non endémique", "Non requis", COUNTRY_INFO!S49) -> 0 | I49: =IF($D49=0,0,IF(AND($G49>0,$H49<>"Oui"),D49,IF(AND($G49>0,$H49="Oui"),COUNTRY_INFO!$F49,0))) -> 0 | K49: 17358 | L49: 17358 | M49: 0 | N49: 52074 | O49: 0 | Q49: 0 | R49: 0
A50: =IF(INTRO!$E$43="Non endémique"," ", IF(COUNTRY_INFO!A50=0," ",COUNTRY_INFO!A50)) -> Benin | B50: =IF(INTRO!$E$43="Non endémique"," ", IF(COUNTRY_INFO!B50=0," ",COUNTRY_INFO!B50)) -> Couffo | C50: =IF(INTRO!$E$43="Non endémique"," ", IF(COUNTRY_INFO!C50=0," ",COUNTRY_INFO!C50)) -> Lalo | D50: 40414 | E50: 71656 | F50: 112070 | G50: =IF(INTRO!$E$43="Non endémique", "Non requis", COUNTRY_INFO!S50) -> 0 | I50: =IF($D50=0,0,IF(AND($G50>0,$H50<>"Oui"),D50,IF(AND($G50>0,$H50="Oui"),COUNTRY_INFO!$F50,0))) -> 0 | K50: 13823 | L50: 13823 | M50: 0 | N50: 41469 | O50: 0 | Q50: 0 | R50: 0
A51: =IF(INTRO!$E$43="Non endémique"," ", IF(COUNTRY_INFO!A51=0," ",COUNTRY_INFO!A51)) -> Benin | B51: =IF(INTRO!$E$43="Non endémique"," ", IF(COUNTRY_INFO!B51=0," ",COUNTRY_INFO!B51)) -> Couffo | C51: =IF(INTRO!$E$43="Non endémique"," ", IF(COUNTRY_INFO!C51=0," ",COUNTRY_INFO!C51)) -> Toviklin | D51: 35868 | E51: 63595 | F51: 99463 | G51: =IF(INTRO!$E$43="Non endémique", "Non requis", COUNTRY_INFO!S51) -> 0 | I51: =IF($D51=0,0,IF(AND($G51>0,$H51<>"Oui"),D51,IF(AND($G51>0,$H51="Oui"),COUNTRY_INFO!$F51,0))) -> 0 | K51: 0 | L51: 0 | M51: 0 | N51: 0 | O51: 0 | Q51: 0 | R51: 0
A52: =IF(INTRO!$E$43="Non endémique"," ", IF(COUNTRY_INFO!A52=0," ",COUNTRY_INFO!A52)) -> Benin | B52: =IF(INTRO!$E$43="Non endémique"," ", IF(COUNTRY_INFO!B52=0," ",COUNTRY_INFO!B52)) -> Donga | C52: =IF(INTRO!$E$43="Non endémique"," ", IF(COUNTRY_INFO!C52=0," ",COUNTRY_INFO!C52)) -> Bassila | D52: 32862 | E52: 58267 | F52: 91129 | G52: =IF(INTRO!$E$43="Non endémique", "Non requis", COUNTRY_INFO!S52) -> 1 | I52: =IF($D52=0,0,IF(AND($G52>0,$H52<>"Oui"),D52,IF(AND($G52>0,$H52="Oui"),COUNTRY_INFO!$F52,0))) -> 32862 | K52: 26425 | L52: 59287 | M52: 82155 | N52: 79275 | O52: 82155 | Q52: 82155 | R52: 83
A53: =IF(INTRO!$E$43="Non endémique"," ", IF(COUNTRY_INFO!A53=0," ",COUNTRY_INFO!A53)) -> Benin | B53: =IF(INTRO!$E$43="Non endémique"," ", IF(COUNTRY_INFO!B53=0," ",COUNTRY_INFO!B53)) -> Donga | C53: =IF(INTRO!$E$43="Non endémique"," ", IF(COUNTRY_INFO!C53=0," ",COUNTRY_INFO!C53)) -> Copargo | D53: 26907 | E53: 47708 | F53: 74615 | G53: =IF(INTRO!$E$43="Non endémique", "Non requis", COUNTRY_INFO!S53) -> 1 | I53: =IF($D53=0,0,IF(AND($G53>0,$H53<>"Oui"),D53,IF(AND($G53>0,$H53="Oui"),COUNTRY_INFO!$F53,0))) -> 26907 | K53: 32203 | L53: 59110 | M53: 67267.5 | N53: 96609 | O53: 67267.5 | Q53: 67267.5 | R53: 68
A54: =IF(INTRO!$E$43="Non endémique"," ", IF(COUNTRY_INFO!A54=0," ",COUNTRY_INFO!A54)) -> Benin | B54: =IF(INTRO!$E$43="Non endémique"," ", IF(COUNTRY_INFO!B54=0," ",COUNTRY_INFO!B54)) -> Donga | C54: =IF(INTRO!$E$43="Non endémique"," ", IF(COUNTRY_INFO!C54=0," ",COUNTRY_INFO!C54)) -> Djougou | D54: 73067 | E54: 129553 | F54: 202620 | G54: =IF(INTRO!$E$43="Non endémique", "Non requis", COUNTRY_INFO!S54) -> 0 | I54: =IF($D54=0,0,IF(AND($G54>0,$H54<>"Oui"),D54,IF(AND($G54>0,$H54="Oui"),COUNTRY_INFO!$F54,0))) -> 0 | K54: 2473 | L54: 2473 | M54: 0 | N54: 7419 | O54: 0 | Q54: 0 | R54: 0
A55: =IF(INTRO!$E$43="Non endémique"," ", IF(COUNTRY_INFO!A55=0," ",COUNTRY_INFO!A55)) -> Benin | B55: =IF(INTRO!$E$43="Non endémique"," ", IF(COUNTRY_INFO!B55=0," ",COUNTRY_INFO!B55)) -> Donga | C55: =IF(INTRO!$E$43="Non endémique"," ", IF(COUNTRY_INFO!C55=0," ",COUNTRY_INFO!C55)) -> Ouaké | D55: 25611 | E55: 45409 | F55: 71020 | G55: =IF(INTRO!$E$43="Non endémique", "Non requis", COUNTRY_INFO!S55) -> 1 | I55: =IF($D55=0,0,IF(AND($G55>0,$H55<>"Oui"),D55,IF(AND($G55>0,$H55="Oui"),COUNTRY_INFO!$F55,0))) -> 25611 | K55: 35267 | L55: 60878 | M55: 64027.5 | N55: 105801 | O55: 64027.5 | Q55: 64027.5 | R55: 65
A56: =IF(INTRO!$E$43="Non endémique"," ", IF(COUNTRY_INFO!A56=0," ",COUNTRY_INFO!A56)) -> Benin | B56: =IF(INTRO!$E$43="Non endémique"," ", IF(COUNTRY_INFO!B56=0," ",COUNTRY_INFO!B56)) -> Littoral | C56: =IF(INTRO!$E$43="Non endémique"," ", IF(COUNTRY_INFO!C56=0," ",COUNTRY_INFO!C56)) -> Cotonou | D56: 274850 | E56: 487327 | F56: 762177 | G56: =IF(INTRO!$E$43="Non endémique", "Non requis", COUNTRY_INFO!S56) -> 0 | I56: =IF($D56=0,0,IF(AND($G56>0,$H56<>"Oui"),D56,IF(AND($G56>0,$H56="Oui"),COUNTRY_INFO!$F56,0))) -> 0 | K56: 0 | L56: 0 | M56: 0 | N56: 0 | O56: 0 | Q56: 0 | R56: 0
A57: =IF(INTRO!$E$43="Non endémique"," ", IF(COUNTRY_INFO!A57=0," ",COUNTRY_INFO!A57)) -> Benin | B57: =IF(INTRO!$E$43="Non endémique"," ", IF(COUNTRY_INFO!B57=0," ",COUNTRY_INFO!B57)) -> Mono | C57: =IF(INTRO!$E$43="Non endémique"," ", IF(COUNTRY_INFO!C57=0," ",COUNTRY_INFO!C57)) -> Athiémé | D57: 20232 | E57: 35872 | F57: 56104 | G57: =IF(INTRO!$E$43="Non endémique", "Non requis", COUNTRY_INFO!S57) -> 0 | I57: =IF($D57=0,0,IF(AND($G57>0,$H57<>"Oui"),D57,IF(AND($G57>0,$H57="Oui"),COUNTRY_INFO!$F57,0))) -> 0 | K57: 1135 | L57: 1135 | M57: 0 | N57: 3405 | O57: 0 | Q57: 0 | R57: 0
A58: =IF(INTRO!$E$43="Non endémique"," ", IF(COUNTRY_INFO!A58=0," ",COUNTRY_INFO!A58)) -> Benin | B58: =IF(INTRO!$E$43="Non endémique"," ", IF(COUNTRY_INFO!B58=0," ",COUNTRY_INFO!B58)) -> Mono | C58: =IF(INTRO!$E$43="Non endémique"," ", IF(COUNTRY_INFO!C58=0," ",COUNTRY_INFO!C58)) -> Bopa | D58: 38972 | E58: 69100 | F58: 108072 | G58: =IF(INTRO!$E$43="Non endémique", "Non requis", COUNTRY_INFO!S58) -> 0 | I58: =IF($D58=0,0,IF(AND($G58>0,$H58<>"Oui"),D58,IF(AND($G58>0,$H58="Oui"),COUNTRY_INFO!$F58,0))) -> 0 | K58: 0 | L58: 0 | M58: 0 | N58: 0 | O58: 0 | Q58: 0 | R58: 0
A59: =IF(INTRO!$E$43="Non endémique"," ", IF(COUNTRY_INFO!A59=0," ",COUNTRY_INFO!A59)) -> Benin | B59: =IF(INTRO!$E$43="Non endémique"," ", IF(COUNTRY_INFO!B59=0," ",COUNTRY_INFO!B59)) -> Mono | C59: =IF(INTRO!$E$43="Non endémique"," ", IF(COUNTRY_INFO!C59=0," ",COUNTRY_INFO!C59)) -> Comé | D59: 32377 | E59: 57407 | F59: 89784 | G59: =IF(INTRO!$E$43="Non endémique", "Non requis", COUNTRY_INFO!S59) -> 0 | I59: =IF($D59=0,0,IF(AND($G59>0,$H59<>"Oui"),D59,IF(AND($G59>0,$H59="Oui"),COUNTRY_INFO!$F59,0))) -> 0 | K59: 0 | L59: 0 | M59: 0 | N59: 0 | O59: 0 | Q59: 0 | R59: 0
A60: =IF(INTRO!$E$43="Non endémique"," ", IF(COUNTRY_INFO!A60=0," ",COUNTRY_INFO!A60)) -> Benin | B60: =IF(INTRO!$E$43="Non endémique"," ", IF(COUNTRY_INFO!B60=0," ",COUNTRY_INFO!B60)) -> Mono | C60: =IF(INTRO!$E$43="Non endémique"," ", IF(COUNTRY_INFO!C60=0," ",COUNTRY_INFO!C60)) -> Grand-Popo | D60: 23330 | E60: 41365 | F60: 64695 | G60: =IF(INTRO!$E$43="Non endémique", "Non requis", COUNTRY_INFO!S60) -> 0 | I60: =IF($D60=0,0,IF(AND($G60>0,$H60<>"Oui"),D60,IF(AND($G60>0,$H60="Oui"),COUNTRY_INFO!$F60,0))) -> 0 | K60: 0 | L60: 0 | M60: 0 | N60: 0 | O60: 0 | Q60: 0 | R60: 0
A61: =IF(INTRO!$E$43="Non endémique"," ", IF(COUNTRY_INFO!A61=0," ",COUNTRY_INFO!A61)) -> Benin | B61: =IF(INTRO!$E$43="Non endémique"," ", IF(COUNTRY_INFO!B61=0," ",COUNTRY_INFO!B61)) -> Mono | C61: =IF(INTRO!$E$43="Non endémique"," ", IF(COUNTRY_INFO!C61=0," ",COUNTRY_INFO!C61)) -> Houéyogbé | D61: 41244 | E61: 73128 | F61: 114372 | G61: =IF(INTRO!$E$43="Non endémique", "Non requis", COUNTRY_INFO!S61) -> 0 | I61: =IF($D61=0,0,IF(AND($G61>0,$H61<>"Oui"),D61,IF(AND($G61>0,$H61="Oui"),COUNTRY_INFO!$F61,0))) -> 0 | K61: 13213 | L61: 13213 | M61: 0 | N61: 39639 | O61: 0 | Q61: 0 | R61: 0
A62: =IF(INTRO!$E$43="Non endémique"," ", IF(COUNTRY_INFO!A62=0," ",COUNTRY_INFO!A62)) -> Benin | B62: =IF(INTRO!$E$43="Non endémique"," ", IF(COUNTRY_INFO!B62=0," ",COUNTRY_INFO!B62)) -> Mono | C62: =IF(INTRO!$E$43="Non endémique"," ", IF(COUNTRY_INFO!C62=0," ",COUNTRY_INFO!C62)) -> Lokossa | D62: 42486 | E62: 75330 | F62: 117816 | G62: =IF(INTRO!$E$43="Non endémique", "Non requis", COUNTRY_INFO!S62) -> 0 | I62: =IF($D62=0,0,IF(AND($G62>0,$H62<>"Oui"),D62,IF(AND($G62>0,$H62="Oui"),COUNTRY_INFO!$F62,0))) -> 0 | K62: 849 | L62: 849 | M62: 0 | N62: 2547 | O62: 0 | Q62: 0 | R62: 0
A63: =IF(INTRO!$E$43="Non endémique"," ", IF(COUNTRY_INFO!A63=0," ",COUNTRY_INFO!A63)) -> Benin | B63: =IF(INTRO!$E$43="Non endémique"," ", IF(COUNTRY_INFO!B63=0," ",COUNTRY_INFO!B63)) -> Oueme | C63: =IF(INTRO!$E$43="Non endémique"," ", IF(COUNTRY_INFO!C63=0," ",COUNTRY_INFO!C63)) -> Adjarra | D63: 32596 | E63: 57794 | F63: 90390 | G63: =IF(INTRO!$E$43="Non endémique", "Non requis", COUNTRY_INFO!S63) -> 0 | I63: =IF($D63=0,0,IF(AND($G63>0,$H63<>"Oui"),D63,IF(AND($G63>0,$H63="Oui"),COUNTRY_INFO!$F63,0))) -> 0 | K63: 2793 | L63: 2793 | M63: 0 | N63: 8379 | O63: 0 | Q63: 0 | R63: 0
A64: =IF(INTRO!$E$43="Non endémique"," ", IF(COUNTRY_INFO!A64=0," ",COUNTRY_INFO!A64)) -> Benin | B64: =IF(INTRO!$E$43="Non endémique"," ", IF(COUNTRY_INFO!B64=0," ",COUNTRY_INFO!B64)) -> Oueme | C64: =IF(INTRO!$E$43="Non endémique"," ", IF(COUNTRY_INFO!C64=0," ",COUNTRY_INFO!C64)) -> Adjohoun | D64: 25597 | E64: 45384 | F64: 70981 | G64: =IF(INTRO!$E$43="Non endémique", "Non requis", COUNTRY_INFO!S64) -> 0 | I64: =IF($D64=0,0,IF(AND($G64>0,$H64<>"Oui"),D64,IF(AND($G64>0,$H64="Oui"),COUNTRY_INFO!$F64,0))) -> 0 | K64: 0 | L64: 0 | M64: 0 | N64: 0 | O64: 0 | Q64: 0 | R64: 0
A65: =IF(INTRO!$E$43="Non endémique"," ", IF(COUNTRY_INFO!A65=0," ",COUNTRY_INFO!A65)) -> Benin | B65: =IF(INTRO!$E$43="Non endémique"," ", IF(COUNTRY_INFO!B65=0," ",COUNTRY_INFO!B65)) -> Oueme | C65: =IF(INTRO!$E$43="Non endémique"," ", IF(COUNTRY_INFO!C65=0," ",COUNTRY_INFO!C65)) -> Aguégués | D65: 12421 | E65: 22024 | F65: 34445 | G65: =IF(INTRO!$E$43="Non endémique", "Non requis", COUNTRY_INFO!S65) -> 1 | I65: =IF($D65=0,0,IF(AND($G65>0,$H65<>"Oui"),D65,IF(AND($G65>0,$H65="Oui"),COUNTRY_INFO!$F65,0))) -> 12421 | K65: 21700 | L65: 34121 | M65: 31052.5 | N65: 65100 | O65: 31052.5 | Q65: 31052.5 | R65: 32
A66: =IF(INTRO!$E$43="Non endémique"," ", IF(COUNTRY_INFO!A66=0," ",COUNTRY_INFO!A66)) -> Benin | B66: =IF(INTRO!$E$43="Non endémique"," ", IF(COUNTRY_INFO!B66=0," ",COUNTRY_INFO!B66)) -> Oueme | C66: =IF(INTRO!$E$43="Non endémique"," ", IF(COUNTRY_INFO!C66=0," ",COUNTRY_INFO!C66)) -> Akpro-Missérété | D66: 28520 | E66: 50567 | F66: 79087 | G66: =IF(INTRO!$E$43="Non endémique", "Non requis", COUNTRY_INFO!S66) -> 0 | I66: =IF($D66=0,0,IF(AND($G66>0,$H66<>"Oui"),D66,IF(AND($G66>0,$H66="Oui"),COUNTRY_INFO!$F66,0))) -> 0 | K66: 1679 | L66: 1679 | M66: 0 | N66: 5037 | O66: 0 | Q66: 0 | R66: 0
A67: =IF(INTRO!$E$43="Non endémique"," ", IF(COUNTRY_INFO!A67=0," ",COUNTRY_INFO!A67)) -> Benin | B67: =IF(INTRO!$E$43="Non endémique"," ", IF(COUNTRY_INFO!B67=0," ",COUNTRY_INFO!B67)) -> Oueme | C67: =IF(INTRO!$E$43="Non endémique"," ", IF(COUNTRY_INFO!C67=0," ",COUNTRY_INFO!C67)) -> Avrankou | D67: 36022 | E67: 63869 | F67: 99891 | G67: =IF(INTRO!$E$43="Non endémique", "Non requis", COUNTRY_INFO!S67) -> 0 | I67: =IF($D67=0,0,IF(AND($G67>0,$H67<>"Oui"),D67,IF(AND($G67>0,$H67="Oui"),COUNTRY_INFO!$F67,0))) -> 0 | K67: 0 | L67: 0 | M67: 0 | N67: 0 | O67: 0 | Q67: 0 | R67: 0
A68: =IF(INTRO!$E$43="Non endémique"," ", IF(COUNTRY_INFO!A68=0," ",COUNTRY_INFO!A68)) -> Benin | B68: =IF(INTRO!$E$43="Non endémique"," ", IF(COUNTRY_INFO!B68=0," ",COUNTRY_INFO!B68)) -> Oueme | C68: =IF(INTRO!$E$43="Non endémique"," ", IF(COUNTRY_INFO!C68=0," ",COUNTRY_INFO!C68)) -> Bonou | D68: 12383 | E68: 21955 | F68: 34338 | G68: =IF(INTRO!$E$43="Non endémique", "Non requis", COUNTRY_INFO!S68) -> 0 | I68: =IF($D68=0,0,IF(AND($G68>0,$H68<>"Oui"),D68,IF(AND($G68>0,$H68="Oui"),COUNTRY_INFO!$F68,0))) -> 0 | K68: 901 | L68: 901 | M68: 0 | N68: 2703 | O68: 0 | Q68: 0 | R68: 0
A69: =IF(INTRO!$E$43="Non endémique"," ", IF(COUNTRY_INFO!A69=0," ",COUNTRY_INFO!A69)) -> Benin | B69: =IF(INTRO!$E$43="Non endémique"," ", IF(COUNTRY_INFO!B69=0," ",COUNTRY_INFO!B69)) -> Oueme | C69: =IF(INTRO!$E$43="Non endémique"," ", IF(COUNTRY_INFO!C69=0," ",COUNTRY_INFO!C69)) -> Dangbo | D69: 33468 | E69: 59340 | F69: 92808 | G69: =IF(INTRO!$E$43="Non endémique", "Non requis", COUNTRY_INFO!S69) -> 1 | I69: =IF($D69=0,0,IF(AND($G69>0,$H69<>"Oui"),D69,IF(AND($G69>0,$H69="Oui"),COUNTRY_INFO!$F69,0))) -> 33468 | K69: 43161 | L69: 76629 | M69: 83670 | N69: 129483 | O69: 83670 | Q69: 83670 | R69: 84
A70: =IF(INTRO!$E$43="Non endémique"," ", IF(COUNTRY_INFO!A70=0," ",COUNTRY_INFO!A70)) -> Benin | B70: =IF(INTRO!$E$43="Non endémique"," ", IF(COUNTRY_INFO!B70=0," ",COUNTRY_INFO!B70)) -> Oueme | C70: =IF(INTRO!$E$43="Non endémique"," ", IF(COUNTRY_INFO!C70=0," ",COUNTRY_INFO!C70)) -> Porto-Novo | D70: 106991 | E70: 189702 | F70: 296693 | G70: =IF(INTRO!$E$43="Non endémique", "Non requis", COUNTRY_INFO!S70) -> 0 | I70: =IF($D70=0,0,IF(AND($G70>0,$H70<>"Oui"),D70,IF(AND($G70>0,$H70="Oui"),COUNTRY_INFO!$F70,0))) -> 0 | K70: 0 | L70: 0 | M70: 0 | N70: 0 | O70: 0 | Q70: 0 | R70: 0
A71: =IF(INTRO!$E$43="Non endémique"," ", IF(COUNTRY_INFO!A71=0," ",COUNTRY_INFO!A71)) -> Benin | B71: =IF(INTRO!$E$43="Non endémique"," ", IF(COUNTRY_INFO!B71=0," ",COUNTRY_INFO!B71)) -> Oueme | C71: =IF(INTRO!$E$43="Non endémique"," ", IF(COUNTRY_INFO!C71=0," ",COUNTRY_INFO!C71)) -> Sèmè-Kpodji | D71: 38034 | E71: 67437 | F71: 105471 | G71: =IF(INTRO!$E$43="Non endémique", "Non requis", COUNTRY_INFO!S71) -> 0 | I71: =IF($D71=0,0,IF(AND($G71>0,$H71<>"Oui"),D71,IF(AND($G71>0,$H71="Oui"),COUNTRY_INFO!$F71,0))) -> 0 | K71: 827 | L71: 827 | M71: 0 | N71: 2481 | O71: 0 | Q71: 0 | R71: 0
A72: =IF(INTRO!$E$43="Non endémique"," ", IF(COUNTRY_INFO!A72=0," ",COUNTRY_INFO!A72)) -> Benin | B72: =IF(INTRO!$E$43="Non endémique"," ", IF(COUNTRY_INFO!B72=0," ",COUNTRY_INFO!B72)) -> Plateau | C72: =IF(INTRO!$E$43="Non endémique"," ", IF(COUNTRY_INFO!C72=0," ",COUNTRY_INFO!C72)) -> Adja-Ouèrè | D72: 37745 | E72: 66925 | F72: 104670 | G72: =IF(INTRO!$E$43="Non endémique", "Non requis", COUNTRY_INFO!S72) -> 1 | I72: =IF($D72=0,0,IF(AND($G72>0,$H72<>"Oui"),D72,IF(AND($G72>0,$H72="Oui"),COUNTRY_INFO!$F72,0))) -> 37745 | K72: 1475 | L72: 39220 | M72: 94362.5 | N72: 4425 | O72: 94362.5 | Q72: 94362.5 | R72: 95
A73: =IF(INTRO!$E$43="Non endémique"," ", IF(COUNTRY_INFO!A73=0," ",COUNTRY_INFO!A73)) -> Benin | B73: =IF(INTRO!$E$43="Non endémique"," ", IF(COUNTRY_INFO!B73=0," ",COUNTRY_INFO!B73)) -> Plateau | C73: =IF(INTRO!$E$43="Non endémique"," ", IF(COUNTRY_INFO!C73=0," ",COUNTRY_INFO!C73)) -> Ifangni | D73: 29772 | E73: 52788 | F73: =SUM(D73:E73) -> 82560 | G73: =IF(INTRO!$E$43="Non endémique", "Non requis", COUNTRY_INFO!S73) -> 0 | I73: =IF($D73=0,0,IF(AND($G73>0,$H73<>"Oui"),D73,IF(AND($G73>0,$H73="Oui"),COUNTRY_INFO!$F73,0))) -> 0 | K73: 1662 | L73: =IF($J73=0,SUM(I73,K73),SUM(J73,K73)) -> 1662 | M73: =IF($J73=0,$I73*2.5,$J73*2.5) -> 0 | N73: =$K73*3 -> 4986 | O73: =M73 -> 0 | Q73: =IF($O73>$P73,O73-P73,0) -> 0 | R73: =ROUNDUP($O73/1000,0) -> 0
A74: =IF(INTRO!$E$43="Non endémique"," ", IF(COUNTRY_INFO!A74=0," ",COUNTRY_INFO!A74)) -> Benin | B74: =IF(INTRO!$E$43="Non endémique"," ", IF(COUNTRY_INFO!B74=0," ",COUNTRY_INFO!B74)) -> Plateau | C74: =IF(INTRO!$E$43="Non endémique"," ", IF(COUNTRY_INFO!C74=0," ",COUNTRY_INFO!C74)) -> Kétou | D74: 47752 | E74: 84668 | F74: 132420 | G74: =IF(INTRO!$E$43="Non endémique", "Non requis", COUNTRY_INFO!S74) -> 1 | I74: =IF($D74=0,0,IF(AND($G74>0,$H74<>"Oui"),D74,IF(AND($G74>0,$H74="Oui"),COUNTRY_INFO!$F74,0))) -> 47752 | K74: 24314 | L74: 72066 | M74: 119380 | N74: 72942 | O74: 119380 | Q74: 119380 | R74: 120
A75: =IF(INTRO!$E$43="Non endémique"," ", IF(COUNTRY_INFO!A75=0," ",COUNTRY_INFO!A75)) -> Benin | B75: =IF(INTRO!$E$43="Non endémique"," ", IF(COUNTRY_INFO!B75=0," ",COUNTRY_INFO!B75)) -> Plateau | C75: =IF(INTRO!$E$43="Non endémique"," ", IF(COUNTRY_INFO!C75=0," ",COUNTRY_INFO!C75)) -> Pobè | D75: 36235 | E75: 64246 | F75: 100481 | G75: =IF(INTRO!$E$43="Non endémique", "Non requis", COUNTRY_INFO!S75) -> 1 | I75: =IF($D75=0,0,IF(AND($G75>0,$H75<>"Oui"),D75,IF(AND($G75>0,$H75="Oui"),COUNTRY_INFO!$F75,0))) -> 36235 | K75: 10790 | L75: 47025 | M75: 90587.5 | N75: 32370 | O75: 90587.5 | Q75: 90587.5 | R75: 91
A76: =IF(INTRO!$E$43="Non endémique"," ", IF(COUNTRY_INFO!A76=0," ",COUNTRY_INFO!A76)) -> Benin | B76: =IF(INTRO!$E$43="Non endémique"," ", IF(COUNTRY_INFO!B76=0," ",COUNTRY_INFO!B76)) -> Plateau | C76: =IF(INTRO!$E$43="Non endémique"," ", IF(COUNTRY_INFO!C76=0," ",COUNTRY_INFO!C76)) -> Sakété | D76: 28889 | E76: 51222 | F76: 80111 | G76: =IF(INTRO!$E$43="Non endémique", "Non requis", COUNTRY_INFO!S76) -> 0 | I76: =IF($D76=0,0,IF(AND($G76>0,$H76<>"Oui"),D76,IF(AND($G76>0,$H76="Oui"),COUNTRY_INFO!$F76,0))) -> 0 | K76: 0 | L76: 0 | M76: 0 | N76: 0 | O76: 0 | Q76: 0 | R76: 0
A77: =IF(INTRO!$E$43="Non endémique"," ", IF(COUNTRY_INFO!A77=0," ",COUNTRY_INFO!A77)) -> Benin | B77: =IF(INTRO!$E$43="Non endémique"," ", IF(COUNTRY_INFO!B77=0," ",COUNTRY_INFO!B77)) -> Zou | C77: =IF(INTRO!$E$43="Non endémique"," ", IF(COUNTRY_INFO!C77=0," ",COUNTRY_INFO!C77)) -> Abomey | D77: 23894 | E77: 42365 | F77: 66259 | G77: =IF(INTRO!$E$43="Non endémique", "Non requis", COUNTRY_INFO!S77) -> 0 | I77: =IF($D77=0,0,IF(AND($G77>0,$H77<>"Oui"),D77,IF(AND($G77>0,$H77="Oui"),COUNTRY_INFO!$F77,0))) -> 0 | K77: 0 | L77: 0 | M77: 0 | N77: 0 | O77: 0 | Q77: 0 | R77: 0
A78: =IF(INTRO!$E$43="Non endémique"," ", IF(COUNTRY_INFO!A78=0," ",COUNTRY_INFO!A78)) -> Benin | B78: =IF(INTRO!$E$43="Non endémique"," ", IF(COUNTRY_INFO!B78=0," ",COUNTRY_INFO!B78)) -> Zou | C78: =IF(INTRO!$E$43="Non endémique"," ", IF(COUNTRY_INFO!C78=0," ",COUNTRY_INFO!C78)) -> Agbangnizoun | D78: 20944 | E78: 37134 | F78: 58078 | G78: =IF(INTRO!$E$43="Non endémique", "Non requis", COUNTRY_INFO!S78) -> 0 | I78: =IF($D78=0,0,IF(AND($G78>0,$H78<>"Oui"),D78,IF(AND($G78>0,$H78="Oui"),COUNTRY_INFO!$F78,0))) -> 0 | K78: 573 | L78: 573 | M78: 0 | N78: 1719 | O78: 0 | Q78: 0 | R78: 0
A79: =IF(INTRO!$E$43="Non endémique"," ", IF(COUNTRY_INFO!A79=0," ",COUNTRY_INFO!A79)) -> Benin | B79: =IF(INTRO!$E$43="Non endémique"," ", IF(COUNTRY_INFO!B79=0," ",COUNTRY_INFO!B79)) -> Zou | C79: =IF(INTRO!$E$43="Non endémique"," ", IF(COUNTRY_INFO!C79=0," ",COUNTRY_INFO!C79)) -> Bohicon | D79: 51930 | E79: 92075 | F79: 144005 | G79: =IF(INTRO!$E$43="Non endémique", "Non requis", COUNTRY_INFO!S79) -> 0 | I79: =IF($D79=0,0,IF(AND($G79>0,$H79<>"Oui"),D79,IF(AND($G79>0,$H79="Oui"),COUNTRY_INFO!$F79,0))) -> 0 | K79: 0 | L79: 0 | M79: 0 | N79: 0 | O79: 0 | Q79: 0 | R79: 0
A80: =IF(INTRO!$E$43="Non endémique"," ", IF(COUNTRY_INFO!A80=0," ",COUNTRY_INFO!A80)) -> Benin | B80: =IF(INTRO!$E$43="Non endémique"," ", IF(COUNTRY_INFO!B80=0," ",COUNTRY_INFO!B80)) -> Zou | C80: =IF(INTRO!$E$43="Non endémique"," ", IF(COUNTRY_INFO!C80=0," ",COUNTRY_INFO!C80)) -> Covè | D80: 20743 | E80: 36779 | F80: 57522 | G80: =IF(INTRO!$E$43="Non endémique", "Non requis", COUNTRY_INFO!S80) -> 0 | I80: =IF($D80=0,0,IF(AND($G80>0,$H80<>"Oui"),D80,IF(AND($G80>0,$H80="Oui"),COUNTRY_INFO!$F80,0))) -> 0 | K80: 0 | L80: 0 | M80: 0 | N80: 0 | O80: 0 | Q80: 0 | R80: 0
A81: =IF(INTRO!$E$43="Non endémique"," ", IF(COUNTRY_INFO!A81=0," ",COUNTRY_INFO!A81)) -> Benin | B81: =IF(INTRO!$E$43="Non endémique"," ", IF(COUNTRY_INFO!B81=0," ",COUNTRY_INFO!B81)) -> Zou | C81: =IF(INTRO!$E$43="Non endémique"," ", IF(COUNTRY_INFO!C81=0," ",COUNTRY_INFO!C81)) -> Djidja | D81: 37260 | E81: 66065 | F81: 103325 | G81: =IF(INTRO!$E$43="Non endémique", "Non requis", COUNTRY_INFO!S81) -> 1 | I81: =IF($D81=0,0,IF(AND($G81>0,$H81<>"Oui"),D81,IF(AND($G81>0,$H81="Oui"),COUNTRY_INFO!$F81,0))) -> 37260 | K81: 0 | L81: 37260 | M81: 93150 | N81: 0 | O81: 93150 | Q81: 93150 | R81: 94
A82: =IF(INTRO!$E$43="Non endémique"," ", IF(COUNTRY_INFO!A82=0," ",COUNTRY_INFO!A82)) -> Benin | B82: =IF(INTRO!$E$43="Non endémique"," ", IF(COUNTRY_INFO!B82=0," ",COUNTRY_INFO!B82)) -> Zou | C82: =IF(INTRO!$E$43="Non endémique"," ", IF(COUNTRY_INFO!C82=0," ",COUNTRY_INFO!C82)) -> Ouinhi | D82: 18616 | E82: 33008 | F82: 51624 | G82: =IF(INTRO!$E$43="Non endémique", "Non requis", COUNTRY_INFO!S82) -> 1 | I82: =IF($D82=0,0,IF(AND($G82>0,$H82<>"Oui"),D82,IF(AND($G82>0,$H82="Oui"),COUNTRY_INFO!$F82,0))) -> 18616 | K82: 0 | L82: 18616 | M82: 46540 | N82: 0 | O82: 46540 | Q82: 46540 | R82: 47
A83: =IF(INTRO!$E$43="Non endémique"," ", IF(COUNTRY_INFO!A83=0," ",COUNTRY_INFO!A83)) -> Benin | B83: =IF(INTRO!$E$43="Non endémique"," ", IF(COUNTRY_INFO!B83=0," ",COUNTRY_INFO!B83)) -> Zou | C83: =IF(INTRO!$E$43="Non endémique"," ", IF(COUNTRY_INFO!C83=0," ",COUNTRY_INFO!C83)) -> Zagnanado | D83: 15606 | E83: 27671 | F83: 43277 | G83: =IF(INTRO!$E$43="Non endémique", "Non requis", COUNTRY_INFO!S83) -> 1 | I83: =IF($D83=0,0,IF(AND($G83>0,$H83<>"Oui"),D83,IF(AND($G83>0,$H83="Oui"),COUNTRY_INFO!$F83,0))) -> 15606 | K83: 5008 | L83: 20614 | M83: 39015 | N83: 15024 | O83: 39015 | Q83: 39015 | R83: 40
A84: =IF(INTRO!$E$43="Non endémique"," ", IF(COUNTRY_INFO!A84=0," ",COUNTRY_INFO!A84)) -> Benin | B84: =IF(INTRO!$E$43="Non endémique"," ", IF(COUNTRY_INFO!B84=0," ",COUNTRY_INFO!B84)) -> Zou | C84: =IF(INTRO!$E$43="Non endémique"," ", IF(COUNTRY_INFO!C84=0," ",COUNTRY_INFO!C84)) -> Za-Kpota | D84: 50563 | E84: 89652 | F84: 140215 | G84: =IF(INTRO!$E$43="Non endémique", "Non requis", COUNTRY_INFO!S84) -> 1 | I84: =IF($D84=0,0,IF(AND($G84>0,$H84<>"Oui"),D84,IF(AND($G84>0,$H84="Oui"),COUNTRY_INFO!$F84,0))) -> 50563 | K84: 7783 | L84: 58346 | M84: 126407.5 | N84: 23349 | O84: 126407.5 | Q84: 126407.5 | R84: 127
A85: =IF(INTRO!$E$43="Non endémique"," ", IF(COUNTRY_INFO!A85=0," ",COUNTRY_INFO!A85)) -> Benin | B85: =IF(INTRO!$E$43="Non endémique"," ", IF(COUNTRY_INFO!B85=0," ",COUNTRY_INFO!B85)) -> Zou | C85: =IF(INTRO!$E$43="Non endémique"," ", IF(COUNTRY_INFO!C85=0," ",COUNTRY_INFO!C85)) -> Zogbodomey | D85: 39634 | E85: 70273 | F85: 109907 | G85: =IF(INTRO!$E$43="Non endémique", "Non requis", COUNTRY_INFO!S85) -> 1 | I85: =IF($D85=0,0,IF(AND($G85>0,$H85<>"Oui"),D85,IF(AND($G85>0,$H85="Oui"),COUNTRY_INFO!$F85,0))) -> 39634 | K85: 0 | L85: 39634 | M85: 99085 | N85: 0 | O85: 99085 | Q85: 99085 | R85: 100

Sheet IVM
A1: Ivermectine (IVM)
A2: Structure administrative, population ciblée par groupe d'âge, plan de traitement et information sur les comprimés
A4: TOTAL | D4: =SUM(D$9:D$1000) -> 5200549 | G4: =SUM(G$9:G$1000) -> 0 | H4: 5200549 | I4: 0 | J4: 5200549 | K4: 0 | L4: 14561537.2 | M4: 0 | N4: 14561537.2 | O4: 0 | P4: 14561537.2 | Q4: 29149
A6: Structure administrative du pays | E6: Plan de traitement | G6: Population cible | K6: Ivermectine (IVM)
A7: Pays | B7: Région/Département | C7: District | D7: Population nécessitant un traitement avec IVM | E7: FL | F7: Oncho | G7: FL | H7: Oncho | K7: FL uniquement | L7: Oncho uniquement | M7: FL+Oncho | N7: Total requis | O7: Reste en stock | P7: Comprimés devant être fournis | Q7: Flacons (3mg) 500 comprimés
H8: dans le district | I8: dans les village | J8: total
A9: =IF(INTRO!$E$39="Non endémique"," ",IF(COUNTRY_INFO!A9=0," ",COUNTRY_INFO!A9)) -> Benin | B9: =IF(INTRO!$E$39="Non endémique"," ",IF(COUNTRY_INFO!B9=0," ",COUNTRY_INFO!B9)) -> Alibori | C9: =IF(INTRO!$E$39="Non endémique"," ",IF(COUNTRY_INFO!C9=0," ",COUNTRY_INFO!C9)) -> Banikoara | D9: =IF(INTRO!$E$39="Non endémique",0,IF(INTRO!$E$39="Endémique mais pas de CP",IF(COUNTRY_INFO!$H9=1,COUNTRY_INFO!F9+COUNTRY_INFO!G9,0),IF(COUNTRY_INFO!$H9=1,COUNTRY_INFO!F9+COUNTRY_INFO!G9,IF(COUNTRY_INFO!$I9=1,IF(COUNTRY_INFO!M9>=(COUNTRY_INFO!F9+COUNTRY_INFO!G9),COUNTRY_INFO!F9+COUNTRY_INFO!G9,COUNTRY_INFO!$M9),0)))) -> 261051 | E9: =IF(AND(INTRO!$E$39="Non endémique",INTRO!$E$37="Non endémique"),"Non requis",IF(INTRO!$E$39="Non endémique","Traiter avec DEC",COUNTRY_INFO!P9)) -> 0 | F9: =IF(INTRO!$E$39<>"Non endémique",COUNTRY_INFO!Q9,"Non requis") -> 1 | G9: =IF(COUNTRY_INFO!H9=1, IF($E9=1,$D9, 0),0) -> 0 | H9: =IF(INTRO!$E$39<>"Endémique",0, IF(AND(COUNTRY_INFO!$I9=1,$F9<>0),IF(COUNTRY_INFO!M9>=(COUNTRY_INFO!F9+COUNTRY_INFO!G9),COUNTRY_INFO!F9+COUNTRY_INFO!G9,COUNTRY_INFO!$M9), 0)) -> 261051 | J9: =IF(I9=0,H9,IF(I9>H9,H9,I9)) -> 261051 | K9: =IF(G9<J9,0,IF($E9=1, (G9-J9)*2.8, 0)) -> 0 | L9: =IF($E9<$F9, J9*(F9-E9)*2.8, 0) -> 730942.8 | M9: =IF(AND($E9=1, $F9<>0), J9*2.8, 0) -> 0 | N9: =SUM(K9:M9) -> 730942.8 | P9: =IF($N9>$O9,$N9-$O9,0) -> 730942.8 | Q9: =ROUNDUP($N9/500,0) -> 1462
A10: =IF(INTRO!$E$39="Non endémique"," ",IF(COUNTRY_INFO!A10=0," ",COUNTRY_INFO!A10)) -> Benin | B10: =IF(INTRO!$E$39="Non endémique"," ",IF(COUNTRY_INFO!B10=0," ",COUNTRY_INFO!B10)) -> Alibori | C10: =IF(INTRO!$E$39="Non endémique"," ",IF(COUNTRY_INFO!C10=0," ",COUNTRY_INFO!C10)) -> Gogounou | D10: =IF(INTRO!$E$39="Non endémique",0,IF(INTRO!$E$39="Endémique mais pas de CP",IF(COUNTRY_INFO!$H10=1,COUNTRY_INFO!F10+COUNTRY_INFO!G10,0),IF(COUNTRY_INFO!$H10=1,COUNTRY_INFO!F10+COUNTRY_INFO!G10,IF(COUNTRY_INFO!$I10=1,IF(COUNTRY_INFO!M10>=(COUNTRY_INFO!F10+COUNTRY_INFO!G10),COUNTRY_INFO!F10+COUNTRY_INFO!G10,COUNTRY_INFO!$M10),0)))) -> 88456 | E10: =IF(AND(INTRO!$E$39="Non endémique",INTRO!$E$37="Non endémique"),"Non requis",IF(INTRO!$E$39="Non endémique","Traiter avec DEC",COUNTRY_INFO!P10)) -> 0 | F10: =IF(INTRO!$E$39<>"Non endémique",COUNTRY_INFO!Q10,"Non requis") -> 1 | G10: =IF(COUNTRY_INFO!H10=1, IF($E10=1,$D10, 0),0) -> 0 | H10: =IF(INTRO!$E$39<>"Endémique",0, IF(AND(COUNTRY_INFO!$I10=1,$F10<>0),IF(COUNTRY_INFO!M10>=(COUNTRY_INFO!F10+COUNTRY_INFO!G10),COUNTRY_INFO!F10+COUNTRY_INFO!G10,COUNTRY_INFO!$M10), 0)) -> 88456 | J10: 88456 | K10: 0 | L10: 247676.8 | M10: 0 | N10: 247676.8 | P10: 247676.8 | Q10: 496
A11: =IF(INTRO!$E$39="Non endémique"," ",IF(COUNTRY_INFO!A11=0," ",COUNTRY_INFO!A11)) -> Benin | B11: =IF(INTRO!$E$39="Non endémique"," ",IF(COUNTRY_INFO!B11=0," ",COUNTRY_INFO!B11)) -> Alibori | C11: =IF(INTRO!$E$39="Non endémique"," ",IF(COUNTRY_INFO!C11=0," ",COUNTRY_INFO!C11)) -> Kandi | D11: =IF(INTRO!$E$39="Non endémique",0,IF(INTRO!$E$39="Endémique mais pas de CP",IF(COUNTRY_INFO!$H11=1,COUNTRY_INFO!F11+COUNTRY_INFO!G11,0),IF(COUNTRY_INFO!$H11=1,COUNTRY_INFO!F11+COUNTRY_INFO!G11,IF(COUNTRY_INFO!$I11=1,IF(COUNTRY_INFO!M11>=(COUNTRY_INFO!F11+COUNTRY_INFO!G11),COUNTRY_INFO!F11+COUNTRY_INFO!G11,COUNTRY_INFO!$M11),0)))) -> 104930 | E11: =IF(AND(INTRO!$E$39="Non endémique",INTRO!$E$37="Non endémique"),"Non requis",IF(INTRO!$E$39="Non endémique","Traiter avec DEC",COUNTRY_INFO!P11)) -> 0 | F11: =IF(INTRO!$E$39<>"Non endémique",COUNTRY_INFO!Q11,"Non requis") -> 1 | G11: =IF(COUNTRY_INFO!H11=1, IF($E11=1,$D11, 0),0) -> 0 | H11: =IF(INTRO!$E$39<>"Endémique",0, IF(AND(COUNTRY_INFO!$I11=1,$F11<>0),IF(COUNTRY_INFO!M11>=(COUNTRY_INFO!F11+COUNTRY_INFO!G11),COUNTRY_INFO!F11+COUNTRY_INFO!G11,COUNTRY_INFO!$M11), 0)) -> 104930 | J11: 104930 | K11: 0 | L11: 293804 | M11: 0 | N11: 293804 | P11: 293804 | Q11: 588
A12: =IF(INTRO!$E$39="Non endémique"," ",IF(COUNTRY_INFO!A12=0," ",COUNTRY_INFO!A12)) -> Benin | B12: =IF(INTRO!$E$39="Non endémique"," ",IF(COUNTRY_INFO!B12=0," ",COUNTRY_INFO!B12)) -> Alibori | C12: =IF(INTRO!$E$39="Non endémique"," ",IF(COUNTRY_INFO!C12=0," ",COUNTRY_INFO!C12)) -> Karimama | D12: =IF(INTRO!$E$39="Non endémique",0,IF(INTRO!$E$39="Endémique mais pas de CP",IF(COUNTRY_INFO!$H12=1,COUNTRY_INFO!F12+COUNTRY_INFO!G12,0),IF(COUNTRY_INFO!$H12=1,COUNTRY_INFO!F12+COUNTRY_INFO!G12,IF(COUNTRY_INFO!$I12=1,IF(COUNTRY_INFO!M12>=(COUNTRY_INFO!F12+COUNTRY_INFO!G12),COUNTRY_INFO!F12+COUNTRY_INFO!G12,COUNTRY_INFO!$M12),0)))) -> 52679 | E12: =IF(AND(INTRO!$E$39="Non endémique",INTRO!$E$37="Non endémique"),"Non requis",IF(INTRO!$E$39="Non endémique","Traiter avec DEC",COUNTRY_INFO!P12)) -> 0 | F12: =IF(INTRO!$E$39<>"Non endémique",COUNTRY_INFO!Q12,"Non requis") -> 1 | G12: =IF(COUNTRY_INFO!H12=1, IF($E12=1,$D12, 0),0) -> 0 | H12: =IF(INTRO!$E$39<>"Endémique",0, IF(AND(COUNTRY_INFO!$I12=1,$F12<>0),IF(COUNTRY_INFO!M12>=(COUNTRY_INFO!F12+COUNTRY_INFO!G12),COUNTRY_INFO!F12+COUNTRY_INFO!G12,COUNTRY_INFO!$M12), 0)) -> 52679 | J12: 52679 | K12: 0 | L12: 147501.2 | M12: 0 | N12: 147501.2 | P12: 147501.2 | Q12: 296
A13: =IF(INTRO!$E$39="Non endémique"," ",IF(COUNTRY_INFO!A13=0," ",COUNTRY_INFO!A13)) -> Benin | B13: =IF(INTRO!$E$39="Non endémique"," ",IF(COUNTRY_INFO!B13=0," ",COUNTRY_INFO!B13)) -> Alibori | C13: =IF(INTRO!$E$39="Non endémique"," ",IF(COUNTRY_INFO!C13=0," ",COUNTRY_INFO!C13)) -> Malanville | D13: =IF(INTRO!$E$39="Non endémique",0,IF(INTRO!$E$39="Endémique mais pas de CP",IF(COUNTRY_INFO!$H13=1,COUNTRY_INFO!F13+COUNTRY_INFO!G13,0),IF(COUNTRY_INFO!$H13=1,COUNTRY_INFO!F13+COUNTRY_INFO!G13,IF(COUNTRY_INFO!$I13=1,IF(COUNTRY_INFO!M13>=(COUNTRY_INFO!F13+COUNTRY_INFO!G13),COUNTRY_INFO!F13+COUNTRY_INFO!G13,COUNTRY_INFO!$M13),0)))) -> 96483 | E13: =IF(AND(INTRO!$E$39="Non endémique",INTRO!$E$37="Non endémique"),"Non requis",IF(INTRO!$E$39="Non endémique","Traiter avec DEC",COUNTRY_INFO!P13)) -> 0 | F13: =IF(INTRO!$E$39<>"Non endémique",COUNTRY_INFO!Q13,"Non requis") -> 1 | G13: =IF(COUNTRY_INFO!H13=1, IF($E13=1,$D13, 0),0) -> 0 | H13: =IF(INTRO!$E$39<>"Endémique",0, IF(AND(COUNTRY_INFO!$I13=1,$F13<>0),IF(COUNTRY_INFO!M13>=(COUNTRY_INFO!F13+COUNTRY_INFO!G13),COUNTRY_INFO!F13+COUNTRY_INFO!G13,COUNTRY_INFO!$M13), 0)) -> 96483 | J13: 96483 | K13: 0 | L13: 270152.4 | M13: 0 | N13: 270152.4 | P13: 270152.4 | Q13: 541
A14: =IF(INTRO!$E$39="Non endémique"," ",IF(COUNTRY_INFO!A14=0," ",COUNTRY_INFO!A14)) -> Benin | B14: =IF(INTRO!$E$39="Non endémique"," ",IF(COUNTRY_INFO!B14=0," ",COUNTRY_INFO!B14)) -> Alibori | C14: =IF(INTRO!$E$39="Non endémique"," ",IF(COUNTRY_INFO!C14=0," ",COUNTRY_INFO!C14)) -> Ségbana | D14: =IF(INTRO!$E$39="Non endémique",0,IF(INTRO!$E$39="Endémique mais pas de CP",IF(COUNTRY_INFO!$H14=1,COUNTRY_INFO!F14+COUNTRY_INFO!G14,0),IF(COUNTRY_INFO!$H14=1,COUNTRY_INFO!F14+COUNTRY_INFO!G14,IF(COUNTRY_INFO!$I14=1,IF(COUNTRY_INFO!M14>=(COUNTRY_INFO!F14+COUNTRY_INFO!G14),COUNTRY_INFO!F14+COUNTRY_INFO!G14,COUNTRY_INFO!$M14),0)))) -> 62668 | E14: =IF(AND(INTRO!$E$39="Non endémique",INTRO!$E$37="Non endémique"),"Non requis",IF(INTRO!$E$39="Non endémique","Traiter avec DEC",COUNTRY_INFO!P14)) -> 0 | F14: =IF(INTRO!$E$39<>"Non endémique",COUNTRY_INFO!Q14,"Non requis") -> 1 | G14: =IF(COUNTRY_INFO!H14=1, IF($E14=1,$D14, 0),0) -> 0 | H14: =IF(INTRO!$E$39<>"Endémique",0, IF(AND(COUNTRY_INFO!$I14=1,$F14<>0),IF(COUNTRY_INFO!M14>=(COUNTRY_INFO!F14+COUNTRY_INFO!G14),COUNTRY_INFO!F14+COUNTRY_INFO!G14,COUNTRY_INFO!$M14), 0)) -> 62668 | J14: 62668 | K14: 0 | L14: 175470.4 | M14: 0 | N14: 175470.4 | P14: 175470.4 | Q14: 351
A15: =IF(INTRO!$E$39="Non endémique"," ",IF(COUNTRY_INFO!A15=0," ",COUNTRY_INFO!A15)) -> Benin | B15: =IF(INTRO!$E$39="Non endémique"," ",IF(COUNTRY_INFO!B15=0," ",COUNTRY_INFO!B15)) -> Atacora | C15: =IF(INTRO!$E$39="Non endémique"," ",IF(COUNTRY_INFO!C15=0," ",COUNTRY_INFO!C15)) -> Boukoumbé | D15: =IF(INTRO!$E$39="Non endémique",0,IF(INTRO!$E$39="Endémique mais pas de CP",IF(COUNTRY_INFO!$H15=1,COUNTRY_INFO!F15+COUNTRY_INFO!G15,0),IF(COUNTRY_INFO!$H15=1,COUNTRY_INFO!F15+COUNTRY_INFO!G15,IF(COUNTRY_INFO!$I15=1,IF(COUNTRY_INFO!M15>=(COUNTRY_INFO!F15+COUNTRY_INFO!G15),COUNTRY_INFO!F15+COUNTRY_INFO!G15,COUNTRY_INFO!$M15),0)))) -> 81564 | E15: =IF(AND(INTRO!$E$39="Non endémique",INTRO!$E$37="Non endémique"),"Non requis",IF(INTRO!$E$39="Non endémique","Traiter avec DEC",COUNTRY_INFO!P15)) -> 0 | F15: =IF(INTRO!$E$39<>"Non endémique",COUNTRY_INFO!Q15,"Non requis") -> 1 | G15: =IF(COUNTRY_INFO!H15=1, IF($E15=1,$D15, 0),0) -> 0 | H15: =IF(INTRO!$E$39<>"Endémique",0, IF(AND(COUNTRY_INFO!$I15=1,$F15<>0),IF(COUNTRY_INFO!M15>=(COUNTRY_INFO!F15+COUNTRY_INFO!G15),COUNTRY_INFO!F15+COUNTRY_INFO!G15,COUNTRY_INFO!$M15), 0)) -> 81564 | J15: 81564 | K15: 0 | L15: 228379.2 | M15: 0 | N15: 228379.2 | P15: 228379.2 | Q15: 457
A16: =IF(INTRO!$E$39="Non endémique"," ",IF(COUNTRY_INFO!A16=0," ",COUNTRY_INFO!A16)) -> Benin | B16: =IF(INTRO!$E$39="Non endémique"," ",IF(COUNTRY_INFO!B16=0," ",COUNTRY_INFO!B16)) -> Atacora | C16: =IF(INTRO!$E$39="Non endémique"," ",IF(COUNTRY_INFO!C16=0," ",COUNTRY_INFO!C16)) -> Cobly | D16: =IF(INTRO!$E$39="Non endémique",0,IF(INTRO!$E$39="Endémique mais pas de CP",IF(COUNTRY_INFO!$H16=1,COUNTRY_INFO!F16+COUNTRY_INFO!G16,0),IF(COUNTRY_INFO!$H16=1,COUNTRY_INFO!F16+COUNTRY_INFO!G16,IF(COUNTRY_INFO!$I16=1,IF(COUNTRY_INFO!M16>=(COUNTRY_INFO!F16+COUNTRY_INFO!G16),COUNTRY_INFO!F16+COUNTRY_INFO!G16,COUNTRY_INFO!$M16),0)))) -> 68062 | E16: =IF(AND(INTRO!$E$39="Non endémique",INTRO!$E$37="Non endémique"),"Non requis",IF(INTRO!$E$39="Non endémique","Traiter avec DEC",COUNTRY_INFO!P16)) -> 0 | F16: =IF(INTRO!$E$39<>"Non endémique",COUNTRY_INFO!Q16,"Non requis") -> 1 | G16: =IF(COUNTRY_INFO!H16=1, IF($E16=1,$D16, 0),0) -> 0 | H16: =IF(INTRO!$E$39<>"Endémique",0, IF(AND(COUNTRY_INFO!$I16=1,$F16<>0),IF(COUNTRY_INFO!M16>=(COUNTRY_INFO!F16+COUNTRY_INFO!G16),COUNTRY_INFO!F16+COUNTRY_INFO!G16,COUNTRY_INFO!$M16), 0)) -> 68062 | J16: 68062 | K16: 0 | L16: 190573.6 | M16: 0 | N16: 190573.6 | P16: 190573.6 | Q16: 382
A17: =IF(INTRO!$E$39="Non endémique"," ",IF(COUNTRY_INFO!A17=0," ",COUNTRY_INFO!A17)) -> Benin | B17: =IF(INTRO!$E$39="Non endémique"," ",IF(COUNTRY_INFO!B17=0," ",COUNTRY_INFO!B17)) -> Atacora | C17: =IF(INTRO!$E$39="Non endémique"," ",IF(COUNTRY_INFO!C17=0," ",COUNTRY_INFO!C17)) -> Kérou | D17: =IF(INTRO!$E$39="Non endémique",0,IF(INTRO!$E$39="Endémique mais pas de CP",IF(COUNTRY_INFO!$H17=1,COUNTRY_INFO!F17+COUNTRY_INFO!G17,0),IF(COUNTRY_INFO!$H17=1,COUNTRY_INFO!F17+COUNTRY_INFO!G17,IF(COUNTRY_INFO!$I17=1,IF(COUNTRY_INFO!M17>=(COUNTRY_INFO!F17+COUNTRY_INFO!G17),COUNTRY_INFO!F17+COUNTRY_INFO!G17,COUNTRY_INFO!$M17),0)))) -> 98757 | E17: =IF(AND(INTRO!$E$39="Non endémique",INTRO!$E$37="Non endémique"),"Non requis",IF(INTRO!$E$39="Non endémique","Traiter avec DEC",COUNTRY_INFO!P17)) -> 0 | F17: =IF(INTRO!$E$39<>"Non endémique",COUNTRY_INFO!Q17,"Non requis") -> 1 | G17: =IF(COUNTRY_INFO!H17=1, IF($E17=1,$D17, 0),0) -> 0 | H17: =IF(INTRO!$E$39<>"Endémique",0, IF(AND(COUNTRY_INFO!$I17=1,$F17<>0),IF(COUNTRY_INFO!M17>=(COUNTRY_INFO!F17+COUNTRY_INFO!G17),COUNTRY_INFO!F17+COUNTRY_INFO!G17,COUNTRY_INFO!$M17), 0)) -> 98757 | J17: 98757 | K17: 0 | L17: 276519.6 | M17: 0 | N17: 276519.6 | P17: 276519.6 | Q17: 554
A18: =IF(INTRO!$E$39="Non endémique"," ",IF(COUNTRY_INFO!A18=0," ",COUNTRY_INFO!A18)) -> Benin | B18: =IF(INTRO!$E$39="Non endémique"," ",IF(COUNTRY_INFO!B18=0," ",COUNTRY_INFO!B18)) -> Atacora | C18: =IF(INTRO!$E$39="Non endémique"," ",IF(COUNTRY_INFO!C18=0," ",COUNTRY_INFO!C18)) -> Kouandé | D18: =IF(INTRO!$E$39="Non endémique",0,IF(INTRO!$E$39="Endémique mais pas de CP",IF(COUNTRY_INFO!$H18=1,COUNTRY_INFO!F18+COUNTRY_INFO!G18,0),IF(COUNTRY_INFO!$H18=1,COUNTRY_INFO!F18+COUNTRY_INFO!G18,IF(COUNTRY_INFO!$I18=1,IF(COUNTRY_INFO!M18>=(COUNTRY_INFO!F18+COUNTRY_INFO!G18),COUNTRY_INFO!F18+COUNTRY_INFO!G18,COUNTRY_INFO!$M18),0)))) -> 114090 | E18: =IF(AND(INTRO!$E$39="Non endémique",INTRO!$E$37="Non endémique"),"Non requis",IF(INTRO!$E$39="Non endémique","Traiter avec DEC",COUNTRY_INFO!P18)) -> 0 | F18: =IF(INTRO!$E$39<>"Non endémique",COUNTRY_INFO!Q18,"Non requis") -> 1 | G18: =IF(COUNTRY_INFO!H18=1, IF($E18=1,$D18, 0),0) -> 0 | H18: =IF(INTRO!$E$39<>"Endémique",0, IF(AND(COUNTRY_INFO!$I18=1,$F18<>0),IF(COUNTRY_INFO!M18>=(COUNTRY_INFO!F18+COUNTRY_INFO!G18),COUNTRY_INFO!F18+COUNTRY_INFO!G18,COUNTRY_INFO!$M18), 0)) -> 114090 | J18: 114090 | K18: 0 | L18: 319452 | M18: 0 | N18: 319452 | P18: 319452 | Q18: 639
A19: =IF(INTRO!$E$39="Non endémique"," ",IF(COUNTRY_INFO!A19=0," ",COUNTRY_INFO!A19)) -> Benin | B19: =IF(INTRO!$E$39="Non endémique"," ",IF(COUNTRY_INFO!B19=0," ",COUNTRY_INFO!B19)) -> Atacora | C19: =IF(INTRO!$E$39="Non endémique"," ",IF(COUNTRY_INFO!C19=0," ",COUNTRY_INFO!C19)) -> Matéri | D19: =IF(INTRO!$E$39="Non endémique",0,IF(INTRO!$E$39="Endémique mais pas de CP",IF(COUNTRY_INFO!$H19=1,COUNTRY_INFO!F19+COUNTRY_INFO!G19,0),IF(COUNTRY_INFO!$H19=1,COUNTRY_INFO!F19+COUNTRY_INFO!G19,IF(COUNTRY_INFO!$I19=1,IF(COUNTRY_INFO!M19>=(COUNTRY_INFO!F19+COUNTRY_INFO!G19),COUNTRY_INFO!F19+COUNTRY_INFO!G19,COUNTRY_INFO!$M19),0)))) -> 95607 | E19: =IF(AND(INTRO!$E$39="Non endémique",INTRO!$E$37="Non endémique"),"Non requis",IF(INTRO!$E$39="Non endémique","Traiter avec DEC",COUNTRY_INFO!P19)) -> 0 | F19: =IF(INTRO!$E$39<>"Non endémique",COUNTRY_INFO!Q19,"Non requis") -> 1 | G19: =IF(COUNTRY_INFO!H19=1, IF($E19=1,$D19, 0),0) -> 0 | H19: =IF(INTRO!$E$39<>"Endémique",0, IF(AND(COUNTRY_INFO!$I19=1,$F19<>0),IF(COUNTRY_INFO!M19>=(COUNTRY_INFO!F19+COUNTRY_INFO!G19),COUNTRY_INFO!F19+COUNTRY_INFO!G19,COUNTRY_INFO!$M19), 0)) -> 95607 | J19: 95607 | K19: 0 | L19: 267699.6 | M19: 0 | N19: 267699.6 | P19: 267699.6 | Q19: 536
A20: =IF(INTRO!$E$39="Non endémique"," ",IF(COUNTRY_INFO!A20=0," ",COUNTRY_INFO!A20)) -> Benin | B20: =IF(INTRO!$E$39="Non endémique"," ",IF(COUNTRY_INFO!B20=0," ",COUNTRY_INFO!B20)) -> Atacora | C20: =IF(INTRO!$E$39="Non endémique"," ",IF(COUNTRY_INFO!C20=0," ",COUNTRY_INFO!C20)) -> Natitingou | D20: =IF(INTRO!$E$39="Non endémique",0,IF(INTRO!$E$39="Endémique mais pas de CP",IF(COUNTRY_INFO!$H20=1,COUNTRY_INFO!F20+COUNTRY_INFO!G20,0),IF(COUNTRY_INFO!$H20=1,COUNTRY_INFO!F20+COUNTRY_INFO!G20,IF(COUNTRY_INFO!$I20=1,IF(COUNTRY_INFO!M20>=(COUNTRY_INFO!F20+COUNTRY_INFO!G20),COUNTRY_INFO!F20+COUNTRY_INFO!G20,COUNTRY_INFO!$M20),0)))) -> 71451 | E20: =IF(AND(INTRO!$E$39="Non endémique",INTRO!$E$37="Non endémique"),"Non requis",IF(INTRO!$E$39="Non endémique","Traiter avec DEC",COUNTRY_INFO!P20)) -> 0 | F20: =IF(INTRO!$E$39<>"Non endémique",COUNTRY_INFO!Q20,"Non requis") -> 1 | G20: =IF(COUNTRY_INFO!H20=1, IF($E20=1,$D20, 0),0) -> 0 | H20: =IF(INTRO!$E$39<>"Endémique",0, IF(AND(COUNTRY_INFO!$I20=1,$F20<>0),IF(COUNTRY_INFO!M20>=(COUNTRY_INFO!F20+COUNTRY_INFO!G20),COUNTRY_INFO!F20+COUNTRY_INFO!G20,COUNTRY_INFO!$M20), 0)) -> 71451 | J20: 71451 | K20: 0 | L20: 200062.8 | M20: 0 | N20: 200062.8 | P20: 200062.8 | Q20: 401
